Workbook

Sheet Lengte (hidden)
AL1: VERHAAL | AM1: lange korte | AN1: korte | AO1: GAG | AP1: SNIP | AQ1: fragmenten | AT1: Definitie Kort Verhaal
C2: Count | D2: van | E2: 80 | F2: 69 | G2: 59 | H2: 55 | I2: 54.5 | J2: 47 | K2: 46 | L2: 45 | M2: 44 | N2: 25 | O2: 32 | P2: 29 | Q2: 16 | R2: 9 | S2: 6 | T2: 3 | U2: 1.5 | V2: 1 | W2: 0.75 | X2: 0.5 | Y2: 0.25 | Z2: 0 | AB2: 80 | AC2: 45 | AD2: 39 | AE2: 29 | AF2: 25 | AG2: 19 | AH2: 9 | AI2: 1 | AJ2: 0.99 | AL2: 80 | AM2: 47 | AN2: 24 | AO2: 1 | AP2: 0.99 | AT2: Een kort verhaal moet een strip zijn. Dat wil zeggen een serie afbeeldingen van minimaal 3 omkaderde plaatjes met tekst, waarbij de tekst al dan niet (deels) in de plaatjes staat,
C3: Count | D3: t/m | E3: 70 | F3: 60 | G3: 55.5 | H3: 55 | I3: 53 | J3: 47 | K3: 46 | L3: 45 | M3: 44 | N3: 25 | O3: 30 | P3: 22 | Q3: 10 | R3: 7 | S3: 4 | T3: 2 | U3: 1.5 | V3: 1 | W3: 0.75 | X3: 0.5 | Y3: 0.25 | Z3: 0 | AB3: 46 | AC3: 40 | AD3: 30 | AE3: 26 | AF3: 20 | AG3: 10 | AH3: 1.5 | AI3: 1 | AJ3: 0 | AL3: 46 | AM3: 25 | AN3: 1.1 | AO3: 1 | AP3: 0 | AT3: meestal in tekstbalonnetjes. Of niet omkaderde plaatjes maar wel voorzien van tekstballonetjes.
C4: Lange verhalen | AT4: Dus een voorleesboek met illustraties van Suske en Wiske, of de Tom Stone muziekboeken, zijn daarmee geen kort verhaal.
C5: Korte verhalen | J5: =COUNTIFS('Korte Verhalen'!$G:$G,"<="&Lengte!J2,'Korte Verhalen'!$G:$G,">="&Lengte!J3) -> 1 | K5: =COUNTIFS('Korte Verhalen'!$G:$G,"<="&Lengte!K2,'Korte Verhalen'!$G:$G,">="&Lengte!K3) -> 0 | L5: =COUNTIFS('Korte Verhalen'!$G:$G,"<="&Lengte!L2,'Korte Verhalen'!$G:$G,">="&Lengte!L3) -> 1 | M5: =COUNTIFS('Korte Verhalen'!$G:$G,"<="&Lengte!M2,'Korte Verhalen'!$G:$G,">="&Lengte!M3) -> 2 | N5: =COUNTIFS('Korte Verhalen'!$G:$G,"<="&Lengte!N2,'Korte Verhalen'!$G:$G,">="&Lengte!N3) -> 16 | O5: =COUNTIFS('Korte Verhalen'!$G:$G,"<="&Lengte!O2,'Korte Verhalen'!$G:$G,">="&Lengte!O3) -> 9 | P5: =COUNTIFS('Korte Verhalen'!$G:$G,"<="&Lengte!P2,'Korte Verhalen'!$G:$G,">="&Lengte!P3) -> 81 | Q5: =COUNTIFS('Korte Verhalen'!$G:$G,"<="&Lengte!Q2,'Korte Verhalen'!$G:$G,">="&Lengte!Q3) -> 15 | R5: =COUNTIFS('Korte Verhalen'!$G:$G,"<="&Lengte!R2,'Korte Verhalen'!$G:$G,">="&Lengte!R3) -> 9 | S5: =COUNTIFS('Korte Verhalen'!$G:$G,"<="&Lengte!S2,'Korte Verhalen'!$G:$G,">="&Lengte!S3) -> 40 | T5: =COUNTIFS('Korte Verhalen'!$G:$G,"<="&Lengte!T2,'Korte Verhalen'!$G:$G,">="&Lengte!T3) -> 57 | U5: =COUNTIFS('Korte Verhalen'!$G:$G,"<="&Lengte!U2,'Korte Verhalen'!$G:$G,">="&Lengte!U3) -> 10 | V5: =COUNTIFS('Korte Verhalen'!$G:$G,"<="&Lengte!V2,'Korte Verhalen'!$G:$G,">="&Lengte!V3) -> 124 | W5: =COUNTIFS('Korte Verhalen'!$G:$G,"<="&Lengte!W2,'Korte Verhalen'!$G:$G,">="&Lengte!W3) -> 16 | X5: =COUNTIFS('Korte Verhalen'!$G:$G,"<="&Lengte!X2,'Korte Verhalen'!$G:$G,">="&Lengte!X3) -> 38 | Y5: =COUNTIFS('Korte Verhalen'!$G:$G,"<="&Lengte!Y2,'Korte Verhalen'!$G:$G,">="&Lengte!Y3) -> 22 | Z5: =COUNTIFS('Korte Verhalen'!$G:$G,"<="&Lengte!Z2,'Korte Verhalen'!$G:$G,">="&Lengte!Z3) -> 1 | AB5: =COUNTIFS('Korte Verhalen'!$G:$G,"<="&Lengte!AB2,'Korte Verhalen'!$G:$G,">="&Lengte!AB3) -> 1 | AC5: =COUNTIFS('Korte Verhalen'!$G:$G,"<="&Lengte!AC2,'Korte Verhalen'!$G:$G,">="&Lengte!AC3) -> 3 | AD5: =COUNTIFS('Korte Verhalen'!$G:$G,"<="&Lengte!AD2,'Korte Verhalen'!$G:$G,">="&Lengte!AD3) -> 13 | AE5: =COUNTIFS('Korte Verhalen'!$G:$G,"<="&Lengte!AE2,'Korte Verhalen'!$G:$G,">="&Lengte!AE3) -> 8 | AF5: =COUNTIFS('Korte Verhalen'!$G:$G,"<="&Lengte!AF2,'Korte Verhalen'!$G:$G,">="&Lengte!AF3) -> 73 | AG5: =COUNTIFS('Korte Verhalen'!$G:$G,"<="&Lengte!AG2,'Korte Verhalen'!$G:$G,">="&Lengte!AG3) -> 16 | AH5: =COUNTIFS('Korte Verhalen'!$G:$G,"<="&Lengte!AH2,'Korte Verhalen'!$G:$G,">="&Lengte!AH3) -> 125 | AI5: =COUNTIFS('Korte Verhalen'!$G:$G,"<="&Lengte!AI2,'Korte Verhalen'!$G:$G,">="&Lengte!AI3) -> 124 | AJ5: =COUNTIFS('Korte Verhalen'!$G:$G,"<="&Lengte!AJ2,'Korte Verhalen'!$G:$G,">="&Lengte!AJ3) -> 85 | AM5: =COUNTIFS('Korte Verhalen'!$G:$G,"<="&Lengte!AM2,'Korte Verhalen'!$G:$G,">="&Lengte!AM3) -> 41 | AN5: =COUNTIFS('Korte Verhalen'!$G:$G,"<="&Lengte!AN2,'Korte Verhalen'!$G:$G,">="&Lengte!AN3) -> 200 | AO5: =COUNTIFS('Korte Verhalen'!$G:$G,"<="&Lengte!AO2,'Korte Verhalen'!$G:$G,">="&Lengte!AO3) -> 124 | AP5: =COUNTIFS('Korte Verhalen'!$G:$G,"<="&Lengte!AP2,'Korte Verhalen'!$G:$G,">="&Lengte!AP3) -> 85 | AT5: Een verhaal is een regulier verhaal (VER) en geen kort verhaal als het als apart album in de reguliere rode of blauwe reeks of klassiek reeks opgenomen is.
E6: =AVERAGE(E2:E3) -> 75 | F6: =AVERAGE(F2:F3) -> 64.5 | G6: 57.25 | H6: 55 | I6: 53.75 | J6: 47 | K6: 46 | L6: 45 | M6: 44 | N6: 25 | O6: 31 | P6: 25.5 | Q6: 13 | R6: 8 | S6: 5 | T6: 2.5 | U6: 1.5 | V6: 1 | W6: 0.75 | X6: 0.5 | Y6: 0.25 | Z6: 0 | AB6: =AVERAGE(AB2:AB3) -> 63 | AC6: 42.5 | AD6: =AVERAGE(AD2:AD3) -> 34.5 | AE6: 27.5 | AF6: =AVERAGE(AF2:AF3) -> 22.5 | AG6: 14.5 | AH6: =AVERAGE(AH2:AH3) -> 5.25 | AI6: 1 | AJ6: =AVERAGE(AJ2:AJ3) -> 0.495 | AL6: 63 | AM6: 36 | AT6: Dat betekent dat gewone verhalen vroeger 55 of meer pagina's waren (t/m nummer 217,1990) en tegenwoordig 46 pagina's of meer tellen.
C7: total | E7: =+E5+E4 ->  | F7: =+F5+F4 ->  | S7: 40 | T7: 57 | U7: 10 | V7: 124 | W7: 16 | X7: 38 | Y7: 22 | Z7: 1 | AL7: =+AL5+AL4 ->  | AM7: 41 | AT7: De verhalen De Gekalibreerde Kwibus (44 pag, 1948) en Het Vliegende Hart (25 pag, 1952) zijn om deze reden niet als kort verhaal maar als regulier verhaal geklassificeerd
C8: dubbel | AT8: (beide zijn als apart album uitgegeven in de klassiek reeks).
AT9: De Rammelende Rally uit 1958 met 33 pagina's is daarmee een kort verhaal, en het oudste korte verhaal met meer dan 2 pagina's.
AT10: Witte Zwamen Zwarte Zwanen uit 1987 is 47 pagina's lang maar is daarmee een kort verhaal omat het niet als apart verhaal in de reeks is opgenomen.
AR12: aantal | AS12: pag | AT12: De korte verhalen zijn verder onderverdeeld op pagina lengte:
AR13: =COUNTIF('Korte Verhalen'!B:B,Lengte!AT13) -> 70 | AS13: 20 | AT13: KVH | AU13: Korte Verhalen, 20-47 pagina's.
AR14: =COUNTIF('Korte Verhalen'!B:B,Lengte!AT14) -> 80 | AS14: 1.1 | AT14: MKV | AU14: Mini Korte Verhalen, Langer dan 1 pagina en korter dan 20 pagina's.
F15: bijv de grens bij 40 | I15: 25 is duidelijk kort, bijv de lollige lakens | AR15: =COUNTIF('Korte Verhalen'!B:B,Lengte!AT15) -> 92 | AS15: 1 | AT15: GAG | AU15: Gag, 1 pagina. 3 of 4 stroken
F16: dan | AR16: =COUNTIF('Korte Verhalen'!B:B,Lengte!AT16) -> 46 | AT16: SNP | AU16: Snip, enkele plaatjes die een samenhangend verhaal vertellen. Minder dan 1 pagina en 3 plaatjes of meer.
F17: 45 | G17: Fata Morgana | AR17: =COUNTIF('Korte Verhalen'!B:B,Lengte!AT17) -> 0 | AT17: HOM | AU17: Hommage reeks. Officiele Suske en Wiske verhalen maar getekend door andere tekenaars. Hier valt ook de SOS kinderdorpen reeks onder
E18: V | F18: 44 | J18: maar eigenlijk enkele korte | AR18: =COUNTIF('Korte Verhalen'!B:B,Lengte!AT18) -> 6 | AT18: LAM | AU18: Grappen van Lambik
AR19: =COUNTIF('Korte Verhalen'!B:B,Lengte!AT19) -> 10 | AT19: INF | AU19: Info strip. Combinatie van tekstblokken en plaatjes, met tekst(balonnetjes) in de plaatjes. Meestal met extra informatie over een bepaald onderwerp of doel.
E20: K | F20: 25
AT21: Verder zijn de volgende overige categorieën toegevoegd, om aan te geven dat dit geen korte verhalen zijn:
AR22: =COUNTIF('Korte Verhalen'!B:B,Lengte!AT22) -> 80 | AT22: FRG | AU22: Fragment. Overgenomen uit andere verhalen. Geen apart kort verhaal
AR23: =COUNTIF('Korte Verhalen'!B:B,Lengte!AT23) -> 40 | AT23: PAR | AU23: Parodie
AT24: OTH | AU24: Albums die niet in de bovenstaande categorieën vallen.
E26: V!!! | F26: 47 | G26: Witte zwanen zwarte zwanen | AT26: en ten slotte de gewone verhalen:
E27: V!!! | F27: 45 | G27: Fata Morgana | AT27: VER | AU27: Regulier verhaal, opgenomen in de reguliere rode of blauwe reeks, of als apart verhaal in de Klassiek reeks
E28: alt | F28: 46 | G28: Cromimi
E29: alt | F29: 46 | G29: Boemerang | AT29: =INDEX('Korte Verhalen'!F:F,MATCH(AV29,'Korte Verhalen'!E:E,0)) -> 1976-10-08 | AU29: =INDEX('Korte Verhalen'!C:C,MATCH(AV29,'Korte Verhalen'!E:E,0)) -> INF 1 | AV29: De Gestolen Schoen | AY29: tekstbalonnetjes in niet omkaderde plaatjes
AT30: =INDEX('Korte Verhalen'!F:F,MATCH(AV30,'Korte Verhalen'!E:E,0)) -> 1982-04-24 | AU30: =INDEX('Korte Verhalen'!C:C,MATCH(AV30,'Korte Verhalen'!E:E,0)) -> INF 2 | AV30: een bij voor jou en mij | AY30: echte stripjes en tekstbalonnetjes in niet omkaderde plaatjes
AT31: =INDEX('Korte Verhalen'!F:F,MATCH(AV31,'Korte Verhalen'!E:E,0)) -> 1982-10-01 | AU31: =INDEX('Korte Verhalen'!C:C,MATCH(AV31,'Korte Verhalen'!E:E,0)) -> INF 3 | AV31: de blijde broodeters | AY31: echte stripjes en tekstbalonnetjes in niet omkaderde plaatjes
AT32: =INDEX('Korte Verhalen'!F:F,MATCH(AV32,'Korte Verhalen'!E:E,0)) -> 1983-10-20 | AU32: =INDEX('Korte Verhalen'!C:C,MATCH(AV32,'Korte Verhalen'!E:E,0)) -> INF 4 | AV32: beter voor bert | AY32: echte stripjes en tekstbalonnetjes in niet omkaderde plaatjes
AT33: =INDEX('Korte Verhalen'!F:F,MATCH(AV33,'Korte Verhalen'!E:E,0)) -> 1985-02-01 | AU33: =INDEX('Korte Verhalen'!C:C,MATCH(AV33,'Korte Verhalen'!E:E,0)) -> INF 5 | AV33: de tandentikkers | AY33: echte stripjes en tekst
AT34: =INDEX('Korte Verhalen'!F:F,MATCH(AV34,'Korte Verhalen'!E:E,0)) -> 1986-02-01 | AU34: =INDEX('Korte Verhalen'!C:C,MATCH(AV34,'Korte Verhalen'!E:E,0)) -> INF 6 | AV34: sony-san | AY34: echte stripjes en tekst
F35: 32 | G35: De rammelende rally | AT35: =INDEX('Korte Verhalen'!F:F,MATCH(AV35,'Korte Verhalen'!E:E,0)) -> 1989-01-01 | AU35: =INDEX('Korte Verhalen'!C:C,MATCH(AV35,'Korte Verhalen'!E:E,0)) -> INF 7 | AV35: het gouden kuipje | AY35: echte stripjes en tekstbalonnetjes in niet omkaderde plaatjes
F36: 32 | G36: Het monster van Loch Ness | AT36: =INDEX('Korte Verhalen'!F:F,MATCH(AV36,'Korte Verhalen'!E:E,0)) -> 1989-01-01 | AU36: =INDEX('Korte Verhalen'!C:C,MATCH(AV36,'Korte Verhalen'!E:E,0)) -> INF 8 | AV36: de ademloze adonis | AY36: tekstkader in plaatjes
F37: 32 | G37: De bevende berken | AT37: =INDEX('Korte Verhalen'!F:F,MATCH(AV37,'Korte Verhalen'!E:E,0)) -> 2005-06-24 | AU37: =INDEX('Korte Verhalen'!C:C,MATCH(AV37,'Korte Verhalen'!E:E,0)) -> OTH 17 | AV37: De Lallende Libel | AY37: echte stripjes en tekstbalonnetjes in niet omkaderde plaatjes
F38: 32 | G38: Sony-San
F39: 31 | G39: De vliegende klomp | AT39: Tom Stone
F40: 30 | G40: De blijde broodeters | AT40: 1987-01-01 | AV40: Wat is dit nu weer | AY40: echt alleen bladmuziek, slechts enkele liedjes van SW en Lambik | BC40: met LP
F41: 30 | G41: Beter voor Bert | AT41: =+#REF! ->  | AV41: Het enige Eurolied | AY41: alleen tekst met plaatjes, geen infostrip
F42: 30 | G42: De Bosbollebozen | AT42: 1998-01-01 | AV42: het heuze huisconcert | AY42: idem? | BC42: met CD
AT43: 1998-01-01 | AV43: de muzikale maatjes | AY43: idem? | BC43: met CD
AC50: 47 | AD50: 45 | AE50: =+AD50-2 -> 43 | AF50: 41 | AG50: 39 | AH50: 37 | AI50: 35 | AJ50: 33 | AK50: 31 | AL50: =+AK50-2 -> 29 | AM50: 27 | AN50: 25 | AO50: 23 | AP50: 21 | AQ50: 19 | AR50: 17 | AS50: 15 | AT50: 13 | AU50: 11 | AV50: 9 | AW50: 7 | AX50: 5 | AY50: 3 | AZ50: 1 | BA50: 0.99
AC51: 46 | AD51: 44 | AE51: =+AE50-1 -> 42 | AF51: 40 | AG51: 38 | AH51: 36 | AI51: 34 | AJ51: 32 | AK51: 30 | AL51: =+AL50-1 -> 28 | AM51: 26 | AN51: 24 | AO51: 22 | AP51: 20 | AQ51: 18 | AR51: 16 | AS51: 14 | AT51: 12 | AU51: 10 | AV51: 8 | AW51: 6 | AX51: 4 | AY51: 2 | AZ51: 1 | BA51: 0
AB54: blz | AC54: =AVERAGE(AC50:AC51) -> 46.5 | AD54: 44.5 | AE54: 42.5 | AF54: 40.5 | AG54: 38.5 | AH54: 36.5 | AI54: 34.5 | AJ54: 32.5 | AK54: 30.5 | AL54: =AVERAGE(AL50:AL51) -> 28.5 | AM54: 26.5 | AN54: 24.5 | AO54: 22.5 | AP54: 20.5 | AQ54: 18.5 | AR54: 16.5 | AS54: 14.5 | AT54: 12.5 | AU54: 10.5 | AV54: 8.5 | AW54: 6.5 | AX54: 4.5 | AY54: 2.5 | AZ54: 1 | BA54: 0.495
AB55: count | AC55: =COUNTIFS('Korte Verhalen'!$G:$G,"<="&Lengte!AC50,'Korte Verhalen'!$G:$G,">="&Lengte!AC51) -> 1 | AD55: =COUNTIFS('Korte Verhalen'!$G:$G,"<="&Lengte!AD50,'Korte Verhalen'!$G:$G,">="&Lengte!AD51) -> 3 | AE55: =COUNTIFS('Korte Verhalen'!$G:$G,"<="&Lengte!AE50,'Korte Verhalen'!$G:$G,">="&Lengte!AE51) -> 0 | AF55: =COUNTIFS('Korte Verhalen'!$G:$G,"<="&Lengte!AF50,'Korte Verhalen'!$G:$G,">="&Lengte!AF51) -> 0 | AG55: =COUNTIFS('Korte Verhalen'!$G:$G,"<="&Lengte!AG50,'Korte Verhalen'!$G:$G,">="&Lengte!AG51) -> 0 | AH55: =COUNTIFS('Korte Verhalen'!$G:$G,"<="&Lengte!AH50,'Korte Verhalen'!$G:$G,">="&Lengte!AH51) -> 2 | AI55: =COUNTIFS('Korte Verhalen'!$G:$G,"<="&Lengte!AI50,'Korte Verhalen'!$G:$G,">="&Lengte!AI51) -> 2 | AJ55: =COUNTIFS('Korte Verhalen'!$G:$G,"<="&Lengte!AJ50,'Korte Verhalen'!$G:$G,">="&Lengte!AJ51) -> 4 | AK55: =COUNTIFS('Korte Verhalen'!$G:$G,"<="&Lengte!AK50,'Korte Verhalen'!$G:$G,">="&Lengte!AK51) -> 5 | AL55: =COUNTIFS('Korte Verhalen'!$G:$G,"<="&Lengte!AL50,'Korte Verhalen'!$G:$G,">="&Lengte!AL51) -> 4 | AM55: =COUNTIFS('Korte Verhalen'!$G:$G,"<="&Lengte!AM50,'Korte Verhalen'!$G:$G,">="&Lengte!AM51) -> 4 | AN55: =COUNTIFS('Korte Verhalen'!$G:$G,"<="&Lengte!AN50,'Korte Verhalen'!$G:$G,">="&Lengte!AN51) -> 18 | AO55: =COUNTIFS('Korte Verhalen'!$G:$G,"<="&Lengte!AO50,'Korte Verhalen'!$G:$G,">="&Lengte!AO51) -> 54 | AP55: =COUNTIFS('Korte Verhalen'!$G:$G,"<="&Lengte!AP50,'Korte Verhalen'!$G:$G,">="&Lengte!AP51) -> 0 | AQ55: =COUNTIFS('Korte Verhalen'!$G:$G,"<="&Lengte!AQ50,'Korte Verhalen'!$G:$G,">="&Lengte!AQ51) -> 1 | AR55: =COUNTIFS('Korte Verhalen'!$G:$G,"<="&Lengte!AR50,'Korte Verhalen'!$G:$G,">="&Lengte!AR51) -> 4 | AS55: =COUNTIFS('Korte Verhalen'!$G:$G,"<="&Lengte!AS50,'Korte Verhalen'!$G:$G,">="&Lengte!AS51) -> 1 | AT55: =COUNTIFS('Korte Verhalen'!$G:$G,"<="&Lengte!AT50,'Korte Verhalen'!$G:$G,">="&Lengte!AT51) -> 5 | AU55: =COUNTIFS('Korte Verhalen'!$G:$G,"<="&Lengte!AU50,'Korte Verhalen'!$G:$G,">="&Lengte!AU51) -> 4 | AV55: =COUNTIFS('Korte Verhalen'!$G:$G,"<="&Lengte!AV50,'Korte Verhalen'!$G:$G,">="&Lengte!AV51) -> 7 | AW55: =COUNTIFS('Korte Verhalen'!$G:$G,"<="&Lengte!AW50,'Korte Verhalen'!$G:$G,">="&Lengte!AW51) -> 14 | AX55: =COUNTIFS('Korte Verhalen'!$G:$G,"<="&Lengte!AX50,'Korte Verhalen'!$G:$G,">="&Lengte!AX51) -> 26 | AY55: =COUNTIFS('Korte Verhalen'!$G:$G,"<="&Lengte!AY50,'Korte Verhalen'!$G:$G,">="&Lengte!AY51) -> 57 | AZ55: =COUNTIFS('Korte Verhalen'!$G:$G,"<="&Lengte!AZ50,'Korte Verhalen'!$G:$G,">="&Lengte!AZ51) -> 124 | BA55: =COUNTIFS('Korte Verhalen'!$G:$G,"<="&Lengte!BA50,'Korte Verhalen'!$G:$G,">="&Lengte!BA51) -> 85

Sheet Wijzigingen (hidden)
A1: Date | B1: Subject | C1: Remark | F1: pwd: detammetumi
A2: 2021-02-07 | B2: De Ongelooflijke Thomas, Rigo pagina | C2: ipv pag 1
A3: 2021-02-08 | B3: Bronnen | C3: 4kleuren
A4: 2021-02-08 | B4: Sofietje | C4: link
A5: 2021-02-09 | B5: Heb ik kolom | C5: Unprotect en hide/unhide met knop
A6: 2021-02-09 | B6: De Sonometer | C6: Aantal pagina's error verwijderd (Lange Verhalen)
A7: 2021-02-09 | B7: De wakkere wekker | C7: Ook uit Wordt Vervolgd Stripcocktail 3 (1988)
A8: 2021-02-09 | B8: De snoezige snoepster | C8: Ook uit Wordt Vervolgd Stripcocktail 2 (1988)
A9: 2021-02-09 | B9: De balorige bellers | C9: Ook uit Wordt Vervolgd Stripcocktail 2 (1988)
A10: 2021-02-24 | B10: De preutse prinses | C10: Album 20/5/20 maar start Telegraaf al 25/1/2020
A11: 2021-03-06 | B11: De Lange Verhalen | C11: Update met datums en knop
A12: 2021-03-08T22:47:17 | B12: Fragmenten | C12: Verwijzing naar Groot Grappenboek Hema toegevoegd.
A13: 2021-03-08T22:47:17 | B13: Macro | C13: Bij saven de wijzigingssheet activeren en datum toevoegen.
A14: 2021-03-08T22:59:10 | B14: In het Zeeuws Museum | C14: Comment toegevoegd van versie voor 1e klas LTS
A15: 2021-03-11T23:06:20 | B15: Lekturama | C15: Geupdate t/m 78
A16: 2021-03-13T13:05:37 | B16: Macro | C16: Datum update bij saven nu alleen voor mij.
A17: 2021-03-13T18:25:05 | B17: Vr bengels | C17: Opmerkingen Erik S.
A18: 2021-03-13T22:03:34 | B18: Macro | C18: Macro Vrolijke Bengels verbeterd voor Windows 10
A19: 2021-03-14T13:29:51 | B19: Jan Kruis Glossy | C19: Toegevoegd, met dank aan Mark O.
A20: 2021-03-18T22:05:59 | B20: VER | C20: Hyperlink
A21: 2021-03-18T22:22:25 | B21: Button | C21: Hide before save voor als je hem zonder macro's op je telefoon opent. Show bij open met macro's
A22: 2021-03-20T18:15:14 | B22: De Vrolijke Bengels | C22: Fenix 73 en 82 gecorrigeerd. 3 gags minder en betere omschrijving laatste gags in Het Nieuwsblad - Krantenbijlage Ons Volkske
A23: 2021-03-21T09:46:30 | B23: De Vrolijke Bengels | C23: 3 gags minder nu lege regel met 'Geen aflevering'.
A24: 2021-03-24T21:47:36 | B24: Manipulatiemachine | C24: tikfout stripverhalen naar stripverhaal
A25: 2021-03-27T14:24:13 | B25: lange verhalen | C25: verwijderd,incl bijbehorende tabs. Link lange verhalen naar www website.
A26: 2021-03-31T21:08:27 | B26: De blije bijen | C26: toegevoegd, vermeld op het forum op 31/3/2021 door S&W lover
A27: 2021-04-02T21:35:00 | B27: De grappen van Lambik | C27: Missende info tekst geupdate met website
A28: 2021-04-02T21:35:00 | B28: fragmenten | C28: pagina's toegevoegd
A29: 2021-04-02T21:35:00 | B29: Maar Wiske die bestaat toch al lang | C29: Toegevoegd uit Europummel
A30: 2021-04-03T13:40:08 | B30: Maar Wiske die bestaat toch al lang | C30: strook 28
A31: 2021-04-04T12:55:17 | B31: Het vurige Vitamitje | C31: Vermelding van 2013 uitgave met Coole Kastaar verwijderd. Dit betreft waarschijnlijk een zeer gelimiteerde oplage of een proefdruk voor de HC.
A32: 2021-04-04T12:58:21 | B32: De coole Kastaar | C32: Vermelding van 2013 uitgave met Vurige Vitamitje verwijderd. Dit betreft waarschijnlijk een zeer gelimiteerde oplage of een proefdruk voor de HC.
A33: 2021-04-11T12:35:39 | B33: Macro | C33: Bij saven automatic resize en reposition comments, breedte 300.
A34: 2021-04-12T17:17:14 | B34: Fragmenten | C34: Alle fragmenten van Tom Stone, Het Heuze Huisconcert en De Muziekale Maatjes (2 en 3 plaatjes) toegevoegd. Met dank aan SWvx.
A35: 2021-04-15T18:58:12 | B35: Kort Verhalen 2021 | C35: Volgorde gewijzigd.
A36: 2021-04-20T16:56:13 | B36: Other, Het Spaanse Spook | C36: Other verhaal "Suske en Wiske, Het Spaanse spook" toegevoegd, uit Weekblad Kuifje 1981, nr 39. Getekend door Franz.
A37: 2021-04-26T16:07:57 | B37: Pezige Peekah | C37: Note toegevoegd met omschrijving censuur van originele strook 69 uit de krant.
A38: 2021-05-03T08:21:54 | B38: Het blije bijenteam | C38: Titel aangepast van De blije bijen, en omschrijving
A39: 2021-05-03T08:21:54 | B39: De Vroemvroem-club | C39: Toegevoegd
A40: 2021-05-12T21:46:48 | B40: pdw | C40: moved
A41: 2021-05-13T14:46:00 | B41: Het mopperende masker | C41: toegevoegd dat SW 60 jaar uit okt 2005 is en dus inderdaad de TrosKompas publicatie de eerste is.
A42: 2021-05-14T15:54:02 | B42: Het passende paspoort | C42: toegevoegd: De plaatjes komen uit de studiekeuzegids.
A43: 2021-06-01T22:27:15 | B43: Lambik op de Sale '83 | C43: ook verschenen in uitgaven van het stripschap: boekje voor een conventie over Merchandising van stripfiguren op diezelfde beurs (uit facebook pagina Verwoede Verzamelaar)
A44: 2021-06-01T22:27:15 | B44: Het blije bijenteam | C44: 4 pagina's ipv 6, 16 stroken.
A45: 2021-06-07T10:36:19 | B45: Help ons alsjeblieft(vogeltjes strip) | C45: Omdat S&W hierin niet optreden is het verhaal nu niet gefiled as GAG maar bij OTH
A46: 2021-06-07T11:17:44 | B46: De hypocriete Hyver | C46: Toegevoegd. Met dank aan Mark Ormel
A47: 2021-06-07T11:22:16 | B47: Mark Ormel | C47: toegevoegd bij "Met dank aan".
A48: 2021-06-07T22:22:37 | B48: Fragmenten Hema groot grappenboek | C48: Alle verwijzingen van De poppenpakker veranderd in De lachende wolf, verder alle strooknummers toegevoegd in commentaar, uitgezocht door Mark Ormel.
A49: 2021-06-09T22:13:23 | B49: Fragmenten Hema groot grappenboek | C49: Dubbelen verwijderd: Frg 29 en frg 59: De tijd gaat snel, gebruik hem wel, Frg 51 en frg 60: Geweld zet aan tot geweld (bij frg 51 staat ook de dubbele vindplaats vermeld). Dubbel Groot grappenboek en schoolagenda, uitgezocht door Mark Ormel.
A50: 2021-06-16T14:25:49 | B50: Het blije bijenteam | C50: Begintekst toegevoegd (Sandr, forum)
A51: 2021-06-16T14:25:49 | B51: Het Nieuwjaarscomplot | C51: Toegevoegd. Met dank aan Michael van Hartskamp.
A52: 2021-06-19T19:27:20 | B52: De vroemvroem-club | C52: Pagina's niet 12/2 maar 46 warschijnlijk (totaal 48).
A53: 2021-06-20T13:34:03 | B53: Het spook van Pukema | C53: Toegevoegd bij other
A54: 2021-07-20T23:11:14 | B54: Alle 4kleuren.nl links | C54: 197 links van www.4klleuren.nl vervangen omdat de site niet meer bestaat
A55: 2021-07-21T14:19:19 | B55: Het blije bijenteam | C55: 6 pagina's ipv 4, 24 stroken. Aantal pagina's 20 waarvan 2 bijna blanco, 12 met verhaal en 6 informatie pagina's
A56: 2021-08-13T11:09:29 | B56: De Vroemvroem-club | C56: Datum aankondiging toegevoegd: 12 Aug in Telegraaf.
A57: 2021-10-03T21:09:29 | B57: De Fenomenale Fietstocht | C57: Verschoven naar OTH want niet getekend door Studio Vandersteen maar door Dirk van den Auwera (D'Auwwe). Ook begintekst toegevoegd en extra info over o.a. de bluebikes.
A58: 2021-10-03T21:11:03 | B58: Het Nieuwwjaarscomplot | C58: Beschrijving aangepast. Jerom versie is, in tegenstelling tot eerder aangegeven, ook hertekend (met o.a. Suske toegevoegd) en is dus qua binnenerk identiek met de Suske en wiske versie.
A59: 2021-10-04T20:53:06 | B59: De Vroemvroem-club | C59: Begintekst toegevoegd.
A60: 2021-10-13T21:54:45 | B60: De Fenomenale Fietstocht | C60: Tekst onderaan met missende info verwijderd. Had ook een REF
A61: 2021-10-19T21:12:44 | B61: De koppige kluizenaar | C61: Toegevoegd Kruidvat uitgave België (waarschijnlijk 24 Sep -8 Okt 2021)
A62: 2021-10-19T21:12:44 | B62: De kribbige krab | C62: Toegevoegd Kruidvat uitgave België
A63: 2021-10-19T21:12:44 | B63: De spottende spiegel | C63: Toegevoegd Kruidvat uitgave België
A64: 2021-10-19T21:12:44 | B64: De blikken blutser | C64: Toegevoegd Kruidvat uitgave België
A65: 2021-11-03T20:56:02 | B65: De Koddige Kleerkast | C65: Aantal pagina's toegevoegd.
A66: 2022-01-17T21:55:20 | B66: De tijd gaat snel… gebruik hem wel | C66: In comment toegevoegd: ook verschenen in Het Nieuwsblad van het Zuiden en Eindhovens Dagblad
A67: 2022-01-17T21:56:02 | B67: Zo lek als een slang | C67: In comment toegevoegd: ook verschenen in Het Nieuwsblad van het Zuiden en Eindhovens Dagblad
A68: 2022-02-01T16:02:43 | B68: In het kort 2022 | C68: 10 verhalen 2022 toegevoegd. Volgorde nog niet bekend, later aanpassen.
A69: 2022-02-01T16:02:43 | B69: Geduvel op de heide | C69: toegevoegd. Verwacht 4 mei 2022. Nog toevoegen: Link. Checken: Pagina's, begintekst.
A70: 2022-03-20T10:45:43 | B70: Geduvel op de heide | C70: link toegevoegd, begintekst ok.
A71: 2022-03-20T10:45:43 | B71: In het kort 2022 | C71: Volgorde nu bekend, aangepast.
A72: 2022-03-31T20:40:19 | B72: De vliegreis | C72: Toegevoegd Detmoplast 1987
A73: 2022-03-31T20:40:19 | B73: Het gevecht | C73: Toegevoegd Detmoplast 1987
A74: 2022-04-03T14:30:20 | B74: Het natuurcommando | C74: Toegevoegd Stripglossy 21/22 2021, ongekleurd
A75: 2022-04-03T14:30:20 | B75: De sprekende kikker | C75: Toegevoegd Stripglossy 21/22 2021, ongekleurd. Hier getiteld 'De kleffe kikker'
A76: 2022-04-25T21:07:53 | B76: Kim | C76: De avonturen van Willy Vandersteen; Gag van Kim Duchateau in Knack Special 7, toegevoegd.
A77: 2022-05-04T19:03:19 | B77: Striptwisters | C77: Omhoog geschoven naar 2017 (invoer datum Lastdodo). Mogelijk ouder maar in ieder geval niet onderaan waar alle nieuwe parodien komen van de Stripglossy 2022
A78: 2022-05-06T14:44:04 | B78: Zman - de man van de straatkrant | C78: Parodie uit Stripglossy 21/22, toegevoegd
A79: 2022-05-06T14:44:04 | B79: De génante koffiezot | C79: Parodie uit Stripglossy 21/22, toegevoegd
A80: 2022-06-02T21:42:42 | B80: Ontvangt u het exclusieve Suske en Wiske-horloge ook gratis? | C80: Toegevoegd na blog van De verwoede verzamelaar
A81: 2022-08-03T13:07:49 | B81: Suske en Wiske, Het Spaanse spook | C81: Toegevoegd: ook in Versus 138 (2022)
A82: 2022-08-03T13:07:49 | B82: Taxi Tata | C82: Ook in Kruidvat Belgie (2022)
A83: 2022-08-03T13:07:49 | B83: De tragische tante | C83: Ook in Kruidvat Belgie (2022)
A84: 2022-08-03T13:07:49 | B84: De werken van Lambik | C84: Ook in Kruidvat Belgie (2022)
A85: 2022-08-03T13:07:49 | B85: De microkomiek | C85: Ook in Kruidvat Belgie (2022)
A86: 2022-08-03T13:07:49 | B86: De verdwenen joker | C86: Hommage album aan blauwe reeks, toegevoegd | H86: Aantal pagina's nog checken
A87: 2022-08-04T12:56:54 | B87: link naar Striptwisters | C87: Onderaan verwijzing gecorrigeerd
A88: 2022-10-30T21:28:14 | B88: 't Prinske | C88: tab toegevoegd, op verzoek van Robert Gilissen
A89: 2022-10-31T10:22:17 | B89: 't Prinske | C89: opmerking voorplaten verwijderd.
A90: 2022-11-03T21:05:06 | B90: Sony San | C90: Tekst van 2e druk aangepast: met cassettes in krimpfolie.
A91: 2022-11-27T19:24:53 | B91: Jerom | C91: Tabblad toegevoed
A92: 2022-11-28T10:16:25 | B92: Rymbout en de hoeven van Sleipnir | C92: Toegevoegd bij Other, bijrol Lambik in hommage Kiekeboes, door Luc Morjeau.
A93: 2022-11-28T18:45:41 | B93: Rymbout en de hoeven van Sleipnir | C93: Begintekst toegevoegd
A94: 2022-11-29T08:12:56 | B94: Tikfout Jerom | C94: Wasl naar Wastl
A95: 2022-11-29T13:38:44 | B95: Jerom | C95: Datums Duitse uitgaven nu per maand
A96: 2022-11-30T20:26:17 | B96: Rymbout en de hoeven van Sleipnir | C96: Tikfout :Vier door derden"
A97: 2022-12-07T22:47:26 | B97: De barre bacterie | C97: Toegevoegd: Metagenics Europe (met dank aan SW Shop)
A98: 2022-12-08T13:13:21 | B98: Toffe Tiko | C98: Datum aangepast van 1/1/1975 naar 31/12/1974. Moet 1974 zijn, zoals ook vermeld op achterkaft.
A99: 2022-12-08T13:13:21 | B99: Pezige Peekah | C99: Datum aangepast naar 1 jaar later, 1992
A100: 2022-12-08T13:13:21 | B100: De gouden bloem | C100: Toegevoegd reclame album voor Tide
A101: 2022-12-08T21:36:45 | B101: Het vervloekte venster | C101: Datum aangepast van feb 2014 (einde van gouden reeks) naar 9 nov 2013 (deel 2) omdat alle delen 2013 op de achterkant hebben en waarschijnlijk je de hele reeks in 1x kreeg als je die in het begin bestelde.
A102: 2022-12-08T21:36:45 | B102: De tragische tante | C102: Datum aangepast van feb 2014 (einde van gouden reeks) naar 9 nov 2013 (deel 2) omdat alle delen 2013 op de achterkant hebben en waarschijnlijk je de hele reeks in 1x kreeg als je die in het begin bestelde.
A103: 2022-12-26T20:08:35 | B103: Knack7 De avonturen van Willy Vandersteen | C103: Niet alleen Kim, maar nu ook toegevoegd parodie van Steve, van Meynen en Stallaert en van NIX en Johan de Moor.
A104: 2022-12-31T18:59:46 | B104: Jerom | C104: Datum albums Adhemar reeks deel 1-15
A105: 2023-01-09T12:14:22 | B105: Jerom De Jeti's van Oregon | C105: Is wel een Duits album: Wastl 12. Met dank aan Yannick Van Rillaer.
A106: 2023-01-09T12:14:22 | B106: Jerom De robot van Astra | C106: Is wel een Duits album: Wastl 55. Met dank aan Yannick Van Rillaer.
A107: 2023-01-09T12:49:53 | B107: Jerom Als die Römer frech geworden | C107: Niet Storm over Rome.Met dank aan Yannick Van Rillaer.
A108: 2023-01-09T13:22:22 | B108: Jerom De verlaten stad | C108: Is wel een Duits album: Wastl 110. Met dank aan Yannick Van Rillaer.
A109: 2023-01-09T13:22:22 | B109: Jerom De vliegende noodkreet | C109: Is wel een Duits album: Wastl 117. Met dank aan Yannick Van Rillaer.
A110: 2023-01-09T19:02:27 | B110: Jerom Een veder voor Odilon | C110: Is wel een Duits album: Wastl 129. Met dank aan Yannick Van Rillaer.
A111: 2023-01-09T19:02:27 | B111: Jerom De wagen van Ragam | C111: Is wel een Duits album: Wastl 138. Met dank aan Yannick Van Rillaer.
A112: 2023-01-09T19:02:27 | B112: Jerom Het vergeten eiland | C112: Is wel een Duits album: Wastl 139. Met dank aan Yannick Van Rillaer.
A113: 2023-01-09T19:02:27 | B113: Jerom Het dierenfeest | C113: Is wel een Duits album: Das Ist Klasse 7. Met dank aan Yannick Van Rillaer.
A114: 2023-01-09T19:02:27 | B114: Jerom Het vliegende kroontje | C114: Is wel een Duits album: Das Ist Klasse 8. Met dank aan Yannick Van Rillaer.
A115: 2023-01-09T19:02:27 | B115: Jerom De salamanderstad | C115: Is wel een Duits album: Das Ist Klasse 9. Met dank aan Yannick Van Rillaer.
A116: 2023-01-09T19:02:27 | B116: Jerom De vriendelijke schildpad | C116: Is wel een Duits album: Das Ist Klasse 22. Met dank aan Yannick Van Rillaer.
A117: 2023-01-09T19:02:27 | B117: Jerom De Sahara rally | C117: Is wel een Duits album: Das Ist Klasse 23. Met dank aan Yannick Van Rillaer.
A118: 2023-01-09T19:02:27 | B118: Jerom Lauweren voor helden | C118: Is wel een Duits album: Das Ist Klasse 24. Met dank aan Yannick Van Rillaer.
A119: 2023-01-09T19:02:27 | B119: Jerom Helpendael onder hoogspanning | C119: Is wel een Duits album: Das Ist Klasse 25. Met dank aan Yannick Van Rillaer.
A120: 2023-01-09T19:02:27 | B120: Jerom Odilon de cowboy | C120: Is wel een Duits album: Das Ist Klasse 26. Met dank aan Yannick Van Rillaer.
A121: 2023-01-09T19:02:27 | B121: Jerom De gestolen Boeddha | C121: Is wel een Duits album: Das Ist Klasse 35. Met dank aan Yannick Van Rillaer.
A122: 2023-01-09T19:02:27 | B122: Jerom Jerom op de olympische spelen | C122: Is wel een Duits album: Das Ist Klasse 36. Met dank aan Yannick Van Rillaer.
A123: 2023-01-09T19:02:27 | B123: Jerom Het geheimzinnige eiland | C123: Is wel een Duits album: Das Ist Klasse 41. Met dank aan Yannick Van Rillaer.
A124: 2023-01-09T19:02:27 | B124: Jerom De V-straal | C124: Is wel een Duits album: Das Ist Klasse 42. Met dank aan Yannick Van Rillaer.
A125: 2023-01-09T19:02:27 | B125: Jerom De lollige lappen | C125: Is wel een Duits album: Das Ist Klasse 53. Met dank aan Yannick Van Rillaer.
A126: 2023-01-09T19:02:27 | B126: Jerom Prof Barabas verdwenen | C126: Is wel een Duits album: Das Ist Klasse 58. Met dank aan Yannick Van Rillaer.
A127: 2023-01-09T13:22:22 | B127: Jerom De verborgen kroon | C127: De Familiestripboek uitgave is een hertekening waarbij het met 7 pagina's verkort is tot 24 pagina's. Met dank aan Yannick Van Rillaer.
A128: 2023-01-09T13:22:22 | B128: Jerom Der Wunderbaum Im Kratersee | C128: Bij online veiling van diverse originele tekeningen, vermelding van NL titel "Teddybeer voor Kolo" Met dank aan Yannick Van Rillaer. Bij die van hem is het door de studio geschreven. Bij de overige wordt er in de veiling naar verwezen in het NL of Duits
A129: 2023-01-09T18:36:42 | B129: Jerom Wastl bremst die wilde Lok | C129: Bij online veiling van originele tekening, vermelding van Nederlandstalige titel "Locomotief op hol" Met dank aan Yannick Van Rillaer.
A130: 2023-01-09T18:36:42 | B130: Jerom Wastl und der Wunderflitzer | C130: Bij online veiling van originele tekening, vermelding van Nederlandstalige titel "De zwarte vlekken" Met dank aan Yannick Van Rillaer.
A131: 2023-01-09T18:36:42 | B131: Jerom Wastl bohrt den Blechhai an | C131: Bij online veiling van originele tekening, vermelding van Nederlandstalige titel "Gevaarlijke nachten" Met dank aan Yannick Van Rillaer.
A132: 2023-01-10T20:04:04 | B132: Jerom korte verhalen | C132: Toegevoegd in hoofdlijst. Nieuwjaarscomplot bij Weitsprung ins neue Jahr gezet.
A133: 2023-01-10T23:24:30 | B133: Jerom De tweehoordige draak | C133: Datum gecorrigeerd
A134: 2023-01-10T23:43:04 | B134: Jerom Het knappe kapje | C134: Mogelijk wel in Het elang van Limburg, note toegevoegd.
A135: 2023-01-13T20:27:56 | B135: Jerom de sprekende dieren | C135: Wel een Wastl verhaal: Wetten, daß?. Eerste uitgave niet in Karavaan, maar Felix-Sonderhefte 12-1967 (Weihnachten). Met dank aan Manfred Haertel.
A136: 2023-01-18T21:51:26 | B136: Hommages | C136: Gesplitst met Lange Verhalen. SOS hernoemd in SOS (22 pag) ipv HOM en HOM (>=46 pag) naar lange verhalen.
A137: 2023-01-21T15:01:23 | B137: Het geheim van de Kalmhoutse Heide | C137: Toegevoegd uitgave van De Vroente 2009
A138: 2023-01-22T16:37:48 | B138: Witte zwanen zwarte zwanen | C138: Uitgave Fameuze Fanclub toegevoegd 2010.
A139: 2023-02-01T22:38:22 | B139: Jerom | C139: "Het Fantoom Van De Zoo" = WASTL 9 (Im Zoo sind alle Affen los)
A140: 2023-02-01T22:38:22 | B140: Jerom | C140: "De Meteoor" = WASTL 89 (Die schnellsten Flitzer von Samoa)
A141: 2023-02-01T22:38:22 | B141: Jerom | C141: "De Zilveren Ruitersporen" = WASTL 100 (Wastl und das Superding)
A142: 2023-02-02T21:52:15 | B142: Fata Morgana | C142: Note toegevoegd van alle uitgaven, uit de klankentapper
A143: 2023-02-03T22:40:30 | B143: Jerom | C143: "Raadsel op Berkendaal" = WASTL 93 (Wastl, Der Kanonenkönig).
A144: 2023-02-03T22:40:30 | B144: Jerom | C144: "De Vergeten Goudmijn" = WASTL 96 (Das Sprung-As Aus Dem Wilden Westen), beiden uit 1970.
A145: 2023-02-03T22:40:30 | B145: Jerom | C145: Opmerkingen toegevoegd onderaan.
A146: 2023-02-03T22:40:30 | B146: Jerom | C146: Het knappe kapje, toegevoegd: Hoe dit verhaal verdergaat, wordt duidelijk in De vrolijke valstrik (1985). Daarom volgorde Vnummer hiervoor gezet (niet bekend of ook in krant verscheen)
A147: 2023-02-04T15:11:58 | B147: Jerom | C147: 4 gastoptredens SW toegevoegd in opmerkingen
A148: 2023-02-06T22:11:55 | B148: Jerom | C148: Omschrijving Pats/Patskrant: Ook stripkrant met Notitie (Note).
A149: 2023-02-07T21:25:10 | B149: Jerom | C149: Wie een put graaft: extra info. Diverse albums gele serie nr 26-36 album datum verbeterd.
A150: 2023-02-08T21:46:17 | B150: Jerom | C150: Peter und Ulla niet 4 (tijdens Jerom Felix periode) maar 17 (alle Felix) verhalen. Hidden want niet echt voor Jerom van toepassing.
A151: 2023-02-08T21:46:17 | B151: Lambik | C151: Grappen van Lambik logo plaatje bovenaan
A152: 2023-02-12T06:51:19 | B152: Macro | C152: Freeze Panes Jerom
A153: 2023-02-26T15:14:05 | B153: Nee ik wil geen snoepje | C153: Toegevoegd: Een boekje over weerbaarheid voor kinderen, naar aanleiding van de zaak Dutroux, die België op z'n kop zette.
A154: 2023-02-26T16:36:42 | B154: Fata Morgana | C154: Uitgaven toegevoegd
A155: 2023-02-26T16:36:42 | B155: Witte zwanen zwarte zwanen | C155: opmerking inlegvel toegevoegd.
A156: 2023-02-28T07:21:50 | B156: Witte zwanen zwarte zwanen | C156: opmerking aangepast: Uitgave over en voor 100-jarig bestaan Albert Heijn. Eerste druk zowel met als zonder extra schutblad met voorwoord van Vandersteen en gedrukte handtekening. Ook in Familiestripboek (1989) en Lekturama 42 (1993), waarbij de verwijzingen (tekst en tekeningen) naar Albert Heijn zijn vervangen. Ook voor De Famueze Fanclub (2010) met hertekende cover. Langste van de korte verhalen.
A157: 2023-04-01T19:08:04 | B157: Hoe maak ik een strip | C157: Toegevoegd. begintekst nog toevoegen, titel controleren. Naar aanleiding van De verwoede verzamelaar blog (Edwin mail gestuurd).
A158: 2023-04-01T20:10:49 | B158: In het kort 2023 | C158: 10 toegevoegd.
A159: 2023-04-01T20:10:49 | B159: Het vliegende hart | C159: Toegevoegd als VER, ivm ook uitgave in SW In het kort. Maar classificering blijft bij lange verhalen.
A160: 2023-04-02T21:30:01 | B160: Verborgen tabbladen | C160: Diverse oude tabbladen verwijderd. O.a. video tabblad draft nog behouden.
A161: 2023-05-19T22:16:26 | B161: Fragment Droom of werkelijkheid | C161: Note toegevoegd: In het Groot Grappenboek zijn in veel fragmenten plaatjes bijgetekend en soms is ook de tekst gewijzigd, zodat de grap beter uitkomt. Sommige fragmenten zijn compleet opnieuw gemonteerd, maar vaak staat er aan het begin of eind een nieuw plaatje of nieuwe strook. Eugeen Goossens tekende deze nieuwe fragmenten.
A162: 2023-06-04T15:51:23 | B162: Kortverhalen 2023 | C162: Eerste drie volgorde aangepast. Van laatste 5 vermeld 2023/2014. Niet duidelijk maar waarschijnlijk alleen eerste 3-4 van de 10 in 2023.
A163: 2023-06-11T17:25:37 | B163: Het vurige Vitamitje | C163: Kruidvat België (2023). 12-25 Jun
A164: 2023-06-11T17:25:37 | B164: Het betoverende boek | C164: Kruidvat België (2023).
A165: 2023-06-11T17:25:37 | B165: Expeditie Robikson | C165: Kruidvat België (2023).
A166: 2023-06-16T18:04:00 | B166: De luchtballon | C166: Jerom Fenix 168 toegevoegd. Verhaalnummer nog onbekend, speelt in de Morotari tijd.
A167: 2023-06-18T12:19:33 | B167: 65 jaar Suske en Wiske - Kinderen van Kalmthout | C167: Toegevoegd
A168: 2023-07-17T10:13:56 | B168: Jerom diverse albums | C168: Pagina lengtes gecorrigeerd mbv eboek.info. 31 ipv 23 pagina's, 22 ipv 32 pagina's etc. Het dappere duimpje: reclame editie verkort naar 16 pagina's.
A169: 2023-07-19T14:31:35 | B169: Jerom diverse albums | C169: Diverse correcties op baiss van Eboek en comicweb.
A170: 2023-07-19T17:59:32 | B170: De Sonometer | C170: Omschrijving onderaan gecorrigeerd: wel in hommages.
A171: 2023-08-27T13:19:24 | B171: De Galapagosgassen | C171: Toegevoegd dat titel in Familiestripboek met spatie is, De Galapalos gassen. Rest van de (oudere) uitgaven zonder spatie, incl Lekturama
A172: 2023-09-02T16:56:11 | B172: De Luchtballon, Jerom | C172: Toegevoegd in Note dat In het door Paul Geets in zijn beginjaren getekende verhaal dieren en bloemen in de openingsscène zijn overgetrokken uit Asterix.
A173: 2023-09-13T21:50:47 | B173: De rammelende rally | C173: Gratis Lekturama bijlage toegevoegd (2016). Lijkt op uitgave Brabants Stripspektakel (beide groen).
A174: 2023-09-19T20:29:17 | B174: In het kort 46-50 | C174: Jaartal aangepast van (2023-2024) naar (2023)
A175: 2023-09-19T20:29:17 | B175: De witte gems | C175: Opmerking toegevoegd dat meeste uitgaven (op vakantieboek, Amro en in het kort na) ingekort zijn, (o.a.?) strook 6 ontbreekt.
A176: 2023-09-30T15:13:21 | B176: Blijf in uw kot | C176: Toegevoegd: Er bestaat ook een versie waarin de tekst op het laatste plaatje vervangen is door "Laat je prikken" (2022).
A177: 2023-09-30T17:49:27 | B177: Sheet | C177: Unhide top 6 rows, bleven niet zichtbaar
A178: 2023-10-03T22:31:13 | B178: Jerom | C178: Serie 4 Adhemar: ontbrekende lengte van verhalen ingevuld met behulp van Eboek
A179: 2023-10-10T21:28:16 | B179: One Shots Kuifje | C179: 2 parodieen toegevoegd. Titels nog toevoegen
A180: 2023-10-23T10:52:40 | B180: Jerom deLuchtballon | C180: Juist aantal pagina's
A181: 2023-10-24T12:37:41 | B181: De regendag | C181: Opmerking toegevoegd: Op de cover staat de titel De regendag. Op het eerste plaatje verkort tot 'Regendag'.
A182: 2023-10-25T11:09:40 | B182: De schaker van Schabolleke | C182: Aantal bladzijden en begintekst toegevoegd
A183: 2023-10-25T11:10:09 | B183: One-shots 1 (De zeehond van Koksijde-Bad) | C183: Aantal bladzijden en begintekst toegevoegd
A184: 2023-11-02T18:22:16 | B184: Suske en Wiske 65 jaar - Lambik 4Ever | C184: Goede titel en begintekst toegevoegd.
A185: 2023-11-11T20:06:28 | B185: De verwoede verzamelaar 2 | C185: Stripje op laatste pagina van blauwe oblong 10 jaar Fameuze Fanclub toegevoegd. Hans Matla bedoelde dit kortverhaal waarschijnlijk als K175, maar werd door elkaar gehaald met K117 (Lekturama, 1987). Om te onderscheiden genummerd als De verworde verzamelaar 2
A186: 2023-11-12T08:13:15 | B186: Korte Hommage | C186: Nieuwe categorie, ipv OTH of PAR, toegevoegd als aparte reeks.
A187: 2023-11-12T08:13:15 | B187: Urbanus ex-libris | C187: Toegevoegd. 1 pagina hommage als een van de ex-librissen bij de Complete Collectie (2021)
A188: 2023-11-12T23:14:14 | B188: In de hoofdrol | C188: Link toegevoegd van een van de krantenedities in de cel met beschrijving.
A189: 2023-11-15T17:54:38 | B189: Het snelle schoolspaarplan 2 | C189: Na de folder in 1990 kwam er een etui van de Nutspaarbank in 1992. Hierop een stripje van 2 stroken met dezelfde titel. De plaatjes zijn een bewerking van de laatste 4 strokenv an De zilveren appels.
A190: 2023-11-16T08:00:12 | B190: Prodie Kim | C190: Niet alleen in Knack 2010 maar ook in Stripglossy 0 proefnummer, 2016.
A191: 2023-11-21T08:23:19 | B191: De sprekende kikker | C191: Note met uitleg van aantal pagina's verduidelijkt. Mogelijk was het origineel op 1 pagina van 4 stroken bedoeld en opgeknipt in 6 strookjes over 2 pagina's.
A192: 2023-11-23T18:41:45 | B192: Panky-Zip | C192: Omgedraaid, gecorrigeerd. Volgorde ook gecorrigeerd.
A193: 2023-11-23T18:41:45 | B193: Vrienden voor het leven | C193: Ook in Versus 118
A194: 2023-11-25T08:35:04 | B194: Het machtige Monopoly | C194: Nummering In het kort album gecorrigeerd, samen met Het verborgen Volk
A195: 2023-11-25T16:38:24 | B195: Het vliegende hart | C195: Geklassificeerd als kort verhaal ivm het uitbrengen in de In het kort reeks.
A196: 2023-11-25T16:39:01 | B196: SOS kinderdorpen | C196: SOS klassificering vervangen door KHO en verschoven naar de korte hommages.
A197: 2023-12-06T21:34:18 | B197: De pissige paal | C197: Toegevoegd aan Korte Hommages
A198: 2023-12-07T21:54:30 | B198: Suske en Wiske tegen de ZZZ | C198: Toegevoegd: voor Wipp Express vrije tijd boek (1988) hertekend tot kleiner formaat!. Weetje van de week, Kartoen.
A199: 2023-12-15T21:19:41 | B199: Meneer Lambik | C199: Korte hommage toegevoegd van Kuifje tekenaar op Het geheim wapen van de lotgevallen van Lambik. Zelfde naam genomen als genoemd op Lastdodo van het weekblad.
A200: 2023-12-22T09:46:37 | B200: Drie koningen zingen | C200: Ook in versus 100.
... 31 more rows

Sheet Korte Verhalen
A1: Suske en Wiske | O1: versie: 14 Jun2024
L2: Wat is een kort verhaal? | O2: door Arjen Leine
L3: - Geen regulier verhaal, d.w.z niet als apart album opgenomen in de reguliere rode, blauwe of klassiek reeks (VER). Zie lijst met lange verhalen.
L4: - Originele tekenaars (studio Vandersteen) , tenzij in opdracht of met expliciete toestemming van Standaard uitgeverij (hommage albums).
B5: de korte verhalen | L5: Zie ook onder bij 'parodieën' , toegevoegd om onderscheid met korte verhalen reeks aan te geven. (PAR)
L6: - Afleveringen van Suske en Wiske bij De Vrolijke Bengels: zie apart tabblad.
B7: De verhalen zijn geclassificeerd op lengte in de volgende categorieën: | L7: - Een strip: een serie afbeeldingen van minimaal 3 omkaderde plaatjes met tekst. Of niet omkaderde plaatjes maar wel voorzien van tekstballonetjes.
B8: KVH | C8: Korte Verhalen, 20-47 pagina's. | L8: - Geen fragment van bestaande verhalen, zie onder bij 'fragmenten', toegevoegd om onderscheid met korte verhalen reeks aan te geven. (FRG)
B9: MKV | C9: Mini Korte Verhalen, > 1 en <20 pagina's. | L9: - Alleen verhalen in albumvorm of op poster.
B10: GAG | C10: Gag, 1 pagina. 3 of 4 stroken | L10: Onder 'Opmerkingen' zijn alle gangbare uitgaven genoemd, maar niet vermeld zijn:
B11: SNP | C11: Snip, minstens 3 plaatjes die een samenhangend verhaal vertellen, minder dan 1 pagina. | L11: - illegale uitgaven,
B12: KHO | C12: Korte Hommage. SW verhalen in opdracht van Standaard Uitgeverij, getekend door andere tekenaars. | L12: - Hard covers, luxe edities of andere speciale of gelegenheids uitgaven in kleine oplage,
B13: LAM | C13: Grappen van Lambik. Zie ook apart tabblad. | L13: Aantal bladzijden is het aantal stroken / 4 (of /3 als alle pagina's 3 stroken bevatten).
B14: INF | C14: Info strip. Over een bepaald onderwerp met aparte tekstblokken en plaatjes met tekst(balonnetjes). | L14: Verder zijn alle korte verhalen voorzien van links om een hint te geven van waar deze gevonden kunnen worden.
B16: Type | C16: Nr New | D16: Strip kat | E16: Titel kort verhaal | F16: Jaar | G16: Pagina's | H16: Heb ik | I16: op het www regelnr | J16: Comicweb regelnr | K16: Michael van Hartskamp 1998 | L16: Opmerkingen | O16: Tekst begint met
B17: =IF(G17>=Lengte!$AS$13,Lengte!$AT$13,IF(G17>=Lengte!$AS$14,Lengte!$AT$14,IF(G17=Lengte!$AS$15,Lengte!$AT$15,Lengte!$AT$16))) -> GAG | C17: =B17&" "&COUNTIF($B$17:B17,B17) -> GAG 1 | D17: k001 | E17: Het kerstmannetje | F17: 1948-12-26 | G17: 1 | K17: D2006 | L17: Eerste publicatie in Ons Volk nummer 52 uit 1948. Ook in Hans Matla's stripkatalogus 1980, Stripschrift Special (1981) , Biografie (1994), De Lotgevallen Meneer Lambik en Wiske Jong-Kajotser (Klassiek Reeks, 1998) en de Vandersteen catalogus 2004. | O17: Kerstnacht! Suske, Wiske, Tante Sidonie en Lambik begeven zich van de kerk naar huis.
B18: =IF(G18>=Lengte!$AS$13,Lengte!$AT$13,IF(G18>=Lengte!$AS$14,Lengte!$AT$14,IF(G18=Lengte!$AS$15,Lengte!$AT$15,Lengte!$AT$16))) -> GAG | C18: =B18&" "&COUNTIF($B$17:B18,B18) -> GAG 2 | D18: - | E18: Eindelijk gerust! | F18: 1949-02-24 | G18: 1 | K18: D2000 | L18: Weekblad Kuifje, 4e jaargang 1949, nr 8. Ook in Ons Volkske (1949), Rozenkrans-Almanak (1952), 35 jaar Kuifje 1991, Biografie Vandersteen (1994, Ons Volkske versie), De Lotgevallen Meneer Lambik en Wiske Jong-Kajotser (Klassiek Reeks, 1998) en in de Blauwe Reeks Integraal deel 1 (2020). | O18: Ik moet mij haasten anders zijn ze uitverkocht! Gelukkig is er nog een! … Een "Kuifje" a.u.b.
B19: =IF(G19>=Lengte!$AS$13,Lengte!$AT$13,IF(G19>=Lengte!$AS$14,Lengte!$AT$14,IF(G19=Lengte!$AS$15,Lengte!$AT$15,Lengte!$AT$16))) -> GAG | C19: =B19&" "&COUNTIF($B$17:B19,B19) -> GAG 3 | D19: - | E19: Het geheim wapen | F19: 1949-03-03 | G19: 1 | K19: D2001 | L19: Weekblad Kuifje, 4e jaargang 1949, nr 9. Ook in Ons Volkske (1949), Rozenkrans-Almanak (1952), in De Lotgevallen Meneer Lambik en Wiske Jong-Kajotser (Klassiek Reeks, 1998), Suske en Wiske Clubblad 2 (1999) en in de Blauwe Reeks Integraal deel 1 (2020). Ook getiteld als 'Een bewogen jacht' en 'Lambik op jacht'. | O19: Hola! Sporen van een everzwijn!
B20: =IF(G20>=Lengte!$AS$13,Lengte!$AT$13,IF(G20>=Lengte!$AS$14,Lengte!$AT$14,IF(G20=Lengte!$AS$15,Lengte!$AT$15,Lengte!$AT$16))) -> GAG | C20: =B20&" "&COUNTIF($B$17:B20,B20) -> GAG 4 | D20: - | E20: Lambik in het stenentijdperk | F20: 1949-06-02 | G20: 1 | K20: D2002 | L20: Weekblad Kuifje, 4e jaargang 1949, nr 22 (kaft). Ook in De Lotgevallen Meneer Lambik en Wiske Jong-Kajotser (Klassiek Reeks, 1998) en in de Blauwe Reeks Integraal deel 1 (2020). | O20: Wat een buitenkansje! ... Maar ik ga hem laten lopen ... en zijn
B21: =IF(G21>=Lengte!$AS$13,Lengte!$AT$13,IF(G21>=Lengte!$AS$14,Lengte!$AT$14,IF(G21=Lengte!$AS$15,Lengte!$AT$15,Lengte!$AT$16))) -> GAG | C21: =B21&" "&COUNTIF($B$17:B21,B21) -> GAG 5 | D21: - | E21: De eendenjager | F21: 1950-01-05 | G21: 1 | K21: D2003 | L21: Weekblad Kuifje, 5e jaargang 1950, nr 1. Ook in Ons Volkske (1951), Stripschrift Special 1981 (ongekleurd), De Lotgevallen Meneer Lambik en Wiske Jong-Kajotser (Klassiek Reeks, 1998) en in de Blauwe Reeks Integraal deel 1 (2020). Ook getiteld als 'Op eendenjacht'. | O21: Haha, een prachtig weertje voor de eendenjacht !
B22: =IF(G22>=Lengte!$AS$13,Lengte!$AT$13,IF(G22>=Lengte!$AS$14,Lengte!$AT$14,IF(G22=Lengte!$AS$15,Lengte!$AT$15,Lengte!$AT$16))) -> SNP | C22: =B22&" "&COUNTIF($B$17:B22,B22) -> SNP 1 | D22: k002 | E22: Nooit ni spieken | F22: 1950-12-09 | G22: 0.5 | K22: D2301 | L22: Weekblad De Volksmacht (1950), toenmalige weekblad van het ACW (Algemeen Christelijk Werkgeversverbond). Ook in Lambik Baloor (Panda 1985, 15 jaar jubileum) en in De Lotgevallen Meneer Lambik en Wiske Jong-Kajotser (Klassiek Reeks, 1998). Ten tijde van Lambik Baloor was alleen de Franse uitgave bekend uit 'En Marche', 1959. Hans Matla heeft deze met Willy Vandersteen zelf vertaald naar het Antwerps (telkens zonder het laatste plaatje met de afsluitende vraag). De tekst van de 6 stripjes in Lambik Baloor is dan ook geheel anders dan de uitgave in de Klassiek Reeks. | O22: Tante Sidonie zal weeral blij zijn dat ze mij eens ziet! Wel wel! Lambik en / Potverdekke! We gon tante Sidonie es bezeuken. Awel, Awel! Lambik en
B23: =IF(G23>=Lengte!$AS$13,Lengte!$AT$13,IF(G23>=Lengte!$AS$14,Lengte!$AT$14,IF(G23=Lengte!$AS$15,Lengte!$AT$15,Lengte!$AT$16))) -> SNP | C23: =B23&" "&COUNTIF($B$17:B23,B23) -> SNP 2 | D23: k003 | E23: Proper pollekes | F23: 1950-12-16 | G23: 0.5 | K23: D2302 | L23: Weekblad De Volksmacht (1950), toenmalige weekblad van het ACW (Algemeen Christelijk Werkgeversverbond). Ook in Lambik Baloor (Panda 1985, 15 jaar jubileum) en in De Lotgevallen Meneer Lambik en Wiske Jong-Kajotser (Klassiek Reeks, 1998). | O23: Lambik als dat verstopt afvoerputteke uitgekuist is, komt gij dan eten? Hier
B24: =IF(G24>=Lengte!$AS$13,Lengte!$AT$13,IF(G24>=Lengte!$AS$14,Lengte!$AT$14,IF(G24=Lengte!$AS$15,Lengte!$AT$15,Lengte!$AT$16))) -> SNP | C24: =B24&" "&COUNTIF($B$17:B24,B24) -> SNP 3 | D24: k004 | E24: 'n Valling | F24: 1950-12-23 | G24: 0.5 | K24: D2303 | L24: Weekblad De Volksmacht (1950), toenmalige weekblad van het ACW (Algemeen Christelijk Werkgeversverbond). Ook in Lambik Baloor (Panda 1985, 15 jaar jubileum) en in De Lotgevallen Meneer Lambik en Wiske Jong-Kajotser (Klassiek Reeks, 1998). | O24: ..Oei!..Oei! Wat een hoest! Verdorie! Dat moet gedaan zijn! Allee, zwemt voor
B25: =IF(G25>=Lengte!$AS$13,Lengte!$AT$13,IF(G25>=Lengte!$AS$14,Lengte!$AT$14,IF(G25=Lengte!$AS$15,Lengte!$AT$15,Lengte!$AT$16))) -> SNP | C25: =B25&" "&COUNTIF($B$17:B25,B25) -> SNP 4 | D25: k005 | E25: Tanden kuisen | F25: 1950-12-30 | G25: 0.5 | K25: D2304 | L25: Weekblad De Volksmacht (1950), toenmalige weekblad van het ACW (Algemeen Christelijk Werkgeversverbond). Ook in Lambik Baloor (Panda 1985, 15 jaar jubileum) en in De Lotgevallen Meneer Lambik en Wiske Jong-Kajotser (Klassiek Reeks, 1998). | O25: Hij heeft ons papier gevonden, Wiske! Als hij nu maar begrijpt wat wij er mee
B26: =IF(G26>=Lengte!$AS$13,Lengte!$AT$13,IF(G26>=Lengte!$AS$14,Lengte!$AT$14,IF(G26=Lengte!$AS$15,Lengte!$AT$15,Lengte!$AT$16))) -> SNP | C26: =B26&" "&COUNTIF($B$17:B26,B26) -> SNP 5 | D26: k006 | E26: Gienen alkool en gienen toebak | F26: 1951-01-06 | G26: 0.5 | K26: D2305 | L26: Weekblad De Volksmacht (1951), toenmalige weekblad van het ACW (Algemeen Christelijk Werkgeversverbond). Ook in Lambik Baloor (Panda 1985, 15 jaar jubileum) en in De Lotgevallen Meneer Lambik en Wiske Jong-Kajotser (Klassiek Reeks, 1998). | O26: Hemel!!... Lambik is zeker weer bezig!! En ik moet hem dat kost wat kost
B27: =IF(G27>=Lengte!$AS$13,Lengte!$AT$13,IF(G27>=Lengte!$AS$14,Lengte!$AT$14,IF(G27=Lengte!$AS$15,Lengte!$AT$15,Lengte!$AT$16))) -> SNP | C27: =B27&" "&COUNTIF($B$17:B27,B27) -> SNP 6 | D27: k007 | E27: Varse toecht | F27: 1951-01-13 | G27: 0.5 | K27: D2306 | L27: Weekblad De Volksmacht (1951), toenmalige weekblad van het ACW (Algemeen Christelijk Werkgeversverbond). Ook in Lambik Baloor (Panda 1985, 15 jaar jubileum) en in De Lotgevallen Meneer Lambik en Wiske Jong-Kajotser (Klassiek Reeks, 1998). | O27: Lambik, gij slaapt niet goed, jongen! Is het zo dan beter, Wiske? Nee! Zo
B28: =IF(G28>=Lengte!$AS$13,Lengte!$AT$13,IF(G28>=Lengte!$AS$14,Lengte!$AT$14,IF(G28=Lengte!$AS$15,Lengte!$AT$15,Lengte!$AT$16))) -> GAG | C28: =B28&" "&COUNTIF($B$17:B28,B28) -> GAG 6 | D28: - | E28: De klokken komen | F28: 1951-03-22 | G28: 1 | K28: D2004 | L28: Weekblad Kuifje, 6e jaargang 1951, nr 12. Ook in de Biografie Vandersteen (1994), stripschap 'Stripschrift special 1995' ledeneditie, De Lotgevallen Meneer Lambik en Wiske Jong-Kajotser (Klassiek Reeks, 1998), Stripfiguren vereeuwigd in straatnamen - Doornwijk Temse (2015) en in de Blauwe Reeks Integraal deel 1 (2020). | O28: Zeg Lambik de klokken komen vandaag terug van Rome, zouden ze ons geen
B29: =IF(G29>=Lengte!$AS$13,Lengte!$AT$13,IF(G29>=Lengte!$AS$14,Lengte!$AT$14,IF(G29=Lengte!$AS$15,Lengte!$AT$15,Lengte!$AT$16))) -> GAG | C29: =B29&" "&COUNTIF($B$17:B29,B29) -> GAG 7 | D29: - | E29: De avonturen van Mijnheer Lambik | F29: 1951-07-05 | G29: 1 | K29: D2007 | L29: Weekblad Ons Volk, 34e jaargang 1951, nr 27. Ook in de Biografie Vandersteen (1994) en in de Lotgevallen Meneer Lambik en Wiske Jong-Kajotser (Klassiek Reeks, 1998). | O29: Hm! Fijn weertje om in de duinen te jagen! En wat
B30: =IF(G30>=Lengte!$AS$13,Lengte!$AT$13,IF(G30>=Lengte!$AS$14,Lengte!$AT$14,IF(G30=Lengte!$AS$15,Lengte!$AT$15,Lengte!$AT$16))) -> GAG | C30: =B30&" "&COUNTIF($B$17:B30,B30) -> GAG 8 | D30: - | E30: De avonturen van Lambik | F30: 1951-07-12 | G30: 1 | K30: D2008 | L30: Weekblad Ons Volk, 34e jaargang 1951, nr 28. Ook in Rozenkransvriend (1954) en de Lotgevallen Meneer Lambik en Wiske Jong-Kajotser (Klassiek Reeks, 1998). | O30: Dan zit ik in de nacht bij mijn vuurtje op de wacht !!
B31: =IF(G31>=Lengte!$AS$13,Lengte!$AT$13,IF(G31>=Lengte!$AS$14,Lengte!$AT$14,IF(G31=Lengte!$AS$15,Lengte!$AT$15,Lengte!$AT$16))) -> GAG | C31: =B31&" "&COUNTIF($B$17:B31,B31) -> GAG 9 | D31: - | E31: Jagerslatijn | F31: 1951-09-27 | G31: 1 | K31: D2005 | L31: Weekblad Kuifje, 6e jaargang 1951, nr 39. Ook in Ons Volkske (nr 16, 1958), Stripschrift Special 1981 (ongekleurd), De Lotgevallen Meneer Lambik en Wiske Jong-Kajotser (Klassiek Reeks, 1998) en in de Blauwe Reeks Integraal deel 1 (2020). Ook getiteld 'Leeuwenjacht in filmbeeld' en 'De Jachtpartij'. | O31: Ik zal eens een filmpje tonen dat mijn boy gedraaid heeft toen ik in Afrika op jacht was
B32: =IF(G32>=Lengte!$AS$13,Lengte!$AT$13,IF(G32>=Lengte!$AS$14,Lengte!$AT$14,IF(G32=Lengte!$AS$15,Lengte!$AT$15,Lengte!$AT$16))) -> MKV | C32: =B32&" "&COUNTIF($B$17:B32,B32) -> MKV 1 | D32: k08a | E32: Sint Nicolaas bij de Liniekinderen | F32: 1952-11-28 | G32: 2 | K32: D2400 | L32: Jeugdbijlage van De Linie van 28 november 1952. Ook in De Lotgevallen Meneer Lambik en Wiske Jong-Kajotser (Klassiek Reeks, 1998). Het voormalige blad De Linie was een Nederlands katholiek weekblad op krantenformaat. Om in 1952 het blad te veranderen tot een groot katholiek familieblad werd een speciale bijlage voor de kinderen gemaakt in kleurendruk, de Jeugdbijlage. Met Suske en Wiske, mogelijk omdat deze in België erg populair waren en dat dan voortgezet kon worden in De Linie of misschien vanwege het katholieke karakter van de strip. Zo verscheen dit Sinterklaas stripje in de eerste Jeugdbijlage. Omdat Vandersteen echter te laat was waren de kop van het stripje door een andere tekenaar. Zo ook de tekstballonnen omdat deze door de redactie niet meer vertaald konden worden worden naar het Hollands en teruggestuurd naar Vandersteen om te letteren. Dit is beter gegaan bij de kerstbijlage een maand later, zie MKV2. De grap is verkort bewerkt in Grappen van Lambik tot LAM129 'Hoe huppelt zijn paardje' (30/11/1956). | O32: Zet nu maar gauw de klomp voor het paard van Sinterklaas
B33: =IF(G33>=Lengte!$AS$13,Lengte!$AT$13,IF(G33>=Lengte!$AS$14,Lengte!$AT$14,IF(G33=Lengte!$AS$15,Lengte!$AT$15,Lengte!$AT$16))) -> KVH | C33: =B33&" "&COUNTIF($B$17:B33,B33) -> KVH 1 | D33: V26 | E33: Het vliegende hart | F33: 1952-12-14 | G33: 25 | L33: Verschenen in katholieke weekblad De Bond van 14 december 1952 tot 27 december 1953 en in De Stem vanaf 24 augustus 1955. Ook in Ciso 7 (1970), Vakantieboek 1973 (1973), Extra dik album (Centra 1975), Rode reeks nr 188 (1982), Extra (1988), Lekturama 31 (1988), Klassiek reeks nr 23 (1995) en als SW In het kort Nr 47 (2023). De openings halve pagina is door Paul Geerts toegevoegd voor het Suske en Wiske vakantieboek uit 1973 om op een geheel aantal pagina's te komen. In het verhaal valt Lambik van de kathedraaltoren wanneer deze drie uur slaat, maar er wordt foutief naar acht uur verwezen. Hersteld vanaf 1975 (Centra). | O33: Lambik gaat in een vrijgevige bui voor Suske en Wiske een hondje kopen. Hebt ge dat soort niet in een kleinere maat?
B34: =IF(G34>=Lengte!$AS$13,Lengte!$AT$13,IF(G34>=Lengte!$AS$14,Lengte!$AT$14,IF(G34=Lengte!$AS$15,Lengte!$AT$15,Lengte!$AT$16))) -> MKV | C34: =B34&" "&COUNTIF($B$17:B34,B34) -> MKV 2 | D34: k008 | E34: Kerstavond bij Suske en Wiske | F34: 1952-12-19 | G34: 2 | K34: D2401 | L34: In De Linie als Kerstbijlage voor de Liniejeugd. Ook in De Lotgevallen Meneer Lambik en Wiske Jong-Kajotser (Klassiek Reeks, 1998). Na het Sinterklaas stripje vroeg De Linie Vandersteen meteen voor een volgende Jeugdbijlage. De speciale kerstbijlage was overigens al afgesproken toen de details van het Sinterklaas stripje werden uitgewerkt. Bij die kerstbijlage verscheen naast het kerst stripje ook nog een knipbladzijde. Vandersteen heeft in een brief laten weten dat hij niet blij was met het slordige letteren van zijn vorige stripje, maar daar was hij natuurlijk zelf deels schuldig aan. Deze keer kwam de koptitel wel van hem en was perfect in orde. De grap is verkort bewerkt in Grappen van Lambik tot LAM89 'O denneboom' (23/12/1955). | O34: Lambik kun je vanavond niet een handje komen helpen? Suske
B35: =IF(G35>=Lengte!$AS$13,Lengte!$AT$13,IF(G35>=Lengte!$AS$14,Lengte!$AT$14,IF(G35=Lengte!$AS$15,Lengte!$AT$15,Lengte!$AT$16))) -> SNP | C35: =B35&" "&COUNTIF($B$17:B35,B35) -> SNP 7 | D35: k009 | E35: De vermoeiden | F35: 1956-08-10 | G35: 0.5 | K35: D3032 | L35: Na afloop van De spokenjagers stond deze vakantie-aankondiging in de Standaard. Ook verschenen in de Biografie Vandersteen (1994). | O35: De nieuwe avonturen van Suske en Wiske! De vermoeiden! Vrij naar "Les zeros
B36: =IF(G36>=Lengte!$AS$13,Lengte!$AT$13,IF(G36>=Lengte!$AS$14,Lengte!$AT$14,IF(G36=Lengte!$AS$15,Lengte!$AT$15,Lengte!$AT$16))) -> KVH | C36: =B36&" "&COUNTIF($B$17:B36,B36) -> KVH 2 | D36: k010 | E36: De rammelende rally | F36: 1957-01-01 | G36: 32 | I36: 280 | J36: 70 | K36: W002 | L36: Voor de Toeristische Federatie van de Provincie Antwerpen. In de loop der jaren vonden in Antwerpen allerlei veranderingen plaats, zowel wat betreft gebouwen als natuur en andere omstandigheden. Deze veranderingen zijn in de strip verwerkt zodat de heruitgaven beter aansloten bij de tijd waarop deze werden uitgebracht. Zo verschenen in Vakantieboek (1973), uitgave voor toeristische federatie Antwerpen (1973 en 1998), Brabants stripspektakel (2002), als bijlage bij Lecturama collectie deel 71 (2016) en als SW In het kort Nr 53 (2024). | O36: Na een bezoek aan het Museum voor Schone Kunsten te Antwerpen… Kijk, ik lees hier dat er een rally voor ouderwetse auto's
B37: =IF(G37>=Lengte!$AS$13,Lengte!$AT$13,IF(G37>=Lengte!$AS$14,Lengte!$AT$14,IF(G37=Lengte!$AS$15,Lengte!$AT$15,Lengte!$AT$16))) -> GAG | C37: =B37&" "&COUNTIF($B$17:B37,B37) -> GAG 10 | D37: k011 | E37: Vijf nieuwe leden | F37: 1958-06-01 | G37: 1 | K37: D2101 | L37: Wiske-Jong Kajotser 1. Verscheen in het maandblad 'Belofte'. Ook in De Lotgevallen Meneer Lambik en Wiske Jong-Kajotser (Klassiek Reeks, 1998). | O37: Dus goed begrepen, meisjes! Op de vergadering van morgen brengt ge elk vijf nieuwe leden mee.
B38: =IF(G38>=Lengte!$AS$13,Lengte!$AT$13,IF(G38>=Lengte!$AS$14,Lengte!$AT$14,IF(G38=Lengte!$AS$15,Lengte!$AT$15,Lengte!$AT$16))) -> GAG | C38: =B38&" "&COUNTIF($B$17:B38,B38) -> GAG 11 | D38: k012 | E38: De zwemclub | F38: 1958-07-01 | G38: 1 | K38: D2102 | L38: Wiske-Jong Kajotser 2. Verscheen in het maandblad 'Belofte'. Ook in De Lotgevallen Meneer Lambik en Wiske Jong-Kajotser (Klassiek Reeks, 1998). | O38: Ik zou op de vergadering eens iets willen voorstellen? Maar wat? Joepieeee!
B39: =IF(G39>=Lengte!$AS$13,Lengte!$AT$13,IF(G39>=Lengte!$AS$14,Lengte!$AT$14,IF(G39=Lengte!$AS$15,Lengte!$AT$15,Lengte!$AT$16))) -> GAG | C39: =B39&" "&COUNTIF($B$17:B39,B39) -> GAG 12 | D39: k013 | E39: Wimpelkens maken | F39: 1958-08-01 | G39: 1 | K39: D2103 | L39: Wiske-Jong Kajotser 3. Verscheen in het maandblad 'Belofte'. Ook in De Lotgevallen Meneer Lambik en Wiske Jong-Kajotser (Klassiek Reeks, 1998). | O39: Suske, nu gaat het plezant worden man!
B40: =IF(G40>=Lengte!$AS$13,Lengte!$AT$13,IF(G40>=Lengte!$AS$14,Lengte!$AT$14,IF(G40=Lengte!$AS$15,Lengte!$AT$15,Lengte!$AT$16))) -> GAG | C40: =B40&" "&COUNTIF($B$17:B40,B40) -> GAG 13 | D40: k014 | E40: Tip top in orde | F40: 1958-10-01 | G40: 1 | K40: D2104 | L40: Wiske-Jong Kajotser 4. Verscheen in het maandblad 'Belofte'. Ook in De Lotgevallen Meneer Lambik en Wiske Jong-Kajotser (Klassiek Reeks, 1998). | O40: Wiske, er is een kaartje gekomen voor u.
B41: =IF(G41>=Lengte!$AS$13,Lengte!$AT$13,IF(G41>=Lengte!$AS$14,Lengte!$AT$14,IF(G41=Lengte!$AS$15,Lengte!$AT$15,Lengte!$AT$16))) -> GAG | C41: =B41&" "&COUNTIF($B$17:B41,B41) -> GAG 14 | D41: k015 | E41: Paraat ter daad | F41: 1958-11-01 | G41: 1 | K41: D2105 | L41: Wiske-Jong Kajotser 5. Verscheen in het maandblad 'Belofte'. Ook in De Lotgevallen Meneer Lambik en Wiske Jong-Kajotser (Klassiek Reeks, 1998). | O41: Ziezo, dat zal ik alvast niet meer vergeten!
B42: =IF(G42>=Lengte!$AS$13,Lengte!$AT$13,IF(G42>=Lengte!$AS$14,Lengte!$AT$14,IF(G42=Lengte!$AS$15,Lengte!$AT$15,Lengte!$AT$16))) -> GAG | C42: =B42&" "&COUNTIF($B$17:B42,B42) -> GAG 15 | D42: k016 | E42: Wie niet alles geeft | F42: 1958-12-01 | G42: 1 | K42: D2106 | L42: Wiske-Jong Kajotser 6. Verscheen in het maandblad 'Belofte'. Ook in De Lotgevallen Meneer Lambik en Wiske Jong-Kajotser (Klassiek Reeks, 1998). | O42: … en onthoudt dus goed, "Wie niet alles geeft, heeft niets gegeven"!
B43: =IF(G43>=Lengte!$AS$13,Lengte!$AT$13,IF(G43>=Lengte!$AS$14,Lengte!$AT$14,IF(G43=Lengte!$AS$15,Lengte!$AT$15,Lengte!$AT$16))) -> GAG | C43: =B43&" "&COUNTIF($B$17:B43,B43) -> GAG 16 | D43: k017 | E43: Hoffelijk zijn | F43: 1959-01-01 | G43: 1 | K43: D2107 | L43: Wiske-Jong Kajotser 7. Verscheen in het maandblad 'Belofte'. Ook in Biografie Vandersteen (1994) en in De Lotgevallen Meneer Lambik en Wiske Jong-Kajotser (Klassiek Reeks, 1998). | O43: En deze week gaan we er goed op letten voor iedereen zeer hoffelijk te zijn!
B44: =IF(G44>=Lengte!$AS$13,Lengte!$AT$13,IF(G44>=Lengte!$AS$14,Lengte!$AT$14,IF(G44=Lengte!$AS$15,Lengte!$AT$15,Lengte!$AT$16))) -> GAG | C44: =B44&" "&COUNTIF($B$17:B44,B44) -> GAG 17 | D44: k018 | E44: Monseigneur Gardijn | F44: 1959-02-01 | G44: 1 | K44: D2108 | L44: Wiske-Jong Kajotser 8. Verscheen in het maandblad 'Belofte'. Ook in De Lotgevallen Meneer Lambik en Wiske Jong-Kajotser (Klassiek Reeks, 1998). | O44: Nu ga ik op mijn eentjes eens een bezoek brengen aan Monseigneur Gardijn, zie!
B45: =IF(G45>=Lengte!$AS$13,Lengte!$AT$13,IF(G45>=Lengte!$AS$14,Lengte!$AT$14,IF(G45=Lengte!$AS$15,Lengte!$AT$15,Lengte!$AT$16))) -> MKV | C45: =B45&" "&COUNTIF($B$17:B45,B45) -> MKV 3 | D45: k019 | E45: Lambik bij de tandarts | F45: 1959-02-27 | G45: 2 | K45: D2201 | L45: Zestien Zeverkes 1. 16 korte verhalen die tussen 27/2/1959 en 15/6/1959 verschenen in het dagblad de Standaard. De verhaaltjes hebben tevens ondertekst waarbij twee vormen van het Nederlands worden getoond: het Zuid-Nederlands (Vlaams) en het Noord-Nederlands (Hollands). Bovendien verschenen telkens 1-3 aankondigingen op de frontpagina. 1 op dezelfde dag en 1 enkele dagen later of eerder. | O45: Doet het erg veel pijn, Lambik? Kan ik tegen. Maar ik ben niet bang om
B46: =IF(G46>=Lengte!$AS$13,Lengte!$AT$13,IF(G46>=Lengte!$AS$14,Lengte!$AT$14,IF(G46=Lengte!$AS$15,Lengte!$AT$15,Lengte!$AT$16))) -> GAG | C46: =B46&" "&COUNTIF($B$17:B46,B46) -> GAG 18 | D46: k020 | E46: Wiske kampioen | F46: 1959-03-01 | G46: 1 | K46: D2109 | L46: Wiske-Jong Kajotser 9. Verscheen in het maandblad 'Belofte'. Ook in De Lotgevallen Meneer Lambik en Wiske Jong-Kajotser (Klassiek Reeks, 1998). | O46: Ha, er staat een bericht in de Belofte! … De jong-kajotser die kampioen is in het veroveren
B47: =IF(G47>=Lengte!$AS$13,Lengte!$AT$13,IF(G47>=Lengte!$AS$14,Lengte!$AT$14,IF(G47=Lengte!$AS$15,Lengte!$AT$15,Lengte!$AT$16))) -> MKV | C47: =B47&" "&COUNTIF($B$17:B47,B47) -> MKV 4 | D47: k021 | E47: Jerom heeft dorst | F47: 1959-03-06 | G47: 2 | K47: D2202 | L47: Zestien Zeverkes 2. 16 korte verhalen die tussen 27/2/1959 en 15/6/1959 verschenen in het dagblad de Standaard. De verhaaltjes hebben tevens ondertekst waarbij twee vormen van het Nederlands worden getoond: het Zuid-Nederlands (Vlaams) en het Noord-Nederlands (Hollands). | O47: Dat waren er dan vijfenzeventig, mijnheer Jerom of precies... 364 frank..!
B48: =IF(G48>=Lengte!$AS$13,Lengte!$AT$13,IF(G48>=Lengte!$AS$14,Lengte!$AT$14,IF(G48=Lengte!$AS$15,Lengte!$AT$15,Lengte!$AT$16))) -> MKV | C48: =B48&" "&COUNTIF($B$17:B48,B48) -> MKV 5 | D48: k022 | E48: T.V. kok Jerom aan het werk | F48: 1959-03-13 | G48: 2 | K48: D2203 | L48: Zestien Zeverkes 3. 16 korte verhalen die tussen 27/2/1959 en 15/6/1959 verschenen in het dagblad de Standaard. De verhaaltjes hebben tevens ondertekst waarbij twee vormen van het Nederlands worden getoond: het Zuid-Nederlands (Vlaams) en het Noord-Nederlands (Hollands). | O48: Reuze job gevonden... Televisie.. Kookles... Vandaag Farraille
B49: =IF(G49>=Lengte!$AS$13,Lengte!$AT$13,IF(G49>=Lengte!$AS$14,Lengte!$AT$14,IF(G49=Lengte!$AS$15,Lengte!$AT$15,Lengte!$AT$16))) -> MKV | C49: =B49&" "&COUNTIF($B$17:B49,B49) -> MKV 6 | D49: k023 | E49: Tramgenoegens | F49: 1959-03-20 | G49: 2 | K49: D2204 | L49: Zestien Zeverkes 4. 16 korte verhalen die tussen 27/2/1959 en 15/6/1959 verschenen in het dagblad de Standaard. De verhaaltjes hebben tevens ondertekst waarbij twee vormen van het Nederlands worden getoond: het Zuid-Nederlands (Vlaams) en het Noord-Nederlands (Hollands). | O49: Duizend frank... Niets kleiners... Niets kleiners? Dan moet u afstappen! Ik
B50: =IF(G50>=Lengte!$AS$13,Lengte!$AT$13,IF(G50>=Lengte!$AS$14,Lengte!$AT$14,IF(G50=Lengte!$AS$15,Lengte!$AT$15,Lengte!$AT$16))) -> MKV | C50: =B50&" "&COUNTIF($B$17:B50,B50) -> MKV 7 | D50: k024 | E50: Lambik koopt een tweedehandse wagen | F50: 1959-03-27 | G50: 2 | K50: D2205 | L50: Zestien Zeverkes 5. 16 korte verhalen die tussen 27/2/1959 en 15/6/1959 verschenen in het dagblad de Standaard. De verhaaltjes hebben tevens ondertekst waarbij twee vormen van het Nederlands worden getoond: het Zuid-Nederlands (Vlaams) en het Noord-Nederlands (Hollands). | O50: En hij is misschien niet van gisteren maar nog altijd
B51: =IF(G51>=Lengte!$AS$13,Lengte!$AT$13,IF(G51>=Lengte!$AS$14,Lengte!$AT$14,IF(G51=Lengte!$AS$15,Lengte!$AT$15,Lengte!$AT$16))) -> GAG | C51: =B51&" "&COUNTIF($B$17:B51,B51) -> GAG 19 | D51: k025 | E51: Nooit meer ijdel zijn | F51: 1959-04-01 | G51: 1 | K51: D2110 | L51: Wiske-Jong Kajotser 10. Verscheen in het maandblad 'Belofte'. Ook in De Lotgevallen Meneer Lambik en Wiske Jong-Kajotser (Klassiek Reeks, 1998). | O51: Zeg, Wiske zoudt ge nu uw zondags-kleedje niet thuis laten om op kamp te gaan?
B52: =IF(G52>=Lengte!$AS$13,Lengte!$AT$13,IF(G52>=Lengte!$AS$14,Lengte!$AT$14,IF(G52=Lengte!$AS$15,Lengte!$AT$15,Lengte!$AT$16))) -> MKV | C52: =B52&" "&COUNTIF($B$17:B52,B52) -> MKV 8 | D52: k026 | E52: De Vlaamse kermis | F52: 1959-04-03 | G52: 2 | K52: D2206 | L52: Zestien Zeverkes 6. 16 korte verhalen die tussen 27/2/1959 en 15/6/1959 verschenen in het dagblad de Standaard. De verhaaltjes hebben tevens ondertekst waarbij twee vormen van het Nederlands worden getoond: het Zuid-Nederlands (Vlaams) en het Noord-Nederlands (Hollands). | O52: Met ons allemaal wordt uw Vlaamse Kermis een gebeurtenis, Anne Marie!
B53: =IF(G53>=Lengte!$AS$13,Lengte!$AT$13,IF(G53>=Lengte!$AS$14,Lengte!$AT$14,IF(G53=Lengte!$AS$15,Lengte!$AT$15,Lengte!$AT$16))) -> MKV | C53: =B53&" "&COUNTIF($B$17:B53,B53) -> MKV 9 | D53: k027 | E53: Prof. Barabas geniale vondst | F53: 1959-04-10 | G53: 2 | K53: D2207 | L53: Zestien Zeverkes 7. 16 korte verhalen die tussen 27/2/1959 en 15/6/1959 verschenen in het dagblad de Standaard. De verhaaltjes hebben tevens ondertekst waarbij twee vormen van het Nederlands worden getoond: het Zuid-Nederlands (Vlaams) en het Noord-Nederlands (Hollands). | O53: En precies over zijn beste pak! Kom allemaal mee.. Ik ken
B54: =IF(G54>=Lengte!$AS$13,Lengte!$AT$13,IF(G54>=Lengte!$AS$14,Lengte!$AT$14,IF(G54=Lengte!$AS$15,Lengte!$AT$15,Lengte!$AT$16))) -> MKV | C54: =B54&" "&COUNTIF($B$17:B54,B54) -> MKV 10 | D54: k028 | E54: Lambik krijgt de spionitis | F54: 1959-04-17 | G54: 2 | K54: D2208 | L54: Zestien Zeverkes 8. 16 korte verhalen die tussen 27/2/1959 en 15/6/1959 verschenen in het dagblad de Standaard. De verhaaltjes hebben tevens ondertekst waarbij twee vormen van het Nederlands worden getoond: het Zuid-Nederlands (Vlaams) en het Noord-Nederlands (Hollands). | O54: Buitengewoon interessant Dappere flauwe kul... Spionnen stoppen
B55: =IF(G55>=Lengte!$AS$13,Lengte!$AT$13,IF(G55>=Lengte!$AS$14,Lengte!$AT$14,IF(G55=Lengte!$AS$15,Lengte!$AT$15,Lengte!$AT$16))) -> MKV | C55: =B55&" "&COUNTIF($B$17:B55,B55) -> MKV 11 | D55: k029 | E55: Jerom wint de zweepsteek | F55: 1959-04-24 | G55: 2 | K55: D2209 | L55: Zestien Zeverkes 9. 16 korte verhalen die tussen 27/2/1959 en 15/6/1959 verschenen in het dagblad de Standaard. De verhaaltjes hebben tevens ondertekst waarbij twee vormen van het Nederlands worden getoond: het Zuid-Nederlands (Vlaams) en het Noord-Nederlands (Hollands). | O55: En hier volgen dan de uitslagen van de Koloniale Loterij! Ge hoort
B56: =IF(G56>=Lengte!$AS$13,Lengte!$AT$13,IF(G56>=Lengte!$AS$14,Lengte!$AT$14,IF(G56=Lengte!$AS$15,Lengte!$AT$15,Lengte!$AT$16))) -> MKV | C56: =B56&" "&COUNTIF($B$17:B56,B56) -> MKV 12 | D56: k030 | E56: Een ontsluierd geheim | F56: 1959-05-01 | G56: 2 | K56: D2210 | L56: Zestien Zeverkes 10. 16 korte verhalen die tussen 27/2/1959 en 15/6/1959 verschenen in het dagblad de Standaard. De verhaaltjes hebben tevens ondertekst waarbij twee vormen van het Nederlands worden getoond: het Zuid-Nederlands (Vlaams) en het Noord-Nederlands (Hollands). | O56: Vanavond weer fameuze catch-match! Waren tijden... Grijs verleden..
B57: =IF(G57>=Lengte!$AS$13,Lengte!$AT$13,IF(G57>=Lengte!$AS$14,Lengte!$AT$14,IF(G57=Lengte!$AS$15,Lengte!$AT$15,Lengte!$AT$16))) -> MKV | C57: =B57&" "&COUNTIF($B$17:B57,B57) -> MKV 13 | D57: k031 | E57: Rijdt hoogmoed schitterend op de baan | F57: 1959-05-08 | G57: 2 | K57: D2211 | L57: Zestien Zeverkes 11. 16 korte verhalen die tussen 27/2/1959 en 15/6/1959 verschenen in het dagblad de Standaard. De verhaaltjes hebben tevens ondertekst waarbij twee vormen van het Nederlands worden getoond: het Zuid-Nederlands (Vlaams) en het Noord-Nederlands (Hollands). | O57: Ronde van België.. Heel bladvol. Daar moet toch niets
B58: =IF(G58>=Lengte!$AS$13,Lengte!$AT$13,IF(G58>=Lengte!$AS$14,Lengte!$AT$14,IF(G58=Lengte!$AS$15,Lengte!$AT$15,Lengte!$AT$16))) -> MKV | C58: =B58&" "&COUNTIF($B$17:B58,B58) -> MKV 14 | D58: k032 | E58: Rijsel zien en dan sterven | F58: 1959-05-15 | G58: 2 | K58: D2212 | L58: Zestien Zeverkes 12. 16 korte verhalen die tussen 27/2/1959 en 15/6/1959 verschenen in het dagblad de Standaard. De verhaaltjes hebben tevens ondertekst waarbij twee vormen van het Nederlands worden getoond: het Zuid-Nederlands (Vlaams) en het Noord-Nederlands (Hollands). | O58: En met deze antenne vrienden zoudt ge voor uw plezier naar de T.
B59: =IF(G59>=Lengte!$AS$13,Lengte!$AT$13,IF(G59>=Lengte!$AS$14,Lengte!$AT$14,IF(G59=Lengte!$AS$15,Lengte!$AT$15,Lengte!$AT$16))) -> MKV | C59: =B59&" "&COUNTIF($B$17:B59,B59) -> MKV 15 | D59: k033 | E59: Een zittende beroep | F59: 1959-05-22 | G59: 2 | K59: D2213 | L59: Zestien Zeverkes 13. 16 korte verhalen die tussen 27/2/1959 en 15/6/1959 verschenen in het dagblad de Standaard. De verhaaltjes hebben tevens ondertekst waarbij twee vormen van het Nederlands worden getoond: het Zuid-Nederlands (Vlaams) en het Noord-Nederlands (Hollands). | O59: Baby zitten. Goede bijverdienste. Zittend werk. Oefenen met pale-ale. Wij
B60: =IF(G60>=Lengte!$AS$13,Lengte!$AT$13,IF(G60>=Lengte!$AS$14,Lengte!$AT$14,IF(G60=Lengte!$AS$15,Lengte!$AT$15,Lengte!$AT$16))) -> GAG | C60: =B60&" "&COUNTIF($B$17:B60,B60) -> GAG 20 | D60: k034 | E60: Het lokaal versieren | F60: 1959-06-01 | G60: 1 | K60: D2111 | L60: Wiske-Jong Kajotser 11. Verscheen in het maandblad 'Belofte'. Ook in De Lotgevallen Meneer Lambik en Wiske Jong-Kajotser (Klassiek Reeks, 1998). | O60: Wiske, en gij zorgt voor de versiering van het lokaal, he!
B61: =IF(G61>=Lengte!$AS$13,Lengte!$AT$13,IF(G61>=Lengte!$AS$14,Lengte!$AT$14,IF(G61=Lengte!$AS$15,Lengte!$AT$15,Lengte!$AT$16))) -> MKV | C61: =B61&" "&COUNTIF($B$17:B61,B61) -> MKV 16 | D61: k035 | E61: Jerom in de sjouwbusiness | F61: 1959-05-29 | G61: 2 | K61: D2214 | L61: Zestien Zeverkes 14. 16 korte verhalen die tussen 27/2/1959 en 15/6/1959 verschenen in het dagblad de Standaard. De verhaaltjes hebben tevens ondertekst waarbij twee vormen van het Nederlands worden getoond: het Zuid-Nederlands (Vlaams) en het Noord-Nederlands (Hollands). | O61: Wat is er met Jerom nu weer aan de hand. Hij is al op van vijf
B62: =IF(G62>=Lengte!$AS$13,Lengte!$AT$13,IF(G62>=Lengte!$AS$14,Lengte!$AT$14,IF(G62=Lengte!$AS$15,Lengte!$AT$15,Lengte!$AT$16))) -> MKV | C62: =B62&" "&COUNTIF($B$17:B62,B62) -> MKV 17 | D62: k036 | E62: Nic slaat de bal mis | F62: 1959-06-05 | G62: 2 | K62: D2215 | L62: Zestien Zeverkes 15. 16 korte verhalen die tussen 27/2/1959 en 15/6/1959 verschenen in het dagblad de Standaard. De verhaaltjes hebben tevens ondertekst waarbij twee vormen van het Nederlands worden getoond: het Zuid-Nederlands (Vlaams) en het Noord-Nederlands (Hollands). | O62: Tot volgende week en... blijf jong! Zou toch ook lang willen blijven. Vroeger
B63: =IF(G63>=Lengte!$AS$13,Lengte!$AT$13,IF(G63>=Lengte!$AS$14,Lengte!$AT$14,IF(G63=Lengte!$AS$15,Lengte!$AT$15,Lengte!$AT$16))) -> MKV | C63: =B63&" "&COUNTIF($B$17:B63,B63) -> MKV 18 | D63: k037 | E63: De vis wordt duur betaald | F63: 1959-06-12 | G63: 2 | K63: D2216 | L63: Zestien Zeverkes 16. 16 korte verhalen die tussen 27/2/1959 en 15/6/1959 verschenen in het dagblad de Standaard. De verhaaltjes hebben tevens ondertekst waarbij twee vormen van het Nederlands worden getoond: het Zuid-Nederlands (Vlaams) en het Noord-Nederlands (Hollands). | O63: Als't tegenvalt dan een tonnetje maatjesharing he. Maar te scheppen.
B64: =IF(G64>=Lengte!$AS$13,Lengte!$AT$13,IF(G64>=Lengte!$AS$14,Lengte!$AT$14,IF(G64=Lengte!$AS$15,Lengte!$AT$15,Lengte!$AT$16))) -> GAG | C64: =B64&" "&COUNTIF($B$17:B64,B64) -> GAG 21 | D64: k038 | E64: Biscuits versieren | F64: 1959-07-01 | G64: 1 | K64: D2112 | L64: Wiske-Jong Kajotser 12. Verscheen in het maandblad 'Belofte'. Ook in De Lotgevallen Meneer Lambik en Wiske Jong-Kajotser (Klassiek Reeks, 1998). | O64: Wiske aan 't werk in een koekjesfabriek En maar crème spuiten Wis!
B65: =IF(G65>=Lengte!$AS$13,Lengte!$AT$13,IF(G65>=Lengte!$AS$14,Lengte!$AT$14,IF(G65=Lengte!$AS$15,Lengte!$AT$15,Lengte!$AT$16))) -> GAG | C65: =B65&" "&COUNTIF($B$17:B65,B65) -> GAG 22 | D65: k039 | E65: Wiske naar huis brengen | F65: 1959-08-01 | G65: 1 | K65: D2113 | L65: Wiske-Jong Kajotser 13. Verscheen in het maandblad 'Belofte'. De laatste in een serie van 13. Ook in De Lotgevallen Meneer Lambik en Wiske Jong-Kajotser (Klassiek Reeks, 1998). | O65: Madam ik kom Mieke halen voor de vergadering!
B66: =IF(G66>=Lengte!$AS$13,Lengte!$AT$13,IF(G66>=Lengte!$AS$14,Lengte!$AT$14,IF(G66=Lengte!$AS$15,Lengte!$AT$15,Lengte!$AT$16))) -> SNP | C66: =B66&" "&COUNTIF($B$17:B66,B66) -> SNP 8 | D66: k040 | E66: Lambik, de knapste kleinhandelaar | F66: 1959-12-10 | G66: 0.5 | K66: D3037 | L66: Het Nieuwsblad van 10-12-1959 als reclame voor de Nationale Veertiendaagse van de Middenstand; Ook in Brabant Strip Magazine 19 (1994). Mogelijk ook in De Standaard of De Gentenaar in 1959. | O66: Wat een drukte aan Lambiks winkel he, Wiske? Hij is precies zijn winkel
B67: =IF(G67>=Lengte!$AS$13,Lengte!$AT$13,IF(G67>=Lengte!$AS$14,Lengte!$AT$14,IF(G67=Lengte!$AS$15,Lengte!$AT$15,Lengte!$AT$16))) -> MKV | C67: =B67&" "&COUNTIF($B$17:B67,B67) -> MKV 19 | D67: K041 | E67: Scheepvaart, voor primitieve mensen | F67: 1960-01-01 | G67: 4 | K67: - | L67: Sigarenbandjes inplak album van Neuhaus sigaren, 16 bandjes. Ook uitgegeven door de Fameuze Fanclub als boekje "Van blad tot boot". | O67: Wel, Sidonieke waarom weent gij? Jerom heeft onze laatste dinosaurus opgepeuzeld!
B68: =IF(G68>=Lengte!$AS$13,Lengte!$AT$13,IF(G68>=Lengte!$AS$14,Lengte!$AT$14,IF(G68=Lengte!$AS$15,Lengte!$AT$15,Lengte!$AT$16))) -> SNP | C68: =B68&" "&COUNTIF($B$17:B68,B68) -> SNP 9 | D68: k042 | E68: Se-Standaard encyclopedie | F68: 1965-01-01 | G68: 0.5 | K68: D3023 | L68: Reclame stripje voor de Standaard Encyclopedie. Geplaatst achterin diverse albums. Eerste druk in Rode Ridder Hugon de Hofnar, maar ook in bijvoorbeeld Karl May. En diverse andere publicaties zoals het blauwe magazine "Bulkboek De avonturen van Suske en Wiske anders bekeken" 1986. | O68: SE ? Niet in het kolenhok? Niet in de ijskast!
B69: =IF(G69>=Lengte!$AS$13,Lengte!$AT$13,IF(G69>=Lengte!$AS$14,Lengte!$AT$14,IF(G69=Lengte!$AS$15,Lengte!$AT$15,Lengte!$AT$16))) -> GAG | C69: =B69&" "&COUNTIF($B$17:B69,B69) -> GAG 23 | D69: - | E69: Ford wijst de weg | F69: 1969-01-01 | G69: 1 | K69: - | L69: Onbekend reclamestripje voor Ford uit 1969. Dook volgens De Fameuze Fanclub in Aug 2020 op in facebook groep Stripknip: https://www.facebook.com/groups/339189536561270/ | O69: Wat zijn de kenmerken van de nieuwe Fords 1969?
B70: =IF(G70>=Lengte!$AS$13,Lengte!$AT$13,IF(G70>=Lengte!$AS$14,Lengte!$AT$14,IF(G70=Lengte!$AS$15,Lengte!$AT$15,Lengte!$AT$16))) -> KVH | C70: =B70&" "&COUNTIF($B$17:B70,B70) -> KVH 3 | D70: k043 | E70: De snoezige Snowijt | F70: 1973-12-01 | G70: 25 | I70: 315 | J70: 118 | K70: W003 | L70: Winterboek 1973, eerste korte verhaal van 25 pagina's in de serie die speciaal gemaakt zijn voor vakantieboeken. Ook voor Centra, Extra dik album (1975), als Zip Poster (1981), Rode Reeks nr 188 (1982), Dubbelstrip 7 (1987), Extra 8 (1988), Lekturama 31 (1988), Vandemoortele (1992), SW weekblad bijlage (1995) en Dash mini - 1e reeks (nr 17, 2004). | O70: Op een mooie winterdag keert Lambik, na een bezoek aan Sidonia, huiswaarts.
B71: =IF(G71>=Lengte!$AS$13,Lengte!$AT$13,IF(G71>=Lengte!$AS$14,Lengte!$AT$14,IF(G71=Lengte!$AS$15,Lengte!$AT$15,Lengte!$AT$16))) -> KVH | C71: =B71&" "&COUNTIF($B$17:B71,B71) -> KVH 4 | D71: k048 | E71: De gouden bloem | F71: 1974-01-01 | G71: 23 | I71: 117 | J71: 124 | K71: W007 | L71: Reclame uitgave voor Tide. Eerste druk 1974 met op de achterkaft t/m album 153 De Nare Varaan (Tide); 2e druk t/m album 156. Op het voorblad, de eerste pagina, wordt de lezer uitgedaagd ook de Franse dan wel de Nederlandse tekst te lezen. Op poster uitgegeven in 1975. Ook Nederlands/Engels (1976), Extra 1 (1986/87), Dubbelstrip 4 (1987/89), Mini album (SW weekblad, 1994), Lekturama 50 (1999), Pizza hut (2003), Dash mini - 1e reeks (nr 15, 2004), X-large 4 (2006) en als SW In het kort Nr 36 (2022). | O71: Op een zonnige zondag, ten huize van tante Sidonia. Suske en Wiske, komen jullie eens hier?
B72: =IF(G72>=Lengte!$AS$13,Lengte!$AT$13,IF(G72>=Lengte!$AS$14,Lengte!$AT$14,IF(G72=Lengte!$AS$15,Lengte!$AT$15,Lengte!$AT$16))) -> KVH | C72: =B72&" "&COUNTIF($B$17:B72,B72) -> KVH 5 | D72: k044 | E72: De vergeten vallei | F72: 1974-06-01 | G72: 25 | I72: 392 | J72: 121 | K72: W004 | L72: Vakantieboek 1974. Ook voor Centra, Extra dik album (1975), Solo (met De lollige lakens, 1981), Ariel (1981), Rode Reeks nr 191 (1982), Dubbelstrip 8 (1987), Extra 7 (1988), Lekturama 32 (1988), voor de middenstand (met afwijkende cover, 1989), Albert Heijn (2000), Dash mini - 1e reeks (nr 3, 2001), Marcassou (A5 en mini album, 2003) en als SW In het kort Nr 49 (2023). | O72: Tante Sidonia, Jerommeke, Lambik en Suske en Wiske brengen een heerlijke vakantie door in de Ardennen.
B73: =IF(G73>=Lengte!$AS$13,Lengte!$AT$13,IF(G73>=Lengte!$AS$14,Lengte!$AT$14,IF(G73=Lengte!$AS$15,Lengte!$AT$15,Lengte!$AT$16))) -> KVH | C73: =B73&" "&COUNTIF($B$17:B73,B73) -> KVH 6 | D73: k045 | E73: Toffe Tiko | F73: 1974-12-31 | G73: 25 | I73: 374 | J73: 125 | K73: W005 | L73: Winterboek 1974. Ook voor Sun (Met het verborgen volk, 1977) , Zip Poster (1978), Rode Reeks nr 191 (1982), Dubbelstrip 9 (1987), Extra 8 (1988), Lekturama 32 (1988), Dash mini - 1e reeks (nr 2, 2001), Waldkorn (met stripje op de achterkaft van 1 plaatje, 2001), Marcassou (A5, 2003) en als SW In het kort Nr 39 (2022). | O73: Op een winterdag rijden tante Sidonia, Suske en Wiske naar een landhuis in de bergen om er de jaarwisseling door te brengen. HEMEL! Die wagen slipt en vliegt uit de bocht!
B74: =IF(G74>=Lengte!$AS$13,Lengte!$AT$13,IF(G74>=Lengte!$AS$14,Lengte!$AT$14,IF(G74=Lengte!$AS$15,Lengte!$AT$15,Lengte!$AT$16))) -> KVH | C74: =B74&" "&COUNTIF($B$17:B74,B74) -> KVH 7 | D74: k046 | E74: Hippus het zeeveulen | F74: 1975-06-01 | G74: 25 | I74: 139 | J74: 128 | K74: W006 | L74: Vakantieboek 1975. Ook voor Smarties vakantiealbum Nederland (Mackintosh, 1977), Smarties vakantiealbum België (Frans/Nederlands, Mackintosh, 1978), Rode Reeks nr 193 (1983), Extra 5 (1987), Dubbelstrip 5 (1987/89), Lekturama 32 (1988), Waldkorn (met stripje op de achterkaft van 1 plaatje, 2001), Dash mini - 1e reeks (nr 4, 2001), Pizza hut (2003), X-large 1 (2003) en als SW In het kort Nr 50 (2023). | O74: Dit jaar brengen Suske en Wiske, samen met tante Sidonia, hun vakantie door in Spanje aan de Costa Brava.
B75: =IF(G75>=Lengte!$AS$13,Lengte!$AT$13,IF(G75>=Lengte!$AS$14,Lengte!$AT$14,IF(G75=Lengte!$AS$15,Lengte!$AT$15,Lengte!$AT$16))) -> KVH | C75: =B75&" "&COUNTIF($B$17:B75,B75) -> KVH 8 | D75: k047 | E75: De vliegende klomp | F75: 1975-01-01 | G75: 31 | I75: 409 | J75: 130 | K75: W008 | L75: Voor de VVV Noord-Brabant (in de zelfde stijl als De Rammelende Rally). Eerste druk met 2 regels aan de onderkant. In 1999 (blauwe kaft) aangevuld met een speciale pagina met tekstuele wijzigingen. In 2011 opnieuw aangevuld met 6 pagina's met wijzigingen en een hertekende voorkaft in moderne stijl. | O75: Op een avond bij tante Sidonia en Suske en Wiske. Goed goed, hou er nu maar over op. Er wordt gebeld!
B76: =IF(G76>=Lengte!$AS$13,Lengte!$AT$13,IF(G76>=Lengte!$AS$14,Lengte!$AT$14,IF(G76=Lengte!$AS$15,Lengte!$AT$15,Lengte!$AT$16))) -> SNP | C76: =B76&" "&COUNTIF($B$17:B76,B76) -> SNP 10 | D76: - | E76: Verkeerd verkeer | F76: 1976-01-06 | G76: =4/12 -> 0.3333333333 | L76: Stripje bij wedstrijdfurmulier voor presentatie van de nieuwe Ford Taunus 1300 op de autosalon in Brussel. In de krant als 1 vertikale lange strook. In De Standaard / Het Nieuwsblad op 06-Jan-1976. | O76: Heb je pasmunt voor de parkeermeter, Lambikske?
B77: =IF(G77>=Lengte!$AS$13,Lengte!$AT$13,IF(G77>=Lengte!$AS$14,Lengte!$AT$14,IF(G77=Lengte!$AS$15,Lengte!$AT$15,Lengte!$AT$16))) -> KVH | C77: =B77&" "&COUNTIF($B$17:B77,B77) -> KVH 9 | D77: k049 | E77: Het verborgen volk | F77: 1976-06-01 | G77: 25 | I77: 388 | J77: 134 | K77: W009 | L77: Vakantieboek 1976. Ook voor Sun (met Toffe Tiko, 1977), Rode reeks nr 193 (1983), Extra 6 (1987), Dubbelstrip 6 (1987/89), Lekturama 32 (1988), Waldkorn (met stripje op de achterkaft van 1 plaatje, 2001), Dash mini - 1e reeks (nr 5, 2001) en als SW In het kort Nr 43 (2023). | O77: Noorwegen, het prachtige land van woeste bergtoppen, waar grote watervallen zich met donderend geraas in het glasheldere water van de fjorden storten.
B78: =IF(G78>=Lengte!$AS$13,Lengte!$AT$13,IF(G78>=Lengte!$AS$14,Lengte!$AT$14,IF(G78=Lengte!$AS$15,Lengte!$AT$15,Lengte!$AT$16))) -> SNP | C78: =B78&" "&COUNTIF($B$17:B78,B78) -> SNP 11 | D78: - | E78: Promotie-Toffe-Tiko | F78: 1976-01-01 | G78: =2/4 -> 0.5 | K78: D3025 | L78: Pagina grote advertentie van Zip voor het sparen van een poster van Toffe Tiko. Met bovenaan een strip van 2 stroken. Advertenties stonden in Eppo, Donald Duck of Kuifje in 1976. Ook in versus 25 (1993). | O78: Alemachtig! We zitten weer midden in een geweldig avontuur, hoor!
B79: INF | C79: =B79&" "&COUNTIF($B$17:B79,B79) -> INF 1 | D79: - | E79: De gestolen schoen | F79: 1976-10-08 | G79: 11 | I79: 106 | K79: W013 | L79: Beeldverhaal met puzzel, geschreven tekst met per pagina een plaatje met tekstballonnetjes. In opdracht van De Stem in 11 afleveringen in 1976 in het dagblad De Stem te volgen. De reis ging langs 10 standbeelden in verschillende plaatsen in Zuidwest Nederland. In 1982 uitgegeven door Pirate Print Rotterdam in zeer beperkte oplage van slechts 30 exemplaren , en in 1984 door De Stem in grote oplage (blauwe soft cover, opdruk "Eenmalige uitgave"). In 2000 nogmaals uitgebracht door Uitgeversmaatschappij Zuidwest Nederland (blauwe soft cover, opdruk "Heruitgave"). | O79: Al dat gedoe met de statufoon is maar bijzaak. Maar heu… Jullie komen mij bewonderen hé! - De barre zomer van 1976 is voorbij.
B80: =IF(G80>=Lengte!$AS$13,Lengte!$AT$13,IF(G80>=Lengte!$AS$14,Lengte!$AT$14,IF(G80=Lengte!$AS$15,Lengte!$AT$15,Lengte!$AT$16))) -> MKV | C80: =B80&" "&COUNTIF($B$17:B80,B80) -> MKV 20 | D80: - | E80: Nu stelt Lambik de vragen aan Wies Andersen | F80: 1976-10-08 | G80: 2 | K80: D3038 | L80: Fotostrip uit het Vlaamse weekblad Story. Ook in Versus 60. Op de twee 2 pagina's in kleur "interviewt" Lambik Wies Andersen, de maker van de reeks. | O80: In huize Andersen rinkelt de telefoon. Lambik is aan de lijn, want wie zou Wies beter
B81: =IF(G81>=Lengte!$AS$13,Lengte!$AT$13,IF(G81>=Lengte!$AS$14,Lengte!$AT$14,IF(G81=Lengte!$AS$15,Lengte!$AT$15,Lengte!$AT$16))) -> MKV | C81: =B81&" "&COUNTIF($B$17:B81,B81) -> MKV 21 | D81: k050 | E81: Stilte! De vis bijt | F81: 1978-01-01 | G81: 1.5 | I81: 344 | J81: 142 | K81: D3018 | L81: Eerste publicatie in het ABN-Stripdossier, 1978 (6 stroken op 3 pagina's). Maar verscheen in 1977 al op 6 ZIP puzzels die samen het verhaal vormden. Verscheen ook in de Stripschrift Special uit 1981 (gele kaft) en als SW In het kort Nr 58 (2024). | O81: Ziezo, we zijn er! Een prachtig plaatsje om te gaan vissen!
B82: =IF(G82>=Lengte!$AS$13,Lengte!$AT$13,IF(G82>=Lengte!$AS$14,Lengte!$AT$14,IF(G82=Lengte!$AS$15,Lengte!$AT$15,Lengte!$AT$16))) -> KVH | C82: =B82&" "&COUNTIF($B$17:B82,B82) -> KVH 10 | D82: k051 | E82: De lollige lakens | F82: 1977-07-01 | G82: 25 | I82: 218 | J82: 140 | K82: W010 | L82: Vakantieboek 1977. Ook voor Solo (met De vergeten vallei, 1981), Ariel (1982), Dubbelstrip 1 (1986/89), Extra 6 (1987), SW weekblad bijlage (1995), Lekturama 49 (1998), Dash mini - 1e reeks (nr 8, 2002), Fruittella (2004) en als SW In het kort Nr 40 (2022). | O82: Op de nationale luchthaven geeft de controletoren aan een chartertoestel, dat toeristen terugbrengt uit Mallorca, toestemming om te landen.
B83: =IF(G83>=Lengte!$AS$13,Lengte!$AT$13,IF(G83>=Lengte!$AS$14,Lengte!$AT$14,IF(G83=Lengte!$AS$15,Lengte!$AT$15,Lengte!$AT$16))) -> MKV | C83: =B83&" "&COUNTIF($B$17:B83,B83) -> MKV 22 | D83: k053 | E83: De regendag | F83: 1978-01-01 | G83: =8/4 -> 2 | K83: A520.000 | L83: Discoboek met luisterstrip van Knorr, met 4 pagina strip, 8 stroken. Ook als SW In het kort Nr 58 (2024). | O83: Wat een weer. Gaan fietsen kunnen we vandaag wel vergeten. Ja maar ik heb een ander idee…
B84: =IF(G84>=Lengte!$AS$13,Lengte!$AT$13,IF(G84>=Lengte!$AS$14,Lengte!$AT$14,IF(G84=Lengte!$AS$15,Lengte!$AT$15,Lengte!$AT$16))) -> MKV | C84: =B84&" "&COUNTIF($B$17:B84,B84) -> MKV 23 | D84: k054 | E84: De schatgravers | F84: 1978-01-01 | G84: =8/4 -> 2 | K84: A520.001 | L84: Discoboek met luisterstrip van Knorr, met 4 pagina strip, 8 stroken. Ook als SW In het kort Nr 58 (2024). | O84: Als ik mijn lievelingsroos, de "Lambicarius" wil planten, moet deze tuin worden omgespit. Maar wat een werk.
B85: =IF(G85>=Lengte!$AS$13,Lengte!$AT$13,IF(G85>=Lengte!$AS$14,Lengte!$AT$14,IF(G85=Lengte!$AS$15,Lengte!$AT$15,Lengte!$AT$16))) -> MKV | C85: =B85&" "&COUNTIF($B$17:B85,B85) -> MKV 24 | D85: k055 | E85: Ra ra wat is dat? | F85: 1978-01-01 | G85: =8/4 -> 2 | K85: A520.002 | L85: Discoboek met luisterstrip van Knorr, met 4 pagina strip, 8 stroken. Ook als SW In het kort Nr 58 (2024). | O85: TikTikTik TikTikTik. Een schrijfmachine!
B86: =IF(G86>=Lengte!$AS$13,Lengte!$AT$13,IF(G86>=Lengte!$AS$14,Lengte!$AT$14,IF(G86=Lengte!$AS$15,Lengte!$AT$15,Lengte!$AT$16))) -> SNP | C86: =B86&" "&COUNTIF($B$17:B86,B86) -> SNP 12 | D86: k056 | E86: De droom | F86: 1978-01-01 | G86: =3/4 -> 0.75 | K86: A520.003 | L86: Discoboek van Knorr, met 3 stripverhaaltjes, deze 3 stroken van 8. Ook als SW In het kort Nr 58 (2024). | O86: Ik hoor, Wiske, een vreemd gerucht. Het is net of er iemand zucht. Maar nee, keer je om, weest niet bang. D'r komt lawaai uit die gang!
B87: =IF(G87>=Lengte!$AS$13,Lengte!$AT$13,IF(G87>=Lengte!$AS$14,Lengte!$AT$14,IF(G87=Lengte!$AS$15,Lengte!$AT$15,Lengte!$AT$16))) -> SNP | C87: =B87&" "&COUNTIF($B$17:B87,B87) -> SNP 13 | D87: k057 | E87: Lambik's Magic Show | F87: 1978-01-01 | G87: =3/4 -> 0.75 | K87: A520.003 | L87: Discoboek van Knorr, met 3 stripverhaaltjes, deze 3 stroken van 8. Ook als SW In het kort Nr 58 (2024). | O87: Een, twee, drie! De kriekentaart is verdwenen!
B88: =IF(G88>=Lengte!$AS$13,Lengte!$AT$13,IF(G88>=Lengte!$AS$14,Lengte!$AT$14,IF(G88=Lengte!$AS$15,Lengte!$AT$15,Lengte!$AT$16))) -> SNP | C88: =B88&" "&COUNTIF($B$17:B88,B88) -> SNP 14 | D88: k058 | E88: Crème caramel | F88: 1978-01-01 | G88: =2/4 -> 0.5 | K88: A520.003 | L88: Discoboek van Knorr, met 3 stripverhaaltjes, deze 2 stroken van 8. Ook als SW In het kort Nr 58 (2024). | O88: Wat zijn jullie aan het doen? Da's een verrassing. Crème caramel!
B89: =IF(G89>=Lengte!$AS$13,Lengte!$AT$13,IF(G89>=Lengte!$AS$14,Lengte!$AT$14,IF(G89=Lengte!$AS$15,Lengte!$AT$15,Lengte!$AT$16))) -> KVH | C89: =B89&" "&COUNTIF($B$17:B89,B89) -> KVH 11 | D89: k052 | E89: Het geheim van de Kalmthoutse Heide | F89: 1978-06-01 | G89: 25 | I89: 101 | J89: 147 | K89: W011 | L89: Oorspronkelijke titel in vakantieboek6: De Heikneuters. Ook voor Presto Print (1981), Dubbelstrip 1 (1986/89), Extra 4 (1987), Schoolagenda (1989-90), Lekturama 49 (1998), Aqamossel (1999), Mc Donalds (A5, 2002), Dash mini - 1e reeks (nr 14, 2004), De Vroente (2009), Het gheim van de Kalmthoutse Haai (Kalmthouts, 2009) en als SW In het kort Nr 54 (2024). | O89: Op een zonnige zomerse dag zijn Suske en Wiske in de Kalmthoutse heide, een prachtig natuurreservaat
B90: =IF(G90>=Lengte!$AS$13,Lengte!$AT$13,IF(G90>=Lengte!$AS$14,Lengte!$AT$14,IF(G90=Lengte!$AS$15,Lengte!$AT$15,Lengte!$AT$16))) -> KVH | C90: =B90&" "&COUNTIF($B$17:B90,B90) -> KVH 12 | D90: k059 | E90: Het monster van Loch Ness | F90: 1978-08-01 | G90: 32 | I90: 240 | J90: 145 | K90: W012 | L90: Dash reclame uitgave. In latere uitgaven is het Dash logo van de tonnetjes in de plaatjes verwijderd. Ook in Familiestripboek (1987), Dubbelstrip 10 (1989), Het leukste vakantiestripboek, ECI (1994), Lekturama 52 (2000), Mc Donalds (A5, 2002), Dash mini - 1e reeks (nr 16, 2004) en als SW In het kort Nr 33 (2022). | O90: Daar is ze! Vooraan de reling van het schip! Nu ziet ze ons ook!
B91: =IF(G91>=Lengte!$AS$13,Lengte!$AT$13,IF(G91>=Lengte!$AS$14,Lengte!$AT$14,IF(G91=Lengte!$AS$15,Lengte!$AT$15,Lengte!$AT$16))) -> KVH | C91: =B91&" "&COUNTIF($B$17:B91,B91) -> KVH 13 | D91: k060 | E91: De witte gems | F91: 1979-06-01 | G91: 25 | I91: 431 | J91: 152 | K91: W014 | L91: Vakantieboek 1979. Ook voor Amro bank (1983), Dubbelstrip 2 (1986/89), Extra 3 (1987), Schoolagenda 87-88, Het grote vakantiestripboek, ECI (1992), Agfa (1994), Persil (met Knokken in Knossos, oblong HC, 1995), Standaard special products (bij videofilm, oblong, 1996), Super vakantiestrips (1996), Lekturama 50 (1999), Top Camera (1999), Albert Heijn (2000), Dash mini - 1e reeks (nr 1, 2001), Fruitmasters (2002) en als SW In het kort Nr 46 (2023). De meeste uitgaven zijn ingekort, zonder het fragment met het marmotje dat kauwgom krijgt van Wiske (strook 6). De uitgaven van Vakantieboek, Amro en SW in het kort zijn compleet. | O91: Dit jaar brengen Suske en Wiske, samen met tante Sidonia, hun vakantie door in Oostenrijk.
B92: =IF(G92>=Lengte!$AS$13,Lengte!$AT$13,IF(G92>=Lengte!$AS$14,Lengte!$AT$14,IF(G92=Lengte!$AS$15,Lengte!$AT$15,Lengte!$AT$16))) -> MKV | C92: =B92&" "&COUNTIF($B$17:B92,B92) -> MKV 25 | D92: k061 | E92: Billie is verdwenen | F92: 1979-12-06 | G92: 2 | K92: D3019 | L92: Jubileumverhaal dat met scenario van A.R.Duchâteaux en A. de Kuyssche gepubliceerd werd als bijlage in Robbedoes / Spirou weekblad nr 2173 (6 dec 1979). Onderdeel van 2 pagina's uit een verhaal van 44 bladzijden, getekend door veertien verschillende tekenaars, ter ere van het 20-jarig bestaan van de strip Bollie en Billie. Het verscheen in 1990 (of 1992) als album (blauw) en het Suske en Wiske deel verscheen ook in de Stripschrift Special uit 1981 (gele kaft). De oorspronkelijke Franse titel is 'Bill a disparu!'. | O92: Een krant? Een krant? Staat er iets bijzonders in, tante?
B93: =IF(G93>=Lengte!$AS$13,Lengte!$AT$13,IF(G93>=Lengte!$AS$14,Lengte!$AT$14,IF(G93=Lengte!$AS$15,Lengte!$AT$15,Lengte!$AT$16))) -> KVH | C93: =B93&" "&COUNTIF($B$17:B93,B93) -> KVH 14 | D93: k062 | E93: Het verloren zwaard | F93: 1980-06-01 | G93: 25 | I93: 397 | J93: 157 | K93: W015 | L93: ="Vakantieboek 1980. Ook voor Hero (1982), Dubbelstrip 2 (1986/89), Extra 5 (1987), Agfa (1994), De Beukelaar (met achterop " & C220& ", 1995), Lekturama 51 (1999), Pizza Hut (1999), Albert Heijn (2000), Fruittella (2002) en als SW In het kort Nr 45 (2023)." -> Vakantieboek 1980. Ook voor Hero (1982), Dubbelstrip 2 (1986/89), Extra 5 (1987), Agfa (1994), De Beukelaar (met achterop SNP 35, 1995), Lekturama 51 (1999), Pizza Hut (1999), Albert Heijn (2000), Fruittella (2002) en als SW In het kort Nr 45 (2023). | O93: Suske en Wiske zijn samen met Lambik op vakantie in Frankrijk. Tussen twee hoogwaterstanden in, rijden zij naar de Mont Saint-Michel
B94: =IF(G94>=Lengte!$AS$13,Lengte!$AT$13,IF(G94>=Lengte!$AS$14,Lengte!$AT$14,IF(G94=Lengte!$AS$15,Lengte!$AT$15,Lengte!$AT$16))) -> GAG | C94: =B94&" "&COUNTIF($B$17:B94,B94) -> GAG 24 | D94: k063 | E94: Het kleine verzet | F94: 1980-09-17 | G94: 1 | K94: D3017 | L94: ="Vakantieboek 1980. Ook voor Hero (1982), Dubbelstrip 2 (1986/89), Extra 5 (1987), Agfa (1994), De Beukelaar (met achterop " & C221& ", 1995), Lekturama 51 (1999), Pizza Hut (1999), Albert Heijn (2000), Fruittella (2002), Versus 108 (2014) en als SW In het kort Nr 45 (2023)." -> Vakantieboek 1980. Ook voor Hero (1982), Dubbelstrip 2 (1986/89), Extra 5 (1987), Agfa (1994), De Beukelaar (met achterop SNP 36, 1995), Lekturama 51 (1999), Pizza Hut (1999), Albert Heijn (2000), Fruittella (2002), Versus 108 (2014) en als SW In het kort Nr 45 (2023). | O94: De Duitsers bezetten België. Lambik…pardon Mijnheer Lambik gaat zijn rantsoenkaart afhalen
B95: =IF(G95>=Lengte!$AS$13,Lengte!$AT$13,IF(G95>=Lengte!$AS$14,Lengte!$AT$14,IF(G95=Lengte!$AS$15,Lengte!$AT$15,Lengte!$AT$16))) -> GAG | C95: =B95&" "&COUNTIF($B$17:B95,B95) -> GAG 25 | D95: k064 | E95: Lambiks geheimzinnige pak | F95: 1981-01-01 | G95: 1 | I95: 210 | K95: D3001 | L95: Vouwstrip van Zip (1981 met Nederlandse en Franse versie) en Panky (1982 met Vogeltjes voederen). Ook in Suske en Wiske agenda 84-85. | O95: ? Zeg, Suske! Lambik is verdwenen in zijn kamer met een groot pak! Je bent
B96: =IF(G96>=Lengte!$AS$13,Lengte!$AT$13,IF(G96>=Lengte!$AS$14,Lengte!$AT$14,IF(G96=Lengte!$AS$15,Lengte!$AT$15,Lengte!$AT$16))) -> GAG | C96: =B96&" "&COUNTIF($B$17:B96,B96) -> GAG 26 | D96: k066 | E96: Een rare vogel | F96: 1981-01-01 | G96: 1 | I96: 282 | K96: D3002 | L96: Vouwstrip van Zip (1981 met Nederlandse en Franse versie) en Panky (1982 met Nachtelijke storing). Ook in Suske en Wiske agenda 84-85. | O96: He waar ga jij met die kijker naartoe? Ik ga de vogels bestuderen in het bos!
B97: =IF(G97>=Lengte!$AS$13,Lengte!$AT$13,IF(G97>=Lengte!$AS$14,Lengte!$AT$14,IF(G97=Lengte!$AS$15,Lengte!$AT$15,Lengte!$AT$16))) -> GAG | C97: =B97&" "&COUNTIF($B$17:B97,B97) -> GAG 27 | D97: k068 | E97: Zonderlinge vogelverschrikkers | F97: 1981-01-01 | G97: 1 | I97: 451 | K97: D3003 | L97: Vouwstrip van Zip (1981 met Nederlandse en Franse versie) en Panky (1982 met Maken sneeuwpoppen). Ook in Suske en Wiske agenda 84-85 getiteld "rare vogelverschrikkers'. | O97: Ziezo! Dat is flink voor mekaar! Nu nog even Suske en Wiske bellen! Hallo!
B98: =IF(G98>=Lengte!$AS$13,Lengte!$AT$13,IF(G98>=Lengte!$AS$14,Lengte!$AT$14,IF(G98=Lengte!$AS$15,Lengte!$AT$15,Lengte!$AT$16))) -> GAG | C98: =B98&" "&COUNTIF($B$17:B98,B98) -> GAG 28 | D98: k065 | E98: Voederen vogeltjes | F98: 1981-01-01 | G98: 1 | I98: 412 | K98: D3006 | L98: Vouwstrip van Zip (1981 met Nederlandse en Franse versie) en Panky (1982 met Lambiks geheimzinnige pak). Ook in Suske en Wiske agenda 84-85 getiteld "voeren vogeltjes". | O98: Hemel! Die sukkeltjes sterven van de honger! Ha! Tante! Ben je de vogeltjes
B99: =IF(G99>=Lengte!$AS$13,Lengte!$AT$13,IF(G99>=Lengte!$AS$14,Lengte!$AT$14,IF(G99=Lengte!$AS$15,Lengte!$AT$15,Lengte!$AT$16))) -> GAG | C99: =B99&" "&COUNTIF($B$17:B99,B99) -> GAG 29 | D99: k070 | E99: De sprekende circushond | F99: 1981-01-01 | G99: 1 | I99: 328 | K99: D3004 | L99: Vouwstrip van Zip (1981 met Nederlandse en Franse versie) en Panky (1982 met Lambik maakt kiekjes). Ook in Suske en Wiske agenda 84-85. | O99: Hallo, Sidonieke! Je moet eens langs komen met Suske en Wiske! Ik heb een
B100: =IF(G100>=Lengte!$AS$13,Lengte!$AT$13,IF(G100>=Lengte!$AS$14,Lengte!$AT$14,IF(G100=Lengte!$AS$15,Lengte!$AT$15,Lengte!$AT$16))) -> GAG | C100: =B100&" "&COUNTIF($B$17:B100,B100) -> GAG 30 | D100: k072 | E100: Een spannend boek | F100: 1981-01-01 | G100: 1 | I100: 322 | K100: D3005 | L100: Vouwstrip van Zip (1981 met Nederlandse en Franse versie) en Panky (1982 met Een rare ontmoeting). Ook in Suske en Wiske agenda 84-85. | O100: Suske! Heb jij Wiske ergens gezien? Nee, tante! Maar ik zal ze wel even voor
B101: =IF(G101>=Lengte!$AS$13,Lengte!$AT$13,IF(G101>=Lengte!$AS$14,Lengte!$AT$14,IF(G101=Lengte!$AS$15,Lengte!$AT$15,Lengte!$AT$16))) -> GAG | C101: =B101&" "&COUNTIF($B$17:B101,B101) -> GAG 31 | D101: k071 | E101: Lambik maakt kiekjes | F101: 1981-01-01 | G101: 1 | I101: 208 | K101: D3009 | L101: Vouwstrip van Zip (1981 met Nederlandse en Franse versie) en Panky (1982 met De sprekende circushond). Ook in Suske en Wiske agenda 84-85. | O101: Ik ga enkele leuke kiekjes maken, kinderen! Ho! Wat een leuk vogeltje, Lambik!
B102: =IF(G102>=Lengte!$AS$13,Lengte!$AT$13,IF(G102>=Lengte!$AS$14,Lengte!$AT$14,IF(G102=Lengte!$AS$15,Lengte!$AT$15,Lengte!$AT$16))) -> GAG | C102: =B102&" "&COUNTIF($B$17:B102,B102) -> GAG 32 | D102: k069 | E102: Maken sneeuwpoppen | F102: 1981-01-01 | G102: 1 | I102: 226 | K102: D3008 | L102: Vouwstrip van Zip (1981 met Nederlandse en Franse versie) en Panky (1982 met Zonderlinge vogelverschrikkers). Ook in Suske en Wiske agenda 84-85 en Weet je Wetje 5 (1986). | O102: Joepie! Fantastisch! Er ligt een dik pak sneeuw! Kom Suske! Vlug iets warm
B103: =IF(G103>=Lengte!$AS$13,Lengte!$AT$13,IF(G103>=Lengte!$AS$14,Lengte!$AT$14,IF(G103=Lengte!$AS$15,Lengte!$AT$15,Lengte!$AT$16))) -> GAG | C103: =B103&" "&COUNTIF($B$17:B103,B103) -> GAG 33 | D103: k073 | E103: Een rare ontmoeting | F103: 1981-01-01 | G103: 1 | I103: 281 | K103: D3010 | L103: Vouwstrip van Zip (1981 met Nederlandse en Franse versie) en Panky (1982 met Een spannend boek). (Niet in Suske en Wiske agenda 84-85). | O103: Wat is het toch heerlijk in het bos, he Wiske! Al dat groen, de vogeltjes!
B104: =IF(G104>=Lengte!$AS$13,Lengte!$AT$13,IF(G104>=Lengte!$AS$14,Lengte!$AT$14,IF(G104=Lengte!$AS$15,Lengte!$AT$15,Lengte!$AT$16))) -> GAG | C104: =B104&" "&COUNTIF($B$17:B104,B104) -> GAG 34 | D104: k067 | E104: Nachtelijke storing | F104: 1981-01-01 | G104: 1 | I104: 246 | K104: D3007 | L104: Vouwstrip van Zip (1981 met Nederlandse en Franse versie) en Panky (1982 met Een rare vogel). Ook in Suske en Wiske agenda 84-85. | O104: Die dekselse kater belet me te slapen! Vort lelijk beest! Weg, weg! AI!
B105: =IF(G105>=Lengte!$AS$13,Lengte!$AT$13,IF(G105>=Lengte!$AS$14,Lengte!$AT$14,IF(G105=Lengte!$AS$15,Lengte!$AT$15,Lengte!$AT$16))) -> KVH | C105: =B105&" "&COUNTIF($B$17:B105,B105) -> KVH 15 | D105: k074 | E105: De stenen broden | F105: 1981-06-01 | G105: 25 | I105: 338 | J105: 163 | K105: W017 | L105: Plezier met Suske en Wiske 1. Ook in Dash (1984), Extra 2 (1986/87), Gervais (1986), Dubbelstrip 4 (1987/89), SW weekblad bijlage (1995), Familiestripboek (1997), Dash mini - 1e reeks (nr 9, 2002), Lekturama 56 (2004) en als SW In het kort Nr 48 (2023). | O105: Dit jaar zijn Suske en Wiske samen met Lambik en Jerom met vakantie in Zwitserland. Om zich helemaal thuis te voelen
B106: =IF(G106>=Lengte!$AS$13,Lengte!$AT$13,IF(G106>=Lengte!$AS$14,Lengte!$AT$14,IF(G106=Lengte!$AS$15,Lengte!$AT$15,Lengte!$AT$16))) -> KVH | C106: =B106&" "&COUNTIF($B$17:B106,B106) -> KVH 16 | D106: k075 | E106: De zilveren appels | F106: 1981-09-01 | G106: 25 | I106: 446 | J106: 167 | K106: W016 | L106: Voor Argenta Bank (België, 1981). Ook met licht aangepaste tekst ('Zilveren' i.p.v. 'Argenta' behalve strook 24) in Extra 2 (Hema, 1986/87), Dubbelstrip 6 (1987/89), Lekturama 56 (2004) en als SW In het kort Nr 35 (2022). Ook in aangepaste vorm (enkele hertekende stroken en taal vernederlandst) voor de Nutsspaarbank (NL, 1990). | O106: Op zekere dag, op de rommelmarkt. Zoek je iets, madammekke?
B107: =IF(G107>=Lengte!$AS$13,Lengte!$AT$13,IF(G107>=Lengte!$AS$14,Lengte!$AT$14,IF(G107=Lengte!$AS$15,Lengte!$AT$15,Lengte!$AT$16))) -> SNP | C107: =B107&" "&COUNTIF($B$17:B107,B107) -> SNP 15 | D107: k076 | E107: Aah daar bent u | F107: 1981-09-01 | G107: 0.5 | K107: - | L107: Reclame stripje van Presto Print. Afgedrukt op de envelop waar 'De Kalmthoutse heide' voor Presto Print 1981 in zat. Er is ook een uitgave van het Presto Print album zonder de envelop met stripje. | O107: Vlug kerel, waar is hier de Presto Print Fotovakman? Heu... aan de overkant van de straat.
B108: =IF(G108>=Lengte!$AS$13,Lengte!$AT$13,IF(G108>=Lengte!$AS$14,Lengte!$AT$14,IF(G108=Lengte!$AS$15,Lengte!$AT$15,Lengte!$AT$16))) -> SNP | C108: =B108&" "&COUNTIF($B$17:B108,B108) -> SNP 16 | D108: - | E108: Suske en Wiske in het Turfschip | F108: 1981-09-19 | G108: =1/4 -> 0.25 | K108: D3031 | L108: Stripje voor de Stripdagen in Breda in 1981 waar Studio Vandersteen te gast was, uit De Stem op 19/9/1981 (voorpagina). Ook op blz. 28 van Suske en Wiske, De Verzamelaar, Fameuze Fanclub special t.g.v. 5 jarig bestaan. | O108: Hallo, allemaal, als je ons wil zien dan... Heu momentje... Je dacht toch
B109: =IF(G109>=Lengte!$AS$13,Lengte!$AT$13,IF(G109>=Lengte!$AS$14,Lengte!$AT$14,IF(G109=Lengte!$AS$15,Lengte!$AT$15,Lengte!$AT$16))) -> MKV | C109: =B109&" "&COUNTIF($B$17:B109,B109) -> MKV 26 | D109: - | E109: De rollende raadgevers | F109: 1982-01-01 | G109: =8/4 -> 2 | K109: - | L109: Voor Dexatopic (huid zalf) uit 1982. Verschenen achterop blad De Sterrenplukkers in 4 delen: nummers 9,10,12 (2001) en 13 (2002). Ook verschenen in "Het millennium nieuwsmagazine 2001". | O109: Lambik heeft een veld-brigade opgericht. Samen met Suske en Wiske tracht hij kinderen die door huiduitslag geplaagd worden goede raad te geven.
B110: =IF(G110>=Lengte!$AS$13,Lengte!$AT$13,IF(G110>=Lengte!$AS$14,Lengte!$AT$14,IF(G110=Lengte!$AS$15,Lengte!$AT$15,Lengte!$AT$16))) -> SNP | C110: =B110&" "&COUNTIF($B$17:B110,B110) -> SNP 17 | D110: k077 | E110: Gelukkig Nieuwjaar | F110: 1982-01-11 | G110: 0.5 | K110: D3039 | L110: In plaats van de aankondiging van De Belhamelbende werd in de krant deze nieuwjaarswens afgedrukt in De Standaard op 11-01-1982 (NB Niet de 10e, zie Versus 28 pag. 12). | O110: Gelukkig Nieuwjaar!! Dit is nu eens geen aankondiging van ons nieuw avontuur! We willen van
B111: INF | C111: =B111&" "&COUNTIF($B$17:B111,B111) -> INF 2 | D111: k078 | E111: Een bij voor jou en mij | F111: 1982-04-24 | G111: 27 | I111: 35 | J111: 174 | K111: W023 | L111: Oorspronkelijk uitgegeven voor het Ministerie van Landbouw (1982), cover wit met alleen een bij. In 1984 uitgegeven in de serie 'infostrip'. Daarnaast ook verschenen in 1985 in 'In de ban van Vandersteen 8' en in 2007 met groene hertekende kaft voor de 10e Stripdag te Kalmthout. | O111: Op een mooie zomerdag in de tuin van tante Sidonia. Kijk er is een bij op tantes neus gaan zitten!
B112: =IF(G112>=Lengte!$AS$13,Lengte!$AT$13,IF(G112>=Lengte!$AS$14,Lengte!$AT$14,IF(G112=Lengte!$AS$15,Lengte!$AT$15,Lengte!$AT$16))) -> KVH | C112: =B112&" "&COUNTIF($B$17:B112,B112) -> KVH 17 | D112: k079 | E112: Het onbekende eiland | F112: 1982-06-01 | G112: 24 | I112: 256 | J112: 171 | K112: W019 | L112: Plezier met Suske en Wiske 2. Ook voor Presto Print (1983), Dubbelstrip 3 (1986/89), Extra 4 (1987), Strips feestelijk gebundeld, Bruna (1994), Agfa (hertekende cover, 1994) , Albert Heijn (1999), Pizza Hut (1999), top Camera (1999), Lekturama 52 (2000) en Fruittella (2002). | O112: In het begin van de vakantie zitten onze vrienden in de tuin van tante Sidonia. Zeg, Lambik, hier valt maar weinig te beleven hoor!
B113: INF | C113: =B113&" "&COUNTIF($B$17:B113,B113) -> INF 3 | D113: k080 | E113: De blijde broodeters | F113: 1982-10-01 | G113: 30 | I113: 38 | J113: 169 | K113: W018 | L113: Infostrip, uitgegeven voor Puratos (levert ingrediënten aan bakkers en chocolatiers). | O113: Suske, Wiske, Sidonie, Lambik en Jerommeke zijn aan het eten. De televisie staat aan.
B114: =IF(G114>=Lengte!$AS$13,Lengte!$AT$13,IF(G114>=Lengte!$AS$14,Lengte!$AT$14,IF(G114=Lengte!$AS$15,Lengte!$AT$15,Lengte!$AT$16))) -> SNP | C114: =B114&" "&COUNTIF($B$17:B114,B114) -> SNP 18 | D114: k081 | E114: Sofietje | F114: 1983-01-01 | G114: =1/4 -> 0.25 | K114: D3027 | L114: Artikel uit weekblad Story nr 4 , jan1983, over Vlaamse zangeres Sofie Verbruggen, op bezoek bij Vandersteen, met een 3 plaatjes kort stripje. Ook in Versus 32 (1995). | O114: Daar heb je Sofietje... MIJN Sofietje... Een ontmoeting tussen twee beroemdheden! Je doet zo raar Lambik.
B115: =IF(G115>=Lengte!$AS$13,Lengte!$AT$13,IF(G115>=Lengte!$AS$14,Lengte!$AT$14,IF(G115=Lengte!$AS$15,Lengte!$AT$15,Lengte!$AT$16))) -> KVH | C115: =B115&" "&COUNTIF($B$17:B115,B115) -> KVH 18 | D115: k082 | E115: Sprookjesnacht aan zee | F115: 1983-05-01 | G115: 25 | I115: 331 | J115: 177 | K115: W020 | L115: Plezier met Suske en Wiske 3, met oorspronkelijke titel "Sprookjesnacht in het Zwin". Ook in Dubbelstrip 3 (1986/89), Extra 3 (1987), Lekturama 42 (1993), Super vakantiestripboek (1981), Agfa (1994),Familiestripboek (1999), Waldkorn (met stripje op de achterkaft van 1 plaatje, 2001), Fruittella (2003) en als SW In het kort Nr 37 (2022). | O115: Natuurliefhebbers als ze zijn, vinden we Suske en Wiske en tante Sidonia ergens in de duinen van Zeeuws-Vlaanderen.
B116: =IF(G116>=Lengte!$AS$13,Lengte!$AT$13,IF(G116>=Lengte!$AS$14,Lengte!$AT$14,IF(G116=Lengte!$AS$15,Lengte!$AT$15,Lengte!$AT$16))) -> SNP | C116: =B116&" "&COUNTIF($B$17:B116,B116) -> SNP 19 | D116: k083 | E116: De verstrooide | F116: 1961-09-08 | G116: =3/4 -> 0.75 | I116: 400 | K116: D0718 | L116: Op vouwstrip 1 voor Unox (1983), origineel in Lambik serie, grap 313 (1961). Verkort in Weet je wetje 4 (1986). Ook in Lambik Familiestripboek (1997). | O116: Ha, dag dokter! Ha dag, Sidonie! Blij dat ik u zie! Ge zou eens tot bij
B117: =IF(G117>=Lengte!$AS$13,Lengte!$AT$13,IF(G117>=Lengte!$AS$14,Lengte!$AT$14,IF(G117=Lengte!$AS$15,Lengte!$AT$15,Lengte!$AT$16))) -> GAG | C117: =B117&" "&COUNTIF($B$17:B117,B117) -> GAG 35 | D117: k084 | E117: Misbruik van plichtsbesef | F117: 1961-02-17 | G117: =4/4 -> 1 | I117: 233 | K117: D0712 | L117: Op vouwstrip 1 voor Unox (1983), origineel in Lambik serie, grap 298 (1961). | O117: He, briefdrager! Breng die brief eens tot hier of ik moet door de regen!
B118: =IF(G118>=Lengte!$AS$13,Lengte!$AT$13,IF(G118>=Lengte!$AS$14,Lengte!$AT$14,IF(G118=Lengte!$AS$15,Lengte!$AT$15,Lengte!$AT$16))) -> SNP | C118: =B118&" "&COUNTIF($B$17:B118,B118) -> SNP 20 | D118: k085 | E118: Tussen droom en werkelijkheid | F118: 1961-10-20 | G118: =3/4 -> 0.75 | I118: 383 | K118: D0740 | L118: Op vouwstrip 1 voor Unox (1983), origineel in Lambik serie, grap 316 (1961). | O118: Tante, het ruikt hier sterk naar gas, hoor! Nu ge het zegt, Wiske! Ja..! Bel
B119: =IF(G119>=Lengte!$AS$13,Lengte!$AT$13,IF(G119>=Lengte!$AS$14,Lengte!$AT$14,IF(G119=Lengte!$AS$15,Lengte!$AT$15,Lengte!$AT$16))) -> SNP | C119: =B119&" "&COUNTIF($B$17:B119,B119) -> SNP 21 | D119: k086 | E119: Vergeet niet te lezen | F119: 1961-12-29 | G119: =3/4 -> 0.75 | I119: 391 | K119: D0707 | L119: Op vouwstrip 2 voor Unox (1983), origineel in Lambik serie, grap 322 (1961). | O119: Twee pakken boeken als nieuwjaarsgeschenk voor Sidonie! Boeken?... Maar ge
B120: =IF(G120>=Lengte!$AS$13,Lengte!$AT$13,IF(G120>=Lengte!$AS$14,Lengte!$AT$14,IF(G120=Lengte!$AS$15,Lengte!$AT$15,Lengte!$AT$16))) -> GAG | C120: =B120&" "&COUNTIF($B$17:B120,B120) -> GAG 36 | D120: k087 | E120: De mol | F120: 1983-05-01 | G120: =4/4 -> 1 | I120: 235 | K120: D3011 | L120: Op vouwstrip 2 voor Unox (1983).'De mol' is een stripje dat niet wordt gerekend tot de serie 'De grappen van Lambik'. Ook in Weet je wetje deel 5 (1986) en Versus 37 (1997). | O120: Op een morgen stapt Lambik goed gemutst naar zijn tuin, waarop hij heel fier is. WHOUAA!...Moord!
B121: =IF(G121>=Lengte!$AS$13,Lengte!$AT$13,IF(G121>=Lengte!$AS$14,Lengte!$AT$14,IF(G121=Lengte!$AS$15,Lengte!$AT$15,Lengte!$AT$16))) -> SNP | C121: =B121&" "&COUNTIF($B$17:B121,B121) -> SNP 22 | D121: k088 | E121: Twijfel | F121: 1960-10-28 | G121: =3/4 -> 0.75 | I121: 385 | K121: D0736 | L121: Op vouwstrip 2 voor Unox (1983), origineel in Lambik serie, grap 284 (1960). Ook in Lambik Familiestripboek (1997). | O121: Sidonieke, ik kom de kinderen halen voor een wandeling! Gaan we naar de
B122: =IF(G122>=Lengte!$AS$13,Lengte!$AT$13,IF(G122>=Lengte!$AS$14,Lengte!$AT$14,IF(G122=Lengte!$AS$15,Lengte!$AT$15,Lengte!$AT$16))) -> SNP | C122: =B122&" "&COUNTIF($B$17:B122,B122) -> SNP 23 | D122: k089 | E122: Snoeven is geen kunst | F122: 1961-07-28 | G122: =3/4 -> 0.75 | I122: 314 | K122: D0720 | L122: Op vouwstrip 3 voor Unox (1983), origineel in Lambik serie, grap 311 (1961). Ook in Het vrolijke vakantie stripboek (ECI, 1995) en Standaard Special Projects (1995). | O122: Hup! Weeral een gat in de lucht! gij zou ook al beter de afwas gaan doen hoor
B123: =IF(G123>=Lengte!$AS$13,Lengte!$AT$13,IF(G123>=Lengte!$AS$14,Lengte!$AT$14,IF(G123=Lengte!$AS$15,Lengte!$AT$15,Lengte!$AT$16))) -> GAG | C123: =B123&" "&COUNTIF($B$17:B123,B123) -> GAG 37 | D123: k090 | E123: Natuurgeheimen | F123: 1961-11-03 | G123: =4/4 -> 1 | I123: 251 | K123: D0710 | L123: Op vouwstrip 3 voor Unox (1983), origineel in Lambik serie, grap 317 (1961). Ook in Lambik Familiestripboek (1997). | O123: He, Lambik, komt gij mee schelpen zoeken? Schelpen?.. Pf! Waarom! Wel als ge
B124: =IF(G124>=Lengte!$AS$13,Lengte!$AT$13,IF(G124>=Lengte!$AS$14,Lengte!$AT$14,IF(G124=Lengte!$AS$15,Lengte!$AT$15,Lengte!$AT$16))) -> SNP | C124: =B124&" "&COUNTIF($B$17:B124,B124) -> SNP 24 | D124: k091 | E124: Gestoorde rust | F124: 1961-01-20 | G124: =3/4 -> 0.75 | I124: 107 | K124: D0725 | L124: Op vouwstrip 3 voor Unox (1983), origineel in Lambik serie, grap 295 (1961). Ook in Versus 29 (1994). | O124: Nee, Sidonie, ik kan niet komen! Ik ben een boeiend boek aan 't lezen! Nu
B125: =IF(G125>=Lengte!$AS$13,Lengte!$AT$13,IF(G125>=Lengte!$AS$14,Lengte!$AT$14,IF(G125=Lengte!$AS$15,Lengte!$AT$15,Lengte!$AT$16))) -> GAG | C125: =B125&" "&COUNTIF($B$17:B125,B125) -> GAG 38 | D125: k092 | E125: Lambik op Sale '83 | F125: 1983-10-01 | G125: =4/4 -> 1 | K125: D3022 | L125: Op een poster als bijlage voor het tijdschrift Incentive, nr 10 okt 1983, met een beursspecial over de sale '83 (ook met SW voorkaft). Bij de beurs selectief uitgegeven met de Lambik poster. Ook verschenen in een boekje door het Stripschap voor een conventie over 'Merchandising van stripfiguren' op diezelfde beurs, en in het programmaboek voor de strip driedaagse 1984 in Breda en in Versus 19 (1992). | O125: Verhaaltje is tekstloos, alleen plaatjes.
B126: INF | C126: =B126&" "&COUNTIF($B$17:B126,B126) -> INF 4 | D126: k093 | E126: Beter voor Bert | F126: 1983-10-20 | G126: 30 | I126: 26 | J126: 176 | K126: W021 | L126: Infostrip voor het Nederlandse Rode Kruis. Ook verschenen in 'In de ban van Vandersteen 8' (1985). | O126: We leven in een merkwaardige wereld. Via de televisie bereiken ons dagelijks beelden van oorlogen, rampen en ongelukken.
B127: =IF(G127>=Lengte!$AS$13,Lengte!$AT$13,IF(G127>=Lengte!$AS$14,Lengte!$AT$14,IF(G127=Lengte!$AS$15,Lengte!$AT$15,Lengte!$AT$16))) -> MKV | C127: =B127&" "&COUNTIF($B$17:B127,B127) -> MKV 27 | D127: k094 | E127: Turn je wurm | F127: 1983-12-01 | G127: =17/4 -> 4.25 | I127: 382 | K127: D3012 | L127: Vouwstrip voor Calvé. Samen met 'De Rinkelende Taart'. | O127: Lotjes voor een goed doel? Mis, Mijnheer!
B128: =IF(G128>=Lengte!$AS$13,Lengte!$AT$13,IF(G128>=Lengte!$AS$14,Lengte!$AT$14,IF(G128=Lengte!$AS$15,Lengte!$AT$15,Lengte!$AT$16))) -> MKV | C128: =B128&" "&COUNTIF($B$17:B128,B128) -> MKV 28 | D128: k095 | E128: De rinkelende taart | F128: 1983-12-01 | G128: =17/4 -> 4.25 | I128: 293 | K128: D3013 | L128: Vouwstrip voor Calvé. Samen met 'Turn je Wurm'. | O128: Zeg Suske, onze Lambik doet zo vreemd. Ja, sinds hij enkele weken bij de bakker gewerkt heeft…
B129: =IF(G129>=Lengte!$AS$13,Lengte!$AT$13,IF(G129>=Lengte!$AS$14,Lengte!$AT$14,IF(G129=Lengte!$AS$15,Lengte!$AT$15,Lengte!$AT$16))) -> KVH | C129: =B129&" "&COUNTIF($B$17:B129,B129) -> KVH 19 | D129: k096 | E129: De bevende berken | F129: 1984-05-01 | G129: 32 | I129: 29 | J129: 182 | K129: W025 | L129: Vakantiepakket 1984 met bijbehorend spelletjesboek. Ook verschenen voor Dash (1986, aangepaste cover), Extra 1 (1986/87), Dubbelstrip 5 (1987/89), Hermes (1991), Lekturama 51 (1999), PizzaHut (2003) en als SW In het kort Nr 55 (2024). | O129: Tijdens de vakantie hebben Lambik, tante Sidonia, Suske, Wiske en Jerom, die gek zijn op kamperen, hun caravan aan de rand van een dicht bos gezet. Hoe zit het Lambikske, bijten ze?
B130: =IF(G130>=Lengte!$AS$13,Lengte!$AT$13,IF(G130>=Lengte!$AS$14,Lengte!$AT$14,IF(G130=Lengte!$AS$15,Lengte!$AT$15,Lengte!$AT$16))) -> MKV | C130: =B130&" "&COUNTIF($B$17:B130,B130) -> MKV 29 | D130: k097 | E130: Het natuurcommando | F130: 1984-07-01 | G130: =16/4 -> 4 | K130: W024 | L130: In Suske en Wiske agenda 1984-85 en Striplgossy 21/22 (2021), beide ongekleurd. Ook als SW In het kort Nr 58, in kleur(2024). | O130: Op een mooie dag in de heide. Daar een goudfazant! Die moet ik hebben!
B131: =IF(G131>=Lengte!$AS$13,Lengte!$AT$13,IF(G131>=Lengte!$AS$14,Lengte!$AT$14,IF(G131=Lengte!$AS$15,Lengte!$AT$15,Lengte!$AT$16))) -> MKV | C131: =B131&" "&COUNTIF($B$17:B131,B131) -> MKV 30 | D131: - | E131: De sprekende kikker | F131: 1985-01-01 | G131: =6/4*0+2 -> 2 | K131: D3020 | L131: In Weet je wetje deel 3 (1985), Versus 25 (1/11/1993) en Stripglossy 21/22 (2021, getiteld 'de kleffe kikker'), allen ongekleurd. Ook in kleur in Versus 34 (deel 1) en 35 (deel 2) in 1996. | O131: Wat is er, Wiske? Je kijkt zo sip! Phoe. Ik vind het leven maar saai! Ik wou dat ik een fee was.
B132: INF | C132: =B132&" "&COUNTIF($B$17:B132,B132) -> INF 5 | D132: k099 | E132: De tandentikkers | F132: 1985-02-01 | G132: 29 | I132: 357 | J132: 186 | K132: W026 | L132: Infostrip voor Prodent. Kon daar besteld worden en verscheen in speciale Suske en Wiske envelop, met mobiel (kartonnen figuurtjes om op te hangen). | O132: De traditie wil dat een beroemd geleerde de slottoespraak van het jaarlijkse tandartsen-congres uitspreekt.
B133: =IF(G133>=Lengte!$AS$13,Lengte!$AT$13,IF(G133>=Lengte!$AS$14,Lengte!$AT$14,IF(G133=Lengte!$AS$15,Lengte!$AT$15,Lengte!$AT$16))) -> MKV | C133: =B133&" "&COUNTIF($B$17:B133,B133) -> MKV 31 | D133: k100 | E133: De Tiroolse trawanten | F133: 1985-12-01 | G133: 3 | I133: 371 | J133: 191 | K133: W027 | L133: Stripfeestboek 1985. Ook in o.a. Suske en Wiske Agenda 86-87 en Wipp Express vrije tijd boek (1991), Lekturama 42 (1993) en als SW In het kort Nr 52 (2024). | O133: Onze vrienden hebben beslist de kerstvakantie door te brengen in Tirol… Ik heb zijn hoed.
B134: =IF(G134>=Lengte!$AS$13,Lengte!$AT$13,IF(G134>=Lengte!$AS$14,Lengte!$AT$14,IF(G134=Lengte!$AS$15,Lengte!$AT$15,Lengte!$AT$16))) -> GAG | C134: =B134&" "&COUNTIF($B$17:B134,B134) -> GAG 39 | D134: k101 | E134: De geheimzinnige, heroïsche belevenissen van de ruimte-agent | F134: 1986-01-12 | G134: 1 | J134: 396 | K134: - | L134: De geheimzinnige, heroïsche belevenissen van de ruimte-agent', in "Kuifje 40 jaar strips". 1 pagina als onderdeel van een 60 pagina's lange strip getekend door 60 tekenaars. Suske en Wiske - 'Dan Cooper opent het vuur" is de 41e hiervan. | O134: Dan Cooper opent het vuur en de mijn ontploft. De commissaris en Rik worden in de lucht geslingerd en opgeslokt door het toestel van ruimte-agent nr. 2…
B135: =IF(G135>=Lengte!$AS$13,Lengte!$AT$13,IF(G135>=Lengte!$AS$14,Lengte!$AT$14,IF(G135=Lengte!$AS$15,Lengte!$AT$15,Lengte!$AT$16))) -> GAG | C135: =B135&" "&COUNTIF($B$17:B135,B135) -> GAG 40 | D135: k201 | E135: Suske en Wiske in Revonia! | F135: 1986-01-01 | G135: 1 | K135: - | L135: Uit de Lekturama folder "4 Avonturen in één verzamelband" (op de achterkant), vermoedelijk uit 1986. Ook in "Het millennium nieuwsmagazine 2001"(Gratis geschonken aan medewerkers van De Reclamestripclub en relaties, 2000), en op de achterkanten van Sterrenplukkers 3 (1998) en Versus 80 (2007). Ook met alleen de onderste 2 stroken in Lekturama folder (1989) en als SW In het kort Nr 58 (2024). | O135: Aan het einde van het zoveelste super vermoeiende avontuur komen onze helden uitgeput thuis. Het is afgelopen! Wat mij betreft nooit geen avonturen meer! Wat jullie ?!? Bik heeft voor een keer groot gelijk.
B136: INF | C136: =B136&" "&COUNTIF($B$17:B136,B136) -> INF 6 | D136: k102 | E136: Sony-San | F136: 1986-02-01 | G136: 32 | I136: 318 | J136: 193 | K136: W022 | L136: Infostrip voor Sony ter gelegenheid van 25 jaar in Nederland. Opvallend is een 2e druk (ook 1986, met witte cirkel opdruk "2e druk") met aangepaste tekening. De 2e druk was verkrijgbaar bij aankoop van vier Sony-audiocassettebandjes, die tezamen met het boek waren gekrimpfolied. | O136: Suske en Wiske kregen een geheimzinnig telefoontje van Lambik… Ik vraag me af wat er zo dringend is dat we onmiddellijk moesten komen ?!
B137: =IF(G137>=Lengte!$AS$13,Lengte!$AT$13,IF(G137>=Lengte!$AS$14,Lengte!$AT$14,IF(G137=Lengte!$AS$15,Lengte!$AT$15,Lengte!$AT$16))) -> GAG | C137: =B137&" "&COUNTIF($B$17:B137,B137) -> GAG 41 | D137: - | E137: De stille wachtzaal | F137: 1986-05-05 | G137: 1 | K137: D3024 | L137: A4 poster als promotie van De Standaard om meer strips in de wachtzaal te krijgen, verzonden naar artsen. Ook in "Het millennium nieuwsmagazine 2001", Versus 74 (2006, ongekleurd) en als SW In het kort Nr 58 (2024). | O137: Ocharme! Schanulleke heeft koorts! Ze is ziek. Een intelligente kerel als ik
B138: =IF(G138>=Lengte!$AS$13,Lengte!$AT$13,IF(G138>=Lengte!$AS$14,Lengte!$AT$14,IF(G138=Lengte!$AS$15,Lengte!$AT$15,Lengte!$AT$16))) -> MKV | C138: =B138&" "&COUNTIF($B$17:B138,B138) -> MKV 32 | D138: k110 | E138: Suske en Wiske tegen de ZZZ | F138: 1986-06-01 | G138: 9 | I138: 353 | J138: 195 | K138: W029 | L138: In Zee zon zand stripboek, vakantieboek 1986. Ook voor Derma Plast (1987), Wipp Express vrije tijd boek (1988, hertekend tot kleiner formaat!), brochure "welkom in de wereld van Suske en Wiske" (tentoonstelling Casino Oostende 2-6-1990), Strip Mix 3 Bruna (1992), Lekturama 42 (1993) en als SW In het kort Nr 52 (2024). | O138: De zomer zet haar beste zonnetje voor als we onze helden terugvinden in de tuin van tante Sidonia… Heerlijk rustig zo'n vakantie thuis.
B139: =IF(G139>=Lengte!$AS$13,Lengte!$AT$13,IF(G139>=Lengte!$AS$14,Lengte!$AT$14,IF(G139=Lengte!$AS$15,Lengte!$AT$15,Lengte!$AT$16))) -> MKV | C139: =B139&" "&COUNTIF($B$17:B139,B139) -> MKV 33 | D139: k103 | E139: Drie koningen zingen | F139: 1986-12-20 | G139: 4 | K139: W030 | L139: In Elseviers magazine 42e jaargang nr 51/52 (kersteditie 1986), bij een interview met Vandersteen "Er is geen hemel zonder tekentafel" (http://archief.ewmagazine.nl/). Ook in Versus 100 (2012) en als SW In het kort Nr 58 (2024). | O139: Ten huize van tante Sidonia is men druk bezig met de voorbereidingen van het kerstfeest. Ziezo, de kalkoen is klaar
B140: =IF(G140>=Lengte!$AS$13,Lengte!$AT$13,IF(G140>=Lengte!$AS$14,Lengte!$AT$14,IF(G140=Lengte!$AS$15,Lengte!$AT$15,Lengte!$AT$16))) -> MKV | C140: =B140&" "&COUNTIF($B$17:B140,B140) -> MKV 34 | D140: k104 | E140: De gekaapte kies | F140: 1987-01-01 | G140: 2 | I140: 103 | K140: D3014 | L140: Vouwstrip voor Prodent. 3 verhaaltjes vormen 1 langer verhaal. | O140: Die nacht… Ik… ik geraak uit koers! Ik moet ergens landen!
B141: =IF(G141>=Lengte!$AS$13,Lengte!$AT$13,IF(G141>=Lengte!$AS$14,Lengte!$AT$14,IF(G141=Lengte!$AS$15,Lengte!$AT$15,Lengte!$AT$16))) -> MKV | C141: =B141&" "&COUNTIF($B$17:B141,B141) -> MKV 35 | D141: k105 | E141: De kiezenpikker | F141: 1987-01-01 | G141: 2 | I141: 165 | K141: D3015 | L141: Vouwstrip voor Prodent. 3 verhaaltjes vormen 1 langer verhaal. | O141: Kijk! Het tandlab heeft blijkbaar hoog bezoek!
B142: =IF(G142>=Lengte!$AS$13,Lengte!$AT$13,IF(G142>=Lengte!$AS$14,Lengte!$AT$14,IF(G142=Lengte!$AS$15,Lengte!$AT$15,Lengte!$AT$16))) -> MKV | C142: =B142&" "&COUNTIF($B$17:B142,B142) -> MKV 36 | D142: k106 | E142: De vieze kies | F142: 1987-01-01 | G142: 2 | I142: 403 | K142: D3016 | L142: Vouwstrip voor Prodent. 3 verhaaltjes vormen 1 langer verhaal. | O142: Woaw! Tegen zo eentje wil ik best wel even om het snelst vliegen!
B143: LAM | C143: LAM 140 | D143: (k112) | E143: De jolige jager -1 | F143: 1954-09-05 | G143: 1 | I143: Lambik | J143: 424 | K143: D0408 | L143: Geen kort verhaal van Suske en Wiske, maar een hertekende versie van de grappen van Lambik grap nr. 140:"De jager en zijn hond". Verscheen in Het avonturen- en spellenboek, Nuts en Lion (1987). | O143: Meneer, ik zou een verstandige jachthond willen kopen!
B144: LAM | C144: LAM 111 | D144: (k113) | E144: De jolige jager -2 | F144: 1956-06-08 | G144: 1 | I144: Lambik | J144: 426 | K144: D0417 | L144: Geen kort verhaal van Suske en Wiske, maar een hertekende versie van de grappen van Lambik grap nr. 111:"Een inval die slecht uitviel". Verscheen in Het avonturen- en spellenboek, Nuts en Lion (1987). | O144: Nu ga ik toch eens even naar mijn fruitboom zien! Hemel! Een zwerm spreeuwen
B145: LAM | C145: LAM 23 | D145: (k114) | E145: De optimist | F145: 1954-07-04 | G145: 1 | I145: Lambik | J145: 428 | K145: D0122 | L145: Geen kort verhaal van Suske en Wiske, maar een hertekende versie van de grappen van Lambik grap nr. 23:"De optimist". Verscheen in Het avonturen- en spellenboek, Nuts en Lion (1987). | O145: Welk weer voorspelt de kalender, Jerom? ...snik...snik...snik... Waarom snik je zo Jerom?
B146: LAM | C146: LAM 13 | D146: (k115) | E146: Schrappen wat niet past | F146: 1954-04-25 | G146: 1 | I146: Lambik | J146: 429 | K146: D0111 | L146: Geen kort verhaal van Suske en Wiske, maar een hertekende versie van de grappen van Lambik grap nr. 13:"Het uithangbord". Verscheen in Het avonturen- en spellenboek, Nuts en Lion (1987). | O146: Ja Jerom, ik ga een handeltje beginnen! Dat woord "Hier" is toch eigenlijk overbodig?
B147: =IF(G147>=Lengte!$AS$13,Lengte!$AT$13,IF(G147>=Lengte!$AS$14,Lengte!$AT$14,IF(G147=Lengte!$AS$15,Lengte!$AT$15,Lengte!$AT$16))) -> SNP | C147: =B147&" "&COUNTIF($B$17:B147,B147) -> SNP 25 | D147: k107 | E147: In de hoofdrol | F147: 1987-01-23 | G147: =6/2/4 -> 0.75 | K147: D3036 | L147: Zes plaatjes werden een voor een getoond aan het begin van de TV uitzending 'In de hoofdrol' van Mies Bouwman met Vandersteen (AVRO, 23/1/1987). Het stripje verscheen ook en enkele kranten zoals de Zwolsche Courant. | O147: Tante mogen we de televisie aanzetten? Het is "IN DE HOOFDROL"! Televisie, hu…
B148: =IF(G148>=Lengte!$AS$13,Lengte!$AT$13,IF(G148>=Lengte!$AS$14,Lengte!$AT$14,IF(G148=Lengte!$AS$15,Lengte!$AT$15,Lengte!$AT$16))) -> MKV | C148: =B148&" "&COUNTIF($B$17:B148,B148) -> MKV 37 | D148: k108 | E148: De parel in de lotusbloem is uit | F148: 1987-02-01 | G148: =6/4 -> 1.5 | K148: - | L148: Bruna reclamefolder 'Koopgids 1' 1987. | O148: Wat zou het straks zijn op de T.V? Ik weet het niet, Suske, maar die nieuwslezer wil nog wat zeggen.
B149: =IF(G149>=Lengte!$AS$13,Lengte!$AT$13,IF(G149>=Lengte!$AS$14,Lengte!$AT$14,IF(G149=Lengte!$AS$15,Lengte!$AT$15,Lengte!$AT$16))) -> KVH | C149: =B149&" "&COUNTIF($B$17:B149,B149) -> KVH 20 | D149: k109 | E149: Witte zwanen zwarte zwanen | F149: 1987-04-01 | G149: 47 | I149: 435 | J149: 200 | K149: W031 | L149: Uitgave over en voor 100-jarig bestaan Albert Heijn. Eerste druk zowel met als zonder extra schutblad met voorwoord van Vandersteen en gedrukte handtekening. Ook in Familiestripboek (1989) en Lekturama 42 (1993), waarbij de verwijzingen (tekst en tekeningen) naar Albert Heijn zijn vervangen. Ook voor De Famueze Fanclub (2010) met hertekende cover. Langste van de korte verhalen. | O149: Suske en Wiske genieten met hun vrienden van een luilekkere vakantie in Noord-Holland. Ze hebben de tent opgeslagen bij een rustig meer in de Zaanstreek.
B150: =IF(G150>=Lengte!$AS$13,Lengte!$AT$13,IF(G150>=Lengte!$AS$14,Lengte!$AT$14,IF(G150=Lengte!$AS$15,Lengte!$AT$15,Lengte!$AT$16))) -> GAG | C150: =B150&" "&COUNTIF($B$17:B150,B150) -> GAG 42 | D150: k111a | E150: Verzin de origineelste S&W titel | F150: 1987-06-01 | G150: 1 | K150: D3021 | L150: Bijlage bij de Jolige Joffer (nr 210) eerste druk. Stripje met oproep om een titel te verzinnen. In de Stripkatalogus getiteld "Hoeveel Suske en Wiskes heb jij". Ook in versus 25 (1993). Na de inzending kreeg men de strip "Vrolijke Feestdagen" opgestuurd. | O150: EINDE Hehee… Dat avontuur hebben we alweer achter de rug. Hopelijk hebben de lezers er evenveel van genoten als wij.
B151: =IF(G151>=Lengte!$AS$13,Lengte!$AT$13,IF(G151>=Lengte!$AS$14,Lengte!$AT$14,IF(G151=Lengte!$AS$15,Lengte!$AT$15,Lengte!$AT$16))) -> GAG | C151: =B151&" "&COUNTIF($B$17:B151,B151) -> GAG 43 | D151: k111b | E151: Vrolijke Feestdagen | F151: 1987-06-01 | G151: 1 | K151: - | L151: Antwoord stripje als je instuurde op "Verzin een titel". | O151: Hee! Ken je dit formulier nog? Je hebt er een paar maanden geleden één opgestuurd. Het is geweldig druk bij het bureau van Willy Vandersteen.
B152: =IF(G152>=Lengte!$AS$13,Lengte!$AT$13,IF(G152>=Lengte!$AS$14,Lengte!$AT$14,IF(G152=Lengte!$AS$15,Lengte!$AT$15,Lengte!$AT$16))) -> SNP | C152: =B152&" "&COUNTIF($B$17:B152,B152) -> SNP 26 | D152: k111c | E152: Willy Vandersteen is 75 jaar | F152: 1987-06-01 | G152: 0.25 | K152: D3026 | L152: Stripje van 1 strook op de wikkel van 'Vrolijke feestdagen'; Ook verschenen in "Het millennium nieuwsmagazine 2001". | O152: Psst... Ja, jij! Wil jij mijn geheim kennen?!? Nee, Lambik! Niet verklappen!
B153: =IF(G153>=Lengte!$AS$13,Lengte!$AT$13,IF(G153>=Lengte!$AS$14,Lengte!$AT$14,IF(G153=Lengte!$AS$15,Lengte!$AT$15,Lengte!$AT$16))) -> GAG | C153: =B153&" "&COUNTIF($B$17:B153,B153) -> GAG 44 | D153: k116 | E153: Wie geeft wat hij heeft is waard dat hij leeft | F153: 1987-09-01 | G153: 1 | J153: 204 | K153: D3030 | L153: Voor de charitatieve uitgave "Strips voor Mozambique". Eigenlijk zonder titel, ook genoemd: Wijkcomité voor de armen. Ook in Versus 82 (2008) en als SW In het kort Nr 58 (2024). | O153: Als Suske en Wiske die namiddag door de stad kuieren... Kijk! Daar heb je Lambik!
B154: =IF(G154>=Lengte!$AS$13,Lengte!$AT$13,IF(G154>=Lengte!$AS$14,Lengte!$AT$14,IF(G154=Lengte!$AS$15,Lengte!$AT$15,Lengte!$AT$16))) -> GAG | C154: =B154&" "&COUNTIF($B$17:B154,B154) -> GAG 45 | D154: k117 | E154: De verwoede verzamelaar | F154: 1987-10-01 | G154: 1 | K154: A558 | L154: Dit is hetzelfde als "IJzersterke verhalen" en "IJzersterke verhalen nu in onverwoestbare verzamelband"die in verschillende versies van de stripkatalogus genoemd worden. Het stripje komt uit de Lekturama promotie folder met de titel "De verwoede verzamelaar". Er bestaan 10 versies, waarvan een aantal zonder het stripje. De eerste 5 versies hebben in de voorzijde een zwart-witte rand in de cirkel en op de achterkant ook Arthur en de Zwarte Madam. 1e (1986) heeft het stripje nog niet. Hier zit een brief van Vandersteen bij met datum 15 augustus 1986 (code: D 1.76.001.Albe). 2e (1989) heeft het stripje wel en is dus de datum voor dit korte verhaaltje. Laatst vermelde titel nr. 206 (code: 1.76.0042 Albe 2.76.0001). Het telt 8 pagina's en de eerste pagina is uit te klappen. 3e (1989) heeft als laatst vermelde titel nr. 215 (onbekend of met stripje). 4e is voorlopig gedateerd op 1990, het jaar waarin Willy Vandersteen overleed en de brief uit de 1e druk van deze folder moest worden vervangen door ook Paul Geerts te vermelden (code 1.76.0042 Albe, onbekend of met stripje). 5e (1991) heeft als laatst vermelde titel nr. 223 (code 1.71.388/2.71.369 Albe, onbekend of met stripje). De zesde t/m tiende uitgave hebben geen witte rand in de cirkel, en de achterzijde is hertekend en bevatten alleen ons vijftal: 6e (1995); laatst vermelde titel nr 243 (onbekend of met stripje). 7e (1996); laatst vermelde titel 'Speciaal 50 jaar avontuur' en bevat het stripje niet. 8e (1997?); laatst vermelde titel nr 252 (onbekend of met stripje). 9e (2000); laatst vermelde titel nr 261 (onbekend of met stripje). 10e(2001?); laatst vermelde titel nr 268 (onbekend of met stripje). Let op niet te verwarren met het korterhaal met dezelfde titel uit de blauwe oblong van De Fameuze Fanclub (1997) of dezelfde titel uit de serie SOS Kinderdorpen (2015). Ook op de achterkant van Versus 74 (2006). | O154: Lambik, Sidonia, Suske en Wiske stappen vrolijk door de straat. Het is een dag als alle andere. Hoewel … ?? Eindelijk zijn ze er!
B155: =IF(G155>=Lengte!$AS$13,Lengte!$AT$13,IF(G155>=Lengte!$AS$14,Lengte!$AT$14,IF(G155=Lengte!$AS$15,Lengte!$AT$15,Lengte!$AT$16))) -> MKV | C155: =B155&" "&COUNTIF($B$17:B155,B155) -> MKV 38 | D155: k118 | E155: Wiske's kerstnacht | F155: 1987-11-01 | G155: 4 | K155: W032 | L155: Kerstboek voor het Wereld Natuurfonds (ongekleurd). Ook in vier afleveringen gepubliceerd in Versus 22-25 (1993), in Suske en Wiske weekblad nr 14, (wk 51-1993 in kleur) en als SW In het kort Nr 52 (2024). | O155: Ziezo, dat zal Lambik en tante Sidonia plezier doen! Nu nog de vogeltjes voeren.
B156: =IF(G156>=Lengte!$AS$13,Lengte!$AT$13,IF(G156>=Lengte!$AS$14,Lengte!$AT$14,IF(G156=Lengte!$AS$15,Lengte!$AT$15,Lengte!$AT$16))) -> MKV | C156: =B156&" "&COUNTIF($B$17:B156,B156) -> MKV 39 | D156: k098 | E156: De Damiaanaktie | F156: 1988-01-01 | G156: 4 | K156: D3028 | L156: Ter gelegenheid van de wereld dag voor de melaatsen, Damiaanaktie, 4 pagina (dubbele A4 folder) 'tekenverhaal (6-12 jaar)' waarschijnlijk uit jan 1988 maar Matla geeft nov 1984 en sommige bronnen geven 1977. Ook verschenen in de stripkatalogus 7e editie (1989). | O156: He Suske, kom eens kijken. Ssst.. ik ben aan het lezen. Dan kom ik het laten zien, gek gezicht he?
B157: =IF(G157>=Lengte!$AS$13,Lengte!$AT$13,IF(G157>=Lengte!$AS$14,Lengte!$AT$14,IF(G157=Lengte!$AS$15,Lengte!$AT$15,Lengte!$AT$16))) -> SNP | C157: =B157&" "&COUNTIF($B$17:B157,B157) -> SNP 27 | D157: k119 | E157: Onze striphelden hielpen persoonlijk een handje mee | F157: 1988-02-01 | G157: 0.75 | K157: - | L157: Lekturama brochure. Ook verschenen in Versus 77 (2007). | O157: Drukte zei je toch? Meer dan dat. Onze vrinden moeten zich uit de naad werken om de verzamelbanden met hun avonturen tijdig en netjes klaar te maken voor verzending. Er zijn geen verzamelbanden meer!
B158: =IF(G158>=Lengte!$AS$13,Lengte!$AT$13,IF(G158>=Lengte!$AS$14,Lengte!$AT$14,IF(G158=Lengte!$AS$15,Lengte!$AT$15,Lengte!$AT$16))) -> KVH | C158: =B158&" "&COUNTIF($B$17:B158,B158) -> KVH 21 | D158: k120 | E158: Fata Morgana | F158: 1988-02-01 | G158: 45 | I158: 90 | J158: 205 | K158: W034 | L158: Promotie uitgave voor de Efteling. In 1988 apart uitgegeven voor zowel De Efteling, Albert Heijn als Wehkamp. Zie note. Daarna voor Albert Heijn ( 1989), De Efteling (1994, 1997, 1998, 2001, 2003, 2007-2011, 2013-2015, 2017, 2021?), Lekturama 42 (1993) en het Familiestripboek 1998. | O158: Soms lijkt het alsof het bij ons altijd regent, maar dat is slechts een idee. Soms onweert het ook. En daar moet je mee leren leven, net als de dieren in het sprookjesbos.
B159: =IF(G159>=Lengte!$AS$13,Lengte!$AT$13,IF(G159>=Lengte!$AS$14,Lengte!$AT$14,IF(G159=Lengte!$AS$15,Lengte!$AT$15,Lengte!$AT$16))) -> MKV | C159: =B159&" "&COUNTIF($B$17:B159,B159) -> MKV 40 | D159: k155 | E159: KaaBee en K-bit | F159: 1988-03-01 | G159: 4 | K159: D3029 | L159: Dit verhaaltje van 4 bladzijden ging vooraf aan het hoofdavontuur van een reclame-uitgave van De Schat van Beersel voor de Kredietbank. Eerste bijdrage van Marc Verhaegen, die naar aanleiding hiervan bij de Studio in dienst trad. KaaBee (een verwijzing naar de eerste letters van Karel Biddeloo) is een personage exclusief voor het tijdschrift 'De Rode Ridder Club'. Kbit is zijn beste vriend. | O159: Hoe begon het klassiek geworden Suske-en-Wiske-verhaal "De schat van Beersel ook alweer? Oh ja… "Het feodaal slot van Beersel
B160: =IF(G160>=Lengte!$AS$13,Lengte!$AT$13,IF(G160>=Lengte!$AS$14,Lengte!$AT$14,IF(G160=Lengte!$AS$15,Lengte!$AT$15,Lengte!$AT$16))) -> KVH | C160: =B160&" "&COUNTIF($B$17:B160,B160) -> KVH 22 | D160: k156 | E160: De dappere duinduikers | F160: 1988-03-15 | G160: 28 | I160: 68 | J160: 206 | K160: W033 | L160: ="Gepubliceerd in de Standaard (met aankondiging!), 1e strook vanaf 15-03-1988. Eerste albumpublicatie in 2e Familiestripboek (23-6-1988). Verder ook in Dubbelstrip 10 (1989), " & "Het dikke vakantiestripboek, ECI (1993), Lekturama 43 (1994), Agfa (1994), De Beukelaar (met achterop " & C220& ", 1995), Pizza Hut (1999), Dash mini - 1e reeks (nr 6, 2001), Veiling Haspengouw (2004) en als SW In het kort Nr 57 (2024)." -> Gepubliceerd in de Standaard (met aankondiging!), 1e strook vanaf 15-03-1988. Eerste albumpublicatie in 2e Familiestripboek (23-6-1988). Verder ook in Dubbelstrip 10 (1989), Het dikke vakantiestripboek, ECI (1993), Lekturama 43 (1994), Agfa (1994), De Beukelaar (met achterop SNP 35, 1995), Pizza Hut (1999), Dash mini - 1e reeks (nr 6, 2001), Veiling Haspengouw (2004) en als SW In het kort Nr 57 (2024). | O160: Op een zonnige zomerdag ten huize van tante Sidonia. Hallo! met professor Barabas? Ik bel u nog even om…
B161: =IF(G161>=Lengte!$AS$13,Lengte!$AT$13,IF(G161>=Lengte!$AS$14,Lengte!$AT$14,IF(G161=Lengte!$AS$15,Lengte!$AT$15,Lengte!$AT$16))) -> GAG | C161: =B161&" "&COUNTIF($B$17:B161,B161) -> GAG 46 | D161: k121 | E161: De tuimelende trap | F161: 1988-05-24 | G161: 1 | K161: D3101 | L161: Zuivelpakken Albert Heijn 25-5 t/m 13-8 1988 Deel 1 van eerste serie van 34. Ook in De angstige avonturen (2015). | O161: Het word frisjes. Ik zou best een trui willen. Ik ook. Maar die ligt boven.
B162: =IF(G162>=Lengte!$AS$13,Lengte!$AT$13,IF(G162>=Lengte!$AS$14,Lengte!$AT$14,IF(G162=Lengte!$AS$15,Lengte!$AT$15,Lengte!$AT$16))) -> GAG | C162: =B162&" "&COUNTIF($B$17:B162,B162) -> GAG 47 | D162: k122 | E162: De slippende schuiver | F162: 1988-05-24 | G162: 1 | K162: D3102 | L162: Zuivelpakken Albert Heijn 25-5 t/m 13-8 1988 Deel 2 van eerste serie van 34. Ook in SW Schoolagenda 89-90 en in De angstige avonturen (2015). | O162: Als Lambik die dag de badkamer in stapt.. Wacht even Lambik! O, nee! Wacht
B163: =IF(G163>=Lengte!$AS$13,Lengte!$AT$13,IF(G163>=Lengte!$AS$14,Lengte!$AT$14,IF(G163=Lengte!$AS$15,Lengte!$AT$15,Lengte!$AT$16))) -> GAG | C163: =B163&" "&COUNTIF($B$17:B163,B163) -> GAG 48 | D163: k123 | E163: De vinnige vingers | F163: 1988-05-24 | G163: 1 | K163: D3103 | L163: Zuivelpakken Albert Heijn 25-5 t/m 13-8 1988 Deel 3 van eerste serie van 34. Ook in SW Schoolagenda 89-90 en in De angstige avonturen (2015). | O163: Ach, kijk toch niet zo boos. Je ziet er straks beeldig uit. Pff, Ikke niks
B164: =IF(G164>=Lengte!$AS$13,Lengte!$AT$13,IF(G164>=Lengte!$AS$14,Lengte!$AT$14,IF(G164=Lengte!$AS$15,Lengte!$AT$15,Lengte!$AT$16))) -> GAG | C164: =B164&" "&COUNTIF($B$17:B164,B164) -> GAG 49 | D164: k124 | E164: De dolle deur | F164: 1988-05-24 | G164: 1 | K164: D3104 | L164: Zuivelpakken Albert Heijn 25-5 t/m 13-8 1988 Deel 4 van eerste serie van 34. Ook in De angstige avonturen (2015). | O164: Achttien... Negentien... Twintig! Wie niet weg is is gezien. Hier vindt hij
B165: =IF(G165>=Lengte!$AS$13,Lengte!$AT$13,IF(G165>=Lengte!$AS$14,Lengte!$AT$14,IF(G165=Lengte!$AS$15,Lengte!$AT$15,Lengte!$AT$16))) -> GAG | C165: =B165&" "&COUNTIF($B$17:B165,B165) -> GAG 50 | D165: k125 | E165: De dartele darts | F165: 1988-05-24 | G165: 1 | K165: D3105 | L165: Zuivelpakken Albert Heijn 25-5 t/m 13-8 1988 Deel 5 van eerste serie van 34. Ook in SW Schoolagenda 89-90 en in De angstige avonturen (2015). | O165: JA, 19!! Als je nu dubbel 15 gooit, ben je uit!! Hier zo! HMPFF AUW! Mijn
B166: =IF(G166>=Lengte!$AS$13,Lengte!$AT$13,IF(G166>=Lengte!$AS$14,Lengte!$AT$14,IF(G166=Lengte!$AS$15,Lengte!$AT$15,Lengte!$AT$16))) -> GAG | C166: =B166&" "&COUNTIF($B$17:B166,B166) -> GAG 51 | D166: k126 | E166: Het giftige gevaar | F166: 1988-05-24 | G166: 1 | K166: D3106 | L166: Zuivelpakken Albert Heijn 25-5 t/m 13-8 1988 Deel 6 van eerste serie van 34. Ook in De angstige avonturen (2015). | O166: En wie krijgt er weer niets te drinken? Klein Schanulleke! Dan pak ik het
B167: =IF(G167>=Lengte!$AS$13,Lengte!$AT$13,IF(G167>=Lengte!$AS$14,Lengte!$AT$14,IF(G167=Lengte!$AS$15,Lengte!$AT$15,Lengte!$AT$16))) -> GAG | C167: =B167&" "&COUNTIF($B$17:B167,B167) -> GAG 52 | D167: k127 | E167: De waffende woef | F167: 1988-05-24 | G167: 1 | K167: D3107 | L167: Zuivelpakken Albert Heijn 25-5 t/m 13-8 1988 Deel 7 van eerste serie van 34. Ook in SW Schoolagenda 89-90 en in De angstige avonturen (2015). | O167: Suske! Kijk uit!! Heee UMPF. Mijn buik!! Dat komt aan...
B168: =IF(G168>=Lengte!$AS$13,Lengte!$AT$13,IF(G168>=Lengte!$AS$14,Lengte!$AT$14,IF(G168=Lengte!$AS$15,Lengte!$AT$15,Lengte!$AT$16))) -> GAG | C168: =B168&" "&COUNTIF($B$17:B168,B168) -> GAG 53 | D168: k128 | E168: De tierende theedrinker | F168: 1988-05-24 | G168: 1 | K168: D3108 | L168: Zuivelpakken Albert Heijn 25-5 t/m 13-8 1988 Deel 8 van eerste serie van 34. Ook in SW Schoolagenda 89-90 en in De angstige avonturen (2015). | O168: Er staat weer niets in de krant. Nog een lekker kopje thee. Aha! De
B169: =IF(G169>=Lengte!$AS$13,Lengte!$AT$13,IF(G169>=Lengte!$AS$14,Lengte!$AT$14,IF(G169=Lengte!$AS$15,Lengte!$AT$15,Lengte!$AT$16))) -> GAG | C169: =B169&" "&COUNTIF($B$17:B169,B169) -> GAG 54 | D169: k129 | E169: De flitsende fietser | F169: 1988-05-24 | G169: 1 | K169: D3109 | L169: Zuivelpakken Albert Heijn 25-5 t/m 13-8 1988 Deel 9 van eerste serie van 34. Ook in SW Schoolagenda 89-90 en in De angstige avonturen (2015). | O169: JA! Rijden maar!! Auw! Klabang Weet jij echt niet waar je met je voeten moet
B170: =IF(G170>=Lengte!$AS$13,Lengte!$AT$13,IF(G170>=Lengte!$AS$14,Lengte!$AT$14,IF(G170=Lengte!$AS$15,Lengte!$AT$15,Lengte!$AT$16))) -> GAG | C170: =B170&" "&COUNTIF($B$17:B170,B170) -> GAG 55 | D170: k130 | E170: De happige hond | F170: 1988-05-24 | G170: 1 | K170: D3110 | L170: Zuivelpakken Albert Heijn 25-5 t/m 13-8 1988 Deel 10 van eerste serie van 34. Ook in SW Schoolagenda 89-90 en in De angstige avonturen (2015). | O170: O, wat een mooie hond. Ikke gaan kijken! Niet te ver weg, Schanulleke! Brave
B171: =IF(G171>=Lengte!$AS$13,Lengte!$AT$13,IF(G171>=Lengte!$AS$14,Lengte!$AT$14,IF(G171=Lengte!$AS$15,Lengte!$AT$15,Lengte!$AT$16))) -> GAG | C171: =B171&" "&COUNTIF($B$17:B171,B171) -> GAG 56 | D171: k131 | E171: De rollende rolschaats | F171: 1988-05-24 | G171: 1 | K171: D3111 | L171: Zuivelpakken Albert Heijn 25-5 t/m 13-8 1988 Deel 11 van eerste serie van 34. Ook in SW Schoolagenda 89-90 en in De angstige avonturen (2015). | O171: Ik ben de eerste! Niet lang meer! Mijn knie! Ik bloed! Ik kan mijn ellebogen
B172: =IF(G172>=Lengte!$AS$13,Lengte!$AT$13,IF(G172>=Lengte!$AS$14,Lengte!$AT$14,IF(G172=Lengte!$AS$15,Lengte!$AT$15,Lengte!$AT$16))) -> GAG | C172: =B172&" "&COUNTIF($B$17:B172,B172) -> GAG 57 | D172: k132 | E172: De lompe ladder | F172: 1988-05-24 | G172: 1 | K172: D3112 | L172: Zuivelpakken Albert Heijn 25-5 t/m 13-8 1988 Deel 12 van eerste serie van 34. Ook in De angstige avonturen (2015). | O172: Ikke lekker alleen in tuin op ontdekkingsreis. Leuk. Kleine popjes zoeken het
B173: =IF(G173>=Lengte!$AS$13,Lengte!$AT$13,IF(G173>=Lengte!$AS$14,Lengte!$AT$14,IF(G173=Lengte!$AS$15,Lengte!$AT$15,Lengte!$AT$16))) -> GAG | C173: =B173&" "&COUNTIF($B$17:B173,B173) -> GAG 58 | D173: k133 | E173: De vlijtige vlammen | F173: 1988-05-24 | G173: 1 | K173: D3113 | L173: Zuivelpakken Albert Heijn 25-5 t/m 13-8 1988 Deel 13 van eerste serie van 34. Ook in SW Schoolagenda 89-90 en in De angstige avonturen (2015). | O173: Tijdens de jaarlijkse barbecue.. Zeg, Lambik. Mijn vlees raakt maar niet
B174: =IF(G174>=Lengte!$AS$13,Lengte!$AT$13,IF(G174>=Lengte!$AS$14,Lengte!$AT$14,IF(G174=Lengte!$AS$15,Lengte!$AT$15,Lengte!$AT$16))) -> GAG | C174: =B174&" "&COUNTIF($B$17:B174,B174) -> GAG 59 | D174: k134 | E174: De venijnige verfpot | F174: 1988-05-24 | G174: 1 | K174: D3114 | L174: Zuivelpakken Albert Heijn 25-5 t/m 13-8 1988 Deel 14 van eerste serie van 34. Ook in De angstige avonturen (2015). | O174: Dat ziet er fraai uit, Jerom. Ja. Hebben kop koffie wel verdiend. Verf is
B175: =IF(G175>=Lengte!$AS$13,Lengte!$AT$13,IF(G175>=Lengte!$AS$14,Lengte!$AT$14,IF(G175=Lengte!$AS$15,Lengte!$AT$15,Lengte!$AT$16))) -> GAG | C175: =B175&" "&COUNTIF($B$17:B175,B175) -> GAG 60 | D175: k135 | E175: De geroosterde roker | F175: 1988-05-24 | G175: 1 | K175: D3115 | L175: Zuivelpakken Albert Heijn 25-5 t/m 13-8 1988 Deel 15 van eerste serie van 34. Ook in SW Schoolagenda 89-90 en in De angstige avonturen (2015). | O175: Die dag mag de buurjongen blijven slapen... Neem jij mijn slaapkamer
B176: =IF(G176>=Lengte!$AS$13,Lengte!$AT$13,IF(G176>=Lengte!$AS$14,Lengte!$AT$14,IF(G176=Lengte!$AS$15,Lengte!$AT$15,Lengte!$AT$16))) -> GAG | C176: =B176&" "&COUNTIF($B$17:B176,B176) -> GAG 61 | D176: k136 | E176: De vinnige vering | F176: 1988-05-24 | G176: 1 | K176: D3116 | L176: Zuivelpakken Albert Heijn 25-5 t/m 13-8 1988 Deel 16 van eerste serie van 34. Ook in SW Schoolagenda 89-90 en in De angstige avonturen (2015). | O176: Hou je stevig vast, ik rij van de stoep af ! Je doet maar!! Aiii aioeiaiamai
B177: =IF(G177>=Lengte!$AS$13,Lengte!$AT$13,IF(G177>=Lengte!$AS$14,Lengte!$AT$14,IF(G177=Lengte!$AS$15,Lengte!$AT$15,Lengte!$AT$16))) -> GAG | C177: =B177&" "&COUNTIF($B$17:B177,B177) -> GAG 62 | D177: k137 | E177: De pinnige pinda | F177: 1988-05-24 | G177: 1 | K177: D3117 | L177: Zuivelpakken Albert Heijn 25-5 t/m 13-8 1988 Deel 17 van eerste serie van 34. Ook in De angstige avonturen (2015). | O177: Gelukkige verjaardag, Lambik! Wat een verrassing! Jullie hebben toch wel
B178: =IF(G178>=Lengte!$AS$13,Lengte!$AT$13,IF(G178>=Lengte!$AS$14,Lengte!$AT$14,IF(G178=Lengte!$AS$15,Lengte!$AT$15,Lengte!$AT$16))) -> GAG | C178: =B178&" "&COUNTIF($B$17:B178,B178) -> GAG 63 | D178: k138 | E178: De zielige zoeker | F178: 1988-05-24 | G178: 1 | K178: D3118 | L178: Zuivelpakken Albert Heijn 25-5 t/m 13-8 1988 Deel 18 van eerste serie van 34. Ook in De angstige avonturen (2015). | O178: Ikke autootje kwijt. Ikke flink zoeken. Waar? Waar? Aha! Ik weet het! Stout
B179: =IF(G179>=Lengte!$AS$13,Lengte!$AT$13,IF(G179>=Lengte!$AS$14,Lengte!$AT$14,IF(G179=Lengte!$AS$15,Lengte!$AT$15,Lengte!$AT$16))) -> GAG | C179: =B179&" "&COUNTIF($B$17:B179,B179) -> GAG 64 | D179: k139 | E179: De fatale fopspeen | F179: 1988-05-24 | G179: 1 | K179: D3119 | L179: Zuivelpakken Albert Heijn 25-5 t/m 13-8 1988 Deel 19 van eerste serie van 34. Ook in De angstige avonturen (2015). | O179: Niemand die me ziet. Daar profiteer ik lekker van... om nog eens lekker te
B180: =IF(G180>=Lengte!$AS$13,Lengte!$AT$13,IF(G180>=Lengte!$AS$14,Lengte!$AT$14,IF(G180=Lengte!$AS$15,Lengte!$AT$15,Lengte!$AT$16))) -> GAG | C180: =B180&" "&COUNTIF($B$17:B180,B180) -> GAG 65 | D180: k140 | E180: De vlammende vlek | F180: 1988-05-24 | G180: 1 | K180: D3120 | L180: Zuivelpakken Albert Heijn 25-5 t/m 13-8 1988 Deel 20 van eerste serie van 34. Ook in SW Schoolagenda 89-90 en in De angstige avonturen (2015). | O180: Lambik is een echte smeerpoets. Moet je die broek zien. Gelukkig heb ik een
B181: =IF(G181>=Lengte!$AS$13,Lengte!$AT$13,IF(G181>=Lengte!$AS$14,Lengte!$AT$14,IF(G181=Lengte!$AS$15,Lengte!$AT$15,Lengte!$AT$16))) -> GAG | C181: =B181&" "&COUNTIF($B$17:B181,B181) -> GAG 66 | D181: k141 | E181: De zwaaiende zwierders | F181: 1988-05-24 | G181: 1 | K181: D3121 | L181: Zuivelpakken Albert Heijn 25-5 t/m 13-8 1988 Deel 21 van eerste serie van 34. Ook in SW Schoolagenda 89-90 en in De angstige avonturen (2015). | O181: Hahaha! Spannend... en grappig!! Suske! Kijk uit!! Smak
B182: =IF(G182>=Lengte!$AS$13,Lengte!$AT$13,IF(G182>=Lengte!$AS$14,Lengte!$AT$14,IF(G182=Lengte!$AS$15,Lengte!$AT$15,Lengte!$AT$16))) -> GAG | C182: =B182&" "&COUNTIF($B$17:B182,B182) -> GAG 67 | D182: k142 | E182: De lustige lucifer | F182: 1988-05-24 | G182: 1 | K182: D3122 | L182: Zuivelpakken Albert Heijn 25-5 t/m 13-8 1988 Deel 22 van eerste serie van 34. Ook in De angstige avonturen (2015). | O182: Kijk eens wat daar ligt. MOOI! Ikke gezien hoe grote mensen doen. Ikke ook
B183: =IF(G183>=Lengte!$AS$13,Lengte!$AT$13,IF(G183>=Lengte!$AS$14,Lengte!$AT$14,IF(G183=Lengte!$AS$15,Lengte!$AT$15,Lengte!$AT$16))) -> GAG | C183: =B183&" "&COUNTIF($B$17:B183,B183) -> GAG 68 | D183: k143 | E183: De moedige menger | F183: 1988-05-24 | G183: 1 | K183: D3123 | L183: Zuivelpakken Albert Heijn 25-5 t/m 13-8 1988 Deel 23 van eerste serie van 34. Ook in SW Schoolagenda 89-90 en in De angstige avonturen (2015). | O183: Oeps! De pot inkt!! Dit flesje helpt niet!! Dan maar van dit... of dat…
B184: =IF(G184>=Lengte!$AS$13,Lengte!$AT$13,IF(G184>=Lengte!$AS$14,Lengte!$AT$14,IF(G184=Lengte!$AS$15,Lengte!$AT$15,Lengte!$AT$16))) -> GAG | C184: =B184&" "&COUNTIF($B$17:B184,B184) -> GAG 69 | D184: k144 | E184: De dolle duiker | F184: 1988-05-24 | G184: 1 | K184: D3124 | L184: Zuivelpakken Albert Heijn 25-5 t/m 13-8 1988 Deel 24 van eerste serie van 34. Ook in SW Schoolagenda 89-90 en in De angstige avonturen (2015). | O184: Wie het eerst in het water ligt, heeft gewonnen. En krijgt een ijsje! Jahoe
B185: =IF(G185>=Lengte!$AS$13,Lengte!$AT$13,IF(G185>=Lengte!$AS$14,Lengte!$AT$14,IF(G185=Lengte!$AS$15,Lengte!$AT$15,Lengte!$AT$16))) -> GAG | C185: =B185&" "&COUNTIF($B$17:B185,B185) -> GAG 70 | D185: k145 | E185: De sluwe slaap | F185: 1988-05-24 | G185: 1 | K185: D3125 | L185: Zuivelpakken Albert Heijn 25-5 t/m 13-8 1988 Deel 25 van eerste serie van 34. Ook in SW Schoolagenda 89-90 en in De angstige avonturen (2015). | O185: Heerlijk liggen weken in een geurig schuimbad. Heerlijk! Ik word er helemaal
B186: =IF(G186>=Lengte!$AS$13,Lengte!$AT$13,IF(G186>=Lengte!$AS$14,Lengte!$AT$14,IF(G186=Lengte!$AS$15,Lengte!$AT$15,Lengte!$AT$16))) -> GAG | C186: =B186&" "&COUNTIF($B$17:B186,B186) -> GAG 71 | D186: k146 | E186: De dwaze duw | F186: 1988-05-24 | G186: 1 | K186: D3126 | L186: Zuivelpakken Albert Heijn 25-5 t/m 13-8 1988 Deel 26 van eerste serie van 34. Ook in SW Schoolagenda 89-90 en in De angstige avonturen (2015). | O186: Moeilijk hoor! HAHA! Een klein duwtje is genoeg om Wiske te laten vallen! Eek
B187: =IF(G187>=Lengte!$AS$13,Lengte!$AT$13,IF(G187>=Lengte!$AS$14,Lengte!$AT$14,IF(G187=Lengte!$AS$15,Lengte!$AT$15,Lengte!$AT$16))) -> GAG | C187: =B187&" "&COUNTIF($B$17:B187,B187) -> GAG 72 | D187: k147 | E187: Het speelse Schanulleke | F187: 1988-05-24 | G187: 1 | K187: D3127 | L187: Zuivelpakken Albert Heijn 25-5 t/m 13-8 1988 Deel 27 van eerste serie van 34. Ook in De angstige avonturen (2015). | O187: Blijf braaf liggen, Schanulleke. Mamaatje komt dadelijk terug. Niks blijven
B188: =IF(G188>=Lengte!$AS$13,Lengte!$AT$13,IF(G188>=Lengte!$AS$14,Lengte!$AT$14,IF(G188=Lengte!$AS$15,Lengte!$AT$15,Lengte!$AT$16))) -> GAG | C188: =B188&" "&COUNTIF($B$17:B188,B188) -> GAG 73 | D188: k148 | E188: Het vurige vuurwater | F188: 1988-05-24 | G188: 1 | K188: D3128 | L188: Zuivelpakken Albert Heijn 25-5 t/m 13-8 1988 Deel 28 van eerste serie van 34. Ook in De angstige avonturen (2015). | O188: Blablablabla... Grotemensenpraat. Niks interessant. Wat is dit? Water? Even
B189: =IF(G189>=Lengte!$AS$13,Lengte!$AT$13,IF(G189>=Lengte!$AS$14,Lengte!$AT$14,IF(G189=Lengte!$AS$15,Lengte!$AT$15,Lengte!$AT$16))) -> GAG | C189: =B189&" "&COUNTIF($B$17:B189,B189) -> GAG 74 | D189: k149 | E189: De joelende jockey | F189: 1988-05-24 | G189: 1 | K189: D3129 | L189: Zuivelpakken Albert Heijn 25-5 t/m 13-8 1988 Deel 29 van eerste serie van 34. Ook in De angstige avonturen (2015). | O189: Jahoe! Dat gaat lekker hard! Ikke nog harder kunnen kijk maar. Jippie. Aaah
B190: =IF(G190>=Lengte!$AS$13,Lengte!$AT$13,IF(G190>=Lengte!$AS$14,Lengte!$AT$14,IF(G190=Lengte!$AS$15,Lengte!$AT$15,Lengte!$AT$16))) -> GAG | C190: =B190&" "&COUNTIF($B$17:B190,B190) -> GAG 75 | D190: k150 | E190: De dolle doel | F190: 1988-05-24 | G190: 1 | K190: D3130 | L190: Zuivelpakken Albert Heijn 25-5 t/m 13-8 1988 Deel 30 van eerste serie van 34. Ook in SW Schoolagenda 89-90 en in De angstige avonturen (2015). | O190: Pas, Wiske!! Slaan, Suske! Die zit!! Kraak Mijn...mijn tanden!!
B191: =IF(G191>=Lengte!$AS$13,Lengte!$AT$13,IF(G191>=Lengte!$AS$14,Lengte!$AT$14,IF(G191=Lengte!$AS$15,Lengte!$AT$15,Lengte!$AT$16))) -> GAG | C191: =B191&" "&COUNTIF($B$17:B191,B191) -> GAG 76 | D191: k151 | E191: De verwenste verfrisser | F191: 1988-05-24 | G191: 1 | K191: D3131 | L191: Zuivelpakken Albert Heijn 25-5 t/m 13-8 1988 Deel 31 van eerste serie van 34. Ook in De angstige avonturen (2015). | O191: Ikke al grote meid! Ikke kan helemaal alleen naar toilet. Wat is dat?
B192: =IF(G192>=Lengte!$AS$13,Lengte!$AT$13,IF(G192>=Lengte!$AS$14,Lengte!$AT$14,IF(G192=Lengte!$AS$15,Lengte!$AT$15,Lengte!$AT$16))) -> GAG | C192: =B192&" "&COUNTIF($B$17:B192,B192) -> GAG 77 | D192: k152 | E192: De malle mottebal | F192: 1988-05-24 | G192: 1 | K192: D3132 | L192: Zuivelpakken Albert Heijn 25-5 t/m 13-8 1988 Deel 32 van eerste serie van 34. Ook in De angstige avonturen (2015). | O192: Ikke leuk spelletje kennen. Verkleden in Wiske. Hee! Er zitten nog snoepjes
B193: =IF(G193>=Lengte!$AS$13,Lengte!$AT$13,IF(G193>=Lengte!$AS$14,Lengte!$AT$14,IF(G193=Lengte!$AS$15,Lengte!$AT$15,Lengte!$AT$16))) -> GAG | C193: =B193&" "&COUNTIF($B$17:B193,B193) -> GAG 78 | D193: k153 | E193: De speelse spuitbus | F193: 1988-05-24 | G193: 1 | K193: D3133 | L193: Zuivelpakken Albert Heijn 25-5 t/m 13-8 1988 Deel 33 van eerste serie van 34. Ook in De angstige avonturen (2015). | O193: Het geheim van mijn kuif? Haarlak, haarlak en nog eens haarlak. Ikke tante
B194: =IF(G194>=Lengte!$AS$13,Lengte!$AT$13,IF(G194>=Lengte!$AS$14,Lengte!$AT$14,IF(G194=Lengte!$AS$15,Lengte!$AT$15,Lengte!$AT$16))) -> GAG | C194: =B194&" "&COUNTIF($B$17:B194,B194) -> GAG 79 | D194: k154 | E194: De kleurige korrels | F194: 1988-05-24 | G194: 1 | K194: D3134 | L194: Zuivelpakken Albert Heijn 25-5 t/m 13-8 1988 Deel 34 van eerste serie van 34. Ook in De angstige avonturen (2015). | O194: Eek! Een muis!! Aha!! Daar weet ik wel wat tegen! Muizekorrels! Even later...
B195: =IF(G195>=Lengte!$AS$13,Lengte!$AT$13,IF(G195>=Lengte!$AS$14,Lengte!$AT$14,IF(G195=Lengte!$AS$15,Lengte!$AT$15,Lengte!$AT$16))) -> GAG | C195: =B195&" "&COUNTIF($B$17:B195,B195) -> GAG 80 | D195: - | E195: Het gevaarlijke gereedschap | F195: 1988-05-24 | G195: 1 | K195: D3140 | L195: Zuivelpakken Albert Heijn 1988 Deel 35, naamloos. De eerste serie werd uitgebreid met 8 extra verhaaltjes. Alle 40 verhaaltjes verschenen toen zonder titel. Ook in De angstige avonturen (2015). | O195: Prachtig gemaakt, al zeg ik het zelf.
B196: =IF(G196>=Lengte!$AS$13,Lengte!$AT$13,IF(G196>=Lengte!$AS$14,Lengte!$AT$14,IF(G196=Lengte!$AS$15,Lengte!$AT$15,Lengte!$AT$16))) -> GAG | C196: =B196&" "&COUNTIF($B$17:B196,B196) -> GAG 81 | D196: - | E196: De lekkere lampolie | F196: 1988-05-24 | G196: 1 | K196: D3139 | L196: Zuivelpakken Albert Heijn 1988 Deel 36, naamloos, uit de 2e serie van 40. Ook in De angstige avonturen (2015). | O196: O Lambikske… daar hou ik nu zo van.
B197: =IF(G197>=Lengte!$AS$13,Lengte!$AT$13,IF(G197>=Lengte!$AS$14,Lengte!$AT$14,IF(G197=Lengte!$AS$15,Lengte!$AT$15,Lengte!$AT$16))) -> GAG | C197: =B197&" "&COUNTIF($B$17:B197,B197) -> GAG 82 | D197: - | E197: De sudderende soep | F197: 1988-05-24 | G197: 1 | K197: D3138 | L197: Zuivelpakken Albert Heijn 1988 Deel 37, naamloos, uit de 2e serie van 40. Ook in De angstige avonturen (2015). | O197: Hmm… Ikke ruiken soep.
B198: =IF(G198>=Lengte!$AS$13,Lengte!$AT$13,IF(G198>=Lengte!$AS$14,Lengte!$AT$14,IF(G198=Lengte!$AS$15,Lengte!$AT$15,Lengte!$AT$16))) -> GAG | C198: =B198&" "&COUNTIF($B$17:B198,B198) -> GAG 83 | D198: - | E198: Het giftige gevaar | F198: 1988-05-24 | G198: 1 | K198: D3137 | L198: Zuivelpakken Albert Heijn 1988 Deel 38, naamloos, uit de 2e serie van 40. Ook in De angstige avonturen (2015). | O198: Wat schijnt het zonnetje weer heerlijk op mijn bolletje.
B199: =IF(G199>=Lengte!$AS$13,Lengte!$AT$13,IF(G199>=Lengte!$AS$14,Lengte!$AT$14,IF(G199=Lengte!$AS$15,Lengte!$AT$15,Lengte!$AT$16))) -> GAG | C199: =B199&" "&COUNTIF($B$17:B199,B199) -> GAG 84 | D199: k160 | E199: De verknoeide verjaardag | F199: 1988-05-24 | G199: 1 | K199: D3136 | L199: Zuivelpakken Albert Heijn 1988 Deel 39, naamloos op verpakking, uit de 2e serie van 40. Ook in SW Schoolagenda 89-90 (hier getiteld "De verknoeide verjaardag") en in De angstige avonturen (2015). | O199: Gelukkige verjaardag, tantetje!! Oei! Aaai! Dat is heet. Ge.. gelukkige
B200: =IF(G200>=Lengte!$AS$13,Lengte!$AT$13,IF(G200>=Lengte!$AS$14,Lengte!$AT$14,IF(G200=Lengte!$AS$15,Lengte!$AT$15,Lengte!$AT$16))) -> GAG | C200: =B200&" "&COUNTIF($B$17:B200,B200) -> GAG 85 | D200: k159 | E200: Beschermde beenbeschermers | F200: 1988-05-24 | G200: 1 | K200: D3135 | L200: Zuivelpakken Albert Heijn 1988 Deel 40, naamloos op verpakking, uit de 2e serie van 40. Ook in SW Schoolagenda 89-90 (hier getiteld "Beschermde beenbeschermers") en in De angstige avonturen (2015). | O200: En ja, beste sportliefhebbers.. daar gaat Suske recht op het doel af. Hij
B201: =IF(G201>=Lengte!$AS$13,Lengte!$AT$13,IF(G201>=Lengte!$AS$14,Lengte!$AT$14,IF(G201=Lengte!$AS$15,Lengte!$AT$15,Lengte!$AT$16))) -> SNP | C201: =B201&" "&COUNTIF($B$17:B201,B201) -> SNP 28 | D201: - | E201: Persoonlijke service | F201: 1989-01-01 | G201: =1.5/4 -> 0.375 | K201: D3033, andere versie | L201: ="'Stripje op Lekturama enveloppe uit 1998, code D 1.99.8902, 9070/79 Gh (met reclame voor suske en Wiske klok). Ook later verschenen met andere tekst als 'Zijn deze twee heren op weg naar u met een fantastische parker-pennenset?', zie "&C225&"." -> 'Stripje op Lekturama enveloppe uit 1998, code D 1.99.8902, 9070/79 Gh (met reclame voor suske en Wiske klok). Ook later verschenen met andere tekst als 'Zijn deze twee heren op weg naar u met een fantastische parker-pennenset?', zie SNP 38. | O201: Ik heb mij persoonlijk met de verpakking bemoeid! Goed vasthouden!
... 332 more rows

Sheet reeksen (hidden)
A1: Suske en Wiske in het kort
A2: 2019 | B2: 1 | C2: De venijnige vanger | F2: maart | J2: Luc Morjaeu heeft op zijn Facebookpagina de schetsen getoond van 8 van de 10 covers die in 2021 zullen verschijnen.
B3: =+B2+1 -> 2 | C3: Krimson Break | F3: maart | J3: https://www.facebook.com/Suske-en-Wiske-superfans-1561634767389047/ | S3: regel | T3: Nr | U3: Dash mini | Z3: Blz | AC3: Dubbelstrip | AH3: Extra (Hema)
B4: =+B3+1 -> 3 | C4: De pronte professor | F4: maart | L4: nu | M4: was | S4: =MATCH(X4,'Korte Verhalen'!E:E,0) -> 91 | T4: =INDEX('Korte Verhalen'!C:C,reeksen!$S4) -> KVH 13 | U4: 1 | V4: 1e reeks | W4: 2001 | X4: De Witte gems | Z4: =INDEX('Korte Verhalen'!G:G,reeksen!$S4) -> 25 | AC4: 1 | AD4: het geheim van de kalmthoutse heide | AF4: 1986/89 | AH4: 1 | AI4: De Bevende Berken | AK4: 1986/87 | AM4: Clubblad 1 | AN4: bij 257 De Rebelse Reinaert | AQ4: 1998
B5: 4 | C5: De bloedbroeder | F5: juni | H5: 2021 | I5: 1 | J5: De Beestige Brug | L5: april | M5: maart | P5: en als SW In het kort Nr 21 (2021). | S5: =MATCH(X5,'Korte Verhalen'!E:E,0) -> 73 | T5: =INDEX('Korte Verhalen'!C:C,reeksen!S5) -> KVH 6 | U5: 2 | V5: 1e reeks | W5: 2001 | X5: Toffe Tiko | Z5: =INDEX('Korte Verhalen'!G:G,reeksen!$S5) -> 25 | AC5: =+AC4 -> 1 | AD5: de lollige lakens | AF5: =+AF4 -> 1986/89 | AH5: =+AH4 -> 1 | AI5: De Gouden Bloem | AK5: =+AK4 -> 1986/87 | AM5: Clubblad 2 | AN5: bij 260 de bonte bollen | AQ5: 1999
B6: 5 | C6: De treiterende trien | F6: juni | I6: 2 | J6: De Primitieve Paljassen | L6: april | M6: juni | P6: en als SW In het kort Nr 22 (2021). | S6: =MATCH(X6,'Korte Verhalen'!E:E,0) -> 72 | T6: =INDEX('Korte Verhalen'!C:C,reeksen!S6) -> KVH 5 | U6: 3 | V6: 1e reeks | W6: 2001 | X6: De vergeten vallei | Z6: =INDEX('Korte Verhalen'!G:G,reeksen!$S6) -> 25 | AC6: 2 | AD6: het verloren zwaard | AF6: 1986/89 | AH6: 2 | AI6: de stenen broden | AK6: 1986/87 | AM6: Clubblad 3 | AN6: bij 261 het berenbeklag | AQ6: 1999
B7: 6 | C7: De kokende kei | F7: juni | I7: 3 | J7: Sinjeur Stekkepoot | L7: april | M7: juni | P7: en als SW In het kort Nr 23 (2021). | S7: =MATCH(X7,'Korte Verhalen'!E:E,0) -> 74 | T7: =INDEX('Korte Verhalen'!C:C,reeksen!S7) -> KVH 7 | U7: 4 | V7: 1e reeks | W7: 2001 | X7: Hippus het zeeveulen | Z7: =INDEX('Korte Verhalen'!G:G,reeksen!$S7) -> 25 | AC7: =+AC6 -> 2 | AD7: de witte gems | AF7: =+AF6 -> 1986/89 | AH7: =+AH6 -> 2 | AI7: de zilveren appels | AK7: =+AK6 -> 1986/87
B8: 7 | C8: Het rinkelende raderwerk | F8: oktober | I8: 4 | J8: De Toetercup | L8: juni | M8: okt | P8: en als SW In het kort Nr 24 (2021). | S8: =MATCH(X8,'Korte Verhalen'!E:E,0) -> 77 | T8: =INDEX('Korte Verhalen'!C:C,reeksen!S8) -> KVH 9 | U8: 5 | V8: 1e reeks | W8: 2001 | X8: Het verborgen volk | Z8: =INDEX('Korte Verhalen'!G:G,reeksen!$S8) -> 25 | AC8: 3 | AD8: sprookjesnacht aan zee | AF8: 1986/89 | AH8: 3 | AI8: sprookjesnacht aan zee | AK8: 1987
B9: 8 | C9: De razende rentmeester | F9: oktober | I9: 5 | J9: De Werken van Lambik | L9: juni | M9: okt | P9: en als SW In het kort Nr 25 (2021). | S9: =MATCH(X9,'Korte Verhalen'!E:E,0) -> 160 | T9: =INDEX('Korte Verhalen'!C:C,reeksen!S9) -> KVH 22 | U9: 6 | V9: 1e reeks | W9: 2001 | X9: De dappere duinduikers | Z9: =INDEX('Korte Verhalen'!G:G,reeksen!$S9) -> 28 | AC9: =+AC8 -> 3 | AD9: het onbekende eiland | AF9: =+AF8 -> 1986/89 | AH9: =+AH8 -> 3 | AI9: de witte gems | AK9: =+AK8 -> 1987
B10: 9 | C10: De guitige gast | F10: oktober | I10: 6 | J10: De Tragische Tante | L10: juni | M10: okt | P10: en als SW In het kort Nr 26 (2021). | S10: =MATCH(X10,'Korte Verhalen'!E:E,0) -> 213 | T10: =INDEX('Korte Verhalen'!C:C,reeksen!S10) -> KVH 26 | U10: 7 | V10: 1e reeks | W10: 2001 | X10: De macabere Macralles | Z10: =INDEX('Korte Verhalen'!G:G,reeksen!$S10) -> 23 | AC10: 4 | AD10: De stenen broden | AF10: 1987/89 | AH10: 4 | AI10: het geheim van de kalmthoutse heide | AK10: 1987
B11: 10 | C11: De koppige kluizenaar | F11: oktober | I11: 7 | J11: Het Vervloekte Venster | L11: okt | M11: okt | P11: en als SW In het kort Nr 27 (2021). | S11: =MATCH(X11,'Korte Verhalen'!E:E,0) -> 82 | T11: =INDEX('Korte Verhalen'!C:C,reeksen!S11) -> KVH 10 | U11: 8 | V11: 1e reeks | W11: 2002 | X11: De lollige lakens | Z11: =INDEX('Korte Verhalen'!G:G,reeksen!$S11) -> 25 | AC11: =+AC10 -> 4 | AD11: de gouden bloem | AF11: =+AF10 -> 1987/89 | AH11: =+AH10 -> 4 | AI11: het onbekende eiland | AK11: =+AK10 -> 1987
A12: 2020 | B12: 1 | C12: De coole Kastaar | F12: maart | I12: 8 | J12: Tante Biotica | L12: okt | M12: juni | P12: en als SW In het kort Nr 28 (2021). | S12: =MATCH(X12,'Korte Verhalen'!E:E,0) -> 105 | T12: =INDEX('Korte Verhalen'!C:C,reeksen!S12) -> KVH 15 | U12: 9 | V12: 1e reeks | W12: 2002 | X12: De stenen broden | Z12: =INDEX('Korte Verhalen'!G:G,reeksen!$S12) -> 25 | AC12: 5 | AD12: De Bevende Berken | AF12: 1987/89 | AH12: 5 | AI12: het verloren zwaard | AK12: 1987
B13: =+B12+1 -> 2 | C13: De microkomiek | F13: maart | I13: 9 | J13: De Galapagosgasten | L13: okt | M13: maart | N13: let op gasten | P13: en als SW In het kort Nr 29 (2021). | S13: =MATCH(X13,'Korte Verhalen'!E:E,0) -> 218 | T13: =INDEX('Korte Verhalen'!C:C,reeksen!S13) -> KVH 28 | U13: 10 | V13: 1e reeks | W13: 2002 | X13: De mollige marmotten | Z13: =INDEX('Korte Verhalen'!G:G,reeksen!$S13) -> 23 | AC13: =+AC12 -> 5 | AD13: hippus het zeeveulen | AF13: =+AF12 -> 1987/89 | AH13: =+AH12 -> 5 | AI13: hippus het zeeveulen | AK13: =+AK12 -> 1987
B14: =+B13+1 -> 3 | C14: De kribbige krab | F14: maart | I14: 10 | J14: Pezige Peekah | L14: okt | M14: maart | P14: en als SW In het kort Nr 30 (2021). | S14: =MATCH(X14,'Korte Verhalen'!E:E,0) -> 210 | T14: =INDEX('Korte Verhalen'!C:C,reeksen!S14) -> KVH 24 | U14: 11 | V14: 1e reeks | W14: 2002 | X14: Spruiten voor Sprotje | Z14: =INDEX('Korte Verhalen'!G:G,reeksen!$S14) -> 23 | AC14: 6 | AD14: het verborgen volk | AF14: 1987/89 | AH14: 6 | AI14: het verborgen volk | AK14: 1987
B15: 4 | C15: De sinistere site | F15: juni | S15: =MATCH(X15,'Korte Verhalen'!E:E,0) -> 251 | T15: =INDEX('Korte Verhalen'!C:C,reeksen!S15) -> KVH 29 | U15: 12 | V15: 1e reeks | W15: 2004 | X15: De koppige kluizenaar | Z15: =INDEX('Korte Verhalen'!G:G,reeksen!$S15) -> 23 | AC15: =+AC14 -> 6 | AD15: de zilveren appels | AF15: =+AF14 -> 1987/89 | AH15: =+AH14 -> 6 | AI15: de lollige lakens | AK15: =+AK14 -> 1987
B16: 5 | C16: Juffertje Janboel | F16: juni | S16: =MATCH(X16,'Korte Verhalen'!E:E,0) -> 214 | T16: =INDEX('Korte Verhalen'!C:C,reeksen!S16) -> KVH 27 | U16: 13 | V16: 1e reeks | W16: 2004 | X16: De galapagosgassen | Z16: =INDEX('Korte Verhalen'!G:G,reeksen!$S16) -> 23 | AC16: 7 | AD16: de zeven snaren | AF16: 1987 | AH16: 7 | AI16: de vergeten vallei | AK16: 1988
B17: 6 | C17: Het vurige Vitamitje | F17: juni | S17: =MATCH(X17,'Korte Verhalen'!E:E,0) -> 89 | T17: =INDEX('Korte Verhalen'!C:C,reeksen!S17) -> KVH 11 | U17: 14 | V17: 1e reeks | W17: 2004 | X17: Het geheim van de kalmthoutse heide | Z17: =INDEX('Korte Verhalen'!G:G,reeksen!$S17) -> 25 | AC17: =+AC16 -> 7 | AD17: de snoezige snowijt | AF17: =+AF16 -> 1987 | AH17: =+AH16 -> 7 | AI17: het vliegende hart | AK17: =+AK16 -> 1988
B18: 7 | C18: De zorgzoekers | F18: oktober | S18: =MATCH(X18,'Korte Verhalen'!E:E,0) -> 71 | T18: =INDEX('Korte Verhalen'!C:C,reeksen!S18) -> KVH 4 | U18: 15 | V18: 1e reeks | W18: 2004 | X18: De gouden bloem | Z18: =INDEX('Korte Verhalen'!G:G,reeksen!$S18) -> 23 | AC18: 8 | AD18: de brullende berg | AF18: 1987 | AH18: 8 | AI18: De snoezige snowijt | AK18: 1988
B19: 8 | C19: De energieke guiten | F19: oktober | S19: =MATCH(X19,'Korte Verhalen'!E:E,0) -> 90 | T19: =INDEX('Korte Verhalen'!C:C,reeksen!S19) -> KVH 12 | U19: 16 | V19: 1e reeks | W19: 2004 | X19: Het monster van Loch Ness | Z19: =INDEX('Korte Verhalen'!G:G,reeksen!$S19) -> 32 | AA19: met tonnetje? | AC19: =+AC18 -> 8 | AD19: de vergeten vallei | AF19: =+AF18 -> 1987 | AH19: =+AH18 -> 8 | AI19: Toffe tiko | AK19: =+AK18 -> 1988
B20: 9 | C20: De spottende spiegel | F20: oktober | S20: =MATCH(X20,'Korte Verhalen'!E:E,0) -> 70 | T20: =INDEX('Korte Verhalen'!C:C,reeksen!S20) -> KVH 3 | U20: 17 | V20: 1e reeks | W20: 2004 | X20: De snoezige Snowijt | Z20: =INDEX('Korte Verhalen'!G:G,reeksen!$S20) -> 25 | AC20: 9 | AD20: de circusbaron | AF20: 1987
B21: 10 | C21: De vergeten vluchtelingen | F21: oktober | S21: =MATCH(X21,'Korte Verhalen'!E:E,0) -> 268 | T21: =INDEX('Korte Verhalen'!C:C,reeksen!S21) -> KVH 41 | U21: 18 | V21: 2e reeks | W21: 2008 | X21: De microkomiek | Z21: =INDEX('Korte Verhalen'!G:G,reeksen!$S21) -> 22 | AA21: x | AC21: =+AC20 -> 9 | AD21: Toffe tiko | AF21: =+AF20 -> 1987
B22: 10 | C22: De lepe luis | F22: oktober | S22: =MATCH(X22,'Korte Verhalen'!E:E,0) -> 262 | T22: =INDEX('Korte Verhalen'!C:C,reeksen!S22) -> KVH 38 | U22: 19 | V22: 2e reeks | W22: 2008 | X22: Sinjeur Stekkepoot | Z22: =INDEX('Korte Verhalen'!G:G,reeksen!$S22) -> 22 | AA22: x | AC22: 10 | AD22: de dappere duinduikers | AF22: 1989
B23: 10 | C23: De terugkeer van de lepe luis | F23: oktober | S23: =MATCH(X23,'Korte Verhalen'!E:E,0) -> 260 | T23: =INDEX('Korte Verhalen'!C:C,reeksen!S23) -> KVH 36 | U23: 20 | V23: 2e reeks | W23: 2008 | X23: De primitieve paljassen | Z23: =INDEX('Korte Verhalen'!G:G,reeksen!$S23) -> 22 | AA23: x | AC23: =+AC22 -> 10 | AD23: het monster van loch ness | AF23: =+AF22 -> 1989
B24: 10 | C24: De barre bacterie | F24: oktober | S24: =MATCH(X24,'Korte Verhalen'!E:E,0) -> 270 | T24: =INDEX('Korte Verhalen'!C:C,reeksen!S24) -> KVH 42 | U24: 21 | V24: 2e reeks | W24: 2008 | X24: De venijnige vanger | Z24: =INDEX('Korte Verhalen'!G:G,reeksen!$S24) -> 22 | AA24: x
S25: =MATCH(X25,'Korte Verhalen'!E:E,0) -> 271 | T25: =INDEX('Korte Verhalen'!C:C,reeksen!S25) -> KVH 43 | U25: 22 | V25: 2e reeks | W25: 2008 | X25: De treiterende trien | Z25: =INDEX('Korte Verhalen'!G:G,reeksen!$S25) -> 22 | AA25: x
C27: Cyclus 'De Lambik-files" | L27: diff | Q27: blz
A28: =INDEX('Korte Verhalen'!C:C,J28) -> MKV 53 | B28: 1 | C28: De mysterieuze cirkel | F28: Familiestripboek 1999 | I28: 1999-04-01 | J28: =MATCH(C28,'Korte Verhalen'!E:E,0) -> 236 | K28: =INDEX('Korte Verhalen'!F:F,reeksen!J28) -> 1999-03-31 | L28: =+ABS(K28-I28) -> 1 | P28: O1 | Q28: 10 | R28: Suske en Wiske : 29.14+1
A29: =INDEX('Korte Verhalen'!C:C,J29) -> MKV 54 | B29: 2 | C29: Elektro-aliens | F29: Familiestripboek 1999 | I29: 1999-04-01 | J29: =MATCH(C29,'Korte Verhalen'!E:E,0) -> 237 | K29: =INDEX('Korte Verhalen'!F:F,reeksen!J29) -> 1999-03-31 | L29: =+ABS(K29-I29) -> 1 | P29: O2 | Q29: 6 | R29: Suske en Wiske : 29.14+6
A30: =INDEX('Korte Verhalen'!C:C,J30) -> MKV 57 | B30: 3 | C30: Telekinese | F30: Familiestripboek 2000 | I30: 2000-06-01 | J30: =MATCH(C30,'Korte Verhalen'!E:E,0) -> 241 | K30: =INDEX('Korte Verhalen'!F:F,reeksen!J30) -> 2000-06-14 | L30: 13 | P30: O3 | Q30: 6 | R30: Suske en Wiske : 29.15+1
A31: =INDEX('Korte Verhalen'!C:C,J31) -> MKV 58 | B31: 4 | C31: De Space party | F31: Familiestripboek 2000 | I31: 2000-06-01 | J31: =MATCH(C31,'Korte Verhalen'!E:E,0) -> 242 | K31: =INDEX('Korte Verhalen'!F:F,reeksen!J31) -> 2000-06-14 | L31: 13 | P31: O4 | Q31: 6 | R31: Suske en Wiske : 29.15+27
A32: =INDEX('Korte Verhalen'!C:C,J32) -> MKV 59 | B32: 5 | C32: Opvoedingsplan B1 | F32: Familiestripboek 2000 | I32: 2000-06-01 | J32: =MATCH(C32,'Korte Verhalen'!E:E,0) -> 243 | K32: =INDEX('Korte Verhalen'!F:F,reeksen!J32) -> 2000-06-14 | L32: 13 | P32: O5 | Q32: 4 | R32: Suske en Wiske : 29.15+28
A33: =INDEX('Korte Verhalen'!C:C,J33) -> MKV 63 | B33: 6 | C33: Operatie woestijn | F33: Familiestripboek 2001 | I33: 2001-06-01 | J33: =MATCH(C33,'Korte Verhalen'!E:E,0) -> 247 | K33: =INDEX('Korte Verhalen'!F:F,reeksen!J33) -> 2001-06-01 | L33: 0 | P33: O6 | Q33: 4 | R33: Suske en Wiske : 29.16+1
A34: =INDEX('Korte Verhalen'!C:C,J34) -> MKV 50 | B34: 7 | C34: De pijnloze tandarts | F34: Familiestripboek 2001 | I34: 2001-06-01 | J34: =MATCH(C34,'Korte Verhalen'!E:E,0) -> 232 | K34: =INDEX('Korte Verhalen'!F:F,reeksen!J34) -> 1998-09-23 | L34: 982 | P34: O7 | Q34: 4 | R34: Suske en Wiske : 29.16+7
A35: =INDEX('Korte Verhalen'!C:C,J35) -> MKV 55 | B35: 8 | C35: De UFO | F35: Familiestripboek 2001 | I35: 2001-06-01 | J35: =MATCH(C35,'Korte Verhalen'!E:E,0) -> 238 | K35: =INDEX('Korte Verhalen'!F:F,reeksen!J35) -> 1999-05-05 | L35: 758 | P35: O8 | Q35: 4 | R35: Suske en Wiske : 29.16+21
A36: =INDEX('Korte Verhalen'!C:C,J36) -> MKV 56 | B36: 9 | C36: De buitenaardse buis | F36: Familiestripboek 2001 | I36: 2001-06-01 | J36: =MATCH(C36,'Korte Verhalen'!E:E,0) -> 239 | K36: =INDEX('Korte Verhalen'!F:F,reeksen!J36) -> 1999-09-20 | L36: 620 | P36: O9 | Q36: 4 | R36: Suske en Wiske : 29.16+24
B40: SW agenda 85-86 | M40: Grap nr | O40: Nieuwe tekst op internet na mijn info:
B41: 1 | C41: De familiefoto. | E41: =MATCH(C41,Lambik!$C$1:$C$605,0) -> 51 | F41: hertekend, extra strook | I41: Aanpassing is idem familiestripboekjun 1989 | M41: =INDEX(Lambik!B:B,E41) -> 24 | O41: Suske en Wiske agenda 85-86
B42: 2 | C42: Het paardenmiddel | E42: =MATCH(C42,Lambik!$C$1:$C$605,0) -> 387 | F42: origineel | M42: =INDEX(Lambik!B:B,E42) -> 315 | N42: = de Bond | O42: Voor deze uitgave werden 14 grappen hergepubliceerd.
B43: 3 | C43: Wie goed is voor de dieren | E43: =MATCH(C43,Lambik!$C$1:$C$605,0) -> 337 | I43: Ook in Familiestripboek juni 2002 | M43: =INDEX(Lambik!B:B,E43) -> 287 | N43: = de Bond | O43: Vier grappen (315, 287, 229 en 312) verschenen identiek aan de publicatie in 'De Bond'.
B44: 4 | C44: Lambik laat zich niet beetnemen. | E44: =MATCH(C44,Lambik!$C$1:$C$605,0) -> 47 | F44: hertekend, extra strook | M44: =INDEX(Lambik!B:B,E44) -> 22 | N44: Eric de Rop | O44: De overige tien werden gedeeltelijk of volledig hertekend en uitgebreid naar 4 stroken door Eric de Rop.
B45: 5 | C45: De jager en zijn hond. | E45: =MATCH(C45,Lambik!$C$1:$C$605,0) -> 58 | F45: hertekend, extra strook | I45: Aanpassing is idem familiestripboekjun 1989 | M45: =INDEX(Lambik!B:B,E45) -> 29 | N45: Eric de Rop | O45: Vervolgens werden ze ingekleurd en (deels) herletterd. Grappen 22 en 29 zijn volledig door Eric de Rop hertekend.
B46: 6 | C46: De Overwinnaar. | E46: =MATCH(C46,Lambik!$C$1:$C$605,0) -> 44 | F46: hertekend, extra strook. Sezar vervangen door Sidonia. | M46: =INDEX(Lambik!B:B,E46) -> 19
B47: 7 | C47: De Dierenvriend. | E47: =MATCH(C47,Lambik!$C$1:$C$605,0) -> 13 | F47: hertekend, extra strook door tussendoor diverse plaatjes. | I47: Aanpassing is idem familiestripboekjun 1989 | M47: =INDEX(Lambik!B:B,E47) -> 8
B48: 8 | C48: Nu wist hij het toch ! | E48: =MATCH(C48,Lambik!$C$1:$C$605,0) -> 8 | F48: hertekend, extra strook. Sezar vervangen door Wiske. | I48: Aanpassing is idem familiestripboekjun 1989 | M48: =INDEX(Lambik!B:B,E48) -> 5
B49: 9 | C49: Goede raad voor anderen. | E49: =MATCH(C49,Lambik!$C$1:$C$605,0) -> 17 | F49: hertekend, extra strook door tussendoor diverse plaatjes. | M49: =INDEX(B$40:B$80,E49) -> 0
B50: 10 | C50: Alle begin is moeilijk. | E50: =MATCH(C50,Lambik!$C$1:$C$605,0) -> 38 | F50: hertekend, extra strook. Sezar vervangen door Jerom. | I50: Aanpassing is idem familiestripboekjun 1989 | M50: =INDEX(Lambik!B:B,E50) -> 18
B51: 11 | C51: Het uithangbord. | E51: =MATCH(C51,Lambik!$C$1:$C$605,0) -> 19 | F51: hertekend, extra strook. Snoek vervangen door Jerom. | I51: Aanpassing is idem familiestripboekjun 1989 | M51: =INDEX(Lambik!B:B,E51) -> 13
B52: 12 | C52: Alles dient voor iets. | E52: =MATCH(C52,Lambik!$C$1:$C$605,0) -> 272 | M52: =INDEX(Lambik!B:B,E52) -> 229 | N52: = de Bond
B53: 13 | C53: de oplossing | E53: =MATCH(C53,Lambik!$C$1:$C$605,0) -> 374 | I53: Ook in Familiestripboek juni 2002 | M53: =INDEX(Lambik!B:B,E53) -> 312 | N53: = de Bond
B54: 14 | C54: De verrassingen der verstrooidheid. | E54: =MATCH(C54,Lambik!$C$1:$C$605,0) -> 37 | F54: hertekend, extra strook. Sezar vervangen door Jerom. | M54: =INDEX(Lambik!B:B,E54) -> 17
B69: Lambik box | C69: gags | D69: oude reeks | E69: From | F69: To
B70: 1 | C70: =COUNTIF(Lambik!$P$3:$P$605,B70) -> 31 | D70: 1 | E70: =_xlfn.MINIFS(Lambik!$D$3:$D$605,Lambik!$P$3:$P$605,B70) -> 1954-01-24 | F70: =_xlfn.MAXIFS(Lambik!$D$3:$D$605,Lambik!$P$3:$P$605,B70) -> 1954-09-26
B71: =+B70+1 -> 2 | C71: =COUNTIF(Lambik!$P$3:$P$605,B71) -> 31 | D71: 2 | E71: =_xlfn.MINIFS(Lambik!$D$3:$D$605,Lambik!$P$3:$P$605,B71) -> 1954-04-18 | F71: =_xlfn.MAXIFS(Lambik!$D$3:$D$605,Lambik!$P$3:$P$605,B71) -> 1955-06-10
B72: 3 | C72: =COUNTIF(Lambik!$P$3:$P$605,B72) -> 31 | D72: 3 | E72: =_xlfn.MINIFS(Lambik!$D$3:$D$605,Lambik!$P$3:$P$605,B72) -> 1955-06-17 | F72: =_xlfn.MAXIFS(Lambik!$D$3:$D$605,Lambik!$P$3:$P$605,B72) -> 1956-09-14
B73: 4 | C73: =COUNTIF(Lambik!$P$3:$P$605,B73) -> 31 | D73: 4 | E73: =_xlfn.MINIFS(Lambik!$D$3:$D$605,Lambik!$P$3:$P$605,B73) -> 1956-06-01 | F73: =_xlfn.MAXIFS(Lambik!$D$3:$D$605,Lambik!$P$3:$P$605,B73) -> 1957-12-06
B74: 5 | C74: =COUNTIF(Lambik!$P$3:$P$605,B74) -> 39 | D74: 5 | E74: =_xlfn.MINIFS(Lambik!$D$3:$D$605,Lambik!$P$3:$P$605,B74) -> 1957-12-13 | F74: =_xlfn.MAXIFS(Lambik!$D$3:$D$605,Lambik!$P$3:$P$605,B74) -> 1959-08-07
B75: 6 | C75: =COUNTIF(Lambik!$P$3:$P$605,B75) -> 39 | D75: 6 | E75: =_xlfn.MINIFS(Lambik!$D$3:$D$605,Lambik!$P$3:$P$605,B75) -> 1958-01-03 | F75: =_xlfn.MAXIFS(Lambik!$D$3:$D$605,Lambik!$P$3:$P$605,B75) -> 1960-09-23
B76: 7 | C76: =COUNTIF(Lambik!$P$3:$P$605,B76) -> 39 | D76: 7 | E76: =_xlfn.MINIFS(Lambik!$D$3:$D$605,Lambik!$P$3:$P$605,B76) -> 1960-09-16 | F76: =_xlfn.MAXIFS(Lambik!$D$3:$D$605,Lambik!$P$3:$P$605,B76) -> 1962-03-16
B77: 8 | C77: =COUNTIF(Lambik!$P$3:$P$605,B77) -> 44 | D77: Ciso 27 | E77: =_xlfn.MINIFS(Lambik!$D$3:$D$605,Lambik!$P$3:$P$605,B77) -> 1956-01-20 | F77: =_xlfn.MAXIFS(Lambik!$D$3:$D$605,Lambik!$P$3:$P$605,B77) -> 1961-06-16
B78: 9 | C78: =COUNTIF(Lambik!$P$3:$P$605,B78) -> 31 | D78: Fenix 50 | E78: =_xlfn.MINIFS(Lambik!$D$3:$D$605,Lambik!$P$3:$P$605,B78) -> 1954-10-24 | F78: =_xlfn.MAXIFS(Lambik!$D$3:$D$605,Lambik!$P$3:$P$605,B78) -> 1958-05-30
B79: 10 | C79: =COUNTIF(Lambik!$P$3:$P$605,B79) -> 30 | D79: Fenix 65 | E79: =_xlfn.MINIFS(Lambik!$D$3:$D$605,Lambik!$P$3:$P$605,B79) -> 1958-11-21 | F79: =_xlfn.MAXIFS(Lambik!$D$3:$D$605,Lambik!$P$3:$P$605,B79) -> 1963-06-28
R81: Ons Volkske was a supplement with weekly magazine "Ons Volk" and was a Flemish comic magazine from 1932 until 1988 (except for the years of World War II).
C82: Weekblad Kuifje | H82: Ons Volk | R82: Ons volkske
C83: 6e | D83: 5e | E83: 4e | G83: jaargang | H83: 32 | I83: =+J83-1 -> 33 | J83: =+K83-1 -> 34 | K83: =+L83-1 -> 35 | L83: =+N83-1 -> 36 | N83: 37 | R83: 13
B84: 1 | C84: 1951-01-04 | D84: =+D85-7 -> 1950-01-05 | E84: =+E85-7 -> 1949-01-06 | H84: 1949 | I84: =+H84+1 -> 1950 | J84: =+I84+1 -> 1951 | K84: =+J84+1 -> 1952 | L84: =+K84+1 -> 1953 | N84: =+L84+1 -> 1954 | R84: 1951
B85: =+B84+1 -> 2 | C85: =+C84+7 -> 1951-01-11 | D85: 1950-01-12 | E85: 1949-01-13 | G85: =+B84 -> 1 | H85: =+H86-7 -> 1949-01-02 | I85: =+H136+7 -> 1950-01-01 | J85: =+I137+7 -> 1951-01-07 | K85: =+J136+7 -> 1952-01-06 | L85: =+L86-7 -> 1953-01-08 | N85: =+N86-7 -> 1954-01-07 | R85: 1951-01-04
B86: 3 | C86: 1951-01-18 | D86: 1950-01-19 | E86: 1949-01-20 | G86: 2 | H86: 1949-01-09 | I86: =+I85+7 -> 1950-01-08 | J86: =+J85+7 -> 1951-01-14 | K86: =+K85+7 -> 1952-01-13 | L86: 1953-01-15 | N86: 1954-01-14 | R86: =+R85+7 -> 1951-01-11
B87: 4 | C87: 1951-01-25 | D87: 1950-01-26 | E87: 1949-01-27 | G87: 3 | H87: 1949-01-16 | I87: 1950-01-15 | J87: 1951-01-21 | K87: 1952-01-20 | L87: 1953-01-22 | N87: 1954-01-21 | R87: 1951-01-18
B88: 5 | C88: 1951-02-01 | D88: 1950-02-02 | E88: 1949-02-03 | G88: 4 | H88: 1949-01-23 | I88: 1950-01-22 | J88: 1951-01-28 | K88: 1952-01-27 | L88: 1953-01-29 | N88: 1954-01-28 | R88: 1951-01-25
B89: 6 | C89: 1951-02-08 | D89: 1950-02-09 | E89: 1949-02-10 | G89: 5 | H89: 1949-01-30 | I89: 1950-01-29 | J89: 1951-02-04 | K89: 1952-02-03 | L89: 1953-02-05 | N89: 1954-02-04 | R89: 1951-02-01
B90: 7 | C90: 1951-02-15 | D90: 1950-02-16 | E90: 1949-02-17 | G90: 6 | H90: 1949-02-06 | I90: 1950-02-05 | J90: 1951-02-11 | K90: 1952-02-10 | L90: 1953-02-12 | N90: 1954-02-11 | R90: 1951-02-08
B91: 8 | C91: 1951-02-22 | D91: 1950-02-23 | E91: 1949-02-24 | G91: 7 | H91: 1949-02-13 | I91: 1950-02-12 | J91: 1951-02-18 | K91: 1952-02-17 | L91: 1953-02-19 | N91: 1954-02-18 | R91: 1951-02-15
B92: 9 | C92: 1951-03-01 | D92: 1950-03-02 | E92: 1949-03-03 | G92: 8 | H92: 1949-02-20 | I92: 1950-02-19 | J92: 1951-02-25 | K92: 1952-02-24 | L92: 1953-02-26 | N92: 1954-02-25 | R92: 1951-02-22
B93: 10 | C93: 1951-03-08 | D93: 1950-03-09 | E93: 1949-03-10 | G93: 9 | H93: 1949-02-27 | I93: 1950-02-26 | J93: 1951-03-04 | K93: 1952-03-02 | L93: 1953-03-05 | N93: 1954-03-04 | R93: 1951-03-01
B94: 11 | C94: 1951-03-15 | D94: 1950-03-16 | E94: 1949-03-17 | G94: 10 | H94: 1949-03-06 | I94: 1950-03-05 | J94: 1951-03-11 | K94: 1952-03-09 | L94: 1953-03-12 | N94: 1954-03-11 | R94: 1951-03-08
B95: 12 | C95: 1951-03-22 | D95: 1950-03-23 | E95: 1949-03-24 | G95: 11 | H95: 1949-03-13 | I95: 1950-03-12 | J95: 1951-03-18 | K95: 1952-03-16 | L95: 1953-03-19 | N95: 1954-03-18 | R95: 1951-03-15
B96: 13 | C96: 1951-03-29 | D96: 1950-03-30 | E96: 1949-03-31 | G96: 12 | H96: 1949-03-20 | I96: 1950-03-19 | J96: 1951-03-25 | K96: 1952-03-23 | L96: 1953-03-26 | N96: 1954-03-25 | R96: 1951-03-22
B97: 14 | C97: 1951-04-05 | D97: 1950-04-06 | E97: 1949-04-07 | G97: 13 | H97: 1949-03-27 | I97: 1950-03-26 | J97: 1951-04-01 | K97: 1952-03-30 | L97: 1953-04-02 | N97: 1954-04-01 | R97: 1951-03-29
B98: 15 | C98: 1951-04-12 | D98: 1950-04-13 | E98: 1949-04-14 | G98: 14 | H98: 1949-04-03 | I98: 1950-04-02 | J98: 1951-04-08 | K98: 1952-04-06 | L98: 1953-04-09 | N98: 1954-04-08 | R98: 1951-04-05
B99: 16 | C99: 1951-04-19 | D99: 1950-04-20 | E99: 1949-04-21 | G99: 15 | H99: 1949-04-10 | I99: 1950-04-09 | J99: 1951-04-15 | K99: 1952-04-13 | L99: 1953-04-16 | N99: 1954-04-15 | R99: 1951-04-12
B100: 17 | C100: 1951-04-26 | D100: 1950-04-27 | E100: 1949-04-28 | G100: 16 | H100: 1949-04-17 | I100: 1950-04-16 | J100: 1951-04-22 | K100: 1952-04-20 | L100: 1953-04-23 | N100: 1954-04-22 | R100: 1951-04-19
B101: 18 | C101: 1951-05-03 | D101: 1950-05-04 | E101: 1949-05-05 | G101: 17 | H101: 1949-04-24 | I101: 1950-04-23 | J101: 1951-04-29 | K101: 1952-04-27 | L101: 1953-04-30 | N101: 1954-04-29 | R101: 1951-04-26
B102: 19 | C102: 1951-05-10 | D102: 1950-05-11 | E102: 1949-05-12 | G102: 18 | H102: 1949-05-01 | I102: 1950-04-30 | J102: 1951-05-06 | K102: 1952-05-04 | L102: 1953-05-07 | N102: 1954-05-06 | R102: 1951-05-03
B103: 20 | C103: 1951-05-17 | D103: 1950-05-18 | E103: 1949-05-19 | G103: 19 | H103: 1949-05-08 | I103: 1950-05-07 | J103: 1951-05-13 | K103: 1952-05-11 | L103: 1953-05-14 | N103: 1954-05-13 | R103: 1951-05-10
B104: 21 | C104: 1951-05-24 | D104: 1950-05-25 | E104: 1949-05-26 | G104: 20 | H104: 1949-05-15 | I104: 1950-05-14 | J104: 1951-05-20 | K104: 1952-05-18 | L104: 1953-05-21 | N104: 1954-05-20 | R104: 1951-05-17
B105: 22 | C105: 1951-05-31 | D105: 1950-06-01 | E105: 1949-06-02 | G105: 21 | H105: 1949-05-22 | I105: 1950-05-21 | J105: 1951-05-27 | K105: 1952-05-25 | L105: 1953-05-28 | N105: 1954-05-27 | R105: 1951-05-24
B106: 23 | C106: 1951-06-07 | D106: 1950-06-08 | E106: 1949-06-09 | G106: 22 | H106: 1949-05-29 | I106: 1950-05-28 | J106: 1951-06-03 | K106: 1952-06-01 | L106: 1953-06-04 | N106: 1954-06-03 | R106: 1951-05-31
B107: 24 | C107: 1951-06-14 | D107: 1950-06-15 | E107: 1949-06-16 | G107: 23 | H107: 1949-06-05 | I107: 1950-06-04 | J107: 1951-06-10 | K107: 1952-06-08 | L107: 1953-06-11 | N107: 1954-06-10 | R107: 1951-06-07
B108: 25 | C108: 1951-06-21 | D108: 1950-06-22 | E108: 1949-06-23 | G108: 24 | H108: 1949-06-12 | I108: 1950-06-11 | J108: 1951-06-17 | K108: 1952-06-15 | L108: 1953-06-18 | N108: 1954-06-17 | R108: 1951-06-14
B109: 26 | C109: 1951-06-28 | D109: 1950-06-29 | E109: 1949-06-30 | G109: 25 | H109: 1949-06-19 | I109: 1950-06-18 | J109: 1951-06-24 | K109: 1952-06-22 | L109: 1953-06-25 | N109: 1954-06-24 | R109: 1951-06-21
B110: 27 | C110: 1951-07-05 | D110: 1950-07-06 | E110: 1949-07-07 | G110: 26 | H110: 1949-06-26 | I110: 1950-06-25 | J110: 1951-07-01 | K110: 1952-06-29 | L110: 1953-07-02 | N110: 1954-07-01 | R110: 1951-06-28
B111: 28 | C111: 1951-07-12 | D111: 1950-07-13 | E111: 1949-07-14 | G111: 27 | H111: 1949-07-03 | I111: =+I110+7 -> 1950-07-02 | J111: =+J110+7 -> 1951-07-08 | K111: =+K112-7 -> 1952-07-10 | L111: 1953-07-09 | N111: 1954-07-08 | R111: 1951-07-05
B112: 29 | C112: 1951-07-19 | D112: 1950-07-20 | E112: 1949-07-21 | G112: 28 | H112: 1949-07-10 | I112: 1950-07-09 | J112: 1951-07-15 | K112: 1952-07-17 | L112: 1953-07-16 | N112: =+N111+7 -> 1954-07-15 | R112: 1951-07-12
B113: 30 | C113: 1951-07-26 | D113: 1950-07-27 | E113: 1949-07-28 | G113: 29 | H113: 1949-07-17 | I113: 1950-07-16 | J113: 1951-07-22 | K113: 1952-07-24 | L113: 1953-07-23 | N113: 1954-07-22 | R113: 1951-07-19
B114: 31 | C114: 1951-08-02 | D114: 1950-08-03 | E114: 1949-08-04 | G114: 30 | H114: 1949-07-24 | I114: 1950-07-23 | J114: 1951-07-29 | K114: 1952-07-31 | L114: 1953-07-30 | N114: 1954-07-29 | R114: 1951-07-26
B115: 32 | C115: 1951-08-09 | D115: 1950-08-10 | E115: 1949-08-11 | G115: 31 | H115: 1949-07-31 | I115: 1950-07-30 | J115: 1951-08-05 | K115: 1952-08-07 | L115: 1953-08-06 | N115: 1954-08-05 | R115: 1951-08-02
B116: 33 | C116: 1951-08-16 | D116: =+D117-7 -> 1950-08-17 | E116: =+E117-7 -> 1949-08-18 | G116: 32 | H116: 1949-08-07 | I116: 1950-08-06 | J116: 1951-08-12 | K116: 1952-08-14 | L116: 1953-08-13 | N116: 1954-08-12 | R116: 1951-08-09
B117: =+B116+1 -> 34 | C117: =+C116+7 -> 1951-08-23 | D117: 1950-08-24 | E117: 1949-08-25 | G117: =+B116 -> 33 | H117: 1949-08-14 | I117: 1950-08-13 | J117: 1951-08-19 | K117: 1952-08-21 | L117: =+L118-7 -> 1953-08-20 | N117: 1954-08-19 | R117: 1951-08-16
B118: 35 | C118: 1951-08-30 | D118: 1950-08-31 | E118: 1949-09-01 | G118: 34 | H118: 1949-08-21 | I118: 1950-08-20 | J118: 1951-08-26 | K118: 1952-08-28 | L118: 1953-08-27 | N118: 1954-08-26 | R118: =+R117+7 -> 1951-08-23
B119: 36 | C119: 1951-09-06 | D119: 1950-09-07 | E119: 1949-09-08 | G119: 35 | H119: 1949-08-28 | I119: 1950-08-27 | J119: 1951-09-02 | K119: 1952-09-04 | L119: 1953-09-03 | N119: 1954-09-02 | R119: 1951-08-30
B120: 37 | C120: 1951-09-13 | D120: 1950-09-14 | E120: 1949-09-15 | G120: 36 | H120: 1949-09-04 | I120: 1950-09-03 | J120: 1951-09-09 | K120: 1952-09-11 | L120: 1953-09-10 | N120: 1954-09-09 | R120: 1951-09-06
B121: 38 | C121: 1951-09-20 | D121: 1950-09-21 | E121: 1949-09-22 | G121: 37 | H121: 1949-09-11 | I121: 1950-09-10 | J121: 1951-09-16 | K121: 1952-09-18 | L121: 1953-09-17 | N121: 1954-09-16 | R121: 1951-09-13
B122: 39 | C122: 1951-09-27 | D122: 1950-09-28 | E122: 1949-09-29 | G122: 38 | H122: 1949-09-18 | I122: 1950-09-17 | J122: 1951-09-23 | K122: 1952-09-25 | L122: 1953-09-24 | N122: 1954-09-23 | R122: 1951-09-20
B123: 40 | C123: 1951-10-04 | D123: 1950-10-05 | E123: 1949-10-06 | G123: 39 | H123: 1949-09-25 | I123: 1950-09-24 | J123: 1951-09-30 | K123: 1952-10-02 | L123: 1953-10-01 | N123: 1954-09-30 | R123: 1951-09-27
B124: 41 | C124: 1951-10-11 | D124: 1950-10-12 | E124: 1949-10-13 | G124: 40 | H124: 1949-10-02 | I124: 1950-10-01 | J124: 1951-10-07 | K124: 1952-10-09 | L124: 1953-10-08 | N124: 1954-10-07 | R124: 1951-10-04
B125: 42 | C125: 1951-10-18 | D125: 1950-10-19 | E125: 1949-10-20 | G125: 41 | H125: 1949-10-09 | I125: 1950-10-08 | J125: 1951-10-14 | K125: 1952-10-16 | L125: 1953-10-15 | N125: 1954-10-14 | R125: 1951-10-11
B126: 43 | C126: 1951-10-25 | D126: 1950-10-26 | E126: 1949-10-27 | G126: 42 | H126: 1949-10-16 | I126: 1950-10-15 | J126: 1951-10-21 | K126: 1952-10-23 | L126: 1953-10-22 | N126: 1954-10-21 | R126: 1951-10-18
B127: 44 | C127: 1951-11-01 | D127: 1950-11-02 | E127: 1949-11-03 | G127: 43 | H127: =+H126+7 -> 1949-10-23 | I127: 1950-10-22 | J127: 1951-10-28 | K127: 1952-10-30 | L127: 1953-10-29 | N127: 1954-10-28 | R127: 1951-10-25
B128: 45 | C128: 1951-11-08 | D128: 1950-11-09 | E128: 1949-11-10 | G128: 44 | H128: 1949-10-30 | I128: 1950-10-29 | J128: 1951-11-04 | K128: 1952-11-06 | L128: 1953-11-05 | N128: 1954-11-04 | R128: 1951-11-01
B129: 46 | C129: 1951-11-15 | D129: 1950-11-16 | E129: 1949-11-17 | G129: 45 | H129: 1949-11-06 | I129: 1950-11-05 | J129: 1951-11-11 | K129: 1952-11-13 | L129: 1953-11-12 | N129: 1954-11-11 | R129: 1951-11-08
B130: 47 | C130: 1951-11-22 | D130: 1950-11-23 | E130: 1949-11-24 | G130: 46 | H130: 1949-11-13 | I130: 1950-11-12 | J130: 1951-11-18 | K130: 1952-11-20 | L130: 1953-11-19 | N130: =+N129+7 -> 1954-11-18 | R130: 1951-11-15
B131: 48 | C131: 1951-11-29 | D131: 1950-11-30 | E131: 1949-12-01 | G131: 47 | H131: 1949-11-20 | I131: 1950-11-19 | J131: 1951-11-25 | K131: 1952-11-27 | L131: 1953-11-26 | N131: 1954-11-25 | R131: 1951-11-22
B132: 49 | C132: 1951-12-06 | D132: 1950-12-07 | E132: 1949-12-08 | G132: 48 | H132: 1949-11-27 | I132: 1950-11-26 | J132: 1951-12-02 | K132: 1952-12-04 | L132: 1953-12-03 | N132: 1954-12-02 | R132: 1951-11-29
B133: 50 | C133: 1951-12-13 | D133: 1950-12-14 | E133: 1949-12-15 | G133: 49 | H133: 1949-12-04 | I133: 1950-12-03 | J133: 1951-12-09 | K133: 1952-12-11 | L133: 1953-12-10 | N133: 1954-12-09 | R133: 1951-12-06
B134: 51 | C134: 1951-12-20 | D134: 1950-12-21 | E134: 1949-12-22 | G134: 50 | H134: 1949-12-11 | I134: 1950-12-10 | J134: 1951-12-16 | K134: 1952-12-18 | L134: 1953-12-17 | N134: 1954-12-16 | R134: 1951-12-13
B135: 52 | C135: 1951-12-27 | D135: =+C84-7 -> 1950-12-28 | E135: =+D84-7 -> 1949-12-29 | G135: 51 | H135: 1949-12-18 | I135: 1950-12-17 | J135: 1951-12-23 | K135: 1952-12-25 | L135: 1953-12-24 | N135: 1954-12-23 | R135: 1951-12-20
G136: 52 | H136: 1949-12-25 | I136: 1950-12-24 | J136: 1951-12-30 | K136: =+L85-7 -> 1953-01-01 | L136: =+N85-7 -> 1953-12-31 | N136: 1954-12-30 | R136: 1951-12-27
G137: 53 | I137: =+I136+7 -> 1950-12-31

Sheet Bundelingen
A1: Suske en Wiske | G1: Wat is een bundeling? | I1: door Arjen Leine / Mark Ormel
G2: - Album met diverse verhalen waarvan minstens één Suske en Wiske verhaal. - Albums zijn enkel vermeld als ze in grote oplage (>1000) verschenen, dus niet de meeste luxe edities.
A3: bundelingen met korte verhalen
A5: 1 | B5: Standaard uitgeverij
B6: Datum | C6: Nr | D6: Titel | E6: Verhalen | F6: Opmerkingen
B7: 1973-06-01 | C7: 1 | D7: Vakantieboek | E7: Het vliegende hart | F7: Hard cover.
E8: De rammelende rally
B9: 1973-12-01 | C9: 1 | D9: Winterboek | E9: De snoezige Snowijt | F9: Hard cover.
B10: 1974-06-01 | C10: 2 | D10: Vakantieboek 1974 | E10: De vergeten vallei | F10: Hard cover.
B11: 1974-12-01 | C11: 2 | D11: Winterboek 1974 | E11: Toffe Tiko | F11: Hard cover.
B12: 1975-06-01 | C12: 3 | D12: Vakantieboek 3 | E12: Hippus het zeeveulen | F12: Hard cover.
B13: 1976-06-01 | C13: 4 | D13: Vakantieboek 4 | E13: Het verborgen volk | F13: Hard cover.
B14: 1977-07-01 | C14: 5 | D14: Vakantieboek 5 | E14: De lollige lakens | F14: Hard cover.
B15: 1978-06-01 | C15: 6 | D15: Vakantieboek 6 | E15: De heikneuters | F15: HC; Later getiteld 'Het geheim van de Kalmthoutse heide.
B16: 1979-06-01 | C16: 7 | D16: Vakantieboek 7 | E16: De witte gems | F16: Hard cover.
B17: 1980-06-01 | C17: 8 | D17: Vakantieboek 8 | E17: Het verloren zwaard | F17: Hard cover.
B18: 1981-06-01 | C18: 1 | D18: Plezier met Suske en Wiske | E18: De stenen broden | F18: Gele cover.
B19: 1982-06-01 | C19: 2 | D19: Plezier met Suske en Wiske 2 | E19: Het onbekende eiland | F19: Gele cover.
B20: 1983-05-01 | C20: 3 | D20: Plezier met Suske en Wiske 3 | E20: Sprookjesnacht in het Zwin | F20: Rode cover.
B21: 1985-12-04 | C21: - | D21: Stripfeestboek | E21: De Tiroolse trawanten | F21: Met Oudejaarsavond (Jef Broeckx) met S&W verwijzing.
B22: 1986-05-01 | C22: 1 | D22: Dubbelstrip 1 | E22: Het geheim van de Kalmthoutse Heide | F22: 1e druk met witte achtercover; 2e druk 08-1986 met titeloverzicht op acthercover; 3e druk 04-1989.
E23: De lollige lakens
B24: 1986-05-01 | C24: 2 | D24: Dubbelstrip 2 | E24: Het verloren zwaard | F24: 1e druk met witte achtercover; 2e druk 08-1986 met titeloverzicht op acthercover; 3e druk 04-1989.
E25: De witte gems
B26: 1986-05-01 | C26: 3 | D26: Dubbelstrip 3 | E26: Sprookjesnacht aan zee | F26: 1e druk met witte achtercover; 2e druk 08-1986 met titeloverzicht op acthercover; 3e druk 04-1989.
E27: Het onbekende eiland
B28: 1986-06-01 | C28: - | D28: Zee Zon Zand Stripboek | E28: Suske en Wiske tegen de ZZZ
B29: 1987-04-01 | C29: 4 | D29: Dubbelstrip 4 | E29: De stenen broden | F29: 2e druk 04-1989.
E30: De gouden bloem
B31: 1987-04-01 | C31: 5 | D31: Dubbelstrip 5 | E31: De bevende berken | F31: 2e druk 04-1989.
E32: Hippus het zeeveulen
B33: 1987-04-01 | C33: 6 | D33: Dubbelstrip 6 | E33: Het verborgen volk | F33: 2e druk 04-1989.
E34: De zilveren appels
B35: 1987-06-01 | C35: 1 | D35: Familiestripboek 1 | E35: Het monster van Loch Ness
B36: 1987-08-01 | C36: 7 | D36: Dubbelstrip 7 | E36: De snoezige Snowijt | F36: Ook met lang verhaal.
B37: 1987-08-01 | C37: 8 | D37: Dubbelstrip 8 | E37: De vergeten vallei | F37: Ook met lang verhaal.
B38: 1987-08-01 | C38: 9 | D38: Dubbelstrip 9 | E38: Toffe Tiko | F38: Ook met lang verhaal.
B39: 1988-06-01 | C39: 2 | D39: Familiestripboek 2 | E39: De dappere duinduikers
B40: 1989-04-01 | C40: 10 | D40: Dubbelstrip 10 | E40: De dappere duinduikers | F40: Inhoud is identiek aan Franse rode reeks 215.
E41: Het monster van Loch Ness
B42: 1989-06-01 | C42: 3 | D42: Familiestripboek 3 | E42: Bosspel
B43: 1989-11-01 | C43: 4 | D43: Familiestripboek 4 | E43: Witte zwanen zwarte zwanen | F43: Schanulleke gag (met afbeelding Wiske)
B44: 1990-06-01 | C44: 5 | D44: Familiestripboek 5 | E44: Knokken in Knossos | F44: Met 'De pico-bello machine', een stripje nav een prijsvraag.
B45: 1991-05-18 | C45: - | D45: Super vakantiestripboek | E45: Sprookjesnacht in het Zwin | F45: Met 'Grappen van Lambik' met S&W; Zowel Vlaamse als Nederlands versie.
B46: 1991-06-01 | C46: 6 | D46: Familiestripboek 6 | E46: Spruiten voor Sprotje | F46: Met Jerom - 'Het schatteneiland'; met gastrol Suske en Wiske (2 plaatjes)
B47: 1992-06-01 | C47: 7 | D47: Familiestripboek 7 | E47: Pezige Peekah
B48: 1993-06-01 | C48: 8 | D48: Familiestripboek 8 | E48: De Galapagos gassen
B49: 1994-06-01 | C49: 9 | D49: Familiestripboek 9 | E49: De mollige marmotten
B50: 1995-05-24 | C50: 10 | D50: Familiestripboek 10 | E50: 50 jaar Geschiedenis in strip | F50: Met diverse gelukwensen nav 50 jaar Suske en Wiske, 'Grappen van Lambik' en 2 lange verhalen.
B51: 1996-05-01 | C51: 11 | D51: Familiestripboek 11 | E51: De macabere macralles
B52: 1996-05-16 | C52: - | D52: Super vakantiestrips | E52: De witte gems
B53: 1997-03-01 | C53: 1 | D53: Lambik Familiestripboek 1 | E53: De interim-job | F53: Met 'Grappen van Lambik', ook met lange verhalen.
B54: 1997-05-01 | C54: 12 | D54: Familiestripboek 12 | E54: De stenen broden
E55: Circus zere knie
E56: De lek in het dak
B57: 1998-04-01 | C57: 13 | D57: Familiestripboek 13 | E57: Fata Morgana
B58: 1998-11-18 | C58: 2 | D58: Lambik Familiestripboek 2 | E58: Hotel Holiday | F58: Met 'Grappen van Lambik', ook met lange verhalen.
E59: Klinkende munt (met Suske en Wiske)
B60: 1999-03-31 | C60: 14 | D60: Familiestripboek 14 | E60: Sprookjesnacht in het Zwin
E61: De mysterieuze cirkel
E62: Elektro-aliens
B63: 2000-06-14 | C63: 15 | D63: Familiestripboek 15 | E63: Telekinese
E64: De space-party
E65: Opvoedingsplan B
B66: 2001-06-20 | C66: 16 | D66: Familiestripboek 16 | E66: Operatie woestijn | F66: Ook met lang verhaal.
E67: De pijnloze tandarts
E68: De UFO
E69: De buitenaardse buis
B70: 2003-06-16 | C70: 1 | D70: X-Large 1 | E70: Hippus het zeeveulen | F70: Ook met 3 lange verhalen.
B71: 2004-06-16 | C71: 2 | D71: X-Large 2 | E71: De koppige kluizenaar | F71: Ook met 3 lange verhalen.
B72: 2005-06-15 | C72: 3 | D72: X-Large 3 | E72: De guitige gast | F72: Ook met 3 lange verhalen.
B73: 2006-06-14 | C73: 4 | D73: X-Large 4 | E73: De gouden bloem | F73: Ook met 3 lange verhalen.
A75: 2 | B75: Reclame bundelingen:
B76: Datum | C76: Nr | D76: Titel | E76: Verhalen | F76: Voor | G76: Opmerkingen
B77: 1975-11-01 | D77: Extra Dik Album | E77: De snoezige Snowijt | F77: Centra Nederland
E78: Het vliegende hart
E79: De vergeten vallei
B80: 1977-01-01 | D80: Speciale Sun margarine uitgave | E80: Toffe Tiko | F80: Sun | G80: Keerdruk: album is van twee kanten te lezen.
E81: Het verborgen volk
B82: 1981-03-12 | D82: De vergeten vallei | E82: De vergeten vallei | F82: Solo | G82: Folder puzzel en prijsvraag.
D83: De lollige lakens | E83: De lollige lakens
B84: 1986-01-01 | C84: 1 | D84: Extra 1 | E84: De bevende berken | F84: Hema | G84: 2e druk 1987
E85: De gouden bloem
B86: 1986-01-01 | C86: 2 | D86: Extra 2 | E86: De stenen broden | F86: Hema | G86: 2e druk 1987
E87: De zilveren appels
B88: 1987-01-01 | C88: 3 | D88: Extra 3 | E88: Sprookjesnacht aan zee | F88: Hema
E89: De witte gems
B90: 1987-01-01 | C90: 4 | D90: Extra 4 | E90: Het geheim van de Kalmthoutse heide | F90: Hema
E91: Het onbekende eiland
B92: 1987-01-01 | C92: 5 | D92: Extra 5 | E92: Het verloren zwaard | F92: Hema
E93: Hippus het Zeeveulen
B94: 1987-01-01 | C94: 6 | D94: Extra 6 | E94: Het verborgen volk | F94: Hema
E95: De lollige lakens
B96: 1987-01-01 | D96: Groot grappenboek | E96: Fragmenten uit diverse S&W albums | F96: Hema | G96: Bij veel fragmenten zijn plaatjes bijgetekend en soms is ook de tekst gewijzigd.
B97: 1988-01-01 | C97: 1 | D97: Vrij tijd boek | E97: Suske en Wiske tegen de ZZZ | F97: Wipp Express
B98: 1988-01-01 | C98: 2 | D98: Extra 7 | E98: De vergeten vallei | F98: Hema
E99: Het vliegende hart
B100: 1988-01-01 | D100: Extra 8 | E100: De snoezige Snowijt | F100: Hema
E101: Toffe Tiko
B102: 1991-01-01 | C102: 2 | D102: Vrije tijd boek | E102: Bosspel | F102: Wipp Express
E103: De Tiroolse Trawanten
B104: 1991-01-01 | D104: Super vakantiestripboek | E104: Sprookjesnacht in het Zwim | F104: Super supermarkt | G104: Vlaamse versie met 6 en Nederlandse versie met 5 lambik gags.
B105: 1991-04-22 | D105: Strip Mix 2 | E105: Bosspel | F105: Bruna
B106: 1992-01-01 | D106: Familiestripboek | E106: Spruiten voor Sprotje | F106: Belgische Behang speciaalzaken | G106: HC. Met 10 Pagina`s raadsels en spellen. Verhalen identiek aan Familiestripboek 6 (1991).
B107: 1992-04-20 | D107: Strip Mix 3 | E107: Tegen de ZZZ | F107: Bruna
B108: 1992-06-11 | C108: 1 | D108: Het grote vakantiestripboek | E108: De witte gems | F108: ECI
B109: 1993-06-18 | C109: 2 | D109: Het dikke vakantiestripboek | E109: De dappere duinduikers | F109: ECI
B110: 1994-06-15 | C110: 3 | D110: Het leukste vakantiestripboek | E110: Het monster van Lochness | F110: ECI
B111: 1994-09-15 | D111: Strips feestelijk gebundeld | E111: Het onbekende eiland | F111: Bruna
B112: 1995-04-10 | D112: Knokken in Knossos | E112: Knokken in Knossos | F112: Persil | G112: HC; oblong.
D113: De witte gems | E113: De witte gems
B114: 1995-06-05 | C114: 4 | D114: Het vrolijke vakantiestripboek | E114: Spruiten voor Sprotje | F114: ECI | G114: Met: 'De Grappen van Lambik'.
B115: 1996-04-20 | D115: Strip Mix 5 | E115: Bosspel | F115: Bruna
B116: 1996-06-13 | C116: 5 | D116: Het zomer vakantiestripboek | E116: Pezige Peekah | F116: ECI
B117: 2014-02-15 | D117: De Gouden Collectie | E117: Het vervloekte venster | F117: AD | G117: Bonusalbum voor intekenaars 'De Gouden Collectie.
E118: De tragische Tante
B119: 2015-09-11 | D119: De Strafste Strips 70 | E119: De coole Kastaar | F119: Het Laatste Nieuws | G119: Afsluitend deel van reeks van 70 albums.
E120: Het vurige Vitamitje
B121: 2016-09-16 | D121: Zotte Zomeractie 70 | E121: De kribbige krab | F121: Het Laatste Nieuws | G121: Afsluitend deel van reeks van 70 albums.
E122: De toetercup
B123: 2020-12-02 | C123: 8 | D123: Dubbeldik! | E123: Het mopperende masker | F123: Trekpleister | G123: Ook met lang verhaal.
E124: De blikken blutser
A126: 3 | B126: Bundelingen in de Rode Reeks (reguliere albums met 2 kortverhalen)
B127: Datum | C127: Nr | D127: Titel | E127: Verhalen | F127: Opmerkingen
B128: 1982-01-01 | C128: 188 | D128: Rode Reeks nr 188 | E128: De snoezige Snowijt
E129: Het vliegende hart
B130: 1982-12-01 | C130: 191 | D130: Rode Reeks nr 191 | E130: De vergeten vallei
E131: Toffe Tiko
B132: 1983-03-01 | C132: 193 | D132: Rode Reeks nr 193 | E132: Hippus het zeeveulen
E133: Het verborgen volk
B134: 2024-06-02 | C134: 290 | D134: Rode Reeks nr 290 | E134: De blikken blutser
E135: Het mopperende masker
B136: 2016-04-01 | C136: 334 | D136: Rode Reeks nr 334 | E136: Expeditie Robikson
E137: Taxi Tata

Sheet Lambik
B1: De Grappen van Lambik overzichts lijst | D1: Door Jack Moonen en Erik Strijbos | J1: blauwe titels bestaan dubbel, | K1: gele hebben geen titel.
B2: Grap nr. | C2: Titel | D2: Datum 1e publicatie | E2: De Bond nr. | F2: La Cité publicatie datum | G2: Oude reeks album nr. | H2: Oude reeks pagina nr. | I2: Revue nr. | J2: Revue publicatie datum | K2: Ciso 27 pagina nr. | L2: Weekblad nr. | M2: Weekblad publicatie datum | N2: Weekblad mini-album pagina nr. | O2: Stripschrift special 1995 pagina nr. | P2: Lambik-box album nr. | Q2: Lambik-box pagina nr. | R2: Nieuwe reeks album nr. | S2: Nieuwe reeks pagina nr. | T2: Haagse Courant publicatie datum | U2: GvA-BvL 67 pagina nr. | V2: GvA-BvL 85 pagina nr. | W2: Fenix 50 pagina nr. | X2: Fenix 65 pagina nr. | Y2: Jetix nr. | Z2: Jetix publicatie datum | AA2: Jetix pagina nr. | AB2: Tekenaar | AC2: Inkter | AD2: Bijzonderheden | AE2: Tekst begint met
B3: 1 | C3: Als ’t maar in orde komt ! | D3: 1954-01-24 | E3: 4 | G3: 1 | H3: 1 | I3: 6 | J3: 1962-02-10 | P3: 1 | Q3: 2 | AB3: Willy Vandersteen | AC3: Karel Boumans | AD3: Hergepubliceerd in de Willy Vandersteen biografie ‘De Bruegel van het beeldverhaal’ uit 1994 (De Bond kranten-versie) | AE3: Lambik, de bel van tante Sidonie is kapot! Ik zal mijn helper sturen hoor,
B4: 2 | C4: De koppige zieke. | D4: 1954-01-31 | E4: 5 | G4: 1 | H4: 2 | I4: 3 | J4: 1962-01-20 | P4: 1 | Q4: 3 | R4: 1 | S4: 3 | U4: 3 | AB4: Willy Vandersteen | AC4: Karel Boumans | AD4: Hergepubliceerd in Versus 17, november 1991 (oude albumreeks versie, nu ingekleurd) | AE4: Terwijl gij mijn radio herstelt, ga ik even boodschappen doen, he Lambik!
AD5: Titelwijziging: ‘De koppige ziekte’ in de nieuwe albumreeks.
B6: 3 | C6: Practisch zijn is alles. | D6: 1954-02-07 | E6: 6 | F6: 1955-09-10 | G6: 1 | H6: 3 | P6: 1 | Q6: 4 | AB6: Willy Vandersteen | AC6: Karel Boumans | AD6: Hergepubliceerd in ‘In de geschiedenis’ voor Taxandriamuseum te Turnhout, 13 december 2003 (oude albumreeks versie) | AE6: Tante Sidonie's fluitketel fluit niet meer, ik ga dat gauw opknappen! Hij
B7: 4 | C7: De nieuwe bolhoed. | D7: 1954-02-14 | E7: 7 | F7: 1955-09-08 | G7: 1 | H7: 4 | P7: 1 | Q7: 5 | AB7: Willy Vandersteen | AC7: Karel Boumans | AD7: Hergepubliceerd in Versus 18, februari 1992 (oude albumreeks versie, nu ingekleurd) | AE7: Sezar, mijn dierbare, ga eens zien wie er belt, en jaag hem weg! 't is een
B8: 5 | C8: Nu wist hij het toch ! | D8: 1954-02-21 | E8: 8 | F8: 1955-09-14 | G8: 1 | H8: 5 | I8: 42 | J8: 1961-10-21 | L8: 33 | M8: 1996-08-07 | P8: 1 | Q8: 6 | R8: 1 | S8: 4 | U8: 4 | AB8: Willy Vandersteen | AC8: Karel Boumans en Willy Vandersteen | AD8: Hergepubliceerd in Suske en Wiske agenda 85-86 Hergepubliceerd in familiestripboek juni 1989 | AE8: Sezar, ik moet wat meer beweging nemen. Breng me een boek om in te bladeren!
AD9: Hergepubliceerd in Super vakantiestripboek juni 1991
AD10: Hergepubliceerd in weekblad 35, 21 augustus 1996
B11: 6 | C11: De onfeilbare remedie. | D11: 1954-02-28 | E11: 9 | G11: 1 | H11: 6 | I11: 39 | J11: 1961-09-30 | P11: 1 | Q11: 7 | AB11: Willy Vandersteen | AC11: Karel Boumans | AE11: Eens goed laten verschrikken! Dat helpt soms! Luister, ge plaatst een
B12: 7 | C12: Het toppunt van naastenliefde. | D12: 1954-03-07 | E12: 10 | F12: 1955-09-12 | G12: 1 | H12: 7 | P12: 1 | Q12: 8 | AB12: Willy Vandersteen | AC12: Karel Boumans | AE12: Directeur, Suske en Wiske vallen de mensen lastig! Als u wilt zullen wij uw
B13: 8 | C13: De dierenvriend. | D13: 1954-03-21 | E13: 12 | F13: 1955-09-15 | G13: 1 | H13: 8 | P13: 1 | Q13: 9 | R13: 1 | S13: 5 | U13: 5 | AB13: Willy Vandersteen | AC13: Karel Boumans | AD13: Hergepubliceerd in Suske en Wiske agenda 85-86 Hergepubliceerd in familiestripboek juni 1989 | AE13: Foei, welke dierenbeul heeft dat nu gedaan! Ik moet een arm hondebeestje
AD14: Hergepubliceerd in Super vakantiestripboek juni 1991
B15: 9 | C15: Waar een wil is, is een weg. | D15: 1954-03-28 | E15: 13 | G15: 1 | H15: 9 | I15: 2 | J15: 1962-01-13 | P15: 1 | Q15: 10 | AB15: Willy Vandersteen | AC15: Karel Boumans | AE15: Tante Sidonie is ziek. We zijn een bloemetje voor haar gaan kopen! Ga eens
B16: 10 | C16: Men moet niet gemakzuchtig zijn ! | D16: 1954-04-04 | E16: 14 | G16: 1 | H16: 10 | P16: 1 | Q16: 11 | AB16: Willy Vandersteen | AC16: Karel Boumans | AE16: Ik krijg uw kleerkast niet open, Sidonieke! We zullen ze meenemen naar
B17: 11 | C17: Goede raad voor anderen. | D17: 1954-04-11 | E17: 15 | G17: 1 | H17: 12 | P17: 1 | Q17: 13 | AB17: Willy Vandersteen | AC17: Karel Boumans | AD17: Hergepubliceerd in Suske en Wiske agenda 85-86 Hergepubliceerd in Versus 47, oktober 1999 (oude albumreeks versie, nu ingekleurd) | AE17: Zeg, Sidonie, zijt gij niet wat te oud om dat nog te leren? Ga maar op een
B18: 12 | C18: Van je vrienden moet je ’t hebben ! | D18: 1954-04-18 | E18: 16 | G18: 2 | H18: 4 | I18: 48 | J18: 1961-12-02 | P18: 2 | Q18: 4 | R18: 1 | S18: 12 | U18: 12 | AB18: Willy Vandersteen | AC18: Karel Boumans | AD18: Verfilmd als ‘De broekspijpen’ op de ‘Elke dag een avontuur’ DVD. | AE18: 35 FR. voor deze broek! Kom hier! Ik ben candidaat! De rechtse pijp
B19: 13 | C19: Het uithangbord. | D19: 1954-04-25 | E19: 17 | G19: 1 | H19: 11 | I19: 31 | J19: 1961-08-05 | L19: 33 | M19: 1996-08-07 | P19: 1 | Q19: 12 | R19: 1 | S19: 6 | U19: 6 | AB19: Willy Vandersteen | AC19: Karel Boumans en Willy Vandersteen | AD19: Hergepubliceerd in Suske en Wiske agenda 85-86 Hergepubliceerd in ‘Het avonturen- en spellenboek’ van Nuts en Lion uit 1987, pagina 31. (geheel hertekende versie door Eugeen Goossens met andere titel: ‘Schrappen wat niet past’) | AE19: Ja Mr Snoek, ik ga een handeltje beginnen! Dat woord "Hier" is toch
AD20: Hergepubliceerd in Versus 4, augustus 1988. Meerdere versies in dit nummer:
AD21: (oude albumreeks versie)
AD22: (oude albumreeks versie, nu herletterd en gedeeltelijk hertekend door Eric de Rop)
AD23: (geheel hertekende versie door Eugeen Goossens met andere titel: ‘Schrappen wat niet past’)
AD24: Hergepubliceerd in familiestripboek juni 1989
AD25: Hergepubliceerd in Super vakantiestripboek juni 1991
AD26: Hergepubliceerd in weekblad 35, 21 augustus 1996
AD27: Hergepubliceerd in Versus 48, december 1999. Meerdere versies in dit nummer:
AD28: (Revue versie)
AD29: (geheel hertekende versie door Eugeen Goossens met andere titel: ‘Schrappen wat niet past’)
AD30: Hergepubliceerd in X-large 2004
AD31: Verfilmd als ‘Verse vis’ op de ‘Elke dag een avontuur’ DVD.
AD32: Zie Versus 4, 27, 48 en 93 voor meer informatie.
B33: 14 | C33: De inspiratie van de kunstenaar. | D33: 1954-05-02 | E33: 18 | F33: 1955-09-17 | G33: 1 | H33: 13 | I33: 8 | J33: 1962-02-24 | P33: 1 | Q33: 14 | AB33: Willy Vandersteen | AC33: Karel Boumans | AE33: Sezar, dat is iets voor mijn artistenziel, zie! Eerst gaan we nog naar Sidonie
B34: 15 | C34: De heldhaftige held. | D34: 1954-05-09 | E34: 19 | F34: 1955-09-16 | G34: 1 | H34: 14 | P34: 1 | Q34: 15 | R34: 1 | S34: 7 | U34: 7 | AB34: Willy Vandersteen | AC34: Karel Boumans | AD34: Hergepubliceerd in Versus 46, juli 1999 (oude albumreeks versie, nu ingekleurd) | AE34: De bel! Laat ze maar wat wachten! We hebben tijd genoeg! Hij zal niet thuis
AD35: Hergepubliceerd in X-large 2004
B36: 16 | C36: Kleine geschenken onderhouden de vriendschap. | D36: 1954-05-16 | E36: 20 | G36: 1 | H36: 15 | I36: 43 | J36: 1961-10-28 | P36: 1 | Q36: 16 | AB36: Willy Vandersteen | AC36: Karel Boumans | AE36: Wel, Lambik, komt ge niet naar het verjaarsfeestje van
B37: 17 | C37: De verrassingen der verstrooidheid. | D37: 1954-05-23 | E37: 21 | F37: 1955-09-18 | G37: 1 | H37: 16 | P37: 1 | Q37: 17 | AB37: Willy Vandersteen | AC37: Karel Boumans | AD37: Met cameo Leonard Snoek | AE37: Ik zal ze liever meenemen naar mijn atelier... Maar is ze niet te zwaar?
B38: 18 | C38: Alle begin is moeilijk. | D38: 1954-05-30 | E38: 22 | F38: 1955-09-20 | G38: 1 | H38: 17 | I38: 41 | J38: 1961-10-14 | L38: 33 | M38: 1996-08-07 | P38: 1 | Q38: 18 | AB38: Willy Vandersteen | AC38: Karel Boumans | AD38: Hergepubliceerd in Suske en Wiske agenda 85-86 Hergepubliceerd in familiestripboek juni 1989 | AE38: Sezar, is dat een "DO"? 'k weet niet, Directeur maar 't klinkt afschuwelijk!
AD39: Hergepubliceerd in Super vakantiestripboek juni 1991
AD40: Hergepubliceerd in het Eindhovens Dagblad, in het Brabants Dagblad, in het Helmonds Dagblad en in het Nieuwsblad op 30 november en 1 december 1990 (oude albumreeks versie, nu herletterd en gedeeltelijk hertekend door Eric de Rop met andere titel: ‘Kunst is duur’)
AD41: Hergepubliceerd in weekblad 35, 21 augustus 1996
AD42: Hergepubliceerd in Versus 58, juli 2002 (Eindhovens Dagblad versie)
AD43: Hergepubliceerd in Versus 64, december 2003 (Eindhovens Dagblad versie)
B44: 19 | C44: De overwinnaar. | D44: 1954-06-06 | E44: 23 | G44: 1 | H44: 18 | I44: 33 | J44: 1961-08-19 | P44: 1 | Q44: 19 | AB44: Willy Vandersteen | AC44: Karel Boumans en Willy Vandersteen | AD44: Hergepubliceerd in Suske en Wiske agenda 85-86 | AE44: Sezar, ik win die race zeker met 1 seconde voorsprong! Ai! Ik ben getro en!
B45: 20 | C45: Een lesje in hoffelijkheid. | D45: 1954-06-13 | E45: 24 | G45: 1 | H45: 19 | P45: 1 | Q45: 20 | AB45: Willy Vandersteen | AC45: Karel Boumans | AD45: Hergepubliceerd in Versus 21, november 1992 (oude albumreeks versie, nu ingekleurd) | AE45: En hoepel nu maar op, dat ik naar het café kan gaan! Wat een belediging! En
B46: 21 | C46: De onmisbare bril. | D46: 1954-06-20 | E46: 25 | G46: 1 | H46: 20 | I46: 34 | J46: 1961-08-26 | P46: 1 | Q46: 21 | R46: 1 | S46: 8 | U46: 8 | AB46: Willy Vandersteen | AC46: Karel Boumans | AD46: Hergepubliceerd in X-large 2004 | AE46: Uit de weg, mijn soldeerbout mag niet afkoelen! Oef! Het lood smelt nog! Nu
B47: 22 | C47: Lambik laat zich niet beetnemen. | D47: 1954-06-27 | E47: 26 | G47: 1 | H47: 21 | I47: 38 | J47: 1961-09-23 | P47: 1 | Q47: 22 | R47: 1 | S47: 9 | U47: 9 | AB47: Willy Vandersteen | AC47: Karel Boumans | AD47: Hergepubliceerd in Suske en Wiske agenda 85-86 Hergepubliceerd in ‘Welkom in de wereld van Suske en Wiske’ voor Casino-Kursaal te Oostende, 2 september 1990 (oude albumreeks versie, nu ingekleurd) | AE47: Lambik is er! Kruip er rap in, hier is de propere handdoek! Mijn uitvinding,
AD48: Hergepubliceerd in Versus 20, september 1992 (oude albumreeks versie, nu ingekleurd)
AD49: Verfilmd als ‘De wasmachine’ op de ‘Elke dag een avontuur’ DVD.
B50: 23 | C50: De optimist. | D50: 1954-07-04 | E50: 27 | G50: 1 | H50: 22 | P50: 1 | Q50: 23 | AB50: Willy Vandersteen | AC50: Karel Boumans | AD50: Hergepubliceerd in ‘Het avonturen- en spellenboek’ van Nuts en Lion uit 1987, pagina 30. (geheel hertekende versie door Eugeen Goossens) | AE50: Welk weer voorspelt de kalender, Sezar? ...snik...snik...snik... Waarom snikt
B51: 24 | C51: De familiefoto. | D51: 1954-07-11 | E51: 28 | G51: 1 | H51: 23 | I51: 35 | J51: 1961-09-02 | P51: 1 | Q51: 24 | AB51: Willy Vandersteen | AC51: Karel Boumans | AD51: Hergepubliceerd in Suske en Wiske agenda 85-86 Hergepubliceerd in familiestripboek juni 1989 | AE51: Met wat komt ge daar nu weer aangesleurd? Ik ben aan 't schoonmaken! Gaat u
AD52: Hergepubliceerd in Super vakantiestripboek juni 1991
AD53: Hergepubliceerd in Versus 22, februari 1993 (oude albumreeks versie, nu ingekleurd)
B54: 25 | C54: Een nieuwe ster aan de wielerhemel. | D54: 1954-07-18 | E54: 29 | G54: 1 | H54: 24 | P54: 1 | Q54: 25 | AB54: Willy Vandersteen | AC54: Karel Boumans | AE54: Juffrouw Sidonie, houd uw hart vast, hé!... Mannen, wat vindt ge van
B55: 26 | C55: Een geniale uitvinding. | D55: 1954-07-25 | E55: 30 | F55: 1955-09-21 | G55: 1 | H55: 25 | I55: 37 | J55: 1961-09-16 | P55: 1 | Q55: 26 | AB55: Willy Vandersteen | AC55: Karel Boumans | AE55: Ze knutselen een radioke ineen! 't Zal wat worden! Ge moet ze niet
B56: 27 | C56: De moderne methode. | D56: 1954-08-01 | E56: 31 | F56: 1955-09-22 | G56: 1 | H56: 26 | P56: 1 | Q56: 27 | AB56: Willy Vandersteen | AC56: Karel Boumans | AE56: Ja, Lambik, dat is nu ons gepatenteerd systeem! Gepatenteerd of niet, ik ga
B57: 28 | C57: Bang voor de regen. | D57: 1954-08-15 | E57: 32 | G57: 1 | H57: 27 | I57: 32 | J57: 1961-08-12 | P57: 1 | Q57: 28 | R57: 1 | S57: 10 | U57: 10 | AB57: Willy Vandersteen | AC57: Karel Boumans | AD57: Hergepubliceerd in Versus 19, juni 1992 (oude albumreeks versie, nu ingekleurd) | AE57: Is me dat een vacantie aan zee! 't Regent steeds maar dat 't giet! Sidonie,
B58: 29 | C58: De jager en zijn hond. | D58: 1954-09-05 | E58: 33 | G58: 1 | H58: 28 | I58: 36 | J58: 1961-09-09 | P58: 1 | Q58: 29 | AB58: Willy Vandersteen | AC58: Karel Boumans | AD58: Hergepubliceerd in Suske en Wiske agenda 85-86 Hergepubliceerd in familiestripboek juni 1989 (geheel hertekend door Eric de Rop) | AE58: Apport! Apport naar 't baaske! Ik ga jagen, en leer mijn hond het wild
AD59: Hergepubliceerd in Super vakantiestripboek juni 1991 (geheel hertekend door Eric de Rop)
B60: 30 | C60: De overtuigende demonstratie. | D60: 1954-09-12 | E60: 34 | G60: 1 | H60: 29 | I60: 40 | J60: 1961-10-07 | P60: 1 | Q60: 30 | AB60: Willy Vandersteen | AC60: Karel Boumans | AD60: Hergepubliceerd in Versus 48, december 1999 (oude albumreeks versie, nu ingekleurd) | AE60: Maar Lambik, het regent toch niet!? Ik probeer mijn nieuwe uitvinding! De
B61: 31 | C61: Proper is proper. | D61: 1954-09-19 | E61: 35 | G61: 1 | H61: 30 | P61: 1 | Q61: 31 | AB61: Willy Vandersteen | AC61: Karel Boumans | AE61: Ha! Wie we daar hebben! Ik heb een paard gekocht! Komt maar eens zien! En ik
B62: 32 | C62: De goede bloed. | D62: 1954-09-26 | E62: 36 | G62: 1 | H62: 31 | P62: 1 | Q62: 32 | AB62: Willy Vandersteen | AC62: Karel Boumans | AD62: Hergepubliceerd in Versus 45, maart 1999 (oude albumreeks versie, nu ingekleurd) | AE62: Och, die blinde man is onpasselijk geworden! We zullen hem gauw naar tante
B63: 33 | C63: Een spook in huis. | D63: 1954-10-03 | E63: 37 | G63: 2 | H63: 3 | I63: 23 | J63: 1962-06-09 | P63: 2 | Q63: 3 | R63: 1 | S63: 11 | U63: 11 | AB63: Willy Vandersteen | AC63: Karel Boumans | AE63: Zet vlug mijn helm op, ik heb dat harnas in een uitverkoop gekocht om Sidonie
B64: 34 | C64: Aan het gevaar ontsnapt. | D64: 1954-10-10 | E64: 38 | G64: 2 | H64: 30 | I64: 47 | J64: 1961-11-25 | P64: 2 | Q64: 30 | R64: 1 | S64: 21 | U64: 21 | AB64: Willy Vandersteen | AC64: Karel Boumans | AD64: Hergepubliceerd in Versus 26, februari 1994 (Revue versie) | AE64: Verboden te parkeren! We doen of we 't niet gezien hebben! En als er een
AD65: Hergepubliceerd in Versus 29, november 1994 (Revue versie)
B66: 35 | C66: De opmars van Boduognat. | D66: 1954-10-17 | E66: 39 | G66: 2 | H66: 32 | P66: 2 | Q66: 32 | AB66: Willy Vandersteen | AC66: Karel Boumans | AE66: Ik ga mee in een historische stoet... als Boduognat... En nu nog een wapen!
B67: 36 | C67: De uitvinding van het wiel | D67: 1954-10-24 | E67: 40 | O67: 1 | P67: 9 | Q67: 2 | W67: 2 | AB67: Willy Vandersteen | AC67: Karel Boumans | AE67: Ik rijd ineens binnen! Dat gaat niet, Wiske! De dorpel! Kondt ge dat niet
B68: 37 | C68: Lopen is gezond. | D68: 1954-10-31 | E68: 41 | G68: 2 | H68: 26 | P68: 2 | Q68: 26 | AB68: Willy Vandersteen | AC68: Karel Boumans | AD68: Hergepubliceerd in Rozenkrans Almanak 1963, pagina 47 | AE68: Lambik wordt veel te dik! Help hem eens wat sport doen! Een spoedbestelling
B69: 38 | C69: Verkeerd begrepen. | D69: 1954-11-07 | E69: 42 | G69: 2 | H69: 5 | P69: 2 | Q69: 5 | AB69: Willy Vandersteen | AC69: Karel Boumans | AE69: St Niklaas doet straks zijn intrede, tante. Mogen we hem onze spaarpot
B70: 39 | C70: De gevaarlijke tocht. | D70: 1954-11-14 | E70: 43 | G70: 2 | H70: 7 | I70: 44 | J70: 1961-11-04 | P70: 2 | Q70: 7 | R70: 1 | S70: 13 | U70: 13 | AB70: Willy Vandersteen | AC70: Karel Boumans | AD70: Hergepubliceerd in Rozenkrans Almanak 1964, pagina 43 | AE70: Sidonie, weet ge geen winkel waar ze luchtballons verkopen? Van lotje getikt?
AD71: Hergepubliceerd in X-large 2004
B72: 40 | C72: De ongewenste gast. | D72: 1954-11-21 | E72: 44 | G72: 2 | H72: 28 | I72: 49 | J72: 1961-12-09 | P72: 2 | Q72: 28 | R72: 1 | S72: 20 | U72: 20 | AB72: Willy Vandersteen | AC72: Karel Boumans | AE72: Lambik, zoudt ge niet naar huis gaan en uw werk doen? Ik? Bijlange niet!
B73: 41 | C73: Veel moeite voor niets. | D73: 1954-11-28 | E73: 45 | G73: 2 | H73: 22 | P73: 2 | Q73: 22 | AB73: Willy Vandersteen | AC73: Karel Boumans | AE73: Een Vliegende Schotel! Telefoneer vlug naar Lambik, Wiske hij kan nog
B74: 42 | C74: Lambik kan alles... | D74: 1954-12-05 | E74: 46 | G74: 2 | H74: 8 | P74: 2 | Q74: 8 | AB74: Willy Vandersteen | AC74: Karel Boumans | AD74: Hergepubliceerd in Versus 88, december 2009 (oude albumreeks versie) | AE74: Lambik! de bel!! ... smijt ze buiten... heu, laat ze binnen, wil ik zeggen...
B75: 43 | C75: ... en beter dan een ander. | D75: 1954-12-12 | E75: 47 | G75: 2 | H75: 9 | I75: 9 | J75: 1962-03-03 | P75: 2 | Q75: 9 | AB75: Willy Vandersteen | AC75: Karel Boumans | AE75: Tante, ge kunt met zo'n verfrol precies niet goed uit de voeten, he!
B76: 44 | C76: De grote kerstboom. | D76: 1954-12-24 | E76: 49 | G76: 2 | H76: 11 | I76: 51 | J76: 1961-12-23 | P76: 2 | Q76: 11 | R76: 1 | S76: 15 | U76: 15 | AB76: Willy Vandersteen | AC76: Karel Boumans | AD76: Titelwijziging: ‘Een grote kerstboom’ in de nieuwe albumreeks. | AE76: 'k Ga een kerstboom kappen! Gaan de kinderen mee? Hoera, vrienden! Mijn
B77: 45 | C77: Vrede op aarde | D77: 1954-12-31 | E77: 50 | O77: 2 | P77: 9 | Q77: 3 | W77: 3 | AB77: Willy Vandersteen | AC77: Karel Boumans | AE77: Wat vindt ge van mijn lichtbak? Dat is beter als nieuwjaarskaartjes, hé!
B78: 46 | C78: De meester-banketbakker. | D78: 1955-01-07 | E78: 1 | G78: 2 | H78: 24 | I78: 16 | J78: 1962-04-21 | P78: 2 | Q78: 24 | AB78: Willy Vandersteen | AC78: Karel Boumans en Willy Vandersteen | AE78: Dat is lief, Wiske dat ge me komt helpen die taart bakken! Breng nu de bloem
B79: 47 | C79: Wie goedgelovig is, komt vaak bedrogen uit ! | D79: 1955-01-14 | E79: 2 | G79: 2 | H79: 10 | P79: 2 | Q79: 10 | R79: 1 | S79: 14 | U79: 14 | AB79: Willy Vandersteen | AC79: Karel Boumans | AE79: Wat nu?! Ze hebben in de radio gezegd dat het zal sneeuwen...
B80: 48 | C80: De ballon blies sterker ! | D80: 1955-01-21 | E80: 3 | G80: 2 | H80: 25 | P80: 2 | Q80: 25 | R80: 1 | S80: 18 | U80: 18 | AB80: Willy Vandersteen | AC80: Karel Boumans | AD80: Titelwijziging: ‘De ballon blies harder’ in de nieuwe albumreeks. | AE80: Hier zie, omdat ge zo goed geholpen hebt moogt ge iets gaan kopen! Joepieee!
B81: 49 | C81: Een eenvoudige oplossing. | D81: 1955-01-28 | E81: 4 | G81: 2 | H81: 23 | I81: 12 | J81: 1962-03-24 | P81: 2 | Q81: 23 | AB81: Willy Vandersteen | AC81: Karel Boumans | AD81: Met cameo Leonard en Marie Snoek | AE81: Wat gebeurt er? Ga hem terug vullen en begin opnieuw, Sezar! Is het zo beter,
B82: 50 | C82: Win dan al een prijs ! | D82: 1955-02-04 | E82: 5 | G82: 2 | H82: 13 | I82: 46 | J82: 1961-11-18 | P82: 2 | Q82: 13 | AB82: Willy Vandersteen | AC82: Karel Boumans | AE82: Wacht hier even! Ik ga mijn prijs van de tombola afhalen! Wat is dat voor
B83: 51 | C83: Het nadeel van het voordeel. | D83: 1955-02-11 | E83: 6 | G83: 2 | H83: 18 | P83: 2 | Q83: 18 | AB83: Willy Vandersteen | AC83: Karel Boumans | AE83: Lambik, we hebben een verrassing voor u! Ogen dicht! De automatische
B84: 52 | C84: Poets wederom poets. | D84: 1955-02-25 | E84: 8 | G84: 2 | H84: 20 | P84: 2 | Q84: 20 | AB84: Willy Vandersteen | AC84: Karel Boumans en Willy Vandersteen | AD84: Hergepubliceerd in Rozenkrans Almanak 1964, pagina 15 | AE84: Waarom moest ik nu zo vlug komen!? Om mijn nieuwe uitvinding te proberen,
B85: 53 | C85: Een kleine verrassing. | D85: 1955-03-04 | E85: 9 | G85: 2 | H85: 6 | I85: 52 | J85: 1961-12-30 | P85: 2 | Q85: 6 | AB85: Willy Vandersteen | AC85: Karel Boumans | AE85: Och arme, wat moeten die vogeltjes kou lijden met zo'n weer! Zeg, Lambik, die
B86: 54 | C86: Zes en zes is twaalf. | D86: 1955-03-11 | E86: 10 | G86: 2 | H86: 15 | I86: 25 | J86: 1962-06-23 | P86: 2 | Q86: 15 | R86: 1 | S86: 17 | U86: 17 | AB86: Willy Vandersteen | AC86: Karel Boumans | AD86: Titelwijziging: ‘Zes plus zes is twaalf’ in de nieuwe albumreeks. | AE86: Tante we zijn verrijkt met 6 kattejongskes! Hm! dat is vervelend! Weet ge
B87: 55 | C87: De wonderbare oogst. | D87: 1955-03-18 | E87: 11 | G87: 2 | H87: 12 | I87: 13 | J87: 1962-03-31 | P87: 2 | Q87: 12 | R87: 1 | S87: 16 | U87: 16 | AB87: Willy Vandersteen | AC87: Karel Boumans | AE87: Directeur, hier is die speelgoeddoos die ge voor Suskes verjaardag besteld
B88: 56 | C88: Een fiets dient om te fietsen. | D88: 1955-03-25 | E88: 12 | G88: 2 | H88: 21 | P88: 2 | Q88: 21 | AB88: Willy Vandersteen | AC88: Karel Boumans | AE88: Sezar, het is vandaag mijn verjaardag, ge moogt mij eens goed vertroetelen!
B89: 57 | C89: Lambik heeft beet. | D89: 1955-04-01 | E89: 13 | G89: 2 | H89: 27 | P89: 2 | Q89: 27 | R89: 1 | S89: 19 | U89: 19 | AB89: Willy Vandersteen | AC89: Karel Boumans | AE89: Bijten ze, Lambik? Ik heb al een witviske, en een kastrol met 'n gat erin.
B90: 58 | C90: Bevel is bevel. | D90: 1955-04-08 | E90: 14 | G90: 2 | H90: 16 | P90: 2 | Q90: 16 | AB90: Willy Vandersteen | AC90: Karel Boumans | AE90: En komen de klokken van Rome nog voor u? Nee, wij zijn al te groot geworden,
B91: 59 | C91: Slachtoffer der naastenliefde. | D91: 1955-04-22 | E91: 16 | G91: 2 | H91: 2 | P91: 2 | Q91: 2 | AB91: Willy Vandersteen | AC91: Karel Boumans | AD91: Hergepubliceerd in Rozenkrans Almanak 1963, pagina 15 | AE91: Hé! Een kat aan Lambiks deur! Er hangt een briefje aan! Toe ja, Lambik! We
B92: 60 | C92: Vele handen maken het werk licht. | D92: 1955-04-29 | E92: 17 | G92: 2 | H92: 19 | I92: 10 | J92: 1962-03-10 | P92: 2 | Q92: 19 | AB92: Willy Vandersteen | AC92: Karel Boumans | AE92: Pas op, Suske, ge zult er af vallen! Bah...brrr..er is geen suiker in die
B93: 61 | C93: ’t Is allemaal zo eenvoudig niet ! | D93: 1955-05-06 | E93: 18 | G93: 2 | H93: 29 | I93: 26 | J93: 1962-06-30 | P93: 2 | Q93: 29 | AB93: Willy Vandersteen | AC93: Karel Boumans en Willy Vandersteen | AE93: Lambik heeft een hangmat gekocht! We zullen nog lachen! Allee, Sezar, span
B94: 62 | C94: De mislukte ontsnapping. | D94: 1955-05-13 | E94: 19 | G94: 2 | H94: 31 | I94: 24 | J94: 1962-06-16 | P94: 2 | Q94: 31 | AB94: Willy Vandersteen | AC94: Karel Boumans | AE94: Maar ik kan niet schieten, Suske! Probeer het toch maar eens, Wiske! Ge hebt
B95: 63 | C95: Een redding met hindernissen. | D95: 1955-05-27 | E95: 21 | G95: 2 | H95: 14 | P95: 2 | Q95: 14 | AB95: Willy Vandersteen | AC95: Karel Boumans | AE95: Wees gerust, moederke, we zullen uw poes terugvinden! Daar zie, dat zal ze
B96: 64 | C96: De eer is gered | D96: 1955-06-03 | E96: 22 | O96: 3 | P96: 9 | Q96: 4 | W96: 4 | AB96: Willy Vandersteen | AC96: Karel Boumans | AE96: Och, Lambikske, mijn pompbak is verstopt! Zoudt gij dat niet kunnen op
B97: 65 | C97: De kunsten van een kunstenaar. | D97: 1955-06-10 | E97: 23 | G97: 2 | H97: 17 | P97: 2 | Q97: 17 | AB97: Willy Vandersteen | AC97: Karel Boumans | AE97: Dat luidsprekertje erin en ik ga ze allemaal overblu en! De serenade van
B98: 66 | C98: Als muizen in een val. | D98: 1955-06-17 | E98: 24 | G98: 3 | H98: 29 | P98: 3 | Q98: 29 | R98: 1 | S98: 37 | U98: 37 | AB98: Willy Vandersteen | AC98: Karel Boumans | AD98: Hergepubliceerd in X-large 2004 | AE98: Ha, Lambikje, ben je daar? Sidonieke, als ik beloof dat ik de vloer zal komen
B99: 67 | C99: Ontwaak, verworpenen der aarde | D99: 1955-06-24 | E99: 25 | F99: 1957-08-24 | O99: 4 | P99: 9 | Q99: 5 | W99: 5 | AB99: Willy Vandersteen | AC99: Karel Boumans | AD99: Titelwijziging: ‘Ontwaak, verworpen der Aarde’ in de Lambikbox. | AE99: Lambik, kom gauw! We hebben een lek in de waterleiding in de kelder! Allee,
B100: 68 | C100: Ingewikkeld gaat ook. | D100: 1955-07-01 | E100: 26 | G100: 3 | H100: 30 | P100: 3 | Q100: 30 | R100: 1 | S100: 38 | U100: 38 | AB100: Willy Vandersteen | AC100: Karel Boumans | AD100: Titelwijziging: ‘Moeilijk gaat ook’ in de nieuwe albumreeks. | AE100: Wat betekent al die prikkeldraad voor Lambiks deur!? De baas is iets aan 't
B101: 69 | C101: Stomme wortel | D101: 1955-07-08 | E101: 27 | O101: 5 | P101: 9 | Q101: 6 | W101: 6 | AB101: Willy Vandersteen | AC101: Karel Boumans | AE101: Zou er nu nog iets stommer zijn dan de wortels van zo'n plant? Hoe komt ge
B102: 70 | C102: Behandel de dieren met zachtheid. | D102: 1955-07-15 | E102: 28 | G102: 3 | H102: 27 | P102: 3 | Q102: 27 | AB102: Willy Vandersteen | AC102: Karel Boumans | AE102: Sezar, dat is te zwaar voor ons! We moesten er nog een ezel bij hebben!
B103: 71 | C103: De gieter begoten | D103: 1955-07-22 | E103: 29 | F103: 1957-08-20 | O103: 6 | P103: 9 | Q103: 7 | W103: 7 | AB103: Willy Vandersteen | AC103: Karel Boumans | AE103: Wat doet gij daar Sidonie! Wel... Mijn tuin begieten, tiens! En moet ge dan
B104: 72 | C104: Het beste is niet goed genoeg | D104: 1955-07-29 | E104: 30 | O104: 7 | P104: 9 | Q104: 8 | W104: 8 | AB104: Willy Vandersteen | AC104: Karel Boumans | AE104: Toch wel wreed, he! In mijn tuin groeit nu eens absoluut niets! Jamaar, hebt
B105: 73 | C105: Decoratief | D105: 1955-08-19 | E105: 31 | O105: 8 | P105: 9 | Q105: 9 | W105: 9 | AB105: Willy Vandersteen | AC105: Karel Boumans | AE105: Nu heb ik waarlijk niets om op mijn televisiepost te plaatsen! We zullen eens
B106: 74 | C106: Lambik speelt ten dans | D106: 1955-09-02 | E106: 32 | O106: 9 | P106: 9 | Q106: 10 | W106: 10 | AB106: Willy Vandersteen | AC106: Willy Vandersteen | AE106: Zijt ge gekwetst, Lambik? Nee! Ik ga slangen bezweren, en ik heb u nodig! Ge
B107: 75 | C107: Van de nood een deugd gemaakt | D107: 1955-09-09 | E107: 33 | O107: 10 | P107: 9 | Q107: 11 | W107: 11 | AB107: Willy Vandersteen | AC107: Karel Boumans | AE107: Ik ga me ook zo'n kot maken. Om droog aan mijn deur te kunnen staan! Waar
B108: 76 | C108: Het binnenhalen van de oogst. | D108: 1955-09-16 | E108: 34 | G108: 3 | H108: 8 | P108: 3 | Q108: 8 | AB108: Willy Vandersteen | AC108: Karel Boumans | AE108: Wel, wat gaat er gebeuren? Peren plukken... Mijn oogst binnehalen! Daar in
B109: 77 | C109: Vijf minuten moed | D109: 1955-09-23 | E109: 35 | F109: 1957-08-10 | O109: 11 | P109: 9 | Q109: 12 | W109: 12 | AB109: Willy Vandersteen | AC109: Karel Boumans | AE109: Dat is het toppunt! Met een wasdag mijn wasmachine in panne! ... Tuurlijk,
B110: 78 | C110: De kunst om voordelig in te kopen. | D110: 1955-09-30 | E110: 36 | G110: 3 | H110: 28 | P110: 3 | Q110: 28 | AB110: Willy Vandersteen | AC110: Karel Boumans | AE110: De buis is versleten, en daarom trekt die kachel niet! Kom, naar de winkel!
B111: 79 | C111: Het voordeel van het nadeel. | D111: 1955-10-07 | E111: 37 | G111: 3 | H111: 24 | P111: 3 | Q111: 24 | AB111: Willy Vandersteen | AC111: Karel Boumans | AE111: Ik ben ermee weg! Waar is mijn dierbare bolhoed? Heu... je zit er op, Lambik!
B112: 80 | C112: Een probaat middel. | D112: 1955-10-14 | E112: 38 | G112: 3 | H112: 26 | P112: 3 | Q112: 26 | R112: 1 | S112: 36 | U112: 36 | AB112: Willy Vandersteen | AC112: Karel Boumans | AD112: Titelwijziging: ‘Een afdoend middel’ in de nieuwe albumreeks. | AE112: Sezar, waarom hangt de vlag halfstok? Voor Lambik! Hij heet vreselijke
B113: 81 | C113: Leo leo ordinaris | D113: 1955-10-21 | E113: 39 | O113: 12 | P113: 9 | Q113: 13 | W113: 13 | AB113: Willy Vandersteen | AC113: Karel Boumans | AE113: Baas, er zit een muiske op de zolder... Wat! Telefoneer naar Sidonie... ik ga
B114: 82 | C114: Een mislukt grapje. | D114: 1955-11-04 | E114: 41 | G114: 3 | H114: 22 | P114: 3 | Q114: 22 | R114: 1 | S114: 34 | U114: 34 | AB114: Willy Vandersteen | AC114: Karel Boumans | AE114: Ha, je denkt dat ik niets durf, he Sidonie? Wel ik haal thuis een schaar en
B115: 83 | C115: De spanning werd ondraaglijk. | D115: 1955-11-11 | E115: 42 | G115: 3 | H115: 23 | P115: 3 | Q115: 23 | R115: 1 | S115: 35 | U115: 35 | AB115: Willy Vandersteen | AC115: Karel Boumans | AD115: Verfilmd als ‘Suske gewond’ op de ‘Elke dag een avontuur’ DVD. | AE115: Krampen en gerommel in zijn buik, zegt hij. De dokter komt dadelijk!
B116: 84 | C116: De veilige weg. | D116: 1955-11-18 | E116: 43 | G116: 3 | H116: 12 | P116: 3 | Q116: 12 | R116: 1 | S116: 26 | U116: 26 | AB116: Willy Vandersteen | AC116: Karel Boumans | AE116: Ik ga door het riool naar de markt! Veel veiliger dan in 't druk verkeer!
B117: 85 | C117: Oost west - thuis best. | D117: 1955-11-25 | E117: 44 | G117: 3 | H117: 32 | P117: 3 | Q117: 32 | R117: 1 | S117: 39 | U117: 39 | AB117: Willy Vandersteen | AC117: Karel Boumans | AD117: Titelwijziging: ‘Oost west, thuis best’ in de nieuwe albumreeks. | AE117: Voor uw feestdag, Lambik! Een zetel?... Maar ik heb geen enkele hoek meer
AD118: Hergepubliceerd in X-large 2004
B119: 86 | C119: Straffer dan straf | D119: 1955-12-02 | E119: 45 | F119: 1957-08-14 | O119: 13 | P119: 9 | Q119: 14 | W119: 14 | AB119: Willy Vandersteen | AC119: Karel Boumans | AE119: Nog maar eens proberen... voor de zoveelste keer! Hokus-pokus... 't Is gelukt
B120: 87 | C120: Lambik en de andere ezel | D120: 1955-12-09 | E120: 46 | O120: 14 | P120: 9 | Q120: 15 | W120: 15 | AB120: Willy Vandersteen | AC120: Karel Boumans | AE120: Gaat nu maar gauw slapen kinderen want se ens komt Sint Niklaas! Bij mij
B121: 88 | C121: Van verstrooidheid gesproken ! | D121: 1955-12-16 | E121: 47 | G121: 3 | H121: 4 | P121: 3 | Q121: 4 | R121: 1 | S121: 22 | U121: 22 | AB121: Willy Vandersteen | AC121: Karel Boumans | AE121: Directeur, uw bad staat klaar hoor! Eerste klas Sezar! Dat zal me goed doen
B122: 89 | C122: O denneboom | D122: 1955-12-23 | E122: 48 | O122: 15 | P122: 9 | Q122: 16 | W122: 16 | AB122: Willy Vandersteen | AC122: Karel Boumans | AD122: ="In opinieblad ‘De Linie, Katholiek Weekblad voor Nederland’ werd op 19 december 1952 een voorloper van deze strip gepubliceerd. Deze eerste versie, 'Kerstavond bij Suske en Wiske', telde 6 stroken. Zie "&'Korte Verhalen'!C34&" voor meer informatie." -> In opinieblad ‘De Linie, Katholiek Weekblad voor Nederland’ werd op 19 december 1952 een voorloper van deze strip gepubliceerd. Deze eerste versie, 'Kerstavond bij Suske en Wiske', telde 6 stroken. Zie MKV 2 voor meer informatie. | AE122: Ze zijn daar! Rap op uw post! Weest welkom en treedt binnen in mijn nederige
B123: 90 | C123: Een grappige gast. | D123: 1955-12-30 | E123: 49 | G123: 3 | H123: 11 | P123: 3 | Q123: 11 | R123: 1 | S123: 25 | U123: 25 | AB123: Willy Vandersteen | AC123: Karel Boumans | AE123: Eerst blinddoeken, en dan haal ik de verrassing! Ze staat al in de gang!
B124: 91 | C124: De professionele aanpak | D124: 1956-01-06 | E124: 1 | P124: 9 | Q124: 17 | W124: 17 | AB124: Willy Vandersteen | AC124: Karel Boumans | AD124: Hergepubliceerd in Versus 43, september 1998 (De Bond kranten-versie, nu ingekleurd) | AE124: Driekoningen driekoningen. Lambik vraagt dat ge zoudt binnenkomen... Uw
B125: 92 | C125: Dat komt ervan ! | D125: 1956-01-13 | E125: 2 | G125: 3 | H125: 15 | P125: 3 | Q125: 15 | R125: 1 | S125: 29 | U125: 29 | AB125: Willy Vandersteen | AC125: Karel Boumans | AE125: Dit kasteel is nu een leerrijk museum. Volg me maar! Suske, neem dat weg!
B126: 93 | C126: =INDEX('Hartskamp Dserie'!$Q$298:$Q$341,MATCH(B126,'Hartskamp Dserie'!$O$298:$O$341,0)) -> geen titel - "Sidonie, kunt ge mij geen 1000 frank lenen?" | D126: 1956-01-20 | E126: 3 | F126: 1957-08-26 | K126: 29 | P126: 8 | Q126: 28 | AB126: Willy Vandersteen | AC126: Karel Boumans | AE126: Sidonie, kunt ge mij geen 1000 frank lenen? Ik ga een stoof kopen op een
B127: 94 | C127: De portretschilder. | D127: 1956-01-27 | E127: 4 | G127: 3 | H127: 9 | P127: 3 | Q127: 9 | AB127: Willy Vandersteen | AC127: Karel Boumans | AE127: Zo zou ik me ook willen laten schilderen, zie! Stel het dan niet uit, Lambik!
B128: 95 | C128: Een mager dineetje. | D128: 1956-02-03 | E128: 5 | G128: 3 | H128: 2 | P128: 3 | Q128: 2 | AB128: Willy Vandersteen | AC128: Karel Boumans | AE128: De burgemeester telefoneert dat hij komt souperen. Liefst fazant, vraagt hij!
B129: 96 | C129: Hoe is ’t mogelijk ! | D129: 1956-02-10 | E129: 6 | G129: 3 | H129: 18 | P129: 3 | Q129: 18 | AB129: Willy Vandersteen | AC129: Karel Boumans en Willy Vandersteen | AE129: Bij zo'n bittere koude moeten we de armen helpen met kolen en kleren, hé
B130: 97 | C130: Lambik voor anker | D130: 1956-02-24 | E130: 8 | O130: 16 | P130: 9 | Q130: 18 | W130: 18 | AB130: Willy Vandersteen | AC130: Karel Boumans | AE130: We zullen op dat verkleed bal een indrukkende indruk maken! Matrozen van mijn
B131: 98 | C131: Beter laat dan nooit. | D131: 1956-03-02 | E131: 9 | G131: 3 | H131: 10 | P131: 3 | Q131: 10 | R131: 1 | S131: 24 | U131: 24 | AB131: Willy Vandersteen | AC131: Karel Boumans | AD131: Hergepubliceerd in X-large 2004 | AE131: Tante! Aan Lambiks deur hangt er een plaatje "Gesloten wegens sterfgeval"
AD132: Hergepubliceerd in Versus 124, december 2018 (oude albumreeks versie)
B133: 99 | C133: Lambik vindt zijn meester. | D133: 1956-03-09 | E133: 10 | G133: 3 | H133: 21 | N133: 22 | P133: 3 | Q133: 21 | AB133: Willy Vandersteen | AC133: Karel Boumans | AE133: Die timmerman is maar een knoeier! Ik zal hem eens onder handen nemen! Zeg
B134: 100 | C134: Vallen is geen vliegen. | D134: 1956-03-16 | E134: 11 | G134: 3 | H134: 5 | P134: 3 | Q134: 5 | AB134: Willy Vandersteen | AC134: Karel Boumans | AE134: Zo, Lambik, nu kunnen we uw foto als piloot maken... Heu... maar hier op de
B135: 101 | C135: Zonder verdoving | D135: 1956-03-23 | E135: 12 | F135: 1957-08-22 | P135: 9 | Q135: 19 | W135: 19 | AB135: Willy Vandersteen | AC135: Karel Boumans | AE135: Is het niet wreed? Toen hij vanmorgen zijn broek aantrok was hij opeens als
B136: 102 | C136: =INDEX('Hartskamp Dserie'!$Q$298:$Q$341,MATCH(B136,'Hartskamp Dserie'!$O$298:$O$341,0)) -> geen titel - "Wat gebeurd er? Waar is Lambik?" | D136: 1956-03-30 | E136: 13 | K136: 5 | P136: 8 | Q136: 4 | AB136: Willy Vandersteen | AC136: Karel Boumans | AE136: Wat gebeurd er? Waar is Lambik? Hoor dat ijselijk gehuil eens! Ik zie niets
B137: 103 | C137: Lambik speelt voor rechercheur. | D137: 1956-04-06 | E137: 14 | G137: 3 | H137: 7 | P137: 3 | Q137: 7 | R137: 1 | S137: 23 | U137: 23 | AB137: Willy Vandersteen | AC137: Karel Boumans | AE137: Mevrouwtje, willen wij op uw kindje passen terwijl u uw inkopen doet? We
B138: 104 | C138: Modern comfort. | D138: 1956-04-13 | E138: 15 | G138: 3 | H138: 19 | N138: 3 | P138: 3 | Q138: 19 | R138: 1 | S138: 32 | U138: 32 | AB138: Willy Vandersteen | AC138: Karel Boumans | AD138: Hergepubliceerd in X-large 2004 | AE138: Zeg, Lambik een deksel op uw vuilnisbak zou properder zijn, hoor! Dat is veel
B139: 105 | C139: Vissen in droog water. | D139: 1956-04-20 | E139: 16 | G139: 3 | H139: 20 | P139: 3 | Q139: 20 | R139: 1 | S139: 33 | U139: 33 | AB139: Willy Vandersteen | AC139: Karel Boumans | AE139: De kinderen niet thuis? Nee. Maar wat nu, draag je een bril? En zie je nu
B140: 106 | C140: =INDEX('Hartskamp Dserie'!$Q$298:$Q$341,MATCH(B140,'Hartskamp Dserie'!$O$298:$O$341,0)) -> geen titel - "Mijn bolhoed zoek ik, mijn bolhoed!!!" | D140: 1956-04-27 | E140: 17 | K140: 3 | P140: 8 | Q140: 2 | AB140: Willy Vandersteen | AC140: Karel Boumans | AE140: Mijn bolhoed zoek ik, mijn bolhoed!!! Gisteren had ik hem nog! Zoek niet
B141: 107 | C141: Een ezelgeschiedenis. | D141: 1956-05-11 | E141: 19 | G141: 3 | H141: 3 | P141: 3 | Q141: 3 | AB141: Willy Vandersteen | AC141: Karel Boumans | AE141: Suske, laten wij helpen duwen! Dat ezeltje kan niet meer! Dat valt niet mee
B142: 108 | C142: De dappere pompier. | D142: 1956-05-18 | E142: 20 | G142: 3 | H142: 14 | P142: 3 | Q142: 14 | R142: 1 | S142: 28 | U142: 28 | AB142: Willy Vandersteen | AC142: Karel Boumans | AE142: Zie, dat is nu altijd mijn droom geweest! Ik ga me aanmelden! Ik vind het
B143: 109 | C143: Beetgenomen. | D143: 1956-05-25 | E143: 21 | G143: 3 | H143: 25 | P143: 3 | Q143: 25 | AB143: Willy Vandersteen | AC143: Karel Boumans | AE143: Verlies uw spoorkaartjes niet! Ik steek het mijne altijd tussen het lint van
B144: 110 | C144: Koffiepotkoffie | D144: 1956-06-01 | E144: 22 | F144: 1957-08-17 | G144: 4 | H144: 22 | I144: 19 | J144: 1962-05-12 | P144: 4 | Q144: 22 | AB144: Willy Vandersteen | AC144: Karel Boumans | AE144: Sezar! Daar zie, hij ligt er, de koe! Hebt u gebruld, baas? Waar blijft
B145: 111 | C145: Een inval die slecht uitviel. | D145: 1956-06-08 | E145: 23 | F145: 1957-08-21 | G145: 4 | H145: 17 | I145: 17 | J145: 1962-04-28 | N145: 23 | P145: 4 | Q145: 17 | AB145: Willy Vandersteen | AC145: Karel Boumans | AD145: Hergepubliceerd in ‘Het avonturen- en spellenboek’ van Nuts en Lion uit 1987, pagina 26. (geheel hertekende versie door Eugeen Goossens met andere titel: ‘De jolige jager’) | AE145: Nu ga ik toch eens even naar mijn fruitboom zien! Hemel! Een zwerm spreeuwen
B146: 112 | C146: Maak je dan al moe ! | D146: 1956-06-15 | E146: 24 | G146: 3 | H146: 13 | P146: 3 | Q146: 13 | R146: 1 | S146: 27 | U146: 27 | AB146: Willy Vandersteen | AC146: Karel Boumans | AD146: Titelwijziging: ‘Dan maak je je eens moe’ in de nieuwe albumreeks. | AE146: Sidonieke, fietst ge mee naar Scherpenheuvel? Ik zou wel willen maar dat
AD147: Hergepubliceerd in X-large 2004 add: met aangepaste titel "Dan maak je je eens moe"
B148: 113 | C148: Voor niets gaat de zon op | D148: 1956-06-22 | E148: 25 | P148: 9 | Q148: 20 | W148: 20 | AB148: Willy Vandersteen | AC148: Karel Boumans | AD148: Hergepubliceerd in Versus 15, mei 1991 (De Bond kranten-versie, nu ingekleurd) | AE148: Lambik, tantje is ongesteld en de dokter is er juist bij... Trek eens een
B149: 114 | C149: Bezint voor u begint. | D149: 1956-06-29 | E149: 26 | G149: 4 | H149: 6 | I149: 5 | J149: 1962-02-03 | N149: 20 | P149: 4 | Q149: 6 | R149: 2 | S149: 3 | U149: 41 | AB149: Willy Vandersteen | AC149: Karel Boumans | AE149: Als je 't mij vraagt, Sidonieke dat ding hangt scheef ! Ja en kijk eens
B150: 115 | C150: De verrassing der televisie. | D150: 1956-07-06 | E150: 27 | F150: 1957-08-11 | G150: 4 | H150: 21 | P150: 4 | Q150: 21 | R150: 2 | S150: 11 | V150: 40 | AB150: Willy Vandersteen | AC150: Karel Boumans | AD150: Verfilmd als ‘Hypnose’ op de ‘Elke dag een avontuur’ DVD. | AE150: Wel, nu ga ik vanavond eens niet naar 't cafe! Het T.V.programma ziet er
B151: 116 | C151: De wonderbare visvangst... | D151: 1956-07-20 | E151: 29 | G151: 3 | H151: 16 | P151: 3 | Q151: 16 | R151: 1 | S151: 30 | U151: 30 | AB151: Willy Vandersteen | AC151: Karel Boumans | AE151: O prachtige machtige Schelde, hier ga ik vissen! Dit plekje hier is het
B152: 117 | C152: ... en haar gevolgen ! | D152: 1956-07-27 | E152: 30 | G152: 3 | H152: 17 | P152: 3 | Q152: 17 | R152: 1 | S152: 31 | U152: 31 | AB152: Willy Vandersteen | AC152: Karel Boumans | AE152: Blijf er hier mee wachten, ik ga de politie verwittigen! Agent, ik heb in
B153: 118 | C153: Je moet er maar aan denken ! | D153: 1956-08-10 | E153: 31 | G153: 3 | H153: 6 | P153: 3 | Q153: 6 | AB153: Willy Vandersteen | AC153: Karel Boumans | AE153: Kinderen, blijft met uw trein spelen! Ik ga hiernaast mijn krant lezen en wil
B154: 119 | C154: Het cadeautje uit Tirool. | D154: 1956-09-14 | E154: 34 | G154: 3 | H154: 31 | P154: 3 | Q154: 31 | AB154: Willy Vandersteen | AC154: Karel Boumans | AE154: De trein is daar! Ik ben benieuwd of Lambik aan een cadeautje gedacht heeft!
B155: 120 | C155: Een kleine misrekening. | D155: 1956-09-21 | E155: 35 | F155: 1957-08-18 | G155: 4 | H155: 14 | I155: 18 | J155: 1962-05-05 | P155: 4 | Q155: 14 | R155: 2 | S155: 8 | U155: 46 | AB155: Willy Vandersteen | AC155: Karel Boumans | AE155: Lambik zou goedkope inkt voor ons fabriceren, tante, en nu hebben wij hem
B156: 121 | C156: Een wijnvat is nog geen vat wijn. | D156: 1956-10-05 | E156: 37 | F156: 1957-08-12 | G156: 4 | H156: 15 | P156: 4 | Q156: 15 | AB156: Willy Vandersteen | AC156: Karel Boumans | AE156: Ik moet van die inkt afgeraken... en ik ga hem verkopen per vat... Ik ga
B157: 122 | C157: Er is voor alles een oplossing. | D157: 1956-10-12 | E157: 38 | F157: 1957-08-07 | G157: 4 | H157: 18 | I157: 20 | J157: 1962-05-19 | P157: 4 | Q157: 18 | AB157: Willy Vandersteen | AC157: Karel Boumans | AE157: Ja, ik begin een kapperssalon! Ik moet het nog wel leren, maar alla! Daar!
B158: 123 | C158: Lambik paardenkapper | D158: 1956-10-19 | E158: 39 | F158: 1957-08-08 | P158: 9 | Q158: 21 | W158: 21 | AB158: Willy Vandersteen | AC158: Karel Boumans | AD158: Hergepubliceerd in Versus 16, augustus 1991 (De Bond kranten-versie, nu ingekleurd) | AE158: 't Is precies of de mensen allemaal haarloos zijn! We vinden wel een oplossing
AD159: Titelwijziging: ‘Lambik de paardenkapper’ in de Lambikbox.
B160: 124 | C160: Een gezellig zitje. | D160: 1956-10-26 | E160: 40 | F160: 1957-08-23 | G160: 4 | H160: 16 | I160: 21 | J160: 1962-05-26 | P160: 4 | Q160: 16 | R160: 2 | S160: 9 | U160: 47 | AB160: Willy Vandersteen | AC160: Karel Boumans | AE160: Tante, u verknoeit uw ogen! Die luchter hangt veel te hoog! ...begrepen,
B161: 125 | C161: Verse ossenstaartsoep | D161: 1956-11-02 | E161: 41 | K161: 9 | P161: 8 | Q161: 8 | R161: 3 | S161: 28 | V161: 28 | AB161: Willy Vandersteen | AC161: Karel Boumans | AE161: Mannekens, ik ga Lambik uitnodigen wat voor soep zou ik maken? Wel, Lambik
B162: 126 | C162: Rechtdoor en dan vooruit ! | D162: 1956-11-09 | E162: 42 | G162: 4 | H162: 2 | I162: 14 | J162: 1962-04-07 | P162: 4 | Q162: 2 | R162: 2 | S162: 2 | U162: 40 | AB162: Willy Vandersteen | AC162: Karel Boumans | AD162: Hergepubliceerd in Familie Almanak 1975, pagina 47 | AE162: Lambik onze kachel is kapot, en nu zitten we in de kou! Het zal niet gezegd
B163: 127 | C163: =INDEX('Hartskamp Dserie'!$Q$298:$Q$341,MATCH(B163,'Hartskamp Dserie'!$O$298:$O$341,0)) -> geen titel - "Baas, er staat een emmer…" | D163: 1956-11-16 | E163: 43 | K163: 17 | P163: 8 | Q163: 16 | AB163: Willy Vandersteen | AC163: Karel Boumans | AE163: Baas, er staat een emmer... Ik weet het al... Ai! Sidonieke, ik kan niet naar
B164: 128 | C164: =INDEX('Hartskamp Dserie'!$Q$298:$Q$341,MATCH(B164,'Hartskamp Dserie'!$O$298:$O$341,0)) -> geen titel - "Lambik, wij komen kleren inzamelen" | D164: 1956-11-23 | E164: 44 | K164: 15 | P164: 8 | Q164: 14 | AB164: Willy Vandersteen | AC164: Karel Boumans | AE164: Lambik, wij komen kleren inzamelen voor het geteisterde Hongarije! Hier, zie
B165: 129 | C165: Hoe huppelt zijn paardje | D165: 1956-11-30 | E165: 45 | P165: 9 | Q165: 22 | W165: 22 | AB165: Willy Vandersteen | AC165: Karel Boumans | AD165: ="In opinieblad ‘De Linie, Katholiek Weekblad voor Nederland’ werd op 28 november 1952 een voorloper van deze strip gepubliceerd. Deze eerste versie, 'Sint Nicolaas bij de Liniekinderen', telde 6 stroken. Zie "&'Korte Verhalen'!C32&" en Versus 39 en 40 voor meer informatie." -> In opinieblad ‘De Linie, Katholiek Weekblad voor Nederland’ werd op 28 november 1952 een voorloper van deze strip gepubliceerd. Deze eerste versie, 'Sint Nicolaas bij de Liniekinderen', telde 6 stroken. Zie MKV 1 en Versus 39 en 40 voor meer informatie. | AE165: Kom, kinderen, nu vlug naar bed! Seffens komt Sint Niklaas met zijn wit paard
AD166: Hergepubliceerd in Versus 5, november 1988 (De Bond kranten-versie, nu ingekleurd)
AD167: Hergepubliceerd in Versus 40, december 1997 (De Bond kranten-versie)
B168: 130 | C168: =INDEX('Hartskamp Dserie'!$Q$298:$Q$341,MATCH(B168,'Hartskamp Dserie'!$O$298:$O$341,0)) -> geen titel - "Maar wat is er toch, Lambik? ...Zorgen kind…" | D168: 1956-12-07 | E168: 46 | K168: 34 | P168: 8 | Q168: 33 | AB168: Willy Vandersteen | AC168: Karel Boumans | AE168: Maar wat is er toch, Lambik? ...Zorgen kind... Met mijn aansteker! Droog
B169: 131 | C169: In het vuur der rede. | D169: 1956-12-14 | E169: 47 | G169: 4 | H169: 20 | P169: 4 | Q169: 20 | R169: 2 | S169: 10 | V169: 39 | AB169: Willy Vandersteen | AC169: Karel Boumans | AE169: Zwiep! Je kunt niet proper genoeg zijn, Wiske! En ook zwiep! Dat zal voor uw
B170: 132 | C170: Vrede in huis | D170: 1956-12-21 | E170: 48 | K170: 30 | P170: 8 | Q170: 29 | R170: 3 | S170: 34 | V170: 34 | AB170: Willy Vandersteen | AC170: Karel Boumans | AE170: De ezel moet rechts komen, Wiske! Nee, links, links links! Is dat nu de
B171: 133 | C171: De test | D171: 1957-01-04 | E171: 1 | K171: 4 | P171: 8 | Q171: 3 | R171: 3 | S171: 26 | V171: 26 | AB171: Willy Vandersteen | AC171: Karel Boumans | AE171: Suske heeft een stuk vloeipapier tussen mijn boterham gestopt!!
B172: 134 | C172: Lambik in paniek. | D172: 1957-01-11 | E172: 2 | F172: 1957-08-13 | G172: 4 | H172: 11 | I172: 7 | J172: 1962-02-17 | P172: 4 | Q172: 11 | R172: 2 | S172: 6 | U172: 44 | AB172: Willy Vandersteen | AC172: Karel Boumans | AE172: Sidonie, er is hier iets ontzettends gebeurt! Een nationale ramp!! Ik zou
B173: 135 | C173: Vele kleintjes maken een groot. | D173: 1957-01-18 | E173: 3 | G173: 4 | H173: 23 | P173: 4 | Q173: 23 | R173: 2 | S173: 12 | V173: 41 | AB173: Willy Vandersteen | AC173: Karel Boumans | AE173: Wat!?.. 15 centiemen tekort op het huishoudgeld? Dan moeten we bezuinigen
B174: 136 | C174: Een mooi spektakel. | D174: 1957-01-25 | E174: 4 | F174: 1957-08-25 | G174: 4 | H174: 19 | P174: 4 | Q174: 19 | AB174: Willy Vandersteen | AC174: Karel Boumans | AE174: Mevrouw tante Sidonie, Lambik is weer aan 't slaapwandelen... Is dat zo erg?
B175: 137 | C175: Een goed systeem deugt niet altijd. | D175: 1957-02-01 | E175: 5 | G175: 4 | H175: 5 | P175: 4 | Q175: 5 | AB175: Willy Vandersteen | AC175: Karel Boumans | AE175: Wiske, je moet de planten nog begieten! Ja, ik ben al bezig tante! Héh
B176: 138 | C176: De anderen zullen het wel opknappen ! | D176: 1957-02-08 | E176: 6 | F176: 1957-08-06 | G176: 4 | H176: 12 | I176: 4 | J176: 1962-01-27 | P176: 4 | Q176: 12 | AB176: Willy Vandersteen | AC176: Karel Boumans | AE176: Maar zie, Sidonieke, je kanarievogel! En fluit hij? Soms ja... maar
B177: 139 | C177: Lambik bestudeert de dierenwereld. | D177: 1957-02-15 | E177: 7 | F177: 1957-08-16 | G177: 4 | H177: 13 | I177: 22 | J177: 1962-06-02 | P177: 4 | Q177: 13 | R177: 2 | S177: 7 | U177: 45 | AB177: Willy Vandersteen | AC177: Karel Boumans | AE177: De baas is in de tuin, tante dinges! En 't regent dat het giet! Ga eens
B178: 140 | C178: De jager en zijn hond. | D178: 1957-02-22 | E178: 8 | G178: 4 | H178: 8 | I178: 45 | J178: 1961-11-11 | P178: 4 | Q178: 8 | R178: 2 | S178: 5 | U178: 43 | AB178: Willy Vandersteen | AC178: Karel Boumans | AD178: Hergepubliceerd in Rozenkrans Almanak 1966, pagina 11 | AE178: Mijnheer, ik zou een verstandige jachthond willen kopen! U hebt geluk! Ik
AD179: Hergepubliceerd in ‘Het avonturen- en spellenboek’ van Nuts en Lion uit 1987, pagina 21. (geheel hertekende versie door Eugeen Goossens met andere titel: ‘De jolige jager’)
B180: 141 | C180: Muziek verzacht de zeden | D180: 1957-03-01 | E180: 9 | F180: 1957-08-09 | P180: 9 | Q180: 23 | W180: 23 | AB180: Willy Vandersteen | AC180: Karel Boumans | AE180: O!! En nu is het stel niet meer compleet!! Ik heb nog centen, en zo'n tweede
B181: 142 | C181: Weinig is beter dan niets. | D181: 1957-03-08 | E181: 10 | G181: 4 | H181: 4 | I181: 15 | J181: 1962-04-14 | N181: 24 | P181: 4 | Q181: 4 | R181: 2 | S181: 32 | AB181: Willy Vandersteen | AC181: Karel Boumans | AE181: Mannekens, ik ga uit vissen! Dus deze avond... verse vis... hoor! Ha, mijn
B182: 143 | C182: Geduld is een schone zaak | D182: 1957-03-15 | E182: 11 | P182: 9 | Q182: 24 | W182: 24 | AB182: Willy Vandersteen | AC182: Karel Boumans | AD182: Hergepubliceerd in Versus 41, april 1998 (De Bond kranten-versie, nu ingekleurd en tekst toegevoegd op de vuurpijl) | AE182: Kijk, wat ik gemaakt heb! Een vuurpijl!!! O, Lambikske, we gaan hem
B183: 144 | C183: Behandel de dieren met zachtheid. | D183: 1957-03-22 | E183: 12 | G183: 4 | H183: 3 | N183: 14 | P183: 4 | Q183: 3 | AB183: Willy Vandersteen | AC183: Karel Boumans | AE183: Brrr! Wat een hondeweer! Maar sukkelaar toch! Laten ze je zo maar in
B184: 145 | C184: Het gebaar telt | D184: 1957-03-29 | E184: 13 | P184: 9 | Q184: 25 | W184: 25 | AB184: Willy Vandersteen | AC184: Karel Boumans | AE184: Tante, het is morgen Lambiks verjaardag! We gaan hem een boek en een kistje
B185: 146 | C185: Dressuur | D185: 1957-04-05 | E185: 14 | K185: 22 | P185: 8 | Q185: 21 | R185: 3 | S185: 33 | V185: 33 | AB185: Willy Vandersteen | AC185: Karel Boumans | AE185: Geachte vergadering, wij moeten nu beraadslagen over de opvoeding van mijn
B186: 147 | C186: Volkomen genezen | D186: 1957-04-12 | E186: 15 | K186: 31 | N186: 13 | P186: 8 | Q186: 30 | R186: 3 | S186: 35 | V186: 35 | AB186: Willy Vandersteen | AC186: Karel Boumans | AD186: Hergepubliceerd in Suske en Wiske schoolagenda '84-'85 | AE186: Hemel! Lambik is weer op wandel, Suske! Hoe is dat nu toch mogelijk, Lambik?
B187: 148 | C187: Niet zo gierig | D187: 1957-04-26 | E187: 17 | K187: 44 | P187: 8 | Q187: 43 | R187: 3 | S187: 38 | V187: 38 | AB187: Willy Vandersteen | AC187: Karel Boumans | AD187: Hergepubliceerd in Rozenkrans Almanak 1961, pagina 47 | AE187: Daar zie, mijnher Pootvast! Dat is nu eens een gierigaard, zie! Sidonie, ge
B188: 149 | C188: Nadenken is Lambiks gewoonte niet. | D188: 1957-05-10 | E188: 19 | G188: 4 | H188: 7 | P188: 4 | Q188: 7 | R188: 2 | S188: 4 | U188: 42 | AB188: Willy Vandersteen | AC188: Karel Boumans | AE188: Ha, dat is iets voor mij! Men vraagt een man om affiches aan te plakken!
B189: 150 | C189: =INDEX('Hartskamp Dserie'!$Q$298:$Q$341,MATCH(B189,'Hartskamp Dserie'!$O$298:$O$341,0)) -> geen titel - "Sidonie, zoudt ge mij dit eens willen inspuiten... " | D189: 1957-05-17 | E189: 20 | K189: 37 | P189: 8 | Q189: 36 | AB189: Willy Vandersteen | AC189: Willy Vandersteen | AE189: Sidonie, zoudt ge mij dit eens willen inspuiten... voor mijn zenuwinzinking?
B190: 151 | C190: Veiligheid voor alles | D190: 1957-05-31 | E190: 22 | P190: 9 | Q190: 26 | W190: 26 | AB190: Willy Vandersteen | AC190: Willy Vandersteen | AE190: Wat doet ge daar, Lambik? Ik schilder nu reklaamborden en pankarten, Wiske!
B191: 152 | C191: Remmen zonder remmen. | D191: 1957-06-07 | E191: 23 | G191: 4 | H191: 9 | P191: 4 | Q191: 9 | AB191: Willy Vandersteen | AC191: Karel Boumans | AD191: Hergepubliceerd in Familie Almanak 1974, pagina 47 | AE191: Suske, ik moet naar een bruiloft en ik ben wat laat! Mag ik je scooter even
B192: 153 | C192: Onderwijzen is ook een kunst. | D192: 1957-06-14 | E192: 24 | G192: 4 | H192: 10 | P192: 4 | Q192: 10 | AB192: Willy Vandersteen | AC192: Karel Boumans | AE192: Dat is toch geen werk voor Sezar! Ga liever met hem eens naar een dienst voor
B193: 154 | C193: Geschenken onderhouden de vriendschap. | D193: 1957-06-21 | E193: 25 | G193: 4 | H193: 24 | P193: 4 | Q193: 24 | R193: 2 | S193: 13 | V193: 42 | AB193: Willy Vandersteen | AC193: Karel Boumans | AD193: Hergepubliceerd in Rozenkrans Almanak 1966, pagina 41 | AE193: 't Is vandaag Lambiks verjaardag! Draag hem al dit kippetje; ik
B194: 155 | C194: =INDEX('Hartskamp Dserie'!$Q$298:$Q$341,MATCH(B194,'Hartskamp Dserie'!$O$298:$O$341,0)) -> geen titel - "Het begint, Wiske!" | D194: 1957-06-28 | E194: 26 | K194: 41 | P194: 8 | Q194: 40 | AB194: Willy Vandersteen | AC194: Karel Boumans | AD194: Hergepubliceerd in Rozenkrans Almanak 1960, pagina 47 | AE194: Het begint, Wiske! Ge schiet al in het dak! Bravo, Wiske! Ge waart er
B195: 156 | C195: Voorkomen is beter dan genezen | D195: 1957-07-05 | E195: 27 | P195: 9 | Q195: 27 | W195: 27 | AB195: Willy Vandersteen | AC195: Karel Boumans | AE195: Lambik zit in de kelder. Gevlucht voor de grote hitte! We stoppen al de
B196: 157 | C196: Boekenwijsheid | D196: 1957-07-12 | E196: 28 | P196: 9 | Q196: 28 | W196: 28 | AB196: Willy Vandersteen | AC196: Karel Boumans | AE196: Jandorie! Daar komt Cezar terug van de prijsuitdeling in de vakschool! En hij heeft
B197: 158 | C197: Een klusje voor Lambik | D197: 1957-07-19 | E197: 29 | P197: 9 | Q197: 29 | W197: 29 | AB197: Willy Vandersteen | AC197: Karel Boumans | AD197: Hergepubliceerd in Versus 10, februari 1990 (De Bond kranten-versie, nu ingekleurd) | AE197: Geschiedenis zonder woorden in de dierentuin.
B198: 159 | C198: Een beetje bijziend | D198: 1957-07-26 | E198: 30 | K198: 8 | P198: 8 | Q198: 7 | R198: 3 | S198: 27 | V198: 27 | AB198: Willy Vandersteen | AC198: Karel Boumans | AD198: Hergepubliceerd in Rozenkrans Almanak 1961, pagina 11 | AE198: Geschiedenis met weinig woorden. Mag ik even kijken Lambik. O! Ben ik dat?
AD199: Hergepubliceerd in X-large 2005
B200: 160 | C200: =INDEX('Hartskamp Dserie'!$Q$298:$Q$341,MATCH(B200,'Hartskamp Dserie'!$O$298:$O$341,0)) -> geen titel - "Sidonieke, ge moet eens rap komen kijken" | D200: 1957-08-09 | E200: 31 | K200: 42 | P200: 8 | Q200: 41 | AB200: Willy Vandersteen | AC200: Karel Boumans | AD200: Hergepubliceerd in Rozenkrans Almanak 1960, pagina 14 | AE200: Sidonieke, ge moet eens rap komen kijken naar mijn verkoelingsinstallatie!
... 489 more rows

Sheet Jerom
A1: 1 | K1: Albums:
K2: 1e serie (1962-1966): Volledig gekeurde voorkaft, vierkant formaat.
K3: -later hertekend (met name voor Eppo) naar meer stroken per pagina en daardoor minder pagina's
K4: 2e serie (1967-1982): Groene kaft, Gouden Stuntman serie
K5: 3e serie (1982-1991): Oranje-bruine kaft, De wonderbare reizen van Jerom serie
K6: -vanaf nummer 8 kortweg Jerom, vanaf nummer 17 gele kaft
K7: 4e serie (2008-2014): Groene kaft, Adhemar serie; in stijl 2e serie, 2 delen in stijl 1e serie
K8: -eerste uitgave in album van oudere verhalen, door stripwinkel Adhemar
K9: 5e serie (2014-2016): Spin-off reeks J.ROM in stijl SW Amoras serie | M9: Overige publicaties, niet in album
B10: Heb ik | C10: =IF(A1=1,"Serie","") -> Serie | D10: Verhaal | E10: =IF(A1=1,"Album Nr","") -> Album Nr | F10: =IF(A1=1,"Titel","Duitse Titel") -> Titel | G10: =IF(A1=1,"Album","") -> Album | H10: Eerste publicatie | I10: Datum | J10: =IF(A1=1,"Lengte","Nr") -> Lengte | K10: =IF(A1=1,"Duitse titel","") -> Duitse titel | L10: Opmerkingen | M10: Duitse uitgaven | N10: Het belang van Limburg | O10: Pats/Patskrant/Stripkrant | P10: Ons Volkske | Q10: Eppo | R10: S&W Weekblad
C11: 1 | D11: V1 | E11: 1 | F11: Het geheim van Brokkelsteen | G11: 1962-01-01 | H11: Ons Volkske | I11: 1960-08-18 | J11: 31 | K11: Das Geheimnis von Burg Schreckenstein | L11: Hertekening Eppo 1984; Ook als proef-uitgave van Lecturama reeks (1981) | M11: FE 338-343 | P11: 18.08.1960 - 16.03.1961 | Q11: 1984, nr 4-18
C12: 1 | D12: V2 | E12: 2 | F12: De verborgen kroon | G12: 1962-01-01 | H12: Ons Volkske | I12: 1961-03-23 | J12: 31 | K12: Die Krone der Elfenkönigin | L12: Ook in SW Familiestripboek 9 (1994), als hertekening waarbij het met 7 pagina's verkort is tot 24 pagina's | M12: FE 362-367 | P12: 23.03.1961 - 19.10.1961
C13: 1 | D13: V3 | E13: 3 | F13: Koning van de wildernis | G13: 1963-01-01 | H13: Ons Volkske | I13: 1961-10-26 | J13: 31 | K13: Der König der Wildnis | L13: Ook in 2e reeks (groen); Hertekening Eppo 1984 en verkort tot 24 pagina's | M13: FE 332-337 | P13: 26.10.1961 - 24.05.1962 | Q13: 1984, nr 20-31
C14: 1 | D14: V4 | E14: 4 | F14: De gouden tomahawk | G14: 1963-01-01 | H14: Ons Volkske | I14: 1962-05-31 | J14: 31 | K14: Wastl im wilden Westen | L14: Ook in 2e reeks (groen); Hertekening Eppo 1984, 24 pag. Ook in SW het leukste vakantie stripboek (1994) | M14: FE 344-349 | P14: 31.05.1962 - 03.01.1963 | Q14: 1984, nr 32-43
C15: 1 | D15: V5 | E15: 5 | F15: De bronzen kabouter | G15: 1964-01-01 | H15: Ons Volkske | I15: 1963-01-10 | J15: 31 | K15: Das eiserne Heinerle | L15: Ook in 2e reeks (groen); Hertekening Eppo 1984, 24 pag. Ook in SW Familiestripboek 3 (1989), SW het dikke vakantie stripboek (1993), bijlage SW Weekblad 29 (1996) en Mega Stripboek 4 (2000) | M15: FE 356-361 | P15: 10.01.1963 - 08.08.1963 | Q15: 1983, nr 44 - 1984, nr 3 | R15: 1996, no. 29
C16: 1 | D16: V6 | E16: 6 | F16: Het groene eiland | G16: 1964-01-01 | H16: Ons Volkske | I16: 1963-08-15 | J16: =23*0+31 -> 31 | K16: Die grüne Hölle | L16: Ook in SW Familiestripboek 10 (1995) en SW Familiestripboek 14 (1999), beide verkort tot 23 pagina's | M16: FE 350-355 | P16: 15.08.1963 - 19.03.1964 | R16: 1994, no. 26-31
C17: 1 | D17: V7 | E17: 7 | F17: De vreemde verzameling | G17: 1965-01-01 | H17: Ons Volkske | I17: 1964-03-26 | J17: 31 | K17: Der gestohlene Eiffelturm | L17: Hertekening Eppo 1984, 24pag. Ook in SW Familiestripboek 11 (1996) en Mega Stripboek 2 (1998) | M17: FE 368-375 | P17: 26.03.1964 - 22.10.1964 | Q17: 1985, nr 4-13 | R17: 1996, no. 5-12
C18: 1 | D18: V8 | E18: 8 | F18: De stad onder water | G18: 1965-01-01 | H18: Ons Volkske | I18: 1964-10-29 | J18: 31 | K18: Geheimnisse im roten Meer | L18: Ook in 2e reeks (groen) | M18: FE 393-398 | P18: 29.10.1964 - 27.05.1965
C19: 1 | D19: V9 | E19: 9 | F19: De ringen van Jupiter | G19: 1966-01-01 | H19: Ons Volkske | I19: 1965-06-03 | J19: 31 | K19: Die Ringe des Saturns | L19: Hertekening Eppo 1984, 25 pag. Ook in SW Familiestripboek 12 (1997) en Mega Stripboek 3 (1998) | M19: FE 420-424 | P19: 03.06.1965 - 30.12.1965 | Q19: 1984, nr 44 - 1985, nr 3 | R19: 1996, no. 13-21
C20: 1 | D20: V11 | E20: 10 | F20: Compo de reus | G20: 1966-01-01 | H20: Ons Volkske | I20: 1966-01-06 | J20: 31 | K20: Der schlafende Riese | L20: Ook als bijlage SW Weekblad 43 (1994) | M20: FE 425-430 | P20: 06.01.1966 - 04.08.1966 | R20: 1994, no. 43
C21: 2 | D21: V12 | E21: 11 | F21: De gevaarlijke jacht | G21: 1967-01-01 | H21: Ons Volkske | I21: 1966-08-11 | J21: 31 | K21: Die wilde Jagd | L21: Ook in Eppo 1984. Verschenen als gelegenheids Adhemar uitgave (2009) in oorspronkjelijke formaat. | M21: FE 431-436 | P21: 11.08.1966 - 09.03.1967 | Q21: 1985, nr 14-24
C22: 2 | D22: V15 | E22: 12 | F22: De gouden stuntman | G22: 1967-01-01 | H22: Felix | I22: 1967-03-01 | J22: 28 | K22: Die goldenen Masken | M22: FE 443-448
C23: 2 | D23: V17 | E23: 13 | F23: De tomatenbrigade | G23: 1967-01-01 | H23: Felix | I23: 1967-04-01 | J23: 28 | K23: Die Tomatenköpfe | M23: FE 449-453
C24: 2 | D24: V16 | E24: 14 | F24: De vliegen van Masakin | G24: 1967-01-01 | H24: Felix | I24: 1967-02-01 | J24: 28 | K24: Sieben auf einen Streich | L24: De zeven roofridders, album 82, heeft dezelfde Duitse titel maar is een ander verhaal (uit Wastl 88) | M24: FE 459-463 | O24: 15.02.1967 - 22.08.1967
C25: 2 | D25: V28 | E25: 15 | F25: De gemaskerde gardian | G25: 1968-01-01 | H25: Felix | I25: 1968-05-01 | J25: 28 | K25: Der maskierte Reiter | M25: FE 499-503
C26: 2 | D26: V22 | E26: 16 | F26: De schoenenjager | G26: 1968-01-01 | H26: Felix | I26: 1967-10-01 | J26: 28 | K26: Die geklauten Schuhe | M26: FE 474-478
C27: 2 | D27: V21 | E27: 17 | F27: De stalen rat | G27: 1968-01-01 | H27: Felix | I27: 1967-09-01 | J27: 28 | K27: Die Deichbeißer | L27: Ook in Mega Stripboek 6 (2002) | M27: FE 469-473
C28: 2 | D28: V20 | E28: 18 | F28: De vuurberg van Itihat | G28: 1968-01-01 | H28: Felix | I28: 1967-08-01 | J28: 28 | K28: Der Vulkan Raachamandu | L28: Ook als bijlage SW Weekblad 32 (1995) en in Mega Stripboek 5 (2001) | M28: FE 464-468 | O28: 29.08.1967 - 06.03.1968 | R28: 1995, no. 32
C29: 2 | D29: V23 | E29: 19 | F29: De ijsbroden | G29: 1968-01-01 | H29: Felix | I29: 1967-11-01 | J29: 28 | K29: Wastl gegen kalte Krieger | M29: FE 479-483
C30: 2 | D30: V18 | E30: 20 | F30: De schattenjagers | G30: 1968-01-01 | H30: Felix | I30: 1967-06-01 | J30: 28 | K30: Die olympischen Millionen | M30: FE 454-458 | P30: 19.10.1967 - 25.04.1968
C31: 2 | D31: V27 | E31: 21 | F31: De alchimisten | G31: 1968-01-01 | H31: Felix | I31: 1968-04-01 | J31: 28 | K31: Der Stein der Weisen | M31: FE 494-498
C32: 2 | D32: V24 | E32: 22 | F32: Het gouden hoofd | G32: 1969-01-01 | H32: Felix | I32: 1968-01-01 | J32: 28 | K32: Der sprechende Goldkopf | M32: FE 484-488 | O32: 13.03.1968 - 16.09.1968
C33: 2 | D33: V37 | E33: 23 | F33: De toverdrank | G33: 1969-01-01 | H33: Wastl | I33: 1968-07-01 | J33: 28 | K33: Die Reise mit der Zeitmaschine | L33: Ook in Wastl Taschenbücher 1 (1983) | M33: WA 5
C34: 2 | D34: V26 | E34: 24 | F34: Avontuur in Berunka | G34: 1969-01-01 | H34: Felix | I34: 1968-03-01 | J34: 28 | K34: Abenteuer in Leserazia | M34: FE 489-493 | P34: 02.05.1968 - 14.11.1968
C35: 2 | D35: V31 | E35: 25 | F35: De raven van de Tower | G35: 1969-01-01 | H35: Felix | I35: 1968-06-01 | J35: 28 | K35: Die Raben vom Tower | L35: Ook in Felix de kat 19 (1974) en Mega Stripboek 1 (1997) | M35: FE 504-508 | O35: 23.09.1968 - 31.03 1969
C36: 2 | D36: V41 | E36: 26 | F36: De parels van Mallorca | G36: 1969-01-01 | H36: Wastl | I36: 1968-08-01 | J36: 28 | K36: Perlen, Stiere und Spione | L36: Ook in Wastl Taschenbücher 7 (1984) | M36: WA 8 | R36: 1999, no. 30-31
C37: 2 | D37: V49 | E37: 27 | F37: Het spookschip | G37: 1969-01-01 | H37: Wastl | I37: 1968-11-01 | J37: 28 | K37: Wastl, Schätze und Gespenster | L37: Ander verhaal met zelfde titel in 3e serie (Nr 3); ook in Wastl Taschenbücher 2 (1983) | M37: WA 14
C38: 2 | D38: V40 | E38: 28 | F38: Het Turkse kanon | G38: 1969-01-01 | H38: Wastl | I38: 1968-08-01 | J38: 28 | K38: Sultan Selims Seeräuber | L38: In Ons Volkske getiteld 'Het Turks kanon'; Ook in Wastl Taschenbücher 6 (1984) | M38: WA 7 | P38: 21.11.1968 - 22.05.1969
C39: 2 | D39: V51 | E39: 29 | F39: De groene eenhoorns | G39: 1969-01-01 | H39: Felix | I39: 1968-12-01 | J39: 28 | K39: Abenteuer am Südpol | L39: Ook in Mega Stripboek 9 (2005) | M39: FE 529-533
C40: 2 | D40: V71 | E40: 30 | F40: De bombarde | G40: 1969-01-01 | H40: Wastl | I40: 1969-05-01 | J40: 28 | K40: Der alte Böller | L40: Ook in Wastl Taschenbücher 3 (1983) | M40: WA 32
C41: 2 | D41: V30 | E41: 31 | F41: Rozen voor Berunka | G41: 1970-01-01 | H41: Wastl | I41: 1968-05-01 | J41: 28 | K41: Das Geheimnis des Rosenkönigs | M41: WA 1 | N41: 18.11.1968 - 14.01.1969 | O41: 08.04.1969 - 13.10.1969
C42: 2 | D42: V65 | E42: 32 | F42: De vurige regenboog | G42: 1970-01-01 | H42: Wastl | I42: 1969-04-01 | J42: 28 | K42: Ein Regenbogen spinnt | M42: WA 27 | N42: 06.08.1969 - 06.10.1969
C43: 2 | D43: V45 | E43: 33 | F43: De ruimterups | G43: 1970-01-01 | H43: Wastl | I43: 1968-10-01 | J43: 28 | K43: Besuch vom Mars | L43: Ook in Wastl Taschenbücher 2 (1983) | M43: WA 11 | P43: 29.05.1969 - 04.12.1969
C44: 2 | D44: V97 | E44: 34 | F44: De Tempel der Stilte | G44: 1970-01-01 | H44: Wastl | I44: 1969-11-01 | J44: 28 | K44: Verschüttet im Inka-Tempel | L44: Ook in Wastl Taschenbücher 1 (1983) | M44: WA 57
C45: 2 | D45: V94 | E45: 35 | F45: Het spookvliegtuig | G45: 1970-01-01 | H45: Wastl | I45: 1969-10-01 | J45: 28 | K45: Kampf dem Geisterflugzeug! | L45: Ook in Wastl Taschenbücher 2 (1983) | M45: WA 54 | O45: 20.10.1969 - 27.04.1970
C46: 2 | D46: V43 | E46: 36 | F46: Jerom contra Jerom | G46: 1970-01-01 | H46: Felix | I46: 1968-09-01 | J46: 28 | K46: Wastl gegen Wastl Nr.2 | L46: Ook in 'In de ban van Vandersteen' 4 (1984) | M46: FE 519-523 | P46: 11.12.1969 - 18.06.1970
C47: 2 | D47: V113 | E47: 37 | F47: Mysterie op de autobaan | G47: 1971-01-01 | H47: Wastl | I47: 1970-03-01 | J47: 28 | K47: Wastl jagt die Autoräuber | M47: WA 73 | N47: 25.09.1970 - 25.11.1970
C48: 2 | D48: V108 | E48: 38 | F48: De rode boei | G48: 1971-01-01 | H48: Wastl | I48: 1970-01-01 | J48: 28 | K48: Das Geheimnis der roten Boje | M48: WA 68 | P48: 25.06.1970 - 31.12.1970
C49: 2 | D49: V115 | E49: 39 | F49: De luchtpiraten | G49: 1971-01-01 | H49: Wastl | I49: 1970-03-01 | J49: 28 | K49: Die Luftpiraten | M49: WA 75 | N49: 26.11.1970 - 29.01.1971
C50: 2 | D50: V121 | E50: 40 | F50: Het sleutelbeen | G50: 1971-01-01 | H50: Wastl | I50: 1970-04-01 | J50: 28 | K50: Das Riesenroß | M50: WA 81 | N50: 02.02.1971 - 12.04.1971
C51: 2 | D51: V120 | E51: 41 | F51: Sigaren voor de sjeik | G51: 1971-01-01 | H51: Wastl | I51: 1970-04-01 | J51: 28 | K51: Der schnellste Schlepper des Orients | M51: WA 80 | N51: 13.04.1971 - 19.06.1971
C52: 2 | D52: V111 | E52: 42 | F52: Gevaarlijk speelgoed | G52: 1971-01-01 | H52: Wastl | I52: 1970-02-01 | J52: 28 | K52: Wastl stoppt den Zauberzug | M52: WA 71 | O52: 08.12.1970 - 22.06.1971
C53: 2 | D53: V106 | E53: 43 | F53: De vleermuis | G53: 1972-01-01 | H53: Wastl | I53: 1970-01-01 | J53: 28 | K53: Wilde Jagd auf schräge Vögel | M53: WA 66 | P53: 07.01.1971 - 14.07.1971
C54: 2 | D54: V33 | E54: 44 | F54: Razzia op Djerba | G54: 1972-01-01 | H54: Wastl | I54: 1968-06-01 | J54: 28 | K54: Der Trank des Vergessens | M54: WA 3 | N54: 21.06.1971 - 20.08.1971
C55: 2 | D55: V50 | E55: 45 | F55: De grootgarnaal | G55: 1972-01-01 | H55: Wastl | I55: 1968-12-01 | J55: 28 | K55: Die Krabbenmänner | L55: Ook in Wastl Taschenbücher 7 (1984) | M55: WA 15 | N55: 21.08.1971 - 25.10.1971
C56: 2 | D56: V100 | E56: 46 | F56: De vuurtoren | G56: 1972-01-01 | H56: Wastl | I56: 1969-12-01 | J56: 28 | K56: Das Geheimnis des wandernden Leuchtturms | M56: WA 60 | O56: 29.06.1971 - 18.01.1972
C57: 2 | D57: V38 | E57: 47 | F57: De Korrigans | G57: 1972-01-01 | H57: Wastl | I57: 1968-07-01 | J57: 28 | K57: Vor Finsterfexen wird gewarnt | L57: Originele titel 'De koerigans'; Ook in Wastl Taschenbücher 4 (1983) | M57: WA 6 | P57: 22.07.1971 - 26.01.1972
C58: 2 | D58: V110 | E58: 48 | F58: De zwarte hand | G58: 1972-01-01 | H58: Wastl | I58: 1970-02-01 | J58: 28 | K58: Die Nudelschlacht von Kloppenbach | M58: WA 70 | N58: 26.10.1971 - 06.01.1972
C59: 2 | D59: V118 | E59: 49 | F59: Gevaarlijk zwembad | G59: 1973-01-01 | H59: Wastl | I59: 1970-04-01 | J59: 28 | K59: Der Trick der schwimmenden Entführer | L59: In Ons Volkske getiteld 'Gevaarlijk zwemdok' | M59: WA 78 | P59: 02.02.1972 - 08.08.1972
C60: 2 | D60: V32 | E60: 50 | F60: De dansende menhirs | G60: 1973-01-01 | H60: Wastl | I60: 1968-06-01 | J60: 28 | K60: Das Zauberbuch von Meister Pommfritt | M60: WA 2 | N60: 07.01.1972 - 18.03.1972
C61: 2 | D61: V44 | E61: 51 | F61: De betoverde kroon | G61: 1973-01-01 | H61: Wastl | I61: 1968-09-01 | J61: 28 | K61: Eine Krone aus Kambodscha | M61: WA 10 | O61: 25.01.1972 - 01.08.1972
C62: 2 | D62: V48 | E62: 52 | F62: De brandende beelden | G62: 1973-01-01 | H62: Wastl | I62: 1968-11-01 | J62: 28 | K62: Die brennenden Statuen | M62: WA 13 | N62: 20.03.1972 - 18.05.1972
C63: 2 | D63: V58 | E63: 53 | F63: De wageneters | G63: 1973-01-01 | H63: Wastl | I63: 1969-02-01 | J63: 28 | K63: Die Autofresser schlagen zu! | M63: WA 20 | O63: 08.08.1972 - 13.02.1973
C64: 2 | D64: V62 | E64: 54 | F64: De zwarte spookhond | G64: 1974-01-01 | H64: Wastl | I64: 1969-03-01 | J64: 28 | K64: Der Geisterhund | M64: WA 24 | N64: 19.05.1972 - 17.07.1972
C65: 2 | D65: V82 | E65: 55 | F65: De bevroren vlammen | G65: 1974-01-01 | H65: Wastl | I65: 1969-07-01 | J65: 28 | K65: Der Kältestrahler | L65: Ook in SW Stripomnibus (1974) | M65: WA 42 | P65: 15.08.1972 - 21.02.1973
C66: 2 | D66: V88 | E66: 56 | F66: Het stuntmannensyndicaat | G66: 1974-01-01 | H66: Wastl | I66: 1969-09-01 | J66: 28 | K66: Der Club der Muskelprotze | L66: Ook in Wastl Taschenbücher 1 (1983) | M66: WA 48 | N66: 18.07.1972 - 12.09.1972
C67: 2 | D67: V98 | E67: 57 | F67: De bijenkorf | G67: 1974-01-01 | H67: Wastl | I67: 1969-11-01 | J67: 28 | K67: Der Aufstand der Roboter | M67: WA 58 | N67: 13.09.1972 - 24.11.1972
C68: 2 | D68: V99 | E68: 58 | F68: De ontvoering | G68: 1974-01-01 | H68: Wastl | I68: 1969-11-01 | J68: 28 | K68: Entführt von der Glatzkopf-Bande | M68: WA 59 | N68: 25.11.1972 - 26.01.1973
C69: 2 | D69: V102 | E69: 59 | F69: De druïdenvoet | G69: 1974-01-01 | H69: Wastl | I69: 1969-12-01 | J69: 28 | K69: Wastl, Spuk und toller Zauber | M69: WA 62 | O69: 20.02.1973 - 28.08.1973
C70: 2 | D70: V105 | E70: 60 | F70: De roestige pijl | G70: 1975-01-01 | H70: Wastl | I70: 1970-01-01 | J70: 28 | K70: Das Geheimnis der Schatztruhe | M70: WA 65 | P70: 01.03.1973 - 07.09.1973
C71: 2 | D71: V119 | E71: 61 | F71: De windmaker | G71: 1975-01-01 | H71: Wastl | I71: 1970-04-01 | J71: 28 | K71: Der unheimliche Windmacher | M71: WA 79 | O71: 16.10.1973 - 19.02.1974
C72: 2 | D72: V52 | E72: 62 | F72: De zwarte gondel | G72: 1975-01-01 | H72: Wastl | I72: 1968-12-01 | J72: 28 | K72: Das Geheimnis der schwarzen Gondel | L72: Originele titel :De zwarte gordel"; ook in Wastl Taschenbücher 1 (1984). Ook een misdruk met Windmaker. | M72: WA 16 | O72: 04.09.1973 - 11.10.1973 | P72: 13.09.1973 - 21.03.1974
C73: 2 | D73: V39 | E73: 63 | F73: De vurige ruiter | G73: 1975-01-01 | H73: Felix | I73: 1968-08-01 | J73: 28 | K73: Der feurige Reiter | M73: FE 514-518 | N73: 18.11.1975 - 16.01.1976 | P73: 10.10.1974 - 17.04.1975
C74: 2 | D74: V47 | E74: 64 | F74: De schrootpiraten | G74: 1976-01-01 | H74: Felix | I74: 1968-10-01 | J74: 28 | K74: Die Schrottpiraten | M74: FE 524-528 | N74: 24.09.1975 - 17.11.1975 | O74: 24.09.1974 - 03.04.1975
C75: 2 | D75: V64 | E75: 65 | F75: De tweehoornige draak | G75: 1976-01-01 | H75: Wastl | I75: 1969-04-01 | J75: 28 | K75: Das Ungeheuer von Au-Waia | L75: Ook in Felix Sonderband für 90 Pfennig (1970) | M75: WA 26 | N75: 18.11.1974 - 21.01.1975
C76: 2 | D76: V114 | E76: 66 | F76: De bankrovers | G76: 1976-01-01 | H76: Wastl | I76: 1970-03-01 | J76: 28 | K76: Die schweren Jungs von Piepenheim | M76: WA 74 | P76: 28.03.1974 - 03.10.1974
C77: 2 | D77: V112 | E77: 67 | F77: Het mijnraadsel | G77: 1976-01-01 | H77: Wastl | I77: 1970-02-01 | J77: 28 | K77: Das Monster aus dem Bauch der Erde | M77: WA 72 | N77: 14.05.1975 - 16.07.1975 | O77: 26.02.1974 - 17.09.1974
C78: 2 | D78: V66 | E78: 68 | F78: Rum voor Kraakeiland | G78: 1977-01-01 | H78: Wastl | I78: 1969-04-01 | J78: 28 | K78: Piraten schlagen zu | M78: WA 28 | P78: 24.04.1975 - 23.10.1975
C79: 2 | D79: V70 | E79: 69 | F79: De kringwolken | G79: 1977-01-01 | H79: Wastl | I79: 1969-05-01 | J79: 28 | K79: Die Zauberwolken greifen an | M79: WA 31 | N79: 16.06.1977 - 20.08.1977 | P79: 13.11.1975 - 13.05.1976
C80: 2 | D80: V101 | E80: 70 | F80: De legende | G80: 1977-01-01 | H80: Wastl | I80: 1969-12-01 | J80: 28 | K80: Schatzsuche auf Schloß Wackelstein | M80: WA 61 | N80: 17.07.1975 - 20.09.1975
C81: 2 | D81: V87 | E81: 71 | F81: De fruitdieven | G81: 1977-01-01 | H81: Wastl | I81: 1969-09-01 | J81: 28 | K81: Die Apfeldiebe | M81: WA 47 | N81: 18.05.1976 - 22.07.1976
C82: 2 | D82: V76 | E82: 72 | F82: De postkoets | G82: 1977-01-01 | H82: Wastl | I82: 1969-06-01 | J82: 28 | K82: Gefährlicher Geldtransport | L82: Ook in Wastl Taschenbücher 3 (1983) | M82: WA 37 | N82: 25.09.1976 - 26.11.1976 | O82: 21.10.1975 - 27.04.1976
C83: 2 | D83: V81 | E83: 73 | F83: De gele gajo | G83: 1978-01-01 | H83: Wastl | I83: 1969-07-01 | J83: 28 | K83: Zigeunerfehde | M83: WA 41 | N83: 03.02.1977 - 07.04.1977 | P83: 20.05.1976 - 2.12.1976
C84: 2 | D84: V126 | E84: 74 | F84: De woudreus | G84: 1978-01-01 | H84: Wastl | I84: 1970-06-01 | J84: 28 | K84: Die fliegende Blockhütte | M84: WA 86 | N84: 10.03.1978 - 26.05.1978
C85: 2 | D85: V96 | E85: 75 | F85: Het betoverde dierenbos | G85: 1978-01-01 | H85: Wastl | I85: 1969-11-01 | J85: 28 | K85: Abenteuer im Märchenwald | M85: WA 56 | P85: 23.06.1977 - 29.12.1977
C86: 2 | D86: V90 | E86: 76 | F86: De slakken van Fukuzawa | G86: 1978-01-01 | H86: Wastl | I86: 1969-09-01 | J86: 28 | K86: Rasante Schneckenjagd | M86: WA 50 | P86: 16.12.1976 - 15.01.1977
C87: 2 | D87: V75 | E87: 77 | F87: Mummies op Morotari | G87: 1978-01-01 | H87: Wastl | I87: 1969-06-01 | J87: 28 | K87: Das Geheimnis der Mumien | M87: WA 36 | N87: 23.07.1976 - 24.09.1976
C88: 2 | D88: V127 | E88: 78 | F88: De kraters van Kukulus | G88: 1979-01-01 | H88: Wastl | I88: 1970-06-01 | J88: 28 | K88: Die Donnertöpfe | M88: WA 87 | N88: 26.10.1977 - 03.01.1978 | O88: 13.12.1977 - 20.06.1978
C89: 2 | D89: V104 | E89: 79 | F89: De mechaniekmaniak | G89: 1979-01-01 | H89: Wastl | I89: 1969-12-01 | J89: 28 | K89: Großer Preis von Monte Schrotto | M89: WA 64 | P89: 05.01.1978 - 01.06.1978
C90: 2 | D90: V103 | E90: 80 | F90: Het toernooi | G90: 1979-01-01 | H90: Wastl | I90: 1969-12-01 | J90: 28 | K90: Wastl jagt die roten Ritter | M90: WA 63 | O90: 01.06.1977 - 06.12.1977
C91: 2 | D91: V91 | E91: 81 | F91: Het drakenland | G91: 1979-01-01 | H91: Wastl | I91: 1969-09-01 | J91: 28 | K91: Wastl im Drachenland | M91: WA 51 | N91: 27.11.1976 - 02.02.1977
C92: 2 | D92: V128 | E92: 82 | F92: De zeven roofridders | G92: 1979-01-01 | H92: Wastl | I92: 1970-06-01 | J92: 28 | K92: Sieben auf einen Streich | L92: De vliegen van Masakin, album 14, heeft dezelfde Duitse titel maar is een ander verhaal (uit Felix 459) | M92: WA 88 | P92: 08.06.1978 - 14.12.1978
C93: 2 | D93: V124 | E93: 83 | F93: De dolle duikboot | G93: 1980-01-01 | H93: Wastl | I93: 1970-05-01 | J93: 28 | K93: Wastl, der Piratenjäger | M93: WA 84 | N93: 22.08.1977 - 25.10.1977
C94: 2 | D94: V125 | E94: 84 | F94: Mysterie in de Zoo | G94: 1980-01-01 | H94: Wastl | I94: 1970-05-01 | J94: 28 | K94: Wastl gibt dem Affen Zucker | L94: Ook in 'In de ban van Vandersteen' 1 (1984) | M94: WA 85 | N94: 04.01.1978 - 09.03.1978
C95: 2 | D95: V132 | E95: 85 | F95: Het verzonken fort | G95: 1980-01-01 | H95: Wastl | I95: 1970-07-01 | J95: 28 | K95: Piraten Hiebe und ein Schatz | M95: WA 91 | N95: 19.09.1979 - 22.11.1979 | P95: 21.12.1978 - 29.06.1979
C96: 2 | D96: V133 | E96: 86 | F96: De bizonkoningin | G96: 1980-01-01 | H96: Wastl | I96: 1970-07-01 | J96: 28 | K96: Der große Manitu schlägt zu | M96: WA 92 | N96: 24.02.1979 - 03.05.1979 | O96: 27.06.1978 - 04.1.1979
C97: 2 | D97: V138 | E97: 87 | F97: Kola de koala | G97: 1980-01-01 | H97: Wastl | I97: 1970-08-01 | J97: 28 | K97: Die Superpillen | L97: In Ons Volkske getiteld 'Jo Kolo de koala'; Ook in 'In de ban van Vandersteen' 2 (1984) | M97: WA 97 | N97: 29.01.1980 - 03.04.1980 | P97: 05.07.1979 - 10.01.1980
C98: 2 | D98: V143 | E98: 88 | F98: De dolle machines | G98: 1981-01-01 | H98: Wastl | I98: 1970-09-01 | J98: 28 | K98: Die Blechgiganten | M98: WA 102 | N98: 23.10.1980 - 27.12.1980 | P98: 17.01.1980 - 24.07.1980
C99: 2 | D99: V275 | E99: 89 | F99: De vreselijke bergreus | G99: 1981-01-01 | H99: Belang van Limburg | I99: 1973-08-13 | J99: 28 | N99: 13.08.1973 - 17.10.1973 | O99: 05.05.1976 - 09.11.1976
C100: 2 | D100: V135 | E100: 90 | F100: De stenen God | G100: 1981-01-01 | H100: Wastl | I100: 1970-07-01 | J100: 28 | K100: Der fliegende Gott von Hulahula | L100: Ook in 'In de ban van Vandersteen' 3 (1984) | M100: WA 94 | N100: 03.08.1978 - 11.10.1978 | O100: 09.01.1979 - 17.07.1979
C101: 2 | D101: V72 | E101: 91 | F101: Jerom contra Diabolus | G101: 1981-01-01 | H101: Wastl | I101: 1969-05-01 | J101: 28 | K101: Das schwarze Monster | M101: WA 33 | N101: 12.07.1979 - 18.09.1979 | O101: 16.11.1976 - 24.05.1977
C102: 2 | D102: V157 | E102: 92 | F102: De hoed van Vidolmes | G102: 1981-01-01 | H102: Wastl | I102: 1970-12-01 | J102: 28 | K102: Der Zaubersee | M102: WA 116 | O102: 19.08.1980 - 24.02.1981 | P102: 31.07.1980 - 05.02.1981
C103: 2 | D103: V89 | E103: 93 | F103: Terreur over Berunka | G103: 1982-01-01 | H103: Wastl | I103: 1969-09-01 | J103: 28 | K103: Der Gorilla mit dem bösen Blick | M103: WA 49 | N103: 08.04.1977 - 15.6.1977
C104: 2 | D104: V176 | E104: 94 | F104: De gemaskerde koala | G104: 1982-01-01 | H104: Wastl | I104: 1971-05-01 | J104: 28 | K104: Wastls toller Zirkuszauber | M104: WA 135 | N104: 28.07.1981 - 30.09.1981 | O104: 03.03.1981 - 08.09.1981 | P104: 12.02.1981 - 20.08.1981
C105: 2 | D105: V123 | E105: 95 | F105: De Sirenen | G105: 1982-01-01 | H105: Wastl | I105: 1970-05-01 | J105: 28 | K105: Wastl läßt die Puppen tanzen | M105: WA 83 | N105: 27.05.1978 - 02.08.1978
C106: 3 | D106: V283 | E106: 1 | F106: De tijmtrotter | G106: 1982-01-01 | H106: Belang van Limburg | I106: 1982-02-06 | J106: 28 | L106: Eerste verhaal in serie 'De wonderbare reizen van Jerom', 28 pagina's. | N106: 06.02.1982 - 10.04.1982 | O106: 30.03.1982 - 05.10.1982
C107: 3 | D107: V285 | E107: 2 | F107: Storm over Rome | G107: 1982-01-01 | H107: Belang van Limburg | I107: 1982-04-13 | J107: 28 | L107: niet: Als die Römer frech geworden | N107: 13.04.1982 - 19.06.1982
C108: 3 | D108: V286 | E108: 3 | F108: Het spookschip | G108: 1983-01-01 | H108: Belang van Limburg | I108: 1982-06-26 | J108: 28 | L108: Ander verhaal met zelfde titel in 2e serie (Nr 27) | N108: 26.06.1982 - 30.08.1982 | O108: 12.10.1982 - 19.04.1983
C109: 3 | D109: V287 | E109: 4 | F109: De zwevende kroon | G109: 1983-01-01 | H109: Belang van Limburg | I109: 1982-09-01 | J109: 28 | N109: 01.09.1982 - 08.11.1982
C110: 3 | D110: V284 | E110: 5 | F110: De gestolen palomino's | G110: 1983-01-01 | H110: Ons Volkske | I110: 1982-03-11 | J110: 28 | P110: 11.03.1982 - 06.01.1983
C111: 3 | D111: V288 | E111: 6 | F111: De dolle dromedaris | G111: 1983-01-01 | H111: Belang van Limburg | I111: 1982-11-09 | J111: 28 | N111: 09.11.1982 - 15.01.1983 | O111: 26.04.1983 - 31.10.1983
C112: 3 | D112: V290 | E112: 7 | F112: De elfenplaneet | G112: 1983-01-01 | H112: Belang van Limburg | I112: 1983-01-17 | J112: 28 | L112: Laatste verhaal in serie 'De wonderbare reizen van Jerom' | N112: 17.01.1983 - 22.03.1983
C113: 3 | D113: V292 | E113: 8 | F113: Het dappere Duimpje | G113: 1984-01-01 | H113: Belang van Limburg | I113: 1983-05-31 | J113: 32 | L113: Nieuwe cover layout 'Jerom', 32 pagina's. Ook verschenen als reclame-album voor ID-Goodshopping (1987), verkort tot 16 pagina's en eerste 2 stroken hertekend. | N113: 31.05.1983 - 15.08.1983
C114: 3 | D114: V293 | E114: 9 | F114: De kat van Karabas | G114: 1984-01-01 | H114: Belang van Limburg | I114: 1983-08-16 | J114: 32 | N114: 16.08.1983 - 22.10.1983
C115: 3 | D115: V294 | E115: 10 | F115: De magische muiltjes | G115: 1984-01-01 | H115: Belang van Limburg | I115: 1983-10-24 | J115: 32 | N115: 24.10.1983 - 07.01.1984
C116: 3 | D116: V296 | E116: 11 | F116: Het knappe kapje | G116: 1984-01-01 | H116: Album | I116: 1984-01-01 | J116: 32 | L116: Hoe dit verhaal verdergaat, wordt duidelijk in De vrolijke valstrik (1985)
C117: 3 | D117: V295 | E117: 12 | F117: De bazige Blauwbaard | G117: 1984-01-01 | H117: Ons Volkske | I117: 1983-11-03 | J117: 32 | P117: 03.11.1983 - 07.06.1984
C118: 3 | D118: V297 | E118: 13 | F118: De vrolijke valstrik | G118: 1985-01-01 | H118: Belang van Limburg | I118: 1984-03-23 | J118: 32 | L118: Ook in 'In de ban van Vandersteen' 5 (1985) | N118: 23.03.1984 - 08.06.1984
C119: 3 | D119: V299 | E119: 14 | F119: De holle heks | G119: 1985-01-01 | H119: Belang van Limburg | I119: 1984-06-14 | J119: 32 | N119: 14.06.1984 - 29.08.1984
C120: 3 | D120: V300 | E120: 15 | F120: De roddelende raaf | G120: 1985-01-01 | H120: Belang van Limburg | I120: 1984-08-30 | J120: 32 | L120: Ook in 'In de ban van Vandersteen' 7 (1985) | N120: 30.08.1984 - 13.11.1984
C121: 3 | D121: V298 | E121: 16 | F121: De wondere waterput | G121: 1985-01-01 | H121: Pats | I121: 1984-05-22 | J121: 32 | O121: 22.05.1984 - 18.12.1984
C122: 3 | D122: V302 | E122: 17 | F122: De ring van Ranjar | G122: 1985-01-01 | H122: Belang van Limburg | I122: 1985-02-18 | J122: 36 | L122: Eerste verhaal gele serie, 36 pagina's. | N122: 18.02.1985 - 11.05.1985
C123: 3 | D123: V303 | E123: 18 | F123: De jolige jager | G123: 1986-01-01 | H123: Belang van Limburg | I123: 1985-05-13 | J123: 36 | N123: 13.05.1985 - 06.08.1985
C124: 3 | D124: V304 | E124: 19 | F124: De boze broeders | G124: 1986-01-01 | H124: Pats | I124: 1985-07-09 | J124: 36 | O124: 09.07.1985 - 11.03.1986
C125: 3 | D125: V305 | E125: 20 | F125: Het Vikingland | G125: 1986-01-01 | H125: Belang van Limburg | I125: 1985-08-07 | J125: 36 | N125: 07.08.1985 - 28.10.1985
C126: 3 | D126: V306 | E126: 21 | F126: Het mysterie Nooittevree | G126: 1986-01-01 | H126: Belang van Limburg | I126: 1985-10-29 | J126: 36 | L126: Gastoptreden S&W (strook 81, 91, 93 en 107/108, zonder tekst) | N126: 29.10.1985 - 22.01.1986
C127: 3 | D127: V308 | E127: 22 | F127: De toornige Trollen | G127: 1987-01-01 | H127: Belang van Limburg | I127: 1986-01-23 | J127: 36 | N127: 23.01.1986 - 17.04.1986
C128: 3 | D128: V312 | E128: 23 | F128: Het schuchtere draakje | G128: 1987-01-01 | H128: Album | I128: 1987-01-01 | J128: 36
C129: 3 | D129: V309 | E129: 24 | F129: De pineut van Panarabia | G129: 1987-01-01 | H129: Pats | I129: 1986-03-18 | J129: 36 | O129: 18.03.1986 - 18.11.1986
C130: 3 | D130: V311 | E130: 25 | F130: Vier natte voeten | G130: 1987-01-01 | H130: Pats | I130: 1986-11-25 | J130: 36 | O130: 25.11.1986 - 28.07.1987
C131: 3 | D131: V314 | E131: 26 | F131: Het mannetje in de maan | G131: 1987-01-01 | H131: Album | I131: 1987-11-01 | J131: 36
C132: 3 | D132: V315 | E132: 27 | F132: De nevelingen | G132: 1988-01-01 | H132: Album | I132: 1988-02-01 | J132: 36
C133: 3 | D133: V313 | E133: 28 | F133: De witte Gibbon | G133: 1988-01-01 | H133: Pats | I133: 1987-08-04 | J133: 36 | O133: 04.08.1987 - 12.04.1988
C134: 3 | D134: V317 | E134: 29 | F134: De wraak van Tijl | G134: 1988-01-01 | H134: Album | I134: 1988-09-01 | J134: 36
C135: 3 | D135: V316 | E135: 30 | F135: Pipo papegaai | G135: 1988-01-01 | H135: Pats | I135: 1988-04-19 | J135: 36 | L135: Gastoptreden S&W (enkel strook 140). | O135: 19.04.1988 - 20.12.1988
C136: 3 | D136: V318 | E136: 31 | F136: Het woeste wilde westen | G136: 1989-01-01 | H136: Album | I136: 1989-02-01 | J136: 36
C137: 3 | D137: V319 | E137: 32 | F137: De jungleschatjes | G137: 1989-01-01 | H137: Album | I137: 1989-05-01 | J137: 36
C138: 3 | D138: V320 | E138: 33 | F138: De blufbaron | G138: 1989-01-01 | H138: Album | I138: 1989-10-01 | J138: 36
C139: 3 | D139: V321 | E139: 34 | F139: Wie een put graaft voor een ander | G139: 1990-01-01 | H139: Album | I139: 1990-05-01 | J139: 36 | L139: Gastoptreden S&W (strook 6 t/m 21). 1e pagina vermelding medewerking diverse Rotterdamse organisaties.
C140: 3 | D140: V322 | E140: 35 | F140: Het schilder-ei | G140: 1990-01-01 | H140: Album | I140: 1990-10-01 | J140: 36
C141: 3 | D141: V323 | E141: 36 | F141: Het schatteneiland | G141: 1991-01-01 | H141: Album | I141: 1991-06-01 | J141: 36 | L141: Gastoptreden S&W (als droom); Ook in SW Familiestripboek 6 (1991) en Familiestripboek (1992), promo uitgave
C142: 4 | D142: V137 | E142: 1 | F142: De vergeten goudmijn | G142: 2008-08-30 | H142: Wastl | I142: 1970-08-01 | J142: 28 | K142: Das Sprung-As aus dem wilden Westen | L142: In Belang van Limburg getiteld "De verdwenen goudmijn" | M142: WA 96 | N142: 04.05.1979 - 04.07.1979
C143: 4 | D143: V53 | E143: 2 | F143: De gele Tula Tula | G143: 2008-08-30 | H143: Wastl | I143: 1968-12-01 | J143: 28 | K143: Der gelbe Tula-Tula | L143: Ook in Wastl Taschenbücher 4 (1983) | M143: WA 17 | N143: 04.04.1969 - 06.06.1969
C144: 4 | D144: V77 | E144: 3 | F144: Het nijdige spinnewiel | G144: 2008-08-30 | H144: Wastl | I144: 1969-06-01 | J144: 28 | K144: Das verhexte Spinnrad | M144: WA 38 | N144: 07.10.1969 - 02.12.1969
C145: 4 | D145: V107 | E145: 4 | F145: De mini musketier | G145: 2008-08-30 | H145: Wastl | I145: 1970-01-01 | J145: 28 | K145: Die Musketiere | L145: Ook in SW Winterboek 1 (1973) | M145: WA 67 | N145: 23.05.1970 - 28.07.1970
C146: 4 | D146: V156 | E146: 5 | F146: De groenzaaier | G146: 2008-08-30 | H146: Wastl | I146: 1970-12-01 | J146: 28 | K146: Wastl und die Wunderpflanzen | L146: Ook in Wastl Sammelband 14 (1971) | M146: WA 115
C147: 4 | D147: V117 | E147: 6 | F147: De catchkampioen | G147: 2009-05-17 | H147: Wastl | I147: 1970-03-01 | J147: 28 | K147: Der König der Catcher | M147: WA 77 | N147: 03.04.1973 - 06.06.1973
C148: 4 | D148: V162 | E148: 7 | F148: De paddestoelen | G148: 2009-05-17 | H148: Wastl | I148: 1971-01-01 | J148: 28 | K148: Wastl und die Donnerpilze | M148: WA 121
C149: 4 | D149: V116 | E149: 8 | F149: De verdwenen professor | G149: 2009-05-17 | H149: Wastl | I149: 1970-03-01 | J149: 28 | K149: Wastl, der Agentenschreck | M149: WA 76 | N149: 27.01.1973 - 02.04.1973
C150: 4 | D150: V61 | E150: 9 | F150: De koekoeksklokkendief | G150: 2009-05-17 | H150: Wastl | I150: 1969-03-01 | J150: 28 | K150: Die Kuckucksuhrendiebe | M150: WA 23 | N150: 03.12.1969 - 28.01.1970
C151: 4 | D151: V63 | E151: 10 | F151: De ruimte ijskast | G151: 2009-05-17 | H151: Wastl | I151: 1969-03-01 | J151: 28 | K151: Hilfe aus den Weltraum | M151: WA 25 | N151: 07.06.1969 - 05.08.1969
C152: 4 | D152: V69 | E152: 11 | F152: De regensitar | G152: 2009-09-01 | H152: Wastl | I152: 1969-05-01 | J152: 28 | K152: Die Riesenmücken | M152: WA 30 | N152: 19.03.1975 - 14.05.1975
C153: 4 | D153: V85 | E153: 12 | F153: De spooktrein | G153: 2009-09-01 | H153: Wastl | I153: 1969-08-01 | J153: 28 | K153: Der Geisterzug | M153: WA 45 | N153: 14.03.1976 - 17.05.1976
C154: 4 | D154: V34 | E154: 13 | F154: Het circusgeheim | G154: 2009-09-01 | H154: Wastl | I154: 1968-07-01 | J154: 28 | K154: Die Zirkus-Bande | L154: Ook in Wastl Taschenbücher 6 (1984) | M154: WA 4 | N154: 29.07.1970 - 24.09.1970
C155: 4 | D155: V180 | E155: 14 | F155: Het vergeten eiland | G155: 2009-09-01 | H155: Wastl | I155: 1971-06-01 | J155: 28 | K155: Wastl und der Steinzeitmolch | M155: WA 139 | N155: 04.03.1981 - 11.05.1981
C156: 4 | D156: V175 | E156: 15 | F156: De ivoorsmokkelaars | G156: 2009-09-01 | H156: Wastl | I156: 1971-04-01 | J156: 28 | K156: Die goldenen Jumbos | M156: WA 134 | N156: 12.05.1981 - 16.07.1981 | O156: 15.09.1981 - 23.03.1982
C157: 4 | D157: V67 | E157: 16 | F157: De diamantsmokkelaars | G157: 2010-01-01 | H157: Wastl | I157: 1969-04-01 | J157: 28 | K157: Die Diamantenschmuggler | M157: WA 29 | N157: 22.01.1975 - 18.03.1975
C158: 4 | D158: V55 | E158: 17 | F158: Walli de geit | G158: 2010-01-01 | H158: Wastl | I158: 1969-01-01 | J158: 28 | K158: Wastl gegen Dynamit | M158: WA 18 | N158: 29.01.1970 - 23.03.1970
C159: 4 | D159: V122 | E159: 18 | F159: De Egyptische vaas | G159: 2010-01-01 | H159: Wastl | I159: 1970-05-01 | J159: 28 | K159: Der Schatz der roten Pyramide | M159: WA 82 | N159: 07.06.1973 - 12.08.1973
C160: 4 | D160: V109 | E160: 19 | F160: De blauwe olifant | G160: 2010-01-01 | H160: Wastl | I160: 1970-02-01 | J160: 28 | K160: Das Wunder des blauen Elefanten | M160: WA 69 | N160: 24.12.1973 - 28.02.1974
C161: 4 | D161: V57 | E161: 20 | F161: De levende batterij | G161: 2010-01-01 | H161: Wastl | I161: 1969-01-01 | J161: 28 | K161: Die lebende Batterie | L161: Ook in Wastl Taschenbücher 4 (1983) | M161: WA 19 | N161: 18.09.1974 - 16.11.1974
C162: 4 | D162: V95 | E162: 21 | F162: De robot van Astra | G162: 2011-01-01 | H162: Wastl | I162: 1969-10-01 | J162: 28 | K162: Besuch von einem fremden Stern | M162: WA 55 | N162: 24.03.1970 - 22.05.1970
C163: 4 | D163: V151 | E163: 22 | F163: De verlaten stad | G163: 2011-01-01 | H163: Wastl | I163: 1970-11-01 | J163: 28 | K163: Der größte Knall von Bollertown | M163: WA 110 | N163: 13.06.1980 - 16.08.1980
C164: 4 | D164: V59 | E164: 23 | F164: Avontuur in de ruimte | G164: 2011-01-01 | H164: Wastl | I164: 1969-02-01 | J164: 28 | K164: Abenteuer im Weltall | M164: WA 21 | N164: 13.07.1974 - 17.09.1974
C165: 4 | D165: V134 | E165: 24 | F165: Raadsel op Berkendaal | G165: 2011-01-01 | H165: Wastl | I165: 1970-07-01 | J165: 28 | K165: Wastl, der Kanonenkönig | M165: WA 93 | N165: 19.12.1978 - 03.05.1979 | O165: 05.02.1980 - 12.08.1980
C166: 4 | D166: V60 | E166: 25 | F166: De walvisvaarders | G166: 2011-01-01 | H166: Wastl | I166: 1969-03-01 | J166: 28 | K166: Die Walpiraten | M166: WA 22 | N166: 17.01.1976 - 13.03.1976 | O166: 08.04.1975 - 14.10.1975
C167: 4 | D167: V46 | E167: 26 | F167: De Jeti's van Oregon | G167: 2011-01-01 | H167: Wastl | I167: 1968-10-01 | J167: 28 | K167: Die Schneemenschen von Alaska | M167: WA 12 | N167: 18.10.1973 - 22.12.1973
C168: 4 | D168: V139 | E168: 27 | F168: Vidolmes | G168: 2011-01-01 | H168: Wastl | I168: 1970-08-01 | J168: 28 | K168: Der fliegende Teppich | M168: WA 98 | N168: 29.12.1980 - 03.03.1981
C169: 4 | D169: V142 | E169: 28 | F169: Jacht op Kolo | G169: 2011-01-01 | H169: Wastl | I169: 1970-09-01 | J169: 28 | K169: Der schnellste Bremser von Ponaco | M169: WA 101 | N169: 18.08.1980 - 22.10.1980 | O169: 24.07.1979 - 29.01.1980
C170: 4 | D170: V144 | E170: 29 | F170: Operatie nijlpaard | G170: 2011-01-01 | H170: Wastl | I170: 1970-09-01 | J170: 28 | K170: Die dicken Brummer | M170: WA 103 | N170: 23.11.1979 - 26.01.1980
C171: 4 | D171: V35 | E171: 30 | F171: De kroonjuwelen | G171: 2011-01-01 | H171: Felix | I171: 1968-07-01 | J171: 28 | K171: Die Kronjuwelen | M171: FE 509-513 | N171: 05.05.1974 - 12.07.1974
C172: 4 | D172: V165 | E172: 31 | F172: De koekjesclan | G172: 2012-01-01 | H172: Wastl | I172: 1971-02-01 | J172: 22 | K172: Die Bande der roten Kapuzen | L172: Inclusief 'De salamanderstad'; Ook in Plezier met Suske en Wiske 2 (1982) | M172: WA 124
C173: 4 | D173: V225 | E173: 31 | F173: De salamanderstad | G173: 2012 | H173: Das ist Klasse | I173: 1972-03-01 | J173: 10 | K173: Abenteuer in Salmandra | L173: Alleen als extra verhaal opgenomen in Adhemar serie, Nr 31 | M173: DIK 9
C174: 4 | D174: V215 | E174: 32 | F174: Een zonderlinge ballon | G174: 2012-01-01 | H174: Wastl | I174: 1972-01-01 | J174: 22 | K174: Wastls große Luft-Safari | L174: Inclusief 'Het dierenfeest'; Ook in SW Vakantieboek 3 (1975) | M174: WA 172
C175: 4 | D175: V223 | E175: 32 | F175: Het dierenfeest | G175: 2012 | H175: Das ist Klasse | I175: 1972-03-01 | J175: 10 | K175: Der Meisterdompteur von Helfenstein | L175: Alleen als extra verhaal opgenomen in Adhemar serie, Nr 32; Ook in Das Grosse Klasse-Buch 1 (1972) | M175: DIK 7
C176: 4 | D176: V196 | E176: 33 | F176: Het hunebed | G176: 2012-01-01 | H176: Wastl | I176: 1971-09-01 | J176: 22 | K176: Das Ungeheur von Loch Keß | L176: Inclusief 'Odilon de cowboy'; Ook in SW Vakantieboek 4 (1976) | M176: WA 153
C177: 4 | D177: V242 | E177: 33 | F177: Odilon de cowboy | G177: 2012 | H177: Das ist Klasse | I177: 1972-07-01 | J177: 10 | K177: In Wildwest sind die Ochsen los | L177: Alleen als extra verhaal opgenomen in Adhemar serie, Nr 33 | M177: DIK 26
C178: 4 | D178: V147 | E178: 34 | F178: Het spookpaard | G178: 2012-01-01 | H178: Wastl | I178: 1970-10-01 | J178: 22 | K178: Das Geisterpferd | L178: Inclusief 'De V-straal'; Ook in SW Winterboek 2 (1974) | M178: WA 106
C179: 4 | D179: V258 | E179: 34 | F179: De V-straal | G179: 2012 | H179: Das ist Klasse | I179: 1972-11-01 | J179: 10 | K179: Invasion auf Maxibeinen | L179: Alleen als extra verhaal opgenomen in Adhemar serie, Nr 34 | M179: DIK 42
C180: 4 | D180: V136 | E180: 35 | F180: Het spannend spel | G180: 2012-01-01 | H180: Wastl | I180: 1970-08-01 | J180: 22 | K180: Wastl bremst die Geisterlok | L180: Inclusief 'Het vliegende kroontje'; Ook in SW Vakantieboek 7 (1979, getiteld Spannend spel) | M180: WA 95
C181: 4 | D181: V224 | E181: 35 | F181: Het vliegende kroontje | G181: 2012-01-01 | H181: Das ist Klasse | I181: 1972-03-01 | J181: 10 | K181: Der Zauberhelm geht in die Luft | L181: Alleen als extra verhaal opgenomen in Adhemar serie, Nr 35; Ook in Das Grosse Klasse-Buch 1 (1972) | M181: DIK 8
C182: 4 | D182: V274 | E182: 36 | F182: Prof Barabas verdwenen | G182: 2014-01-01 | H182: Klasse | I182: 1973-06-01 | J182: 10 | K182: Zucker für die Wolfszahmbande | L182: Inclusief 'De wagen van Ragam' | M182: DIK 58
C183: 4 | D183: V179 | E183: 36 | F183: De wagen van Ragam | G183: 2014 | H183: Wastl | I183: 1971-05-01 | J183: 22 | K183: Schützenfest in Flutschistan | L183: Alleen als extra verhaal opgenomen in Adhemar serie, Nr 36 | M183: WA 138
C184: 4 | D184: V152 | E184: 37 | F184: De grote zon | G184: 2014-01-01 | H184: Wastl | I184: 1970-11-01 | J184: 22 | K184: Das haut den stärksten Riesen um | L184: Inclusief 'De gestolen Boeddha' (als eerste verhaal); Ook in SW Vakantieboek 5 (1977) | M184: WA 111
C185: 4 | D185: V251 | E185: 37 | F185: De gestolen Boeddha | G185: 2014 | H185: Das ist Klasse | I185: 1972-09-01 | J185: 10 | K185: Siambuddha sehr gefragt | L185: Alleen als extra en eerste verhaal opgenomen in Adhemar serie, Nr 37 | M185: DIK 35
C186: 4 | D186: V239 | E186: 38 | F186: De Sahara rally | G186: 2014-01-01 | H186: Das ist Klasse | I186: 1972-07-01 | J186: 10 | K186: Heiße Schlitten in der Wüste | L186: Inclusief 'Een veder voor Odilon'. Ook in Klasse Sammelband 1 (1972) en 4 (1972) | M186: DIK 23
C187: 4 | D187: V170 | E187: 38 | F187: Een veder voor Odilon | G187: 2014 | H187: Wastl | I187: 1971-03-01 | J187: 22 | K187: Wastl und der rote Mustang | L187: Alleen als extra verhaal opgenomen in Adhemar serie, Nr 38; Ook in Wastl Sammelband 15 (1971) | M187: WA 129
C188: 4 | D188: V238 | E188: 39 | F188: De vriendelijke schildpad | G188: 2014-01-01 | H188: Das ist Klasse | I188: 1972-06-01 | J188: 10 | K188: Die wilde Schau von Kokonesien | L188: Inclusief 'Jerom op de Olympische Spelen' en 'De lollige lappen'; Ook in Klasse Sammelband 1 (1972) | M188: DIK 22
C189: 4 | D189: V252 | E189: 39 | F189: Jerom op de Olympische Spelen | G189: 2014 | H189: Das ist Klasse | I189: 1972-10-01 | J189: 10 | K189: Olympia in Ächzilos | L189: Alleen als extra verhaal opgenomen in Adhemar serie, Nr 39 | M189: DIK 36
C190: 4 | D190: V269 | E190: 39 | F190: De lollige lappen | G190: 2014 | H190: Klasse | I190: 1973-04-01 | J190: 10 | K190: Weißer Spuk in Lappaluk | L190: Alleen als extra verhaal opgenomen in Adhemar serie, Nr 39 | M190: DIK 53
C191: 4 | D191: V257 | E191: 40 | F191: Het geheimzinnige eiland | G191: 2014-01-01 | H191: Das ist Klasse | I191: 1972-11-01 | J191: 10 | K191: Die Robinsons von Barbaloa | L191: Inclusief 'Helpendael onder hoogspanning' en 'Lauweren voor helden' | M191: DIK 41
C192: 4 | D192: V241 | E192: 40 | F192: Helpendael onder hoogspanning | G192: 2014 | H192: Das ist Klasse | I192: 1972-07-01 | J192: 10 | K192: Wastl stoppt den Klub 200 | L192: Alleen als extra verhaal opgenomen in Adhemar serie, Nr 40; Ook in Klasse Sammelband 4 (1972) | M192: DIK 25
C193: 4 | D193: V240 | E193: 40 | F193: Lauweren voor helden | G193: 2014 | H193: Das ist Klasse | I193: 1972-07-01 | J193: 10 | K193: Die Schlacht der heißen Löffel | L193: Alleen als extra verhaal opgenomen in Adhemar serie, Nr 40 | M193: DIK 24
C194: Adhemar | D194: V14 | F194: De Blauwe Luiaard | G194: 2009-01-01 | H194: Felix | I194: 1967-02-01 | J194: 31 | K194: Das blaue Faultier | L194: Gelegenheids Adhemar uitgave, oorspronkelijke formaat | M194: FE 437-442 | P194: 16.03.1967 - 12.10.1967
C195: - | D195: V289 | F195: De vredige veldslag | G195: 2024-04-14 | H195: Ons Volkske | I195: 1983-01-13 | J195: 28 | L195: In Ons Volkske en Pats. Voor het eerst in album op Fanclubdag 14/04/2024 met cover van Luc Morjeau. | O195: 08.11.1983 - 15.05.1984 | P195: 13.01.1983 - 14.07.1983
C196: - | D196: V301 | F196: De gramme Gotel | G196: 2013-07-01 | H196: Belang van Limburg | I196: 1984-11-14 | J196: 32 | L196: Album Middelkerke, beperkte oplage | N196: 14.11.1984 - 16.02.1985
C197: - | D197: V131 | F197: Balawy de kangoeroe | G197: 1978-06-01 | H197: Wastl | I197: 1970-06-01 | J197: 22 | K197: Die Boxkanone aus dem Busch | L197: Ook in SW Vakantieboek 6 (1978) | M197: WA 90
C198: - | D198: V146 | F198: De reusachtige bizon | G198: 1981-06-01 | H198: Wastl | I198: 1970-10-01 | J198: 22 | K198: Der Wunderbüffel | L198: Ook in Plezier met Suske en Wiske 1 (1980) | M198: WA 105
C199: - | D199: V150 | F199: De wilde ram | G199: 1980-06-01 | H199: Wastl | I199: 1970-11-01 | J199: 22 | K199: Die flotten Schotten | L199: Ook in SW Vakantieboek 8 (1980) | M199: WA 109
C200: - | D200: V155 | F200: De ring van Ingelein | G200: 1974-06-01 | H200: Wastl | I200: 1970-12-01 | J200: 22 | K200: Wastl, der Piratenschreck | L200: Ook in SW Vakantieboek 2 (1974) en Wastl Sammelband 14 (1971) | M200: WA 114
... 166 more rows

Sheet De Vrolijke Bengels
B1: de vrolijke bengels - het plezante cirkus - de lustige zwervers | I1: Hide | J1: Hide
B2: Suske en Wiske en Lambik verschenen gedurende 3 jaar als onderdeel van De Vrolijke Bengels.
B3: Deze serie liep van 1946-1954 in het weekblad Ons Volkske (tussendoor in 't Kapoentje en Het Nieuwsblad, zie lijst).
B4: Suske en Wiske speelden van 1950-1953 mee in 164 afleveringen van de totaal 422, hieronder met rode kantlijn.
B5: Veel van de Ons Volske gags zijn te vinden op | C5: lastdodo.nl
B6: De Vrolijke Bengels verschenen ook in weekblad Revue 1955 nr 20-47 met gewijzigde vernederlandste namen
B7: Na afloop van De Vrolijke Bengels werden deze direct opgevolgd in Ons Volkske door de Vandersteen reeks Het Plezante Cirkus, 188 afleveringen (zie lijst en onder).
B8: Deze werd dan weer opgevolgd door De Lustige Zwervers, 122 afleveringen.
B9: Zo verschenen er in 14 jaar in totaal 732 gags in deze drie series.
B10: Er is lange tijd niet veel in albums verschenen. Wel verschenen de Ons Volske bladen in verzamelbanden, deel 1 (1949) t/m 35 (1955), zie lijst.
B11: Hierin verschenen alle afleveringen van De Vrolijke Bengels vanaf dat ze in kleur waren, en alle afleveringen van Het Plezante Cirkus en De Lustige Zwervers.
B12: Daarna verschenen telkens delen van de reeksen. Onderstaand is een eerste opzet om de boel in kaart te brengen.
B13: Eerst verschijnen kort de albums per serie, gevolgd door een grote tabel waarin per aflevering staat waarin deze gevonden kan worden.
B14: Nog lang niet alles is af. Hopelijk hebben jullie er toch wat aan. Enkele vragen heb ik onderaan geplaatst.
B15: Arjen Leine
C16: de vrolijke bengels
C17: Jaar | D17: Album | H17: Opmerking
C18: 1958 | D18: De Vrolijke Bengels deel 1 | H18: 33 gags (zie lijst), 2e druk met groene letters (1959) | M18: kleur
C19: 1959 | D19: De Vrolijke Bengels deel 2 | H19: 1e druk met groene letters | M19: kleur
C20: 1976 | D20: Ciso Stripgids 11 | H20: 11 gags (70 t/m 80) | M20: zwart-wit
C21: 1977 | D21: Ciso Stripgids 13 | H21: 10 gags (57 t/m 66) | M21: zwart-wit
C22: 1977 | D22: Het beeldverhaal in Vlaanderen | H22: 2 gags (de nieuwe broek + ..) | M22: zwart-wit
C23: 1978 | D23: Ciso Quarto 3 | H23: 32 gags (1 t/m 8, 44 t/m 56, 67 t/m 69, 81, 82 en 100 t/m 105) | M23: zwart-wit
C24: 1978 | D24: Ciso 28 | H24: 44 gags (106, 109 t/m 151) | M24: zwart-wit
C25: 1983 | D25: Strip Klasiek 12 | H25: Zelfde inhoud als album deel 1 (zie lijst) | M25: kleur
C26: 1984 | D26: In de ban van Vandersteen 3 | H26: Zelfde inhoud als album deel 1 (zie lijst) | M26: kleur
C27: 1990 | D27: Vandersteen collectie 10 - 'Ons Volkske' | H27: 2 gags | M27: zwart-wit
C28: 1990 | D28: Welkom in de wereld van Suske en Wiske | H28: 1 gag: (374) | M28: kleur
C29: 1994 | D29: Biografie Vandersteen (1994) | H29: 9 gags (1, 68,96 (half),127,128,129 (mini),189,190,352 waarbij de 1e en de laatste 4 in kleur) | M29: kleur/zwart-wit
C30: 1998 | D30: De Vrolijke Bengels Klassiek deel 1 | H30: 30 gags (1-30), oranje kaft | M30: kleur
C31: 1999 | D31: De Vrolijke Bengels Klassiek deel 2 | H31: 37 gags (31-67), oranje kaft | M31: kleur
C32: 2010 | D32: Fenix 73 | E32: De Vrolijke Bengels | H32: 28 gags (68-95), rode kaft | M32: zwart-wit
C33: 2012 | D33: Fenix 82 | E33: De Vrolijke Bengels | H33: 33 gags (96-128), rode kaft | M33: zwart-wit
C34: 2015 | D34: Fenix 106 | E34: De Vrolijke Bengels 1 | H34: 34 gags (129-162), blauwe kaft | M34: kleur
C35: 2015 | D35: Fenix 107 | E35: De Vrolijke Bengels 2 | H35: 37 gags (163-199), blauwe kaft | M35: kleur
C36: 2014 | D36: Fenix 97 | E36: De Vrolijke Bengels 3 | H36: 38 gags (200-237), blauwe kaft | M36: kleur
C37: 2014 | D37: Fenix 98 | E37: De Vrolijke Bengels 4 | H37: 38 gags (238-275), blauwe kaft | M37: kleur
C38: 2013 | D38: Fenix 90 | E38: De Vrolijke Bengels 5 | H38: 38 gags (276-313), blauwe kaft | M38: kleur
C39: 2013 | D39: Fenix 91 | E39: De Vrolijke Bengels 6 | H39: 38 gags (314-351), blauwe kaft | M39: kleur
C40: 2016 | D40: Fenix 114 | E40: De Vrolijke Bengels 7 | H40: 38 gags (352-389), blauwe kaft | M40: kleur
C41: 2016 | D41: Fenix 115 | E41: De Vrolijke Bengels 8 | H41: 33 gags (390-422), blauwe kaft | M41: kleur
C42: 2015 | D42: Stripfiguren vereeuwigd in straatnamen | H42: Doornwijk Temse, 1 gag | M42: kleur
C43: De reden dat voor de Fenix uitgavan van De Vrolijke Bengels deel 5 en 6 eerder verschenen, is omdat dit de mooiste gags zijn, namelijk met de grote prenten. Chronologisch waren dit de laatste waarin Suske, Wiske en Lambik meespeelden. Brabant Strip Magazine wilde in dit Vandersteen-jaar uitpakken met iets moois en de beide albums zijn inderdaad zeer fraai uitgegeven. De gags zijn in de oorspronkelijke kleuren afgedrukt zoals ze in de jaren '50 verschenen in Ons Volkske en de albums hebben een mooie cover gekregen met door Luc Morjaeu hertekende tekeningen van Willy Vandersteen.
C44: Het plezante cirkus
C45: De start in Ons Volkske sloot precies aan op het einde van De Vrolijke Bengels.
C46: In de periode 1954-1958 verschenen in totaal 188 verschillende gags.
C47: De gags in het weekblad zijn genummerd, zonder titel. De albums hebben telkens een titel boven de gags, maar de nummering is verwijderd.
C48: Jaar | D48: Album | H48: Opmerking
C49: 1958 | D49: Het Plezante Cirkus deel 1 | H49: 34 gags (zie lijst), 2e druk met gele titel (1959) | M49: kleur
C50: 1959 | D50: Het Plezante Cirkus deel 2 | M50: kleur
C51: 1959 | D51: Het Plezante Cirkus deel 3 | M51: kleur
C52: 1981 | D52: Programmaboek strip2daagse 1981 | H52: Strip in beeld, 16 gags, de laatste 16 platen uit album nr 3 (zie lijst bij Strip Klassiek) | M52: zwart-wit
C53: 1984 | D53: Strip Klassiek 20 | H53: zelfde inhoud als deel 1 (zie lijst) | M53: kleur
C54: 1994 | D54: Biografie Vandersteen (1994) | H54: 3 gags (1, 2 en 22) | M54: kleur
C55: 1996 | D55: Van glimlach tot schaterlach | H55: Humor bij Vandersteen, 1 gag
C56: 2006 | D56: Alle afleveringen verschenen ook in hardcovers, deel 1 t/m5, uitgegeven door Stripbeurs Putte (2006/2011), maar in gelimiteerde oplage
C57: de lustige zwervers
C58: De start in Ons Volkske sloot precies aan op het einde van Het Plezante Cirkus. In de periode 1958-1960 verschenen in totaal 122 verschillende gags.
C59: De strip is getekend in een aan dat tijdperk aangepaste “modernistische” stijl: De Belgische Expo ’58 werd geopend op 17 april 1958.
C60: En op precies dezelfde dag verscheen de eerste aflevering van De Lustige Zwervers in het weekblad Ons Volkske dat een nieuwe vormgeving had gekregen, gedrukt op beter papier.
C61: In album pas verschenen in de 3 delen van Collectie Fenix (Brabant Strip). Alle afleveringen zijn in de Fenix albums opgenomen.
C62: Jaar | D62: Album | H62: Opmerking
C63: 2017 | D63: Deel 1 | E63: Collectie Fenix 124 | H63: 38 gags (1-38) | M63: kleur
C64: 2018 | D64: Deel 2 | E64: Collectie Fenix 128 | H64: 39 gags (39-77) | M64: kleur
C65: 2018 | D65: Deel 3 | E65: Collectie Fenix 129 | H65: 45 gags (78-122) | M65: kleur
C66: 1994 | D66: Biografie Vandersteen (1994) | H66: 1 gag (gag 1) | M66: kleur
B70: De Vrolijke Bengels | K70: Album | L70: Ciso | M70: Strip Klassiek / Programmaboek Strip 2 daagse | N70: Fenix | O70: Klassiek reeks | P70: Biografie Vandersteen | Q70: Gaston 3 | R70: Welkom in de wereld van Suske En Wiske | S70: In de ban van Vandersteen 3 | T70: Vandersteen collectie 10 'Ons Volkske' | U70: Van glimlach tot schaterlach - Humor bij Vandersteen | V70: Ons Volkske
L71: Quarto | N71: collectie | Q71: Tussen water en vuur | V71: Album bundelingen
B72: Weekblad | C72: datum | D72: jaar | E72: nr | F72: Gag | G72: Gag SW | H72: Opmerking | K72: 1958-59 | L72: 1976-78 | M72: 1981; 1983-84 | N72: 2010-16 | O72: 1998-99 | P72: 1994 | Q72: 1976 | R72: 1990 | S72: 1984 | T72: 1990 | U72: 1996 | V72: 1949-60
B73: OnsVolkske | C73: =+C74-7 -> 1946-07-25 | D73: 1946 | E73: 30 | F73: 0 | H73: Aankondiging.
B74: OnsVolkske | C74: 1946-08-01 | D74: 1946 | E74: 31 | F74: 1 | H74: Eerste aflevering. Ook in Fenix 82. | N74: Fenix 82, 2012 | O74: Deel 1, 1998 | P74: Biografie 1994
B75: OnsVolkske | C75: =+C74+7 -> 1946-08-08 | D75: 1946 | E75: =+E74+1 -> 32 | F75: =+F74+1 -> 2 | O75: Deel 1, 1998
B76: OnsVolkske | C76: 1946-08-15 | D76: 1946 | E76: 33 | F76: 3 | O76: Deel 1, 1998
B77: OnsVolkske | C77: 1946-08-22 | D77: 1946 | E77: 34 | F77: 4 | O77: Deel 1, 1998
B78: OnsVolkske | C78: 1946-08-29 | D78: 1946 | E78: 35 | F78: 5 | O78: Deel 1, 1998 | T78: V. Collectie 10
B79: OnsVolkske | C79: 1946-09-05 | D79: 1946 | E79: 36 | F79: 6 | O79: Deel 1, 1998
B80: OnsVolkske | C80: 1946-09-12 | D80: 1946 | E80: 37 | F80: 7 | O80: Deel 1, 1998 | T80: V. Collectie 10
B81: OnsVolkske | C81: 1946-09-19 | D81: 1946 | E81: 38 | F81: 8 | O81: Deel 1, 1998
B82: OnsVolkske | C82: 1946-09-26 | D82: 1946 | E82: 39 | F82: 9 | O82: Deel 1, 1998
B83: OnsVolkske | C83: 1946-10-03 | D83: 1946 | E83: 40 | F83: 10 | O83: Deel 1, 1998
B84: OnsVolkske | C84: 1946-10-10 | D84: 1946 | E84: 41 | F84: 11 | O84: Deel 1, 1998
B85: OnsVolkske | C85: 1946-10-17 | D85: 1946 | E85: 42 | F85: 12 | O85: Deel 1, 1998
B86: OnsVolkske | C86: 1946-10-24 | D86: 1946 | E86: 43 | F86: 13 | O86: Deel 1, 1998
B87: OnsVolkske | C87: 1946-10-31 | D87: 1946 | E87: 44 | F87: 14 | O87: Deel 1, 1998
B88: OnsVolkske | C88: 1946-11-07 | D88: 1946 | E88: 45 | F88: 15 | O88: Deel 1, 1998
B89: OnsVolkske | C89: 1946-11-14 | D89: 1946 | E89: 46 | F89: 16 | O89: Deel 1, 1998
B90: OnsVolkske | C90: 1946-11-21 | D90: 1946 | E90: 47 | F90: 17 | O90: Deel 1, 1998
B91: OnsVolkske | C91: 1946-11-28 | D91: 1946 | E91: =+E90+1 -> 48 | F91: 18 | H91: Hernoeming: Vrolijke ipv Vroolijke Bengels. | O91: Deel 1, 1998
B92: OnsVolkske | C92: 1946-12-05 | D92: 1946 | E92: 49 | F92: 19 | O92: Deel 1, 1998
B93: OnsVolkske | C93: 1946-12-12 | D93: 1946 | E93: 50 | F93: 20 | O93: Deel 1, 1998
B94: OnsVolkske | C94: 1946-12-19 | D94: 1946 | E94: 51 | F94: 21 | O94: Deel 1, 1998
B95: OnsVolkske | C95: 1946-12-26 | D95: 1946 | E95: 52 | F95: 22 | O95: Deel 1, 1998
B96: OnsVolkske | C96: 1947-01-02 | D96: 1947 | E96: 1 | F96: 23 | O96: Deel 1, 1998
B97: OnsVolkske | C97: 1947-01-09 | D97: 1947 | E97: =+E96+1 -> 2 | F97: 24 | O97: Deel 1, 1998
B98: OnsVolkske | C98: 1947-01-16 | D98: 1947 | E98: 3 | F98: 25 | O98: Deel 1, 1998
B99: OnsVolkske | C99: 1947-01-23 | D99: 1947 | E99: 4 | F99: 26 | O99: Deel 1, 1998
B100: OnsVolkske | C100: 1947-01-30 | D100: 1947 | E100: 5 | F100: 27 | O100: Deel 1, 1998
B101: OnsVolkske | C101: 1947-02-06 | D101: 1947 | E101: 6 | F101: 28 | O101: Deel 1, 1998
